Workbook

Sheet INTRO
B2: Formulaire de Rapport Commun v.3.1
B4: Le but de ce formulaire de rapport commun - disponible sous forme de fichier Excel - est de mettre à disposition des autorités sanitaires nationales et des gestionnaires de données un outil standardisé qui réponde aux défis, facilite l'intégration et par conséquent contribue à améliorer la gestion de programme. Ce formulaire tend à standardiser le rapport de résultats des programmes nationaux, améliore la disponibilité et la coordination des données de chimioprévention à travers les Bureaux des Régions de l'Organisation mondiale de la Santé. Les autorités nationales sont priées de compléter ce formulaire et de le soumettre à l'Organisation mondiale de la Santé avant le 15 août de l'année en cours pour rapporter les données des activités de chimioprévention mises en oeuvre l'année précédente.
B6: Structure de l'application (feuilles de travail) :
B8: INTRO | C8: Cette feuille contient des instructions pour compléter le formulaire de rapport commun et des informations sur le statut de la chimioprévention pour les maladies d'endémie du pays.
B9: COUNTRY_INFO | C9: Cette feuille contient des informations sur la structure administrative du pays, la population par groupe d'âge, le statut d'endémicité pour chaque maladie, la population devant être traitée par chimioprévention, les interventions prévues et les interventions mises en oeuvre.
B10: MDA1, MDA2, MDA3, T1, T2 et T3 | C10: Ces feuilles contiennent des informations sur l'endémicité des districts ciblés pour le traitement aux médicaments spécifiques pour la chimioprévention, les plans de traitement, et le nombre de personnes traitées par groupe d'âge.
B11: DISTRICT | C11: Cette feuille contient un résumé sur les personnes traitées, par maladie, au niveau de mise en oeuvre. Si les données par genre (sexe) sont disponibles, merci de les saisir.
B12: SUMMARY | C12: Cette feuille contient un résumé sur les personnes traitées, par maladie et par type d'intervention de chimioprévention. Avant de générer le rapport (exécuter macro), veuillez sélectionner la maladie pour laquelle vous souhaitez un rapport. Veuillez suivre le même processus pour générer les divers rapports. Cette feuille doit être imprimée et soumise comme formulaire de rapport commun (voir les instructions pour la soumission du formulaire sous la feuille SUMMARY).
B14: Instructions pour la saisie des données
B16: La plupart des cellules des feuilles de travail mentionnées ci-dessus contiennent des formules calculées automatiquement en fonction du protocole de traitement recommandé par l'OMS pour chaque maladie. Voir : http://www.who.int/neglected_diseases/preventive_chemotherapy/pct_manual/en/index.html
B18: Veuillez entrer vos données dans les cellules en fonction de leur code de couleur :
C20: Blanc - la cellule n'est pas protégée. Veuillez entrer la valeur de l'indicateur demandé.
C22: Jaune - la cellule est protégée et inclut le nom de l'indicateur. Aucune entrée de données requise.
C24: Orange - la cellule n'est pas protégée et contient un menu déroulant. Veuillez sélectionner la valeur dans le menu déroulant.
C27: Vert - la cellule n'est pas protégée et contient des formules. Veuillez changer la valeur indiquée uniquement si vos données sont différentes de celles calculées automatiquement.
C30: Bleu - la cellule est protégée et contient des formules. Aucune entrée de données requise.
B32: Données pays
B34: PAYS | E34: Mali
B36: Année de rapport des données | E36: 2021
B38: Le pays est-il endémique à la filariose lymphatique (FL) ? | E38: Endémique mais pas de CP
B40: Le pays est-il endémique à l'onchocercose (ONCHO) ? | E40: Endémique
B42: Le pays est-il endémique aux géohelminthiases (STH) ? | E42: Endémique mais pas de CP
B44: Le pays est-il endémique à la schistosomiase (SCH) ? | E44: Endémique
B46: Combien d'unités administratives compte le pays ? | E46: 75
B47: Si les données démographiques par groupe d'âge ne sont pas disponibles au second niveau administratif, veuillez entrer la proportion (%) de population, par groupe d'âge, du pays. Si les données sont disponibles, veuillez laisser les cellules vierges.
B48: 1-4 ans | C48: Enfants d'âge pré-scolaire (EAPréS) | E48: 0.14
B49: 5-14 ans | C49: Enfants d'âge scolaire (EAS) | E49: 0.285
B50: 15 ans et plus | C50: Adultes | E50: 0.515

Sheet COUNTRY_INFO
A1: INFORMATIONS PAYS
A2: Structure administrative, population par groupe d'âge, statut d'endémicité, interventions planifiées et interventions mises en oeuvre
A4: TOTAL | D4: =SUM(D$9:D$1000) -> 21960825 | E4: =SUM(E$9:E$1000) -> 3074517 | F4: =SUM(F$9:F$1000) -> 6258834 | G4: =SUM(G$9:G$1000) -> 11309829 | L4: =SUM(L$9:L$1000) -> 0 | M4: =SUM(M$9:M$1000) -> 6554127 | N4: =SUM(N$9:N$1000) -> 0 | O4: =SUM(O$9:O$1000) -> 9408965
A6: Structure administrative du pays | D6: Population | H6: Endémicité | L6: Population nécessitant la CP | P6: Nombre de tournées de traitement prévues pour l'année | T6: Mise en oeuvre de la chimioprévention | V6: Cliquer ci-dessous pour voir la stratégie recommandée | AB6: PopTot from SCH workbook | AC6: End SCH | AH6: Pop ReqPC SCH
A7: Pays | B7: Région/Département | C7: District | D7: Total | E7: EAPréS | F7: EAS | G7: Adultes | H7: FL | I7: Oncho | J7: STH | K7: SCH | L7: FL | M7: Oncho | N7: STH | O7: SCH | P7: FL | Q7: Oncho | R7: STH | S7: SCH | T7: TOURNEE 1 | U7: TOURNEE 2 | Y7: IU_ID | Z7: IU_Name | AA7: x | AB7: x | AC7: x | AD7: x | AE7: x | AF7: x | AG7: x | AH7: SAC | AI7: Adults | AJ7: Total | AK7: x | AL7: x | AM7: x | AN7: x | AO7: x | AP7: x | AQ7: x | AR7: x | AS7: x | AT7: x | AU7: x | AV7: x | AW7: x | AX7: x | AY7: x | AZ7: x | BA7: x
A9: =IF(INTRO!$E$34<>0,INTRO!$E$34,"") -> Mali | B9: Bamako | C9: Commune 1 | D9: 502324 | E9: =IF(INTRO!$E$48="","",ROUND($D9*INTRO!$E$48,0)) -> 70325 | F9: =IF(INTRO!$E$49="","",ROUND($D9*INTRO!$E$49,0)) -> 143162 | G9: =IF(INTRO!$E$50="","",ROUND($D9*INTRO!$E$50,0)) -> 258697 | H9: 99 | I9: 0 | J9: 0 | K9: 2 | L9: =IF(INTRO!$E$38="Endémique", IF($H9>0, IF($H9=4,"Inconnu", IF($H9=99,"Interrompu", $D9)), 0),"Non requis") -> Non requis | M9: =IF(INTRO!$E$40="Endémique", IF($I9>0, IF($I9=4,"Inconnu",IF($I9=99,"Interrompu", $D9)), 0),"Non requis") -> 0 | N9: =IF(INTRO!$E$42="Endémique", IF(AND($J9>1,$J9<5), IF($J9=4, "Inconnu", E9+F9), 0),"Non requis") -> Non requis | O9: 154777 | P9: 0 | Q9: 0 | R9: 0 | S9: 1 | U9: T2 (PZQ) | Y9: 29972 | Z9: Commune 1 | AB9: =ROUND(_xlfn.XLOOKUP(Y9,[1]Sheet1!$B:$B,[1]Sheet1!$D:$D),0) -> 487786 | AC9: =_xlfn.XLOOKUP($Y9,[1]IU_PROJECTIONS!$F$5:$F$79,[1]IU_PROJECTIONS!G$5:G$79) -> 2 | AH9: =ROUND(_xlfn.XLOOKUP($Y9,[1]IU_PROJECTIONS!$F$5:$F$79,[1]IU_PROJECTIONS!H$5:H$79),0) -> 143163 | AI9: =ROUND(_xlfn.XLOOKUP($Y9,[1]IU_PROJECTIONS!$F$5:$F$79,[1]IU_PROJECTIONS!I$5:I$79),0) -> 11614 | AJ9: =ROUND(_xlfn.XLOOKUP($Y9,[1]IU_PROJECTIONS!$F$5:$F$79,[1]IU_PROJECTIONS!J$5:J$79),0) -> 154777 | AM9: =_xlfn.XLOOKUP($Y9,[2]IU_PROJECTIONS!$F$5:$F$79,[2]IU_PROJECTIONS!G$5:G$79) -> 2 | AN9: =AM9=K9 -> TRUE | AP9: =_xlfn.XLOOKUP($Y9,[2]IU_PROJECTIONS!$F$5:$F$79,[2]IU_PROJECTIONS!H$5:H$79) -> 143163 | AQ9: =_xlfn.XLOOKUP($Y9,[2]IU_PROJECTIONS!$F$5:$F$79,[2]IU_PROJECTIONS!I$5:I$79) -> 11614 | AR9: =_xlfn.XLOOKUP($Y9,[2]IU_PROJECTIONS!$F$5:$F$79,[2]IU_PROJECTIONS!J$5:J$79) -> 154777 | AS9: =AR9=O9 -> TRUE
A10: =IF(INTRO!$E$34<>0,INTRO!$E$34,"") -> Mali | B10: Bamako | C10: Commune 2 | D10: 239334 | E10: =IF(INTRO!$E$48="","",ROUND($D10*INTRO!$E$48,0)) -> 33507 | F10: =IF(INTRO!$E$49="","",ROUND($D10*INTRO!$E$49,0)) -> 68210 | G10: =IF(INTRO!$E$50="","",ROUND($D10*INTRO!$E$50,0)) -> 123257 | H10: 99 | I10: 0 | J10: 0 | K10: 2 | L10: =IF(INTRO!$E$38="Endémique", IF($H10>0, IF($H10=4,"Inconnu", IF($H10=99,"Interrompu", $D10)), 0),"Non requis") -> Non requis | M10: =IF(INTRO!$E$40="Endémique", IF($I10>0, IF($I10=4,"Inconnu",IF($I10=99,"Interrompu", $D10)), 0),"Non requis") -> 0 | N10: =IF(INTRO!$E$42="Endémique", IF(AND($J10>1,$J10<5), IF($J10=4, "Inconnu", E10+F10), 0),"Non requis") -> Non requis | O10: 77349 | P10: 0 | Q10: 0 | R10: 0 | S10: 1 | U10: T2 (PZQ) | Y10: 29973 | Z10: Commune 2 | AB10: =ROUND(_xlfn.XLOOKUP(Y10,[1]Sheet1!$B:$B,[1]Sheet1!$D:$D),0) -> 232406 | AC10: =_xlfn.XLOOKUP($Y10,[1]IU_PROJECTIONS!$F$5:$F$79,[1]IU_PROJECTIONS!G$5:G$79) -> 2 | AH10: =ROUND(_xlfn.XLOOKUP($Y10,[1]IU_PROJECTIONS!$F$5:$F$79,[1]IU_PROJECTIONS!H$5:H$79),0) -> 68210 | AI10: =ROUND(_xlfn.XLOOKUP($Y10,[1]IU_PROJECTIONS!$F$5:$F$79,[1]IU_PROJECTIONS!I$5:I$79),0) -> 9139 | AJ10: =ROUND(_xlfn.XLOOKUP($Y10,[1]IU_PROJECTIONS!$F$5:$F$79,[1]IU_PROJECTIONS!J$5:J$79),0) -> 77349 | AM10: =_xlfn.XLOOKUP(Y10,[2]IU_PROJECTIONS!$F$5:$F$79,[2]IU_PROJECTIONS!$G$5:$G$79) -> 2 | AN10: =AM10=K10 -> TRUE | AP10: =_xlfn.XLOOKUP($Y10,[2]IU_PROJECTIONS!$F$5:$F$79,[2]IU_PROJECTIONS!H$5:H$79) -> 68210 | AQ10: =_xlfn.XLOOKUP($Y10,[2]IU_PROJECTIONS!$F$5:$F$79,[2]IU_PROJECTIONS!I$5:I$79) -> 9139 | AR10: =_xlfn.XLOOKUP($Y10,[2]IU_PROJECTIONS!$F$5:$F$79,[2]IU_PROJECTIONS!J$5:J$79) -> 77349
A11: =IF(INTRO!$E$34<>0,INTRO!$E$34,"") -> Mali | B11: Bamako | C11: Commune 3 | D11: 193006 | E11: =IF(INTRO!$E$48="","",ROUND($D11*INTRO!$E$48,0)) -> 27021 | F11: =IF(INTRO!$E$49="","",ROUND($D11*INTRO!$E$49,0)) -> 55007 | G11: =IF(INTRO!$E$50="","",ROUND($D11*INTRO!$E$50,0)) -> 99398 | H11: 99 | I11: 0 | J11: 0 | K11: 1 | L11: =IF(INTRO!$E$38="Endémique", IF($H11>0, IF($H11=4,"Inconnu", IF($H11=99,"Interrompu", $D11)), 0),"Non requis") -> Non requis | M11: =IF(INTRO!$E$40="Endémique", IF($I11>0, IF($I11=4,"Inconnu",IF($I11=99,"Interrompu", $D11)), 0),"Non requis") -> 0 | N11: =IF(INTRO!$E$42="Endémique", IF(AND($J11>1,$J11<5), IF($J11=4, "Inconnu", E11+F11), 0),"Non requis") -> Non requis | O11: 55006 | P11: 0 | Q11: 0 | R11: 0 | S11: 1 | U11: T2 (PZQ) | Y11: 29974 | Z11: Commune 3 | AB11: =ROUND(_xlfn.XLOOKUP(Y11,[1]Sheet1!$B:$B,[1]Sheet1!$D:$D),0) -> 186968 | AC11: =_xlfn.XLOOKUP($Y11,[1]IU_PROJECTIONS!$F$5:$F$79,[1]IU_PROJECTIONS!G$5:G$79) -> 1 | AH11: =ROUND(_xlfn.XLOOKUP($Y11,[1]IU_PROJECTIONS!$F$5:$F$79,[1]IU_PROJECTIONS!H$5:H$79),0) -> 55006 | AI11: =ROUND(_xlfn.XLOOKUP($Y11,[1]IU_PROJECTIONS!$F$5:$F$79,[1]IU_PROJECTIONS!I$5:I$79),0) -> 0 | AJ11: =ROUND(_xlfn.XLOOKUP($Y11,[1]IU_PROJECTIONS!$F$5:$F$79,[1]IU_PROJECTIONS!J$5:J$79),0) -> 55006 | AM11: =_xlfn.XLOOKUP(Y11,[2]IU_PROJECTIONS!$F$5:$F$79,[2]IU_PROJECTIONS!$G$5:$G$79) -> 1 | AN11: TRUE | AP11: =_xlfn.XLOOKUP($Y11,[2]IU_PROJECTIONS!$F$5:$F$79,[2]IU_PROJECTIONS!H$5:H$79) -> 55006 | AQ11: =_xlfn.XLOOKUP($Y11,[2]IU_PROJECTIONS!$F$5:$F$79,[2]IU_PROJECTIONS!I$5:I$79) -> 0 | AR11: =_xlfn.XLOOKUP($Y11,[2]IU_PROJECTIONS!$F$5:$F$79,[2]IU_PROJECTIONS!J$5:J$79) -> 55006
A12: =IF(INTRO!$E$34<>0,INTRO!$E$34,"") -> Mali | B12: Bamako | C12: Commune 4 | D12: 449424 | E12: =IF(INTRO!$E$48="","",ROUND($D12*INTRO!$E$48,0)) -> 62919 | F12: =IF(INTRO!$E$49="","",ROUND($D12*INTRO!$E$49,0)) -> 128086 | G12: =IF(INTRO!$E$50="","",ROUND($D12*INTRO!$E$50,0)) -> 231453 | H12: 99 | I12: 0 | J12: 0 | K12: 3 | L12: =IF(INTRO!$E$38="Endémique", IF($H12>0, IF($H12=4,"Inconnu", IF($H12=99,"Interrompu", $D12)), 0),"Non requis") -> Non requis | M12: =IF(INTRO!$E$40="Endémique", IF($I12>0, IF($I12=4,"Inconnu",IF($I12=99,"Interrompu", $D12)), 0),"Non requis") -> 0 | N12: =IF(INTRO!$E$42="Endémique", IF(AND($J12>1,$J12<5), IF($J12=4, "Inconnu", E12+F12), 0),"Non requis") -> Non requis | O12: 198091 | P12: 0 | Q12: 0 | R12: 0 | S12: 1 | U12: T2 (PZQ) | Y12: 29975 | Z12: Commune 4 | AB12: =ROUND(_xlfn.XLOOKUP(Y12,[1]Sheet1!$B:$B,[1]Sheet1!$D:$D),0) -> 436416 | AC12: =_xlfn.XLOOKUP($Y12,[1]IU_PROJECTIONS!$F$5:$F$79,[1]IU_PROJECTIONS!G$5:G$79) -> 3 | AH12: =ROUND(_xlfn.XLOOKUP($Y12,[1]IU_PROJECTIONS!$F$5:$F$79,[1]IU_PROJECTIONS!H$5:H$79),0) -> 128086 | AI12: =ROUND(_xlfn.XLOOKUP($Y12,[1]IU_PROJECTIONS!$F$5:$F$79,[1]IU_PROJECTIONS!I$5:I$79),0) -> 70005 | AJ12: =ROUND(_xlfn.XLOOKUP($Y12,[1]IU_PROJECTIONS!$F$5:$F$79,[1]IU_PROJECTIONS!J$5:J$79),0) -> 198091 | AM12: =_xlfn.XLOOKUP(Y12,[2]IU_PROJECTIONS!$F$5:$F$79,[2]IU_PROJECTIONS!$G$5:$G$79) -> 3 | AN12: TRUE | AP12: =_xlfn.XLOOKUP($Y12,[2]IU_PROJECTIONS!$F$5:$F$79,[2]IU_PROJECTIONS!H$5:H$79) -> 128086 | AQ12: =_xlfn.XLOOKUP($Y12,[2]IU_PROJECTIONS!$F$5:$F$79,[2]IU_PROJECTIONS!I$5:I$79) -> 70005 | AR12: =_xlfn.XLOOKUP($Y12,[2]IU_PROJECTIONS!$F$5:$F$79,[2]IU_PROJECTIONS!J$5:J$79) -> 198091
A13: =IF(INTRO!$E$34<>0,INTRO!$E$34,"") -> Mali | B13: Bamako | C13: Commune 5 | D13: 621031 | E13: =IF(INTRO!$E$48="","",ROUND($D13*INTRO!$E$48,0)) -> 86944 | F13: =IF(INTRO!$E$49="","",ROUND($D13*INTRO!$E$49,0)) -> 176994 | G13: =IF(INTRO!$E$50="","",ROUND($D13*INTRO!$E$50,0)) -> 319831 | H13: 99 | I13: 0 | J13: 0 | K13: 2 | L13: =IF(INTRO!$E$38="Endémique", IF($H13>0, IF($H13=4,"Inconnu", IF($H13=99,"Interrompu", $D13)), 0),"Non requis") -> Non requis | M13: =IF(INTRO!$E$40="Endémique", IF($I13>0, IF($I13=4,"Inconnu",IF($I13=99,"Interrompu", $D13)), 0),"Non requis") -> 0 | N13: =IF(INTRO!$E$42="Endémique", IF(AND($J13>1,$J13<5), IF($J13=4, "Inconnu", E13+F13), 0),"Non requis") -> Non requis | O13: 205016 | P13: 0 | Q13: 0 | R13: 0 | S13: 1 | U13: T2 (PZQ) | Y13: 29976 | Z13: Commune 5 | AB13: =ROUND(_xlfn.XLOOKUP(Y13,[1]Sheet1!$B:$B,[1]Sheet1!$D:$D),0) -> 599937 | AC13: =_xlfn.XLOOKUP($Y13,[1]IU_PROJECTIONS!$F$5:$F$79,[1]IU_PROJECTIONS!G$5:G$79) -> 2 | AH13: =ROUND(_xlfn.XLOOKUP($Y13,[1]IU_PROJECTIONS!$F$5:$F$79,[1]IU_PROJECTIONS!H$5:H$79),0) -> 176993 | AI13: =ROUND(_xlfn.XLOOKUP($Y13,[1]IU_PROJECTIONS!$F$5:$F$79,[1]IU_PROJECTIONS!I$5:I$79),0) -> 28023 | AJ13: =ROUND(_xlfn.XLOOKUP($Y13,[1]IU_PROJECTIONS!$F$5:$F$79,[1]IU_PROJECTIONS!J$5:J$79),0) -> 205016 | AM13: =_xlfn.XLOOKUP(Y13,[2]IU_PROJECTIONS!$F$5:$F$79,[2]IU_PROJECTIONS!$G$5:$G$79) -> 2 | AN13: TRUE | AP13: =_xlfn.XLOOKUP($Y13,[2]IU_PROJECTIONS!$F$5:$F$79,[2]IU_PROJECTIONS!H$5:H$79) -> 176993 | AQ13: =_xlfn.XLOOKUP($Y13,[2]IU_PROJECTIONS!$F$5:$F$79,[2]IU_PROJECTIONS!I$5:I$79) -> 28023 | AR13: =_xlfn.XLOOKUP($Y13,[2]IU_PROJECTIONS!$F$5:$F$79,[2]IU_PROJECTIONS!J$5:J$79) -> 205016
A14: =IF(INTRO!$E$34<>0,INTRO!$E$34,"") -> Mali | B14: Bamako | C14: Commune 6 | D14: 704302 | E14: =IF(INTRO!$E$48="","",ROUND($D14*INTRO!$E$48,0)) -> 98602 | F14: =IF(INTRO!$E$49="","",ROUND($D14*INTRO!$E$49,0)) -> 200726 | G14: =IF(INTRO!$E$50="","",ROUND($D14*INTRO!$E$50,0)) -> 362716 | H14: 99 | I14: 0 | J14: 0 | K14: 2 | L14: =IF(INTRO!$E$38="Endémique", IF($H14>0, IF($H14=4,"Inconnu", IF($H14=99,"Interrompu", $D14)), 0),"Non requis") -> Non requis | M14: =IF(INTRO!$E$40="Endémique", IF($I14>0, IF($I14=4,"Inconnu",IF($I14=99,"Interrompu", $D14)), 0),"Non requis") -> 0 | N14: =IF(INTRO!$E$42="Endémique", IF(AND($J14>1,$J14<5), IF($J14=4, "Inconnu", E14+F14), 0),"Non requis") -> Non requis | O14: 232384 | P14: 0 | Q14: 0 | R14: 0 | S14: 1 | U14: T2 (PZQ) | Y14: 29977 | Z14: Commune 6 | AB14: =ROUND(_xlfn.XLOOKUP(Y14,[1]Sheet1!$B:$B,[1]Sheet1!$D:$D),0) -> 683918 | AC14: =_xlfn.XLOOKUP($Y14,[1]IU_PROJECTIONS!$F$5:$F$79,[1]IU_PROJECTIONS!G$5:G$79) -> 2 | AH14: =ROUND(_xlfn.XLOOKUP($Y14,[1]IU_PROJECTIONS!$F$5:$F$79,[1]IU_PROJECTIONS!H$5:H$79),0) -> 200727 | AI14: =ROUND(_xlfn.XLOOKUP($Y14,[1]IU_PROJECTIONS!$F$5:$F$79,[1]IU_PROJECTIONS!I$5:I$79),0) -> 31657 | AJ14: =ROUND(_xlfn.XLOOKUP($Y14,[1]IU_PROJECTIONS!$F$5:$F$79,[1]IU_PROJECTIONS!J$5:J$79),0) -> 232384 | AM14: =_xlfn.XLOOKUP(Y14,[2]IU_PROJECTIONS!$F$5:$F$79,[2]IU_PROJECTIONS!$G$5:$G$79) -> 2 | AN14: TRUE | AP14: =_xlfn.XLOOKUP($Y14,[2]IU_PROJECTIONS!$F$5:$F$79,[2]IU_PROJECTIONS!H$5:H$79) -> 200727 | AQ14: =_xlfn.XLOOKUP($Y14,[2]IU_PROJECTIONS!$F$5:$F$79,[2]IU_PROJECTIONS!I$5:I$79) -> 31657 | AR14: =_xlfn.XLOOKUP($Y14,[2]IU_PROJECTIONS!$F$5:$F$79,[2]IU_PROJECTIONS!J$5:J$79) -> 232384
A15: =IF(INTRO!$E$34<>0,INTRO!$E$34,"") -> Mali | B15: Gao | C15: Ansongo | D15: 197325 | E15: =IF(INTRO!$E$48="","",ROUND($D15*INTRO!$E$48,0)) -> 27626 | F15: =IF(INTRO!$E$49="","",ROUND($D15*INTRO!$E$49,0)) -> 56238 | G15: =IF(INTRO!$E$50="","",ROUND($D15*INTRO!$E$50,0)) -> 101622 | H15: 99 | I15: 0 | J15: 0 | K15: 3 | L15: =IF(INTRO!$E$38="Endémique", IF($H15>0, IF($H15=4,"Inconnu", IF($H15=99,"Interrompu", $D15)), 0),"Non requis") -> Non requis | M15: =IF(INTRO!$E$40="Endémique", IF($I15>0, IF($I15=4,"Inconnu",IF($I15=99,"Interrompu", $D15)), 0),"Non requis") -> 0 | N15: =IF(INTRO!$E$42="Endémique", IF(AND($J15>1,$J15<5), IF($J15=4, "Inconnu", E15+F15), 0),"Non requis") -> Non requis | O15: 107642 | P15: 0 | Q15: 0 | R15: 0 | S15: 1 | U15: T2 (PZQ) | Y15: 29978 | Z15: Ansongo | AB15: =ROUND(_xlfn.XLOOKUP(Y15,[1]Sheet1!$B:$B,[1]Sheet1!$D:$D),0) -> 181746 | AC15: =_xlfn.XLOOKUP($Y15,[1]IU_PROJECTIONS!$F$5:$F$79,[1]IU_PROJECTIONS!G$5:G$79) -> 3 | AH15: =ROUND(_xlfn.XLOOKUP($Y15,[1]IU_PROJECTIONS!$F$5:$F$79,[1]IU_PROJECTIONS!H$5:H$79),0) -> 56236 | AI15: =ROUND(_xlfn.XLOOKUP($Y15,[1]IU_PROJECTIONS!$F$5:$F$79,[1]IU_PROJECTIONS!I$5:I$79),0) -> 51406 | AJ15: =ROUND(_xlfn.XLOOKUP($Y15,[1]IU_PROJECTIONS!$F$5:$F$79,[1]IU_PROJECTIONS!J$5:J$79),0) -> 107642 | AM15: =_xlfn.XLOOKUP(Y15,[2]IU_PROJECTIONS!$F$5:$F$79,[2]IU_PROJECTIONS!$G$5:$G$79) -> 3 | AN15: TRUE | AP15: =_xlfn.XLOOKUP($Y15,[2]IU_PROJECTIONS!$F$5:$F$79,[2]IU_PROJECTIONS!H$5:H$79) -> 56236 | AQ15: =_xlfn.XLOOKUP($Y15,[2]IU_PROJECTIONS!$F$5:$F$79,[2]IU_PROJECTIONS!I$5:I$79) -> 51406 | AR15: =_xlfn.XLOOKUP($Y15,[2]IU_PROJECTIONS!$F$5:$F$79,[2]IU_PROJECTIONS!J$5:J$79) -> 107642
A16: =IF(INTRO!$E$34<>0,INTRO!$E$34,"") -> Mali | B16: Gao | C16: Bourem | D16: 173074 | E16: =IF(INTRO!$E$48="","",ROUND($D16*INTRO!$E$48,0)) -> 24230 | F16: =IF(INTRO!$E$49="","",ROUND($D16*INTRO!$E$49,0)) -> 49326 | G16: =IF(INTRO!$E$50="","",ROUND($D16*INTRO!$E$50,0)) -> 89133 | H16: 99 | I16: 0 | J16: 0 | K16: 3 | L16: =IF(INTRO!$E$38="Endémique", IF($H16>0, IF($H16=4,"Inconnu", IF($H16=99,"Interrompu", $D16)), 0),"Non requis") -> Non requis | M16: =IF(INTRO!$E$40="Endémique", IF($I16>0, IF($I16=4,"Inconnu",IF($I16=99,"Interrompu", $D16)), 0),"Non requis") -> 0 | N16: =IF(INTRO!$E$42="Endémique", IF(AND($J16>1,$J16<5), IF($J16=4, "Inconnu", E16+F16), 0),"Non requis") -> Non requis | O16: 67450 | P16: 0 | Q16: 0 | R16: 0 | S16: 1 | U16: T2 (PZQ) | Y16: 29979 | Z16: Bourem | AB16: =ROUND(_xlfn.XLOOKUP(Y16,[1]Sheet1!$B:$B,[1]Sheet1!$D:$D),0) -> 156160 | AC16: =_xlfn.XLOOKUP($Y16,[1]IU_PROJECTIONS!$F$5:$F$79,[1]IU_PROJECTIONS!G$5:G$79) -> 3 | AH16: =ROUND(_xlfn.XLOOKUP($Y16,[1]IU_PROJECTIONS!$F$5:$F$79,[1]IU_PROJECTIONS!H$5:H$79),0) -> 49327 | AI16: =ROUND(_xlfn.XLOOKUP($Y16,[1]IU_PROJECTIONS!$F$5:$F$79,[1]IU_PROJECTIONS!I$5:I$79),0) -> 18123 | AJ16: =ROUND(_xlfn.XLOOKUP($Y16,[1]IU_PROJECTIONS!$F$5:$F$79,[1]IU_PROJECTIONS!J$5:J$79),0) -> 67450 | AM16: =_xlfn.XLOOKUP(Y16,[2]IU_PROJECTIONS!$F$5:$F$79,[2]IU_PROJECTIONS!$G$5:$G$79) -> 3 | AN16: TRUE | AP16: =_xlfn.XLOOKUP($Y16,[2]IU_PROJECTIONS!$F$5:$F$79,[2]IU_PROJECTIONS!H$5:H$79) -> 49327 | AQ16: =_xlfn.XLOOKUP($Y16,[2]IU_PROJECTIONS!$F$5:$F$79,[2]IU_PROJECTIONS!I$5:I$79) -> 18123 | AR16: =_xlfn.XLOOKUP($Y16,[2]IU_PROJECTIONS!$F$5:$F$79,[2]IU_PROJECTIONS!J$5:J$79) -> 67450
A17: =IF(INTRO!$E$34<>0,INTRO!$E$34,"") -> Mali | B17: Gao | C17: Almoustrat | D17: 13615 | E17: =IF(INTRO!$E$48="","",ROUND($D17*INTRO!$E$48,0)) -> 1906 | F17: =IF(INTRO!$E$49="","",ROUND($D17*INTRO!$E$49,0)) -> 3880 | G17: =IF(INTRO!$E$50="","",ROUND($D17*INTRO!$E$50,0)) -> 7012 | H17: 99 | I17: 0 | J17: 0 | K17: 1 | L17: =IF(INTRO!$E$38="Endémique", IF($H17>0, IF($H17=4,"Inconnu", IF($H17=99,"Interrompu", $D17)), 0),"Non requis") -> Non requis | M17: =IF(INTRO!$E$40="Endémique", IF($I17>0, IF($I17=4,"Inconnu",IF($I17=99,"Interrompu", $D17)), 0),"Non requis") -> 0 | N17: =IF(INTRO!$E$42="Endémique", IF(AND($J17>1,$J17<5), IF($J17=4, "Inconnu", E17+F17), 0),"Non requis") -> Non requis | O17: 23146 | P17: 0 | Q17: 0 | R17: 0 | S17: 0 | Y17: 30035 | Z17: Almoustrat | AB17: =ROUND(_xlfn.XLOOKUP(Y17,[1]Sheet1!$B:$B,[1]Sheet1!$D:$D),0) -> 27752 | AC17: =_xlfn.XLOOKUP($Y17,[1]IU_PROJECTIONS!$F$5:$F$79,[1]IU_PROJECTIONS!G$5:G$79) -> 1 | AH17: =ROUND(_xlfn.XLOOKUP($Y17,[1]IU_PROJECTIONS!$F$5:$F$79,[1]IU_PROJECTIONS!H$5:H$79),0) -> 23146 | AI17: =ROUND(_xlfn.XLOOKUP($Y17,[1]IU_PROJECTIONS!$F$5:$F$79,[1]IU_PROJECTIONS!I$5:I$79),0) -> 0 | AJ17: =ROUND(_xlfn.XLOOKUP($Y17,[1]IU_PROJECTIONS!$F$5:$F$79,[1]IU_PROJECTIONS!J$5:J$79),0) -> 23146 | AM17: =_xlfn.XLOOKUP(Y17,[2]IU_PROJECTIONS!$F$5:$F$79,[2]IU_PROJECTIONS!$G$5:$G$79) -> 1 | AN17: TRUE | AP17: =_xlfn.XLOOKUP($Y17,[2]IU_PROJECTIONS!$F$5:$F$79,[2]IU_PROJECTIONS!H$5:H$79) -> 23146 | AQ17: =_xlfn.XLOOKUP($Y17,[2]IU_PROJECTIONS!$F$5:$F$79,[2]IU_PROJECTIONS!I$5:I$79) -> 0 | AR17: =_xlfn.XLOOKUP($Y17,[2]IU_PROJECTIONS!$F$5:$F$79,[2]IU_PROJECTIONS!J$5:J$79) -> 23146
A18: =IF(INTRO!$E$34<>0,INTRO!$E$34,"") -> Mali | B18: Gao | C18: Gao | D18: 357996 | E18: =IF(INTRO!$E$48="","",ROUND($D18*INTRO!$E$48,0)) -> 50119 | F18: =IF(INTRO!$E$49="","",ROUND($D18*INTRO!$E$49,0)) -> 102029 | G18: =IF(INTRO!$E$50="","",ROUND($D18*INTRO!$E$50,0)) -> 184368 | H18: 99 | I18: 0 | J18: 0 | K18: 3 | L18: =IF(INTRO!$E$38="Endémique", IF($H18>0, IF($H18=4,"Inconnu", IF($H18=99,"Interrompu", $D18)), 0),"Non requis") -> Non requis | M18: =IF(INTRO!$E$40="Endémique", IF($I18>0, IF($I18=4,"Inconnu",IF($I18=99,"Interrompu", $D18)), 0),"Non requis") -> 0 | N18: =IF(INTRO!$E$42="Endémique", IF(AND($J18>1,$J18<5), IF($J18=4, "Inconnu", E18+F18), 0),"Non requis") -> Non requis | O18: 196450 | P18: 0 | Q18: 0 | R18: 0 | S18: 1 | U18: T2 (PZQ) | Y18: 29980 | Z18: Gao | AB18: =ROUND(_xlfn.XLOOKUP(Y18,[1]Sheet1!$B:$B,[1]Sheet1!$D:$D),0) -> 346759 | AC18: =_xlfn.XLOOKUP($Y18,[1]IU_PROJECTIONS!$F$5:$F$79,[1]IU_PROJECTIONS!G$5:G$79) -> 3 | AH18: =ROUND(_xlfn.XLOOKUP($Y18,[1]IU_PROJECTIONS!$F$5:$F$79,[1]IU_PROJECTIONS!H$5:H$79),0) -> 102029 | AI18: =ROUND(_xlfn.XLOOKUP($Y18,[1]IU_PROJECTIONS!$F$5:$F$79,[1]IU_PROJECTIONS!I$5:I$79),0) -> 94421 | AJ18: =ROUND(_xlfn.XLOOKUP($Y18,[1]IU_PROJECTIONS!$F$5:$F$79,[1]IU_PROJECTIONS!J$5:J$79),0) -> 196450 | AM18: =_xlfn.XLOOKUP(Y18,[2]IU_PROJECTIONS!$F$5:$F$79,[2]IU_PROJECTIONS!$G$5:$G$79) -> 3 | AN18: TRUE | AP18: =_xlfn.XLOOKUP($Y18,[2]IU_PROJECTIONS!$F$5:$F$79,[2]IU_PROJECTIONS!H$5:H$79) -> 102029 | AQ18: =_xlfn.XLOOKUP($Y18,[2]IU_PROJECTIONS!$F$5:$F$79,[2]IU_PROJECTIONS!I$5:I$79) -> 94421 | AR18: =_xlfn.XLOOKUP($Y18,[2]IU_PROJECTIONS!$F$5:$F$79,[2]IU_PROJECTIONS!J$5:J$79) -> 196450
A19: =IF(INTRO!$E$34<>0,INTRO!$E$34,"") -> Mali | B19: Menaka | C19: Menaka | D19: 55249 | E19: =IF(INTRO!$E$48="","",ROUND($D19*INTRO!$E$48,0)) -> 7735 | F19: =IF(INTRO!$E$49="","",ROUND($D19*INTRO!$E$49,0)) -> 15746 | G19: =IF(INTRO!$E$50="","",ROUND($D19*INTRO!$E$50,0)) -> 28453 | H19: 99 | I19: 0 | J19: 0 | K19: 1 | L19: =IF(INTRO!$E$38="Endémique", IF($H19>0, IF($H19=4,"Inconnu", IF($H19=99,"Interrompu", $D19)), 0),"Non requis") -> Non requis | M19: =IF(INTRO!$E$40="Endémique", IF($I19>0, IF($I19=4,"Inconnu",IF($I19=99,"Interrompu", $D19)), 0),"Non requis") -> 0 | N19: =IF(INTRO!$E$42="Endémique", IF(AND($J19>1,$J19<5), IF($J19=4, "Inconnu", E19+F19), 0),"Non requis") -> Non requis | O19: 15525 | P19: 0 | Q19: 0 | R19: 0 | S19: 1 | U19: T2 (PZQ) | Y19: 29981 | Z19: Menaka | AB19: =ROUND(_xlfn.XLOOKUP(Y19,[1]Sheet1!$B:$B,[1]Sheet1!$D:$D),0) -> 76766 | AC19: =_xlfn.XLOOKUP($Y19,[1]IU_PROJECTIONS!$F$5:$F$79,[1]IU_PROJECTIONS!G$5:G$79) -> 1 | AH19: =ROUND(_xlfn.XLOOKUP($Y19,[1]IU_PROJECTIONS!$F$5:$F$79,[1]IU_PROJECTIONS!H$5:H$79),0) -> 15525 | AI19: =ROUND(_xlfn.XLOOKUP($Y19,[1]IU_PROJECTIONS!$F$5:$F$79,[1]IU_PROJECTIONS!I$5:I$79),0) -> 0 | AJ19: =ROUND(_xlfn.XLOOKUP($Y19,[1]IU_PROJECTIONS!$F$5:$F$79,[1]IU_PROJECTIONS!J$5:J$79),0) -> 15525 | AM19: =_xlfn.XLOOKUP(Y19,[2]IU_PROJECTIONS!$F$5:$F$79,[2]IU_PROJECTIONS!$G$5:$G$79) -> 1 | AN19: TRUE | AP19: =_xlfn.XLOOKUP($Y19,[2]IU_PROJECTIONS!$F$5:$F$79,[2]IU_PROJECTIONS!H$5:H$79) -> 15525 | AQ19: =_xlfn.XLOOKUP($Y19,[2]IU_PROJECTIONS!$F$5:$F$79,[2]IU_PROJECTIONS!I$5:I$79) -> 0 | AR19: =_xlfn.XLOOKUP($Y19,[2]IU_PROJECTIONS!$F$5:$F$79,[2]IU_PROJECTIONS!J$5:J$79) -> 15525
A20: =IF(INTRO!$E$34<>0,INTRO!$E$34,"") -> Mali | B20: Menaka | C20: Anderamboukane | D20: 17507 | E20: =IF(INTRO!$E$48="","",ROUND($D20*INTRO!$E$48,0)) -> 2451 | F20: =IF(INTRO!$E$49="","",ROUND($D20*INTRO!$E$49,0)) -> 4989 | G20: =IF(INTRO!$E$50="","",ROUND($D20*INTRO!$E$50,0)) -> 9016 | H20: 99 | I20: 0 | J20: 0 | K20: 1 | L20: =IF(INTRO!$E$38="Endémique", IF($H20>0, IF($H20=4,"Inconnu", IF($H20=99,"Interrompu", $D20)), 0),"Non requis") -> Non requis | M20: =IF(INTRO!$E$40="Endémique", IF($I20>0, IF($I20=4,"Inconnu",IF($I20=99,"Interrompu", $D20)), 0),"Non requis") -> 0 | N20: =IF(INTRO!$E$42="Endémique", IF(AND($J20>1,$J20<5), IF($J20=4, "Inconnu", E20+F20), 0),"Non requis") -> Non requis | O20: 26878 | P20: 0 | Q20: 0 | R20: 0 | S20: 1 | U20: T2 (PZQ) | Y20: 30036 | Z20: Anderamboukane | AB20: =ROUND(_xlfn.XLOOKUP(Y20,[1]Sheet1!$B:$B,[1]Sheet1!$D:$D),0) -> 15033 | AC20: =_xlfn.XLOOKUP($Y20,[1]IU_PROJECTIONS!$F$5:$F$79,[1]IU_PROJECTIONS!G$5:G$79) -> 1 | AH20: =ROUND(_xlfn.XLOOKUP($Y20,[1]IU_PROJECTIONS!$F$5:$F$79,[1]IU_PROJECTIONS!H$5:H$79),0) -> 26878 | AI20: =ROUND(_xlfn.XLOOKUP($Y20,[1]IU_PROJECTIONS!$F$5:$F$79,[1]IU_PROJECTIONS!I$5:I$79),0) -> 0 | AJ20: =ROUND(_xlfn.XLOOKUP($Y20,[1]IU_PROJECTIONS!$F$5:$F$79,[1]IU_PROJECTIONS!J$5:J$79),0) -> 26878 | AM20: =_xlfn.XLOOKUP(Y20,[2]IU_PROJECTIONS!$F$5:$F$79,[2]IU_PROJECTIONS!$G$5:$G$79) -> 1 | AN20: TRUE | AP20: =_xlfn.XLOOKUP($Y20,[2]IU_PROJECTIONS!$F$5:$F$79,[2]IU_PROJECTIONS!H$5:H$79) -> 26878 | AQ20: =_xlfn.XLOOKUP($Y20,[2]IU_PROJECTIONS!$F$5:$F$79,[2]IU_PROJECTIONS!I$5:I$79) -> 0 | AR20: =_xlfn.XLOOKUP($Y20,[2]IU_PROJECTIONS!$F$5:$F$79,[2]IU_PROJECTIONS!J$5:J$79) -> 26878
A21: =IF(INTRO!$E$34<>0,INTRO!$E$34,"") -> Mali | B21: Menaka | C21: Inekar | D21: 6495 | E21: =IF(INTRO!$E$48="","",ROUND($D21*INTRO!$E$48,0)) -> 909 | F21: =IF(INTRO!$E$49="","",ROUND($D21*INTRO!$E$49,0)) -> 1851 | G21: =IF(INTRO!$E$50="","",ROUND($D21*INTRO!$E$50,0)) -> 3345 | H21: 99 | I21: 0 | J21: 0 | K21: 0 | L21: =IF(INTRO!$E$38="Endémique", IF($H21>0, IF($H21=4,"Inconnu", IF($H21=99,"Interrompu", $D21)), 0),"Non requis") -> Non requis | M21: =IF(INTRO!$E$40="Endémique", IF($I21>0, IF($I21=4,"Inconnu",IF($I21=99,"Interrompu", $D21)), 0),"Non requis") -> 0 | N21: =IF(INTRO!$E$42="Endémique", IF(AND($J21>1,$J21<5), IF($J21=4, "Inconnu", E21+F21), 0),"Non requis") -> Non requis | O21: 0 | P21: 0 | Q21: 0 | R21: 0 | S21: 1 | U21: T2 (PZQ) | Y21: 30037 | Z21: Inekar | AB21: =ROUND(_xlfn.XLOOKUP(Y21,[1]Sheet1!$B:$B,[1]Sheet1!$D:$D),0) -> 7660 | AC21: =_xlfn.XLOOKUP($Y21,[1]IU_PROJECTIONS!$F$5:$F$79,[1]IU_PROJECTIONS!G$5:G$79) -> 0 | AH21: =ROUND(_xlfn.XLOOKUP($Y21,[1]IU_PROJECTIONS!$F$5:$F$79,[1]IU_PROJECTIONS!H$5:H$79),0) -> 0 | AI21: =ROUND(_xlfn.XLOOKUP($Y21,[1]IU_PROJECTIONS!$F$5:$F$79,[1]IU_PROJECTIONS!I$5:I$79),0) -> 0 | AJ21: =ROUND(_xlfn.XLOOKUP($Y21,[1]IU_PROJECTIONS!$F$5:$F$79,[1]IU_PROJECTIONS!J$5:J$79),0) -> 0 | AM21: =_xlfn.XLOOKUP(Y21,[2]IU_PROJECTIONS!$F$5:$F$79,[2]IU_PROJECTIONS!$G$5:$G$79) -> 0 | AN21: TRUE | AP21: =_xlfn.XLOOKUP($Y21,[2]IU_PROJECTIONS!$F$5:$F$79,[2]IU_PROJECTIONS!H$5:H$79) -> 0 | AQ21: =_xlfn.XLOOKUP($Y21,[2]IU_PROJECTIONS!$F$5:$F$79,[2]IU_PROJECTIONS!I$5:I$79) -> 0 | AR21: =_xlfn.XLOOKUP($Y21,[2]IU_PROJECTIONS!$F$5:$F$79,[2]IU_PROJECTIONS!J$5:J$79) -> 0
A22: =IF(INTRO!$E$34<>0,INTRO!$E$34,"") -> Mali | B22: Menaka | C22: Tidermene | D22: 4487 | E22: =IF(INTRO!$E$48="","",ROUND($D22*INTRO!$E$48,0)) -> 628 | F22: =IF(INTRO!$E$49="","",ROUND($D22*INTRO!$E$49,0)) -> 1279 | G22: =IF(INTRO!$E$50="","",ROUND($D22*INTRO!$E$50,0)) -> 2311 | H22: 99 | I22: 0 | J22: 0 | K22: 0 | L22: =IF(INTRO!$E$38="Endémique", IF($H22>0, IF($H22=4,"Inconnu", IF($H22=99,"Interrompu", $D22)), 0),"Non requis") -> Non requis | M22: =IF(INTRO!$E$40="Endémique", IF($I22>0, IF($I22=4,"Inconnu",IF($I22=99,"Interrompu", $D22)), 0),"Non requis") -> 0 | N22: =IF(INTRO!$E$42="Endémique", IF(AND($J22>1,$J22<5), IF($J22=4, "Inconnu", E22+F22), 0),"Non requis") -> Non requis | O22: 0 | P22: 0 | Q22: 0 | R22: 0 | S22: 1 | U22: T2 (PZQ) | Y22: 30038 | Z22: Tidermene | AB22: =ROUND(_xlfn.XLOOKUP(Y22,[1]Sheet1!$B:$B,[1]Sheet1!$D:$D),0) -> 7647 | AC22: =_xlfn.XLOOKUP($Y22,[1]IU_PROJECTIONS!$F$5:$F$79,[1]IU_PROJECTIONS!G$5:G$79) -> 0 | AH22: =ROUND(_xlfn.XLOOKUP($Y22,[1]IU_PROJECTIONS!$F$5:$F$79,[1]IU_PROJECTIONS!H$5:H$79),0) -> 0 | AI22: =ROUND(_xlfn.XLOOKUP($Y22,[1]IU_PROJECTIONS!$F$5:$F$79,[1]IU_PROJECTIONS!I$5:I$79),0) -> 0 | AJ22: =ROUND(_xlfn.XLOOKUP($Y22,[1]IU_PROJECTIONS!$F$5:$F$79,[1]IU_PROJECTIONS!J$5:J$79),0) -> 0 | AM22: =_xlfn.XLOOKUP(Y22,[2]IU_PROJECTIONS!$F$5:$F$79,[2]IU_PROJECTIONS!$G$5:$G$79) -> 0 | AN22: TRUE | AP22: =_xlfn.XLOOKUP($Y22,[2]IU_PROJECTIONS!$F$5:$F$79,[2]IU_PROJECTIONS!H$5:H$79) -> 0 | AQ22: =_xlfn.XLOOKUP($Y22,[2]IU_PROJECTIONS!$F$5:$F$79,[2]IU_PROJECTIONS!I$5:I$79) -> 0 | AR22: =_xlfn.XLOOKUP($Y22,[2]IU_PROJECTIONS!$F$5:$F$79,[2]IU_PROJECTIONS!J$5:J$79) -> 0
A23: =IF(INTRO!$E$34<>0,INTRO!$E$34,"") -> Mali | B23: Kayes | C23: Bafoulabe | D23: 192240 | E23: =IF(INTRO!$E$48="","",ROUND($D23*INTRO!$E$48,0)) -> 26914 | F23: =IF(INTRO!$E$49="","",ROUND($D23*INTRO!$E$49,0)) -> 54788 | G23: =IF(INTRO!$E$50="","",ROUND($D23*INTRO!$E$50,0)) -> 99004 | H23: 99 | I23: 1 | J23: 0 | K23: 3 | L23: =IF(INTRO!$E$38="Endémique", IF($H23>0, IF($H23=4,"Inconnu", IF($H23=99,"Interrompu", $D23)), 0),"Non requis") -> Non requis | M23: =IF(INTRO!$E$40="Endémique", IF($I23>0, IF($I23=4,"Inconnu",IF($I23=99,"Interrompu", $D23)), 0),"Non requis") -> 192240 | N23: =IF(INTRO!$E$42="Endémique", IF(AND($J23>1,$J23<5), IF($J23=4, "Inconnu", E23+F23), 0),"Non requis") -> Non requis | O23: 86726 | P23: 0 | Q23: 0 | R23: 0 | S23: 1 | U23: T2 (PZQ) | Y23: 29982 | Z23: Bafoulabe | AB23: =ROUND(_xlfn.XLOOKUP(Y23,[1]Sheet1!$B:$B,[1]Sheet1!$D:$D),0) -> 198091 | AC23: =_xlfn.XLOOKUP($Y23,[1]IU_PROJECTIONS!$F$5:$F$79,[1]IU_PROJECTIONS!G$5:G$79) -> 3 | AH23: =ROUND(_xlfn.XLOOKUP($Y23,[1]IU_PROJECTIONS!$F$5:$F$79,[1]IU_PROJECTIONS!H$5:H$79),0) -> 54788 | AI23: =ROUND(_xlfn.XLOOKUP($Y23,[1]IU_PROJECTIONS!$F$5:$F$79,[1]IU_PROJECTIONS!I$5:I$79),0) -> 31938 | AJ23: =ROUND(_xlfn.XLOOKUP($Y23,[1]IU_PROJECTIONS!$F$5:$F$79,[1]IU_PROJECTIONS!J$5:J$79),0) -> 86726 | AM23: =_xlfn.XLOOKUP(Y23,[2]IU_PROJECTIONS!$F$5:$F$79,[2]IU_PROJECTIONS!$G$5:$G$79) -> 3 | AN23: TRUE | AP23: =_xlfn.XLOOKUP($Y23,[2]IU_PROJECTIONS!$F$5:$F$79,[2]IU_PROJECTIONS!H$5:H$79) -> 54788 | AQ23: =_xlfn.XLOOKUP($Y23,[2]IU_PROJECTIONS!$F$5:$F$79,[2]IU_PROJECTIONS!I$5:I$79) -> 31938 | AR23: =_xlfn.XLOOKUP($Y23,[2]IU_PROJECTIONS!$F$5:$F$79,[2]IU_PROJECTIONS!J$5:J$79) -> 86726
A24: =IF(INTRO!$E$34<>0,INTRO!$E$34,"") -> Mali | B24: Kayes | C24: Diema | D24: 316859 | E24: =IF(INTRO!$E$48="","",ROUND($D24*INTRO!$E$48,0)) -> 44360 | F24: =IF(INTRO!$E$49="","",ROUND($D24*INTRO!$E$49,0)) -> 90305 | G24: =IF(INTRO!$E$50="","",ROUND($D24*INTRO!$E$50,0)) -> 163182 | H24: 99 | I24: 0 | J24: 0 | K24: 2 | L24: =IF(INTRO!$E$38="Endémique", IF($H24>0, IF($H24=4,"Inconnu", IF($H24=99,"Interrompu", $D24)), 0),"Non requis") -> Non requis | M24: =IF(INTRO!$E$40="Endémique", IF($I24>0, IF($I24=4,"Inconnu",IF($I24=99,"Interrompu", $D24)), 0),"Non requis") -> 0 | N24: =IF(INTRO!$E$42="Endémique", IF(AND($J24>1,$J24<5), IF($J24=4, "Inconnu", E24+F24), 0),"Non requis") -> Non requis | O24: 121836 | P24: 0 | Q24: 0 | R24: 0 | S24: 0 | Y24: 29983 | Z24: Diema | AB24: =ROUND(_xlfn.XLOOKUP(Y24,[1]Sheet1!$B:$B,[1]Sheet1!$D:$D),0) -> 301383 | AC24: =_xlfn.XLOOKUP($Y24,[1]IU_PROJECTIONS!$F$5:$F$79,[1]IU_PROJECTIONS!G$5:G$79) -> 2 | AH24: =ROUND(_xlfn.XLOOKUP($Y24,[1]IU_PROJECTIONS!$F$5:$F$79,[1]IU_PROJECTIONS!H$5:H$79),0) -> 90306 | AI24: =ROUND(_xlfn.XLOOKUP($Y24,[1]IU_PROJECTIONS!$F$5:$F$79,[1]IU_PROJECTIONS!I$5:I$79),0) -> 31530 | AJ24: =ROUND(_xlfn.XLOOKUP($Y24,[1]IU_PROJECTIONS!$F$5:$F$79,[1]IU_PROJECTIONS!J$5:J$79),0) -> 121836 | AM24: =_xlfn.XLOOKUP(Y24,[2]IU_PROJECTIONS!$F$5:$F$79,[2]IU_PROJECTIONS!$G$5:$G$79) -> 2 | AN24: TRUE | AP24: =_xlfn.XLOOKUP($Y24,[2]IU_PROJECTIONS!$F$5:$F$79,[2]IU_PROJECTIONS!H$5:H$79) -> 90306 | AQ24: =_xlfn.XLOOKUP($Y24,[2]IU_PROJECTIONS!$F$5:$F$79,[2]IU_PROJECTIONS!I$5:I$79) -> 31530 | AR24: =_xlfn.XLOOKUP($Y24,[2]IU_PROJECTIONS!$F$5:$F$79,[2]IU_PROJECTIONS!J$5:J$79) -> 121836
A25: =IF(INTRO!$E$34<>0,INTRO!$E$34,"") -> Mali | B25: Kayes | C25: Kayes | D25: 767052 | E25: =IF(INTRO!$E$48="","",ROUND($D25*INTRO!$E$48,0)) -> 107387 | F25: =IF(INTRO!$E$49="","",ROUND($D25*INTRO!$E$49,0)) -> 218610 | G25: =IF(INTRO!$E$50="","",ROUND($D25*INTRO!$E$50,0)) -> 395032 | H25: 99 | I25: 1 | J25: 0 | K25: 3 | L25: =IF(INTRO!$E$38="Endémique", IF($H25>0, IF($H25=4,"Inconnu", IF($H25=99,"Interrompu", $D25)), 0),"Non requis") -> Non requis | M25: =IF(INTRO!$E$40="Endémique", IF($I25>0, IF($I25=4,"Inconnu",IF($I25=99,"Interrompu", $D25)), 0),"Non requis") -> 767052 | N25: =IF(INTRO!$E$42="Endémique", IF(AND($J25>1,$J25<5), IF($J25=4, "Inconnu", E25+F25), 0),"Non requis") -> Non requis | O25: 349448 | P25: 0 | Q25: 0 | R25: 0 | S25: 1 | U25: T2 (PZQ) | Y25: 29984 | Z25: Kayes | AB25: =ROUND(_xlfn.XLOOKUP(Y25,[1]Sheet1!$B:$B,[1]Sheet1!$D:$D),0) -> 734170 | AC25: =_xlfn.XLOOKUP($Y25,[1]IU_PROJECTIONS!$F$5:$F$79,[1]IU_PROJECTIONS!G$5:G$79) -> 3 | AH25: =ROUND(_xlfn.XLOOKUP($Y25,[1]IU_PROJECTIONS!$F$5:$F$79,[1]IU_PROJECTIONS!H$5:H$79),0) -> 218608 | AI25: =ROUND(_xlfn.XLOOKUP($Y25,[1]IU_PROJECTIONS!$F$5:$F$79,[1]IU_PROJECTIONS!I$5:I$79),0) -> 130840 | AJ25: =ROUND(_xlfn.XLOOKUP($Y25,[1]IU_PROJECTIONS!$F$5:$F$79,[1]IU_PROJECTIONS!J$5:J$79),0) -> 349448 | AM25: =_xlfn.XLOOKUP(Y25,[2]IU_PROJECTIONS!$F$5:$F$79,[2]IU_PROJECTIONS!$G$5:$G$79) -> 3 | AN25: TRUE | AP25: =_xlfn.XLOOKUP($Y25,[2]IU_PROJECTIONS!$F$5:$F$79,[2]IU_PROJECTIONS!H$5:H$79) -> 218608 | AQ25: =_xlfn.XLOOKUP($Y25,[2]IU_PROJECTIONS!$F$5:$F$79,[2]IU_PROJECTIONS!I$5:I$79) -> 130840 | AR25: =_xlfn.XLOOKUP($Y25,[2]IU_PROJECTIONS!$F$5:$F$79,[2]IU_PROJECTIONS!J$5:J$79) -> 349448
A26: =IF(INTRO!$E$34<>0,INTRO!$E$34,"") -> Mali | B26: Kayes | C26: Kenieba | D26: 290100 | E26: =IF(INTRO!$E$48="","",ROUND($D26*INTRO!$E$48,0)) -> 40614 | F26: =IF(INTRO!$E$49="","",ROUND($D26*INTRO!$E$49,0)) -> 82679 | G26: =IF(INTRO!$E$50="","",ROUND($D26*INTRO!$E$50,0)) -> 149402 | H26: 99 | I26: 1 | J26: 0 | K26: 3 | L26: =IF(INTRO!$E$38="Endémique", IF($H26>0, IF($H26=4,"Inconnu", IF($H26=99,"Interrompu", $D26)), 0),"Non requis") -> Non requis | M26: =IF(INTRO!$E$40="Endémique", IF($I26>0, IF($I26=4,"Inconnu",IF($I26=99,"Interrompu", $D26)), 0),"Non requis") -> 290100 | N26: =IF(INTRO!$E$42="Endémique", IF(AND($J26>1,$J26<5), IF($J26=4, "Inconnu", E26+F26), 0),"Non requis") -> Non requis | O26: 105101 | P26: 0 | Q26: 0 | R26: 0 | S26: 1 | U26: T2 (PZQ) | Y26: 29985 | Z26: Kenieba | AB26: =ROUND(_xlfn.XLOOKUP(Y26,[1]Sheet1!$B:$B,[1]Sheet1!$D:$D),0) -> 276147 | AC26: =_xlfn.XLOOKUP($Y26,[1]IU_PROJECTIONS!$F$5:$F$79,[1]IU_PROJECTIONS!G$5:G$79) -> 3 | AH26: =ROUND(_xlfn.XLOOKUP($Y26,[1]IU_PROJECTIONS!$F$5:$F$79,[1]IU_PROJECTIONS!H$5:H$79),0) -> 82680 | AI26: =ROUND(_xlfn.XLOOKUP($Y26,[1]IU_PROJECTIONS!$F$5:$F$79,[1]IU_PROJECTIONS!I$5:I$79),0) -> 22421 | AJ26: =ROUND(_xlfn.XLOOKUP($Y26,[1]IU_PROJECTIONS!$F$5:$F$79,[1]IU_PROJECTIONS!J$5:J$79),0) -> 105101 | AM26: =_xlfn.XLOOKUP(Y26,[2]IU_PROJECTIONS!$F$5:$F$79,[2]IU_PROJECTIONS!$G$5:$G$79) -> 3 | AN26: TRUE | AP26: =_xlfn.XLOOKUP($Y26,[2]IU_PROJECTIONS!$F$5:$F$79,[2]IU_PROJECTIONS!H$5:H$79) -> 82680 | AQ26: =_xlfn.XLOOKUP($Y26,[2]IU_PROJECTIONS!$F$5:$F$79,[2]IU_PROJECTIONS!I$5:I$79) -> 22421 | AR26: =_xlfn.XLOOKUP($Y26,[2]IU_PROJECTIONS!$F$5:$F$79,[2]IU_PROJECTIONS!J$5:J$79) -> 105101
A27: =IF(INTRO!$E$34<>0,INTRO!$E$34,"") -> Mali | B27: Kayes | C27: Kita | D27: 516357 | E27: =IF(INTRO!$E$48="","",ROUND($D27*INTRO!$E$48,0)) -> 72290 | F27: =IF(INTRO!$E$49="","",ROUND($D27*INTRO!$E$49,0)) -> 147162 | G27: =IF(INTRO!$E$50="","",ROUND($D27*INTRO!$E$50,0)) -> 265924 | H27: 99 | I27: 1 | J27: 0 | K27: 3 | L27: =IF(INTRO!$E$38="Endémique", IF($H27>0, IF($H27=4,"Inconnu", IF($H27=99,"Interrompu", $D27)), 0),"Non requis") -> Non requis | M27: =IF(INTRO!$E$40="Endémique", IF($I27>0, IF($I27=4,"Inconnu",IF($I27=99,"Interrompu", $D27)), 0),"Non requis") -> 516357 | N27: =IF(INTRO!$E$42="Endémique", IF(AND($J27>1,$J27<5), IF($J27=4, "Inconnu", E27+F27), 0),"Non requis") -> Non requis | O27: 169648 | P27: 0 | Q27: 0 | R27: 0 | S27: 1 | U27: T2 (PZQ) | Y27: 29986 | Z27: Kita | AB27: =ROUND(_xlfn.XLOOKUP(Y27,[1]Sheet1!$B:$B,[1]Sheet1!$D:$D),0) -> 498742 | AC27: =_xlfn.XLOOKUP($Y27,[1]IU_PROJECTIONS!$F$5:$F$79,[1]IU_PROJECTIONS!G$5:G$79) -> 3 | AH27: =ROUND(_xlfn.XLOOKUP($Y27,[1]IU_PROJECTIONS!$F$5:$F$79,[1]IU_PROJECTIONS!H$5:H$79),0) -> 147159 | AI27: =ROUND(_xlfn.XLOOKUP($Y27,[1]IU_PROJECTIONS!$F$5:$F$79,[1]IU_PROJECTIONS!I$5:I$79),0) -> 22489 | AJ27: =ROUND(_xlfn.XLOOKUP($Y27,[1]IU_PROJECTIONS!$F$5:$F$79,[1]IU_PROJECTIONS!J$5:J$79),0) -> 169648 | AM27: =_xlfn.XLOOKUP(Y27,[2]IU_PROJECTIONS!$F$5:$F$79,[2]IU_PROJECTIONS!$G$5:$G$79) -> 3 | AN27: TRUE | AP27: =_xlfn.XLOOKUP($Y27,[2]IU_PROJECTIONS!$F$5:$F$79,[2]IU_PROJECTIONS!H$5:H$79) -> 147159 | AQ27: =_xlfn.XLOOKUP($Y27,[2]IU_PROJECTIONS!$F$5:$F$79,[2]IU_PROJECTIONS!I$5:I$79) -> 22489 | AR27: =_xlfn.XLOOKUP($Y27,[2]IU_PROJECTIONS!$F$5:$F$79,[2]IU_PROJECTIONS!J$5:J$79) -> 169648
A28: =IF(INTRO!$E$34<>0,INTRO!$E$34,"") -> Mali | B28: Kayes | C28: Sagabari | D28: 60584 | E28: =IF(INTRO!$E$48="","",ROUND($D28*INTRO!$E$48,0)) -> 8482 | F28: =IF(INTRO!$E$49="","",ROUND($D28*INTRO!$E$49,0)) -> 17266 | G28: =IF(INTRO!$E$50="","",ROUND($D28*INTRO!$E$50,0)) -> 31201 | H28: 99 | I28: 1 | J28: 0 | K28: 2 | L28: =IF(INTRO!$E$38="Endémique", IF($H28>0, IF($H28=4,"Inconnu", IF($H28=99,"Interrompu", $D28)), 0),"Non requis") -> Non requis | M28: =IF(INTRO!$E$40="Endémique", IF($I28>0, IF($I28=4,"Inconnu",IF($I28=99,"Interrompu", $D28)), 0),"Non requis") -> 60584 | N28: =IF(INTRO!$E$42="Endémique", IF(AND($J28>1,$J28<5), IF($J28=4, "Inconnu", E28+F28), 0),"Non requis") -> Non requis | O28: 57283 | P28: 0 | Q28: 0 | R28: 0 | S28: 1 | U28: T2 (PZQ) | Y28: 30039 | Z28: Sagabari | AB28: =ROUND(_xlfn.XLOOKUP(Y28,[1]Sheet1!$B:$B,[1]Sheet1!$D:$D),0) -> 61233 | AC28: =_xlfn.XLOOKUP($Y28,[1]IU_PROJECTIONS!$F$5:$F$79,[1]IU_PROJECTIONS!G$5:G$79) -> 2 | AH28: =ROUND(_xlfn.XLOOKUP($Y28,[1]IU_PROJECTIONS!$F$5:$F$79,[1]IU_PROJECTIONS!H$5:H$79),0) -> 52606 | AI28: =ROUND(_xlfn.XLOOKUP($Y28,[1]IU_PROJECTIONS!$F$5:$F$79,[1]IU_PROJECTIONS!I$5:I$79),0) -> 4677 | AJ28: =ROUND(_xlfn.XLOOKUP($Y28,[1]IU_PROJECTIONS!$F$5:$F$79,[1]IU_PROJECTIONS!J$5:J$79),0) -> 57283 | AM28: =_xlfn.XLOOKUP(Y28,[2]IU_PROJECTIONS!$F$5:$F$79,[2]IU_PROJECTIONS!$G$5:$G$79) -> 2 | AN28: TRUE | AP28: =_xlfn.XLOOKUP($Y28,[2]IU_PROJECTIONS!$F$5:$F$79,[2]IU_PROJECTIONS!H$5:H$79) -> 52606 | AQ28: =_xlfn.XLOOKUP($Y28,[2]IU_PROJECTIONS!$F$5:$F$79,[2]IU_PROJECTIONS!I$5:I$79) -> 4677 | AR28: =_xlfn.XLOOKUP($Y28,[2]IU_PROJECTIONS!$F$5:$F$79,[2]IU_PROJECTIONS!J$5:J$79) -> 57283
A29: =IF(INTRO!$E$34<>0,INTRO!$E$34,"") -> Mali | B29: Kayes | C29: Sefeto | D29: 72099 | E29: =IF(INTRO!$E$48="","",ROUND($D29*INTRO!$E$48,0)) -> 10094 | F29: =IF(INTRO!$E$49="","",ROUND($D29*INTRO!$E$49,0)) -> 20548 | G29: =IF(INTRO!$E$50="","",ROUND($D29*INTRO!$E$50,0)) -> 37131 | H29: 99 | I29: 1 | J29: 0 | K29: 3 | L29: =IF(INTRO!$E$38="Endémique", IF($H29>0, IF($H29=4,"Inconnu", IF($H29=99,"Interrompu", $D29)), 0),"Non requis") -> Non requis | M29: =IF(INTRO!$E$40="Endémique", IF($I29>0, IF($I29=4,"Inconnu",IF($I29=99,"Interrompu", $D29)), 0),"Non requis") -> 72099 | N29: =IF(INTRO!$E$42="Endémique", IF(AND($J29>1,$J29<5), IF($J29=4, "Inconnu", E29+F29), 0),"Non requis") -> Non requis | O29: 81913 | P29: 0 | Q29: 0 | R29: 0 | S29: 1 | U29: T2 (PZQ) | Y29: 30040 | Z29: Sefeto | AB29: =ROUND(_xlfn.XLOOKUP(Y29,[1]Sheet1!$B:$B,[1]Sheet1!$D:$D),0) -> 71475 | AC29: =_xlfn.XLOOKUP($Y29,[1]IU_PROJECTIONS!$F$5:$F$79,[1]IU_PROJECTIONS!G$5:G$79) -> 3 | AH29: =ROUND(_xlfn.XLOOKUP($Y29,[1]IU_PROJECTIONS!$F$5:$F$79,[1]IU_PROJECTIONS!H$5:H$79),0) -> 52604 | AI29: =ROUND(_xlfn.XLOOKUP($Y29,[1]IU_PROJECTIONS!$F$5:$F$79,[1]IU_PROJECTIONS!I$5:I$79),0) -> 29309 | AJ29: =ROUND(_xlfn.XLOOKUP($Y29,[1]IU_PROJECTIONS!$F$5:$F$79,[1]IU_PROJECTIONS!J$5:J$79),0) -> 81913 | AM29: =_xlfn.XLOOKUP(Y29,[2]IU_PROJECTIONS!$F$5:$F$79,[2]IU_PROJECTIONS!$G$5:$G$79) -> 3 | AN29: TRUE | AP29: =_xlfn.XLOOKUP($Y29,[2]IU_PROJECTIONS!$F$5:$F$79,[2]IU_PROJECTIONS!H$5:H$79) -> 52604 | AQ29: =_xlfn.XLOOKUP($Y29,[2]IU_PROJECTIONS!$F$5:$F$79,[2]IU_PROJECTIONS!I$5:I$79) -> 29309 | AR29: =_xlfn.XLOOKUP($Y29,[2]IU_PROJECTIONS!$F$5:$F$79,[2]IU_PROJECTIONS!J$5:J$79) -> 81913
A30: =IF(INTRO!$E$34<>0,INTRO!$E$34,"") -> Mali | B30: Kayes | C30: Nioro | D30: 344389 | E30: =IF(INTRO!$E$48="","",ROUND($D30*INTRO!$E$48,0)) -> 48214 | F30: =IF(INTRO!$E$49="","",ROUND($D30*INTRO!$E$49,0)) -> 98151 | G30: =IF(INTRO!$E$50="","",ROUND($D30*INTRO!$E$50,0)) -> 177360 | H30: 99 | I30: 0 | J30: 0 | K30: 3 | L30: =IF(INTRO!$E$38="Endémique", IF($H30>0, IF($H30=4,"Inconnu", IF($H30=99,"Interrompu", $D30)), 0),"Non requis") -> Non requis | M30: =IF(INTRO!$E$40="Endémique", IF($I30>0, IF($I30=4,"Inconnu",IF($I30=99,"Interrompu", $D30)), 0),"Non requis") -> 0 | N30: =IF(INTRO!$E$42="Endémique", IF(AND($J30>1,$J30<5), IF($J30=4, "Inconnu", E30+F30), 0),"Non requis") -> Non requis | O30: 153890 | P30: 0 | Q30: 0 | R30: 0 | S30: 1 | U30: T2 (PZQ) | Y30: 29987 | Z30: Nioro | AB30: =ROUND(_xlfn.XLOOKUP(Y30,[1]Sheet1!$B:$B,[1]Sheet1!$D:$D),0) -> 328114 | AC30: =_xlfn.XLOOKUP($Y30,[1]IU_PROJECTIONS!$F$5:$F$79,[1]IU_PROJECTIONS!G$5:G$79) -> 3 | AH30: =ROUND(_xlfn.XLOOKUP($Y30,[1]IU_PROJECTIONS!$F$5:$F$79,[1]IU_PROJECTIONS!H$5:H$79),0) -> 98151 | AI30: =ROUND(_xlfn.XLOOKUP($Y30,[1]IU_PROJECTIONS!$F$5:$F$79,[1]IU_PROJECTIONS!I$5:I$79),0) -> 55739 | AJ30: =ROUND(_xlfn.XLOOKUP($Y30,[1]IU_PROJECTIONS!$F$5:$F$79,[1]IU_PROJECTIONS!J$5:J$79),0) -> 153890 | AM30: =_xlfn.XLOOKUP(Y30,[2]IU_PROJECTIONS!$F$5:$F$79,[2]IU_PROJECTIONS!$G$5:$G$79) -> 3 | AN30: TRUE | AP30: =_xlfn.XLOOKUP($Y30,[2]IU_PROJECTIONS!$F$5:$F$79,[2]IU_PROJECTIONS!H$5:H$79) -> 98151 | AQ30: =_xlfn.XLOOKUP($Y30,[2]IU_PROJECTIONS!$F$5:$F$79,[2]IU_PROJECTIONS!I$5:I$79) -> 55739 | AR30: =_xlfn.XLOOKUP($Y30,[2]IU_PROJECTIONS!$F$5:$F$79,[2]IU_PROJECTIONS!J$5:J$79) -> 153890
A31: =IF(INTRO!$E$34<>0,INTRO!$E$34,"") -> Mali | B31: Kayes | C31: Oussoubidiagna | D31: 157287 | E31: =IF(INTRO!$E$48="","",ROUND($D31*INTRO!$E$48,0)) -> 22020 | F31: =IF(INTRO!$E$49="","",ROUND($D31*INTRO!$E$49,0)) -> 44827 | G31: =IF(INTRO!$E$50="","",ROUND($D31*INTRO!$E$50,0)) -> 81003 | H31: 99 | I31: 1 | J31: 0 | K31: 3 | L31: =IF(INTRO!$E$38="Endémique", IF($H31>0, IF($H31=4,"Inconnu", IF($H31=99,"Interrompu", $D31)), 0),"Non requis") -> Non requis | M31: =IF(INTRO!$E$40="Endémique", IF($I31>0, IF($I31=4,"Inconnu",IF($I31=99,"Interrompu", $D31)), 0),"Non requis") -> 157287 | N31: =IF(INTRO!$E$42="Endémique", IF(AND($J31>1,$J31<5), IF($J31=4, "Inconnu", E31+F31), 0),"Non requis") -> Non requis | O31: 50754 | P31: 0 | Q31: 0 | R31: 0 | S31: 1 | U31: T2 (PZQ) | Y31: 29988 | Z31: Oussoubidiagna | AB31: =ROUND(_xlfn.XLOOKUP(Y31,[1]Sheet1!$B:$B,[1]Sheet1!$D:$D),0) -> 158716 | AC31: =_xlfn.XLOOKUP($Y31,[1]IU_PROJECTIONS!$F$5:$F$79,[1]IU_PROJECTIONS!G$5:G$79) -> 3 | AH31: =ROUND(_xlfn.XLOOKUP($Y31,[1]IU_PROJECTIONS!$F$5:$F$79,[1]IU_PROJECTIONS!H$5:H$79),0) -> 41889 | AI31: =ROUND(_xlfn.XLOOKUP($Y31,[1]IU_PROJECTIONS!$F$5:$F$79,[1]IU_PROJECTIONS!I$5:I$79),0) -> 8865 | AJ31: =ROUND(_xlfn.XLOOKUP($Y31,[1]IU_PROJECTIONS!$F$5:$F$79,[1]IU_PROJECTIONS!J$5:J$79),0) -> 50754 | AM31: =_xlfn.XLOOKUP(Y31,[2]IU_PROJECTIONS!$F$5:$F$79,[2]IU_PROJECTIONS!$G$5:$G$79) -> 3 | AN31: TRUE | AP31: =_xlfn.XLOOKUP($Y31,[2]IU_PROJECTIONS!$F$5:$F$79,[2]IU_PROJECTIONS!H$5:H$79) -> 41889 | AQ31: =_xlfn.XLOOKUP($Y31,[2]IU_PROJECTIONS!$F$5:$F$79,[2]IU_PROJECTIONS!I$5:I$79) -> 8865 | AR31: =_xlfn.XLOOKUP($Y31,[2]IU_PROJECTIONS!$F$5:$F$79,[2]IU_PROJECTIONS!J$5:J$79) -> 50754
A32: =IF(INTRO!$E$34<>0,INTRO!$E$34,"") -> Mali | B32: Kayes | C32: Yelimane | D32: 266623 | E32: =IF(INTRO!$E$48="","",ROUND($D32*INTRO!$E$48,0)) -> 37327 | F32: =IF(INTRO!$E$49="","",ROUND($D32*INTRO!$E$49,0)) -> 75988 | G32: =IF(INTRO!$E$50="","",ROUND($D32*INTRO!$E$50,0)) -> 137311 | H32: 99 | I32: 0 | J32: 1 | K32: 2 | L32: =IF(INTRO!$E$38="Endémique", IF($H32>0, IF($H32=4,"Inconnu", IF($H32=99,"Interrompu", $D32)), 0),"Non requis") -> Non requis | M32: =IF(INTRO!$E$40="Endémique", IF($I32>0, IF($I32=4,"Inconnu",IF($I32=99,"Interrompu", $D32)), 0),"Non requis") -> 0 | N32: =IF(INTRO!$E$42="Endémique", IF(AND($J32>1,$J32<5), IF($J32=4, "Inconnu", E32+F32), 0),"Non requis") -> Non requis | O32: 78961 | P32: 0 | Q32: 0 | R32: 0 | S32: 1 | U32: T2 (PZQ) | Y32: 29989 | Z32: Yelimane | AB32: =ROUND(_xlfn.XLOOKUP(Y32,[1]Sheet1!$B:$B,[1]Sheet1!$D:$D),0) -> 254918 | AC32: =_xlfn.XLOOKUP($Y32,[1]IU_PROJECTIONS!$F$5:$F$79,[1]IU_PROJECTIONS!G$5:G$79) -> 2 | AH32: =ROUND(_xlfn.XLOOKUP($Y32,[1]IU_PROJECTIONS!$F$5:$F$79,[1]IU_PROJECTIONS!H$5:H$79),0) -> 75990 | AI32: =ROUND(_xlfn.XLOOKUP($Y32,[1]IU_PROJECTIONS!$F$5:$F$79,[1]IU_PROJECTIONS!I$5:I$79),0) -> 2971 | AJ32: =ROUND(_xlfn.XLOOKUP($Y32,[1]IU_PROJECTIONS!$F$5:$F$79,[1]IU_PROJECTIONS!J$5:J$79),0) -> 78961 | AM32: =_xlfn.XLOOKUP(Y32,[2]IU_PROJECTIONS!$F$5:$F$79,[2]IU_PROJECTIONS!$G$5:$G$79) -> 2 | AN32: TRUE | AP32: =_xlfn.XLOOKUP($Y32,[2]IU_PROJECTIONS!$F$5:$F$79,[2]IU_PROJECTIONS!H$5:H$79) -> 75990 | AQ32: =_xlfn.XLOOKUP($Y32,[2]IU_PROJECTIONS!$F$5:$F$79,[2]IU_PROJECTIONS!I$5:I$79) -> 2971 | AR32: =_xlfn.XLOOKUP($Y32,[2]IU_PROJECTIONS!$F$5:$F$79,[2]IU_PROJECTIONS!J$5:J$79) -> 78961
A33: =IF(INTRO!$E$34<>0,INTRO!$E$34,"") -> Mali | B33: Kidal | C33: Abeibara | D33: 15417 | E33: =IF(INTRO!$E$48="","",ROUND($D33*INTRO!$E$48,0)) -> 2158 | F33: =IF(INTRO!$E$49="","",ROUND($D33*INTRO!$E$49,0)) -> 4394 | G33: =IF(INTRO!$E$50="","",ROUND($D33*INTRO!$E$50,0)) -> 7940 | H33: 99 | I33: 0 | J33: 0 | K33: 1 | L33: =IF(INTRO!$E$38="Endémique", IF($H33>0, IF($H33=4,"Inconnu", IF($H33=99,"Interrompu", $D33)), 0),"Non requis") -> Non requis | M33: =IF(INTRO!$E$40="Endémique", IF($I33>0, IF($I33=4,"Inconnu",IF($I33=99,"Interrompu", $D33)), 0),"Non requis") -> 0 | N33: =IF(INTRO!$E$42="Endémique", IF(AND($J33>1,$J33<5), IF($J33=4, "Inconnu", E33+F33), 0),"Non requis") -> Non requis | O33: 4393 | P33: 0 | Q33: 0 | R33: 0 | S33: 1 | U33: T2 (PZQ) | Y33: 29990 | Z33: Abeibara | AB33: =ROUND(_xlfn.XLOOKUP(Y33,[1]Sheet1!$B:$B,[1]Sheet1!$D:$D),0) -> 14523 | AC33: =_xlfn.XLOOKUP($Y33,[1]IU_PROJECTIONS!$F$5:$F$79,[1]IU_PROJECTIONS!G$5:G$79) -> 1 | AH33: =ROUND(_xlfn.XLOOKUP($Y33,[1]IU_PROJECTIONS!$F$5:$F$79,[1]IU_PROJECTIONS!H$5:H$79),0) -> 4393 | AI33: =ROUND(_xlfn.XLOOKUP($Y33,[1]IU_PROJECTIONS!$F$5:$F$79,[1]IU_PROJECTIONS!I$5:I$79),0) -> 0 | AJ33: =ROUND(_xlfn.XLOOKUP($Y33,[1]IU_PROJECTIONS!$F$5:$F$79,[1]IU_PROJECTIONS!J$5:J$79),0) -> 4393 | AM33: =_xlfn.XLOOKUP(Y33,[2]IU_PROJECTIONS!$F$5:$F$79,[2]IU_PROJECTIONS!$G$5:$G$79) -> 1 | AN33: TRUE | AP33: =_xlfn.XLOOKUP($Y33,[2]IU_PROJECTIONS!$F$5:$F$79,[2]IU_PROJECTIONS!H$5:H$79) -> 4393 | AQ33: =_xlfn.XLOOKUP($Y33,[2]IU_PROJECTIONS!$F$5:$F$79,[2]IU_PROJECTIONS!I$5:I$79) -> 0 | AR33: =_xlfn.XLOOKUP($Y33,[2]IU_PROJECTIONS!$F$5:$F$79,[2]IU_PROJECTIONS!J$5:J$79) -> 4393
A34: =IF(INTRO!$E$34<>0,INTRO!$E$34,"") -> Mali | B34: Kidal | C34: Kidal | D34: 49590 | E34: =IF(INTRO!$E$48="","",ROUND($D34*INTRO!$E$48,0)) -> 6943 | F34: =IF(INTRO!$E$49="","",ROUND($D34*INTRO!$E$49,0)) -> 14133 | G34: =IF(INTRO!$E$50="","",ROUND($D34*INTRO!$E$50,0)) -> 25539 | H34: 99 | I34: 0 | J34: 0 | K34: 1 | L34: =IF(INTRO!$E$38="Endémique", IF($H34>0, IF($H34=4,"Inconnu", IF($H34=99,"Interrompu", $D34)), 0),"Non requis") -> Non requis | M34: =IF(INTRO!$E$40="Endémique", IF($I34>0, IF($I34=4,"Inconnu",IF($I34=99,"Interrompu", $D34)), 0),"Non requis") -> 0 | N34: =IF(INTRO!$E$42="Endémique", IF(AND($J34>1,$J34<5), IF($J34=4, "Inconnu", E34+F34), 0),"Non requis") -> Non requis | O34: 14134 | P34: 0 | Q34: 0 | R34: 0 | S34: 1 | U34: T2 (PZQ) | Y34: 29991 | Z34: Kidal | AB34: =ROUND(_xlfn.XLOOKUP(Y34,[1]Sheet1!$B:$B,[1]Sheet1!$D:$D),0) -> 46360 | AC34: =_xlfn.XLOOKUP($Y34,[1]IU_PROJECTIONS!$F$5:$F$79,[1]IU_PROJECTIONS!G$5:G$79) -> 1 | AH34: =ROUND(_xlfn.XLOOKUP($Y34,[1]IU_PROJECTIONS!$F$5:$F$79,[1]IU_PROJECTIONS!H$5:H$79),0) -> 14134 | AI34: =ROUND(_xlfn.XLOOKUP($Y34,[1]IU_PROJECTIONS!$F$5:$F$79,[1]IU_PROJECTIONS!I$5:I$79),0) -> 0 | AJ34: =ROUND(_xlfn.XLOOKUP($Y34,[1]IU_PROJECTIONS!$F$5:$F$79,[1]IU_PROJECTIONS!J$5:J$79),0) -> 14134 | AM34: =_xlfn.XLOOKUP(Y34,[2]IU_PROJECTIONS!$F$5:$F$79,[2]IU_PROJECTIONS!$G$5:$G$79) -> 1 | AN34: TRUE | AP34: =_xlfn.XLOOKUP($Y34,[2]IU_PROJECTIONS!$F$5:$F$79,[2]IU_PROJECTIONS!H$5:H$79) -> 14134 | AQ34: =_xlfn.XLOOKUP($Y34,[2]IU_PROJECTIONS!$F$5:$F$79,[2]IU_PROJECTIONS!I$5:I$79) -> 0 | AR34: =_xlfn.XLOOKUP($Y34,[2]IU_PROJECTIONS!$F$5:$F$79,[2]IU_PROJECTIONS!J$5:J$79) -> 14134
A35: =IF(INTRO!$E$34<>0,INTRO!$E$34,"") -> Mali | B35: Kidal | C35: Tessalit | D35: 24413 | E35: =IF(INTRO!$E$48="","",ROUND($D35*INTRO!$E$48,0)) -> 3418 | F35: =IF(INTRO!$E$49="","",ROUND($D35*INTRO!$E$49,0)) -> 6958 | G35: =IF(INTRO!$E$50="","",ROUND($D35*INTRO!$E$50,0)) -> 12573 | H35: 99 | I35: 0 | J35: 0 | K35: 1 | L35: =IF(INTRO!$E$38="Endémique", IF($H35>0, IF($H35=4,"Inconnu", IF($H35=99,"Interrompu", $D35)), 0),"Non requis") -> Non requis | M35: =IF(INTRO!$E$40="Endémique", IF($I35>0, IF($I35=4,"Inconnu",IF($I35=99,"Interrompu", $D35)), 0),"Non requis") -> 0 | N35: =IF(INTRO!$E$42="Endémique", IF(AND($J35>1,$J35<5), IF($J35=4, "Inconnu", E35+F35), 0),"Non requis") -> Non requis | O35: 6958 | P35: 0 | Q35: 0 | R35: 0 | S35: 1 | U35: T2 (PZQ) | Y35: 29992 | Z35: Tessalit | AB35: =ROUND(_xlfn.XLOOKUP(Y35,[1]Sheet1!$B:$B,[1]Sheet1!$D:$D),0) -> 23155 | AC35: =_xlfn.XLOOKUP($Y35,[1]IU_PROJECTIONS!$F$5:$F$79,[1]IU_PROJECTIONS!G$5:G$79) -> 1 | AH35: =ROUND(_xlfn.XLOOKUP($Y35,[1]IU_PROJECTIONS!$F$5:$F$79,[1]IU_PROJECTIONS!H$5:H$79),0) -> 6958 | AI35: =ROUND(_xlfn.XLOOKUP($Y35,[1]IU_PROJECTIONS!$F$5:$F$79,[1]IU_PROJECTIONS!I$5:I$79),0) -> 0 | AJ35: =ROUND(_xlfn.XLOOKUP($Y35,[1]IU_PROJECTIONS!$F$5:$F$79,[1]IU_PROJECTIONS!J$5:J$79),0) -> 6958 | AM35: =_xlfn.XLOOKUP(Y35,[2]IU_PROJECTIONS!$F$5:$F$79,[2]IU_PROJECTIONS!$G$5:$G$79) -> 1 | AN35: TRUE | AP35: =_xlfn.XLOOKUP($Y35,[2]IU_PROJECTIONS!$F$5:$F$79,[2]IU_PROJECTIONS!H$5:H$79) -> 6958 | AQ35: =_xlfn.XLOOKUP($Y35,[2]IU_PROJECTIONS!$F$5:$F$79,[2]IU_PROJECTIONS!I$5:I$79) -> 0 | AR35: =_xlfn.XLOOKUP($Y35,[2]IU_PROJECTIONS!$F$5:$F$79,[2]IU_PROJECTIONS!J$5:J$79) -> 6958
A36: =IF(INTRO!$E$34<>0,INTRO!$E$34,"") -> Mali | B36: Kidal | C36: Tin-Essako | D36: 11954 | E36: =IF(INTRO!$E$48="","",ROUND($D36*INTRO!$E$48,0)) -> 1674 | F36: =IF(INTRO!$E$49="","",ROUND($D36*INTRO!$E$49,0)) -> 3407 | G36: =IF(INTRO!$E$50="","",ROUND($D36*INTRO!$E$50,0)) -> 6156 | H36: 99 | I36: 0 | J36: 0 | K36: 1 | L36: =IF(INTRO!$E$38="Endémique", IF($H36>0, IF($H36=4,"Inconnu", IF($H36=99,"Interrompu", $D36)), 0),"Non requis") -> Non requis | M36: =IF(INTRO!$E$40="Endémique", IF($I36>0, IF($I36=4,"Inconnu",IF($I36=99,"Interrompu", $D36)), 0),"Non requis") -> 0 | N36: =IF(INTRO!$E$42="Endémique", IF(AND($J36>1,$J36<5), IF($J36=4, "Inconnu", E36+F36), 0),"Non requis") -> Non requis | O36: 3407 | P36: 0 | Q36: 0 | R36: 0 | S36: 1 | U36: T2 (PZQ) | Y36: 29993 | Z36: TiN-Essako | AB36: =ROUND(_xlfn.XLOOKUP(Y36,[1]Sheet1!$B:$B,[1]Sheet1!$D:$D),0) -> 11262 | AC36: =_xlfn.XLOOKUP($Y36,[1]IU_PROJECTIONS!$F$5:$F$79,[1]IU_PROJECTIONS!G$5:G$79) -> 1 | AH36: =ROUND(_xlfn.XLOOKUP($Y36,[1]IU_PROJECTIONS!$F$5:$F$79,[1]IU_PROJECTIONS!H$5:H$79),0) -> 3407 | AI36: =ROUND(_xlfn.XLOOKUP($Y36,[1]IU_PROJECTIONS!$F$5:$F$79,[1]IU_PROJECTIONS!I$5:I$79),0) -> 0 | AJ36: =ROUND(_xlfn.XLOOKUP($Y36,[1]IU_PROJECTIONS!$F$5:$F$79,[1]IU_PROJECTIONS!J$5:J$79),0) -> 3407 | AM36: =_xlfn.XLOOKUP(Y36,[2]IU_PROJECTIONS!$F$5:$F$79,[2]IU_PROJECTIONS!$G$5:$G$79) -> 1 | AN36: TRUE | AP36: =_xlfn.XLOOKUP($Y36,[2]IU_PROJECTIONS!$F$5:$F$79,[2]IU_PROJECTIONS!H$5:H$79) -> 3407 | AQ36: =_xlfn.XLOOKUP($Y36,[2]IU_PROJECTIONS!$F$5:$F$79,[2]IU_PROJECTIONS!I$5:I$79) -> 0 | AR36: =_xlfn.XLOOKUP($Y36,[2]IU_PROJECTIONS!$F$5:$F$79,[2]IU_PROJECTIONS!J$5:J$79) -> 3407
A37: =IF(INTRO!$E$34<>0,INTRO!$E$34,"") -> Mali | B37: Koulikoro | C37: Banamba | D37: 285178 | E37: =IF(INTRO!$E$48="","",ROUND($D37*INTRO!$E$48,0)) -> 39925 | F37: =IF(INTRO!$E$49="","",ROUND($D37*INTRO!$E$49,0)) -> 81276 | G37: =IF(INTRO!$E$50="","",ROUND($D37*INTRO!$E$50,0)) -> 146867 | H37: 99 | I37: 0 | J37: 0 | K37: 3 | L37: =IF(INTRO!$E$38="Endémique", IF($H37>0, IF($H37=4,"Inconnu", IF($H37=99,"Interrompu", $D37)), 0),"Non requis") -> Non requis | M37: =IF(INTRO!$E$40="Endémique", IF($I37>0, IF($I37=4,"Inconnu",IF($I37=99,"Interrompu", $D37)), 0),"Non requis") -> 0 | N37: =IF(INTRO!$E$42="Endémique", IF(AND($J37>1,$J37<5), IF($J37=4, "Inconnu", E37+F37), 0),"Non requis") -> Non requis | O37: 92500 | P37: 0 | Q37: 0 | R37: 0 | S37: 1 | U37: T2 (PZQ) | Y37: 29994 | Z37: Banamba | AB37: =ROUND(_xlfn.XLOOKUP(Y37,[1]Sheet1!$B:$B,[1]Sheet1!$D:$D),0) -> 282143 | AC37: =_xlfn.XLOOKUP($Y37,[1]IU_PROJECTIONS!$F$5:$F$79,[1]IU_PROJECTIONS!G$5:G$79) -> 3 | AH37: =ROUND(_xlfn.XLOOKUP($Y37,[1]IU_PROJECTIONS!$F$5:$F$79,[1]IU_PROJECTIONS!H$5:H$79),0) -> 81276 | AI37: =ROUND(_xlfn.XLOOKUP($Y37,[1]IU_PROJECTIONS!$F$5:$F$79,[1]IU_PROJECTIONS!I$5:I$79),0) -> 11224 | AJ37: =ROUND(_xlfn.XLOOKUP($Y37,[1]IU_PROJECTIONS!$F$5:$F$79,[1]IU_PROJECTIONS!J$5:J$79),0) -> 92500 | AM37: =_xlfn.XLOOKUP(Y37,[2]IU_PROJECTIONS!$F$5:$F$79,[2]IU_PROJECTIONS!$G$5:$G$79) -> 3 | AN37: TRUE | AP37: =_xlfn.XLOOKUP($Y37,[2]IU_PROJECTIONS!$F$5:$F$79,[2]IU_PROJECTIONS!H$5:H$79) -> 81276 | AQ37: =_xlfn.XLOOKUP($Y37,[2]IU_PROJECTIONS!$F$5:$F$79,[2]IU_PROJECTIONS!I$5:I$79) -> 11224 | AR37: =_xlfn.XLOOKUP($Y37,[2]IU_PROJECTIONS!$F$5:$F$79,[2]IU_PROJECTIONS!J$5:J$79) -> 92500
A38: =IF(INTRO!$E$34<>0,INTRO!$E$34,"") -> Mali | B38: Koulikoro | C38: Dioila | D38: 397636 | E38: =IF(INTRO!$E$48="","",ROUND($D38*INTRO!$E$48,0)) -> 55669 | F38: =IF(INTRO!$E$49="","",ROUND($D38*INTRO!$E$49,0)) -> 113326 | G38: =IF(INTRO!$E$50="","",ROUND($D38*INTRO!$E$50,0)) -> 204783 | H38: 99 | I38: 1 | J38: 0 | K38: 2 | L38: =IF(INTRO!$E$38="Endémique", IF($H38>0, IF($H38=4,"Inconnu", IF($H38=99,"Interrompu", $D38)), 0),"Non requis") -> Non requis | M38: =IF(INTRO!$E$40="Endémique", IF($I38>0, IF($I38=4,"Inconnu",IF($I38=99,"Interrompu", $D38)), 0),"Non requis") -> 397636 | N38: =IF(INTRO!$E$42="Endémique", IF(AND($J38>1,$J38<5), IF($J38=4, "Inconnu", E38+F38), 0),"Non requis") -> Non requis | O38: 100005 | P38: 0 | Q38: 0 | R38: 0 | S38: 0 | Y38: 29995 | Z38: Dioila | AB38: =ROUND(_xlfn.XLOOKUP(Y38,[1]Sheet1!$B:$B,[1]Sheet1!$D:$D),0) -> 378230 | AC38: =_xlfn.XLOOKUP($Y38,[1]IU_PROJECTIONS!$F$5:$F$79,[1]IU_PROJECTIONS!G$5:G$79) -> 2 | AH38: =ROUND(_xlfn.XLOOKUP($Y38,[1]IU_PROJECTIONS!$F$5:$F$79,[1]IU_PROJECTIONS!H$5:H$79),0) -> 81682 | AI38: =ROUND(_xlfn.XLOOKUP($Y38,[1]IU_PROJECTIONS!$F$5:$F$79,[1]IU_PROJECTIONS!I$5:I$79),0) -> 18323 | AJ38: =ROUND(_xlfn.XLOOKUP($Y38,[1]IU_PROJECTIONS!$F$5:$F$79,[1]IU_PROJECTIONS!J$5:J$79),0) -> 100005 | AM38: =_xlfn.XLOOKUP(Y38,[2]IU_PROJECTIONS!$F$5:$F$79,[2]IU_PROJECTIONS!$G$5:$G$79) -> 2 | AN38: TRUE | AP38: =_xlfn.XLOOKUP($Y38,[2]IU_PROJECTIONS!$F$5:$F$79,[2]IU_PROJECTIONS!H$5:H$79) -> 81682 | AQ38: =_xlfn.XLOOKUP($Y38,[2]IU_PROJECTIONS!$F$5:$F$79,[2]IU_PROJECTIONS!I$5:I$79) -> 18323 | AR38: =_xlfn.XLOOKUP($Y38,[2]IU_PROJECTIONS!$F$5:$F$79,[2]IU_PROJECTIONS!J$5:J$79) -> 100005
A39: =IF(INTRO!$E$34<>0,INTRO!$E$34,"") -> Mali | B39: Koulikoro | C39: Fana | D39: 338727 | E39: =IF(INTRO!$E$48="","",ROUND($D39*INTRO!$E$48,0)) -> 47422 | F39: =IF(INTRO!$E$49="","",ROUND($D39*INTRO!$E$49,0)) -> 96537 | G39: =IF(INTRO!$E$50="","",ROUND($D39*INTRO!$E$50,0)) -> 174444 | H39: 99 | I39: 1 | J39: 0 | K39: 2 | L39: =IF(INTRO!$E$38="Endémique", IF($H39>0, IF($H39=4,"Inconnu", IF($H39=99,"Interrompu", $D39)), 0),"Non requis") -> Non requis | M39: =IF(INTRO!$E$40="Endémique", IF($I39>0, IF($I39=4,"Inconnu",IF($I39=99,"Interrompu", $D39)), 0),"Non requis") -> 338727 | N39: =IF(INTRO!$E$42="Endémique", IF(AND($J39>1,$J39<5), IF($J39=4, "Inconnu", E39+F39), 0),"Non requis") -> Non requis | O39: 97788 | P39: 0 | Q39: 0 | R39: 0 | S39: 0 | Y39: 29996 | Z39: Fana | AB39: =ROUND(_xlfn.XLOOKUP(Y39,[1]Sheet1!$B:$B,[1]Sheet1!$D:$D),0) -> 319488 | AC39: =_xlfn.XLOOKUP($Y39,[1]IU_PROJECTIONS!$F$5:$F$79,[1]IU_PROJECTIONS!G$5:G$79) -> 2 | AH39: =ROUND(_xlfn.XLOOKUP($Y39,[1]IU_PROJECTIONS!$F$5:$F$79,[1]IU_PROJECTIONS!H$5:H$79),0) -> 96535 | AI39: =ROUND(_xlfn.XLOOKUP($Y39,[1]IU_PROJECTIONS!$F$5:$F$79,[1]IU_PROJECTIONS!I$5:I$79),0) -> 1253 | AJ39: =ROUND(_xlfn.XLOOKUP($Y39,[1]IU_PROJECTIONS!$F$5:$F$79,[1]IU_PROJECTIONS!J$5:J$79),0) -> 97788 | AM39: =_xlfn.XLOOKUP(Y39,[2]IU_PROJECTIONS!$F$5:$F$79,[2]IU_PROJECTIONS!$G$5:$G$79) -> 2 | AN39: TRUE | AP39: =_xlfn.XLOOKUP($Y39,[2]IU_PROJECTIONS!$F$5:$F$79,[2]IU_PROJECTIONS!H$5:H$79) -> 96535 | AQ39: =_xlfn.XLOOKUP($Y39,[2]IU_PROJECTIONS!$F$5:$F$79,[2]IU_PROJECTIONS!I$5:I$79) -> 1253 | AR39: =_xlfn.XLOOKUP($Y39,[2]IU_PROJECTIONS!$F$5:$F$79,[2]IU_PROJECTIONS!J$5:J$79) -> 97788
A40: =IF(INTRO!$E$34<>0,INTRO!$E$34,"") -> Mali | B40: Koulikoro | C40: Kalabancoro | D40: 370539 | E40: =IF(INTRO!$E$48="","",ROUND($D40*INTRO!$E$48,0)) -> 51875 | F40: =IF(INTRO!$E$49="","",ROUND($D40*INTRO!$E$49,0)) -> 105604 | G40: =IF(INTRO!$E$50="","",ROUND($D40*INTRO!$E$50,0)) -> 190828 | H40: 99 | I40: 1 | J40: 0 | K40: 3 | L40: =IF(INTRO!$E$38="Endémique", IF($H40>0, IF($H40=4,"Inconnu", IF($H40=99,"Interrompu", $D40)), 0),"Non requis") -> Non requis | M40: =IF(INTRO!$E$40="Endémique", IF($I40>0, IF($I40=4,"Inconnu",IF($I40=99,"Interrompu", $D40)), 0),"Non requis") -> 370539 | N40: =IF(INTRO!$E$42="Endémique", IF(AND($J40>1,$J40<5), IF($J40=4, "Inconnu", E40+F40), 0),"Non requis") -> Non requis | O40: 127656 | P40: 0 | Q40: 0 | R40: 0 | S40: 1 | U40: T2 (PZQ) | Y40: 29997 | Z40: Kalabancoro | AB40: =ROUND(_xlfn.XLOOKUP(Y40,[1]Sheet1!$B:$B,[1]Sheet1!$D:$D),0) -> 393310 | AC40: =_xlfn.XLOOKUP($Y40,[1]IU_PROJECTIONS!$F$5:$F$79,[1]IU_PROJECTIONS!G$5:G$79) -> 3 | AH40: =ROUND(_xlfn.XLOOKUP($Y40,[1]IU_PROJECTIONS!$F$5:$F$79,[1]IU_PROJECTIONS!H$5:H$79),0) -> 105602 | AI40: =ROUND(_xlfn.XLOOKUP($Y40,[1]IU_PROJECTIONS!$F$5:$F$79,[1]IU_PROJECTIONS!I$5:I$79),0) -> 22054 | AJ40: =ROUND(_xlfn.XLOOKUP($Y40,[1]IU_PROJECTIONS!$F$5:$F$79,[1]IU_PROJECTIONS!J$5:J$79),0) -> 127656 | AM40: =_xlfn.XLOOKUP(Y40,[2]IU_PROJECTIONS!$F$5:$F$79,[2]IU_PROJECTIONS!$G$5:$G$79) -> 3 | AN40: TRUE | AP40: =_xlfn.XLOOKUP($Y40,[2]IU_PROJECTIONS!$F$5:$F$79,[2]IU_PROJECTIONS!H$5:H$79) -> 105602 | AQ40: =_xlfn.XLOOKUP($Y40,[2]IU_PROJECTIONS!$F$5:$F$79,[2]IU_PROJECTIONS!I$5:I$79) -> 22054 | AR40: =_xlfn.XLOOKUP($Y40,[2]IU_PROJECTIONS!$F$5:$F$79,[2]IU_PROJECTIONS!J$5:J$79) -> 127656
A41: =IF(INTRO!$E$34<>0,INTRO!$E$34,"") -> Mali | B41: Koulikoro | C41: Kangaba | D41: 150987 | E41: =IF(INTRO!$E$48="","",ROUND($D41*INTRO!$E$48,0)) -> 21138 | F41: =IF(INTRO!$E$49="","",ROUND($D41*INTRO!$E$49,0)) -> 43031 | G41: =IF(INTRO!$E$50="","",ROUND($D41*INTRO!$E$50,0)) -> 77758 | H41: 99 | I41: 1 | J41: 0 | K41: 2 | L41: =IF(INTRO!$E$38="Endémique", IF($H41>0, IF($H41=4,"Inconnu", IF($H41=99,"Interrompu", $D41)), 0),"Non requis") -> Non requis | M41: =IF(INTRO!$E$40="Endémique", IF($I41>0, IF($I41=4,"Inconnu",IF($I41=99,"Interrompu", $D41)), 0),"Non requis") -> 150987 | N41: =IF(INTRO!$E$42="Endémique", IF(AND($J41>1,$J41<5), IF($J41=4, "Inconnu", E41+F41), 0),"Non requis") -> Non requis | O41: 44917 | P41: 0 | Q41: 0 | R41: 0 | S41: 0 | Y41: 29998 | Z41: Kangaba | AB41: =ROUND(_xlfn.XLOOKUP(Y41,[1]Sheet1!$B:$B,[1]Sheet1!$D:$D),0) -> 147555 | AC41: =_xlfn.XLOOKUP($Y41,[1]IU_PROJECTIONS!$F$5:$F$79,[1]IU_PROJECTIONS!G$5:G$79) -> 2 | AH41: =ROUND(_xlfn.XLOOKUP($Y41,[1]IU_PROJECTIONS!$F$5:$F$79,[1]IU_PROJECTIONS!H$5:H$79),0) -> 43030 | AI41: =ROUND(_xlfn.XLOOKUP($Y41,[1]IU_PROJECTIONS!$F$5:$F$79,[1]IU_PROJECTIONS!I$5:I$79),0) -> 1887 | AJ41: =ROUND(_xlfn.XLOOKUP($Y41,[1]IU_PROJECTIONS!$F$5:$F$79,[1]IU_PROJECTIONS!J$5:J$79),0) -> 44917 | AM41: =_xlfn.XLOOKUP(Y41,[2]IU_PROJECTIONS!$F$5:$F$79,[2]IU_PROJECTIONS!$G$5:$G$79) -> 2 | AN41: TRUE | AP41: =_xlfn.XLOOKUP($Y41,[2]IU_PROJECTIONS!$F$5:$F$79,[2]IU_PROJECTIONS!H$5:H$79) -> 43030 | AQ41: =_xlfn.XLOOKUP($Y41,[2]IU_PROJECTIONS!$F$5:$F$79,[2]IU_PROJECTIONS!I$5:I$79) -> 1887 | AR41: =_xlfn.XLOOKUP($Y41,[2]IU_PROJECTIONS!$F$5:$F$79,[2]IU_PROJECTIONS!J$5:J$79) -> 44917
A42: =IF(INTRO!$E$34<>0,INTRO!$E$34,"") -> Mali | B42: Koulikoro | C42: Kati | D42: 752304 | E42: =IF(INTRO!$E$48="","",ROUND($D42*INTRO!$E$48,0)) -> 105323 | F42: =IF(INTRO!$E$49="","",ROUND($D42*INTRO!$E$49,0)) -> 214407 | G42: =IF(INTRO!$E$50="","",ROUND($D42*INTRO!$E$50,0)) -> 387437 | H42: 99 | I42: 1 | J42: 0 | K42: 2 | L42: =IF(INTRO!$E$38="Endémique", IF($H42>0, IF($H42=4,"Inconnu", IF($H42=99,"Interrompu", $D42)), 0),"Non requis") -> Non requis | M42: =IF(INTRO!$E$40="Endémique", IF($I42>0, IF($I42=4,"Inconnu",IF($I42=99,"Interrompu", $D42)), 0),"Non requis") -> 752304 | N42: =IF(INTRO!$E$42="Endémique", IF(AND($J42>1,$J42<5), IF($J42=4, "Inconnu", E42+F42), 0),"Non requis") -> Non requis | O42: 228977 | P42: 0 | Q42: 0 | R42: 0 | S42: 1 | U42: T2 (PZQ) | Y42: 29999 | Z42: Kati | AB42: =ROUND(_xlfn.XLOOKUP(Y42,[1]Sheet1!$B:$B,[1]Sheet1!$D:$D),0) -> 723688 | AC42: =_xlfn.XLOOKUP($Y42,[1]IU_PROJECTIONS!$F$5:$F$79,[1]IU_PROJECTIONS!G$5:G$79) -> 2 | AH42: =ROUND(_xlfn.XLOOKUP($Y42,[1]IU_PROJECTIONS!$F$5:$F$79,[1]IU_PROJECTIONS!H$5:H$79),0) -> 209301 | AI42: =ROUND(_xlfn.XLOOKUP($Y42,[1]IU_PROJECTIONS!$F$5:$F$79,[1]IU_PROJECTIONS!I$5:I$79),0) -> 19676 | AJ42: =ROUND(_xlfn.XLOOKUP($Y42,[1]IU_PROJECTIONS!$F$5:$F$79,[1]IU_PROJECTIONS!J$5:J$79),0) -> 228977 | AM42: =_xlfn.XLOOKUP(Y42,[2]IU_PROJECTIONS!$F$5:$F$79,[2]IU_PROJECTIONS!$G$5:$G$79) -> 2 | AN42: TRUE | AP42: =_xlfn.XLOOKUP($Y42,[2]IU_PROJECTIONS!$F$5:$F$79,[2]IU_PROJECTIONS!H$5:H$79) -> 209301 | AQ42: =_xlfn.XLOOKUP($Y42,[2]IU_PROJECTIONS!$F$5:$F$79,[2]IU_PROJECTIONS!I$5:I$79) -> 19676 | AR42: =_xlfn.XLOOKUP($Y42,[2]IU_PROJECTIONS!$F$5:$F$79,[2]IU_PROJECTIONS!J$5:J$79) -> 228977
A43: =IF(INTRO!$E$34<>0,INTRO!$E$34,"") -> Mali | B43: Koulikoro | C43: Kolokani | D43: 350663 | E43: =IF(INTRO!$E$48="","",ROUND($D43*INTRO!$E$48,0)) -> 49093 | F43: =IF(INTRO!$E$49="","",ROUND($D43*INTRO!$E$49,0)) -> 99939 | G43: =IF(INTRO!$E$50="","",ROUND($D43*INTRO!$E$50,0)) -> 180591 | H43: 99 | I43: 1 | J43: 0 | K43: 2 | L43: =IF(INTRO!$E$38="Endémique", IF($H43>0, IF($H43=4,"Inconnu", IF($H43=99,"Interrompu", $D43)), 0),"Non requis") -> Non requis | M43: =IF(INTRO!$E$40="Endémique", IF($I43>0, IF($I43=4,"Inconnu",IF($I43=99,"Interrompu", $D43)), 0),"Non requis") -> 350663 | N43: =IF(INTRO!$E$42="Endémique", IF(AND($J43>1,$J43<5), IF($J43=4, "Inconnu", E43+F43), 0),"Non requis") -> Non requis | O43: 110978 | P43: 0 | Q43: 0 | R43: 0 | S43: 1 | U43: T2 (PZQ) | Y43: 30000 | Z43: Kolokani | AB43: =ROUND(_xlfn.XLOOKUP(Y43,[1]Sheet1!$B:$B,[1]Sheet1!$D:$D),0) -> 342802 | AC43: =_xlfn.XLOOKUP($Y43,[1]IU_PROJECTIONS!$F$5:$F$79,[1]IU_PROJECTIONS!G$5:G$79) -> 2 | AH43: =ROUND(_xlfn.XLOOKUP($Y43,[1]IU_PROJECTIONS!$F$5:$F$79,[1]IU_PROJECTIONS!H$5:H$79),0) -> 99940 | AI43: =ROUND(_xlfn.XLOOKUP($Y43,[1]IU_PROJECTIONS!$F$5:$F$79,[1]IU_PROJECTIONS!I$5:I$79),0) -> 11038 | AJ43: =ROUND(_xlfn.XLOOKUP($Y43,[1]IU_PROJECTIONS!$F$5:$F$79,[1]IU_PROJECTIONS!J$5:J$79),0) -> 110978 | AM43: =_xlfn.XLOOKUP(Y43,[2]IU_PROJECTIONS!$F$5:$F$79,[2]IU_PROJECTIONS!$G$5:$G$79) -> 2 | AN43: TRUE | AP43: =_xlfn.XLOOKUP($Y43,[2]IU_PROJECTIONS!$F$5:$F$79,[2]IU_PROJECTIONS!H$5:H$79) -> 99940 | AQ43: =_xlfn.XLOOKUP($Y43,[2]IU_PROJECTIONS!$F$5:$F$79,[2]IU_PROJECTIONS!I$5:I$79) -> 11038 | AR43: =_xlfn.XLOOKUP($Y43,[2]IU_PROJECTIONS!$F$5:$F$79,[2]IU_PROJECTIONS!J$5:J$79) -> 110978
A44: =IF(INTRO!$E$34<>0,INTRO!$E$34,"") -> Mali | B44: Koulikoro | C44: Koulikoro | D44: 316461 | E44: =IF(INTRO!$E$48="","",ROUND($D44*INTRO!$E$48,0)) -> 44305 | F44: =IF(INTRO!$E$49="","",ROUND($D44*INTRO!$E$49,0)) -> 90191 | G44: =IF(INTRO!$E$50="","",ROUND($D44*INTRO!$E$50,0)) -> 162977 | H44: 99 | I44: 1 | J44: 0 | K44: 2 | L44: =IF(INTRO!$E$38="Endémique", IF($H44>0, IF($H44=4,"Inconnu", IF($H44=99,"Interrompu", $D44)), 0),"Non requis") -> Non requis | M44: =IF(INTRO!$E$40="Endémique", IF($I44>0, IF($I44=4,"Inconnu",IF($I44=99,"Interrompu", $D44)), 0),"Non requis") -> 316461 | N44: =IF(INTRO!$E$42="Endémique", IF(AND($J44>1,$J44<5), IF($J44=4, "Inconnu", E44+F44), 0),"Non requis") -> Non requis | O44: 99068 | P44: 0 | Q44: 0 | R44: 0 | S44: 0 | Y44: 30001 | Z44: Koulikoro | AB44: =ROUND(_xlfn.XLOOKUP(Y44,[1]Sheet1!$B:$B,[1]Sheet1!$D:$D),0) -> 310060 | AC44: =_xlfn.XLOOKUP($Y44,[1]IU_PROJECTIONS!$F$5:$F$79,[1]IU_PROJECTIONS!G$5:G$79) -> 2 | AH44: =ROUND(_xlfn.XLOOKUP($Y44,[1]IU_PROJECTIONS!$F$5:$F$79,[1]IU_PROJECTIONS!H$5:H$79),0) -> 90192 | AI44: =ROUND(_xlfn.XLOOKUP($Y44,[1]IU_PROJECTIONS!$F$5:$F$79,[1]IU_PROJECTIONS!I$5:I$79),0) -> 8876 | AJ44: =ROUND(_xlfn.XLOOKUP($Y44,[1]IU_PROJECTIONS!$F$5:$F$79,[1]IU_PROJECTIONS!J$5:J$79),0) -> 99068 | AM44: =_xlfn.XLOOKUP(Y44,[2]IU_PROJECTIONS!$F$5:$F$79,[2]IU_PROJECTIONS!$G$5:$G$79) -> 2 | AN44: TRUE | AP44: =_xlfn.XLOOKUP($Y44,[2]IU_PROJECTIONS!$F$5:$F$79,[2]IU_PROJECTIONS!H$5:H$79) -> 90192 | AQ44: =_xlfn.XLOOKUP($Y44,[2]IU_PROJECTIONS!$F$5:$F$79,[2]IU_PROJECTIONS!I$5:I$79) -> 8876 | AR44: =_xlfn.XLOOKUP($Y44,[2]IU_PROJECTIONS!$F$5:$F$79,[2]IU_PROJECTIONS!J$5:J$79) -> 99068
A45: =IF(INTRO!$E$34<>0,INTRO!$E$34,"") -> Mali | B45: Koulikoro | C45: Nara | D45: 364262 | E45: =IF(INTRO!$E$48="","",ROUND($D45*INTRO!$E$48,0)) -> 50997 | F45: =IF(INTRO!$E$49="","",ROUND($D45*INTRO!$E$49,0)) -> 103815 | G45: =IF(INTRO!$E$50="","",ROUND($D45*INTRO!$E$50,0)) -> 187595 | H45: 99 | I45: 0 | J45: 0 | K45: 2 | L45: =IF(INTRO!$E$38="Endémique", IF($H45>0, IF($H45=4,"Inconnu", IF($H45=99,"Interrompu", $D45)), 0),"Non requis") -> Non requis | M45: =IF(INTRO!$E$40="Endémique", IF($I45>0, IF($I45=4,"Inconnu",IF($I45=99,"Interrompu", $D45)), 0),"Non requis") -> 0 | N45: =IF(INTRO!$E$42="Endémique", IF(AND($J45>1,$J45<5), IF($J45=4, "Inconnu", E45+F45), 0),"Non requis") -> Non requis | O45: 97187 | P45: 0 | Q45: 0 | R45: 0 | S45: 1 | U45: T2 (PZQ) | Y45: 30002 | Z45: Nara | AB45: =ROUND(_xlfn.XLOOKUP(Y45,[1]Sheet1!$B:$B,[1]Sheet1!$D:$D),0) -> 370105 | AC45: =_xlfn.XLOOKUP($Y45,[1]IU_PROJECTIONS!$F$5:$F$79,[1]IU_PROJECTIONS!G$5:G$79) -> 2 | AH45: =ROUND(_xlfn.XLOOKUP($Y45,[1]IU_PROJECTIONS!$F$5:$F$79,[1]IU_PROJECTIONS!H$5:H$79),0) -> 89424 | AI45: =ROUND(_xlfn.XLOOKUP($Y45,[1]IU_PROJECTIONS!$F$5:$F$79,[1]IU_PROJECTIONS!I$5:I$79),0) -> 7763 | AJ45: =ROUND(_xlfn.XLOOKUP($Y45,[1]IU_PROJECTIONS!$F$5:$F$79,[1]IU_PROJECTIONS!J$5:J$79),0) -> 97187 | AM45: =_xlfn.XLOOKUP(Y45,[2]IU_PROJECTIONS!$F$5:$F$79,[2]IU_PROJECTIONS!$G$5:$G$79) -> 2 | AN45: TRUE | AP45: =_xlfn.XLOOKUP($Y45,[2]IU_PROJECTIONS!$F$5:$F$79,[2]IU_PROJECTIONS!H$5:H$79) -> 89424 | AQ45: =_xlfn.XLOOKUP($Y45,[2]IU_PROJECTIONS!$F$5:$F$79,[2]IU_PROJECTIONS!I$5:I$79) -> 7763 | AR45: =_xlfn.XLOOKUP($Y45,[2]IU_PROJECTIONS!$F$5:$F$79,[2]IU_PROJECTIONS!J$5:J$79) -> 97187
A46: =IF(INTRO!$E$34<>0,INTRO!$E$34,"") -> Mali | B46: Koulikoro | C46: Ouelessebougou | D46: 298476 | E46: =IF(INTRO!$E$48="","",ROUND($D46*INTRO!$E$48,0)) -> 41787 | F46: =IF(INTRO!$E$49="","",ROUND($D46*INTRO!$E$49,0)) -> 85066 | G46: =IF(INTRO!$E$50="","",ROUND($D46*INTRO!$E$50,0)) -> 153715 | H46: 99 | I46: 1 | J46: 0 | K46: 2 | L46: =IF(INTRO!$E$38="Endémique", IF($H46>0, IF($H46=4,"Inconnu", IF($H46=99,"Interrompu", $D46)), 0),"Non requis") -> Non requis | M46: =IF(INTRO!$E$40="Endémique", IF($I46>0, IF($I46=4,"Inconnu",IF($I46=99,"Interrompu", $D46)), 0),"Non requis") -> 298476 | N46: =IF(INTRO!$E$42="Endémique", IF(AND($J46>1,$J46<5), IF($J46=4, "Inconnu", E46+F46), 0),"Non requis") -> Non requis | O46: 77246 | P46: 0 | Q46: 0 | R46: 0 | S46: 0 | Y46: 30003 | Z46: Ouelessebougou | AB46: =ROUND(_xlfn.XLOOKUP(Y46,[1]Sheet1!$B:$B,[1]Sheet1!$D:$D),0) -> 281524 | AC46: =_xlfn.XLOOKUP($Y46,[1]IU_PROJECTIONS!$F$5:$F$79,[1]IU_PROJECTIONS!G$5:G$79) -> 2 | AH46: =ROUND(_xlfn.XLOOKUP($Y46,[1]IU_PROJECTIONS!$F$5:$F$79,[1]IU_PROJECTIONS!H$5:H$79),0) -> 74355 | AI46: =ROUND(_xlfn.XLOOKUP($Y46,[1]IU_PROJECTIONS!$F$5:$F$79,[1]IU_PROJECTIONS!I$5:I$79),0) -> 2891 | AJ46: =ROUND(_xlfn.XLOOKUP($Y46,[1]IU_PROJECTIONS!$F$5:$F$79,[1]IU_PROJECTIONS!J$5:J$79),0) -> 77246 | AM46: =_xlfn.XLOOKUP(Y46,[2]IU_PROJECTIONS!$F$5:$F$79,[2]IU_PROJECTIONS!$G$5:$G$79) -> 2 | AN46: TRUE | AP46: =_xlfn.XLOOKUP($Y46,[2]IU_PROJECTIONS!$F$5:$F$79,[2]IU_PROJECTIONS!H$5:H$79) -> 74355 | AQ46: =_xlfn.XLOOKUP($Y46,[2]IU_PROJECTIONS!$F$5:$F$79,[2]IU_PROJECTIONS!I$5:I$79) -> 2891 | AR46: =_xlfn.XLOOKUP($Y46,[2]IU_PROJECTIONS!$F$5:$F$79,[2]IU_PROJECTIONS!J$5:J$79) -> 77246
A47: =IF(INTRO!$E$34<>0,INTRO!$E$34,"") -> Mali | B47: Mopti | C47: Bandiagara | D47: 475535 | E47: =IF(INTRO!$E$48="","",ROUND($D47*INTRO!$E$48,0)) -> 66575 | F47: =IF(INTRO!$E$49="","",ROUND($D47*INTRO!$E$49,0)) -> 135527 | G47: =IF(INTRO!$E$50="","",ROUND($D47*INTRO!$E$50,0)) -> 244901 | H47: 99 | I47: 0 | J47: 0 | K47: 3 | L47: =IF(INTRO!$E$38="Endémique", IF($H47>0, IF($H47=4,"Inconnu", IF($H47=99,"Interrompu", $D47)), 0),"Non requis") -> Non requis | M47: =IF(INTRO!$E$40="Endémique", IF($I47>0, IF($I47=4,"Inconnu",IF($I47=99,"Interrompu", $D47)), 0),"Non requis") -> 0 | N47: =IF(INTRO!$E$42="Endémique", IF(AND($J47>1,$J47<5), IF($J47=4, "Inconnu", E47+F47), 0),"Non requis") -> Non requis | O47: 225431 | P47: 0 | Q47: 0 | R47: 0 | S47: 1 | U47: T2 (PZQ) | Y47: 30004 | Z47: Bandiagara | AB47: =ROUND(_xlfn.XLOOKUP(Y47,[1]Sheet1!$B:$B,[1]Sheet1!$D:$D),0) -> 448094 | AC47: =_xlfn.XLOOKUP($Y47,[1]IU_PROJECTIONS!$F$5:$F$79,[1]IU_PROJECTIONS!G$5:G$79) -> 3 | AH47: =ROUND(_xlfn.XLOOKUP($Y47,[1]IU_PROJECTIONS!$F$5:$F$79,[1]IU_PROJECTIONS!H$5:H$79),0) -> 85065 | AI47: =ROUND(_xlfn.XLOOKUP($Y47,[1]IU_PROJECTIONS!$F$5:$F$79,[1]IU_PROJECTIONS!I$5:I$79),0) -> 140366 | AJ47: =ROUND(_xlfn.XLOOKUP($Y47,[1]IU_PROJECTIONS!$F$5:$F$79,[1]IU_PROJECTIONS!J$5:J$79),0) -> 225431 | AM47: =_xlfn.XLOOKUP(Y47,[2]IU_PROJECTIONS!$F$5:$F$79,[2]IU_PROJECTIONS!$G$5:$G$79) -> 3 | AN47: TRUE | AP47: =_xlfn.XLOOKUP($Y47,[2]IU_PROJECTIONS!$F$5:$F$79,[2]IU_PROJECTIONS!H$5:H$79) -> 85065 | AQ47: =_xlfn.XLOOKUP($Y47,[2]IU_PROJECTIONS!$F$5:$F$79,[2]IU_PROJECTIONS!I$5:I$79) -> 140366 | AR47: =_xlfn.XLOOKUP($Y47,[2]IU_PROJECTIONS!$F$5:$F$79,[2]IU_PROJECTIONS!J$5:J$79) -> 225431
A48: =IF(INTRO!$E$34<>0,INTRO!$E$34,"") -> Mali | B48: Mopti | C48: Bankass | D48: 393998 | E48: =IF(INTRO!$E$48="","",ROUND($D48*INTRO!$E$48,0)) -> 55160 | F48: =IF(INTRO!$E$49="","",ROUND($D48*INTRO!$E$49,0)) -> 112289 | G48: =IF(INTRO!$E$50="","",ROUND($D48*INTRO!$E$50,0)) -> 202909 | H48: 99 | I48: 0 | J48: 0 | K48: 3 | L48: =IF(INTRO!$E$38="Endémique", IF($H48>0, IF($H48=4,"Inconnu", IF($H48=99,"Interrompu", $D48)), 0),"Non requis") -> Non requis | M48: =IF(INTRO!$E$40="Endémique", IF($I48>0, IF($I48=4,"Inconnu",IF($I48=99,"Interrompu", $D48)), 0),"Non requis") -> 0 | N48: =IF(INTRO!$E$42="Endémique", IF(AND($J48>1,$J48<5), IF($J48=4, "Inconnu", E48+F48), 0),"Non requis") -> Non requis | O48: 309657 | P48: 0 | Q48: 0 | R48: 0 | S48: 1 | U48: T2 (PZQ) | Y48: 30005 | Z48: Bankass | AB48: =ROUND(_xlfn.XLOOKUP(Y48,[1]Sheet1!$B:$B,[1]Sheet1!$D:$D),0) -> 371637 | AC48: =_xlfn.XLOOKUP($Y48,[1]IU_PROJECTIONS!$F$5:$F$79,[1]IU_PROJECTIONS!G$5:G$79) -> 3 | AH48: =ROUND(_xlfn.XLOOKUP($Y48,[1]IU_PROJECTIONS!$F$5:$F$79,[1]IU_PROJECTIONS!H$5:H$79),0) -> 112287 | AI48: =ROUND(_xlfn.XLOOKUP($Y48,[1]IU_PROJECTIONS!$F$5:$F$79,[1]IU_PROJECTIONS!I$5:I$79),0) -> 197370 | AJ48: =ROUND(_xlfn.XLOOKUP($Y48,[1]IU_PROJECTIONS!$F$5:$F$79,[1]IU_PROJECTIONS!J$5:J$79),0) -> 309657 | AM48: =_xlfn.XLOOKUP(Y48,[2]IU_PROJECTIONS!$F$5:$F$79,[2]IU_PROJECTIONS!$G$5:$G$79) -> 3 | AN48: TRUE | AP48: =_xlfn.XLOOKUP($Y48,[2]IU_PROJECTIONS!$F$5:$F$79,[2]IU_PROJECTIONS!H$5:H$79) -> 112287 | AQ48: =_xlfn.XLOOKUP($Y48,[2]IU_PROJECTIONS!$F$5:$F$79,[2]IU_PROJECTIONS!I$5:I$79) -> 197370 | AR48: =_xlfn.XLOOKUP($Y48,[2]IU_PROJECTIONS!$F$5:$F$79,[2]IU_PROJECTIONS!J$5:J$79) -> 309657
A49: =IF(INTRO!$E$34<>0,INTRO!$E$34,"") -> Mali | B49: Mopti | C49: Djenne | D49: 309969 | E49: =IF(INTRO!$E$48="","",ROUND($D49*INTRO!$E$48,0)) -> 43396 | F49: =IF(INTRO!$E$49="","",ROUND($D49*INTRO!$E$49,0)) -> 88341 | G49: =IF(INTRO!$E$50="","",ROUND($D49*INTRO!$E$50,0)) -> 159634 | H49: 99 | I49: 0 | J49: 0 | K49: 3 | L49: =IF(INTRO!$E$38="Endémique", IF($H49>0, IF($H49=4,"Inconnu", IF($H49=99,"Interrompu", $D49)), 0),"Non requis") -> Non requis | M49: =IF(INTRO!$E$40="Endémique", IF($I49>0, IF($I49=4,"Inconnu",IF($I49=99,"Interrompu", $D49)), 0),"Non requis") -> 0 | N49: =IF(INTRO!$E$42="Endémique", IF(AND($J49>1,$J49<5), IF($J49=4, "Inconnu", E49+F49), 0),"Non requis") -> Non requis | O49: 221695 | P49: 0 | Q49: 0 | R49: 0 | S49: 1 | U49: T2 (PZQ) | Y49: 30006 | Z49: Djenne | AB49: =ROUND(_xlfn.XLOOKUP(Y49,[1]Sheet1!$B:$B,[1]Sheet1!$D:$D),0) -> 292396 | AC49: =_xlfn.XLOOKUP($Y49,[1]IU_PROJECTIONS!$F$5:$F$79,[1]IU_PROJECTIONS!G$5:G$79) -> 3 | AH49: =ROUND(_xlfn.XLOOKUP($Y49,[1]IU_PROJECTIONS!$F$5:$F$79,[1]IU_PROJECTIONS!H$5:H$79),0) -> 88341 | AI49: =ROUND(_xlfn.XLOOKUP($Y49,[1]IU_PROJECTIONS!$F$5:$F$79,[1]IU_PROJECTIONS!I$5:I$79),0) -> 133354 | AJ49: =ROUND(_xlfn.XLOOKUP($Y49,[1]IU_PROJECTIONS!$F$5:$F$79,[1]IU_PROJECTIONS!J$5:J$79),0) -> 221695 | AM49: =_xlfn.XLOOKUP(Y49,[2]IU_PROJECTIONS!$F$5:$F$79,[2]IU_PROJECTIONS!$G$5:$G$79) -> 3 | AN49: TRUE | AP49: =_xlfn.XLOOKUP($Y49,[2]IU_PROJECTIONS!$F$5:$F$79,[2]IU_PROJECTIONS!H$5:H$79) -> 88341 | AQ49: =_xlfn.XLOOKUP($Y49,[2]IU_PROJECTIONS!$F$5:$F$79,[2]IU_PROJECTIONS!I$5:I$79) -> 133354 | AR49: =_xlfn.XLOOKUP($Y49,[2]IU_PROJECTIONS!$F$5:$F$79,[2]IU_PROJECTIONS!J$5:J$79) -> 221695
A50: =IF(INTRO!$E$34<>0,INTRO!$E$34,"") -> Mali | B50: Mopti | C50: Douentza | D50: 370591 | E50: =IF(INTRO!$E$48="","",ROUND($D50*INTRO!$E$48,0)) -> 51883 | F50: =IF(INTRO!$E$49="","",ROUND($D50*INTRO!$E$49,0)) -> 105618 | G50: =IF(INTRO!$E$50="","",ROUND($D50*INTRO!$E$50,0)) -> 190854 | H50: 99 | I50: 0 | J50: 0 | K50: 3 | L50: =IF(INTRO!$E$38="Endémique", IF($H50>0, IF($H50=4,"Inconnu", IF($H50=99,"Interrompu", $D50)), 0),"Non requis") -> Non requis | M50: =IF(INTRO!$E$40="Endémique", IF($I50>0, IF($I50=4,"Inconnu",IF($I50=99,"Interrompu", $D50)), 0),"Non requis") -> 0 | N50: =IF(INTRO!$E$42="Endémique", IF(AND($J50>1,$J50<5), IF($J50=4, "Inconnu", E50+F50), 0),"Non requis") -> Non requis | O50: 243609 | P50: 0 | Q50: 0 | R50: 0 | S50: 1 | U50: T2 (PZQ) | Y50: 30007 | Z50: Douentza | AB50: =ROUND(_xlfn.XLOOKUP(Y50,[1]Sheet1!$B:$B,[1]Sheet1!$D:$D),0) -> 364181 | AC50: =_xlfn.XLOOKUP($Y50,[1]IU_PROJECTIONS!$F$5:$F$79,[1]IU_PROJECTIONS!G$5:G$79) -> 3 | AH50: =ROUND(_xlfn.XLOOKUP($Y50,[1]IU_PROJECTIONS!$F$5:$F$79,[1]IU_PROJECTIONS!H$5:H$79),0) -> 105617 | AI50: =ROUND(_xlfn.XLOOKUP($Y50,[1]IU_PROJECTIONS!$F$5:$F$79,[1]IU_PROJECTIONS!I$5:I$79),0) -> 137992 | AJ50: =ROUND(_xlfn.XLOOKUP($Y50,[1]IU_PROJECTIONS!$F$5:$F$79,[1]IU_PROJECTIONS!J$5:J$79),0) -> 243609 | AM50: =_xlfn.XLOOKUP(Y50,[2]IU_PROJECTIONS!$F$5:$F$79,[2]IU_PROJECTIONS!$G$5:$G$79) -> 3 | AN50: TRUE | AP50: =_xlfn.XLOOKUP($Y50,[2]IU_PROJECTIONS!$F$5:$F$79,[2]IU_PROJECTIONS!H$5:H$79) -> 105617 | AQ50: =_xlfn.XLOOKUP($Y50,[2]IU_PROJECTIONS!$F$5:$F$79,[2]IU_PROJECTIONS!I$5:I$79) -> 137992 | AR50: =_xlfn.XLOOKUP($Y50,[2]IU_PROJECTIONS!$F$5:$F$79,[2]IU_PROJECTIONS!J$5:J$79) -> 243609
A51: =IF(INTRO!$E$34<>0,INTRO!$E$34,"") -> Mali | B51: Mopti | C51: Koro | D51: 541308 | E51: =IF(INTRO!$E$48="","",ROUND($D51*INTRO!$E$48,0)) -> 75783 | F51: =IF(INTRO!$E$49="","",ROUND($D51*INTRO!$E$49,0)) -> 154273 | G51: =IF(INTRO!$E$50="","",ROUND($D51*INTRO!$E$50,0)) -> 278774 | H51: 99 | I51: 0 | J51: 0 | K51: 3 | L51: =IF(INTRO!$E$38="Endémique", IF($H51>0, IF($H51=4,"Inconnu", IF($H51=99,"Interrompu", $D51)), 0),"Non requis") -> Non requis | M51: =IF(INTRO!$E$40="Endémique", IF($I51>0, IF($I51=4,"Inconnu",IF($I51=99,"Interrompu", $D51)), 0),"Non requis") -> 0 | N51: =IF(INTRO!$E$42="Endémique", IF(AND($J51>1,$J51<5), IF($J51=4, "Inconnu", E51+F51), 0),"Non requis") -> Non requis | O51: 336306 | P51: 0 | Q51: 0 | R51: 0 | S51: 1 | U51: T2 (PZQ) | Y51: 30008 | Z51: Koro | AB51: =ROUND(_xlfn.XLOOKUP(Y51,[1]Sheet1!$B:$B,[1]Sheet1!$D:$D),0) -> 510594 | AC51: =_xlfn.XLOOKUP($Y51,[1]IU_PROJECTIONS!$F$5:$F$79,[1]IU_PROJECTIONS!G$5:G$79) -> 3 | AH51: =ROUND(_xlfn.XLOOKUP($Y51,[1]IU_PROJECTIONS!$F$5:$F$79,[1]IU_PROJECTIONS!H$5:H$79),0) -> 154274 | AI51: =ROUND(_xlfn.XLOOKUP($Y51,[1]IU_PROJECTIONS!$F$5:$F$79,[1]IU_PROJECTIONS!I$5:I$79),0) -> 182032 | AJ51: =ROUND(_xlfn.XLOOKUP($Y51,[1]IU_PROJECTIONS!$F$5:$F$79,[1]IU_PROJECTIONS!J$5:J$79),0) -> 336306 | AM51: =_xlfn.XLOOKUP(Y51,[2]IU_PROJECTIONS!$F$5:$F$79,[2]IU_PROJECTIONS!$G$5:$G$79) -> 3 | AN51: TRUE | AP51: =_xlfn.XLOOKUP($Y51,[2]IU_PROJECTIONS!$F$5:$F$79,[2]IU_PROJECTIONS!H$5:H$79) -> 154274 | AQ51: =_xlfn.XLOOKUP($Y51,[2]IU_PROJECTIONS!$F$5:$F$79,[2]IU_PROJECTIONS!I$5:I$79) -> 182032 | AR51: =_xlfn.XLOOKUP($Y51,[2]IU_PROJECTIONS!$F$5:$F$79,[2]IU_PROJECTIONS!J$5:J$79) -> 336306
A52: =IF(INTRO!$E$34<>0,INTRO!$E$34,"") -> Mali | B52: Mopti | C52: Mopti | D52: 551131 | E52: =IF(INTRO!$E$48="","",ROUND($D52*INTRO!$E$48,0)) -> 77158 | F52: =IF(INTRO!$E$49="","",ROUND($D52*INTRO!$E$49,0)) -> 157072 | G52: =IF(INTRO!$E$50="","",ROUND($D52*INTRO!$E$50,0)) -> 283832 | H52: 99 | I52: 0 | J52: 0 | K52: 3 | L52: =IF(INTRO!$E$38="Endémique", IF($H52>0, IF($H52=4,"Inconnu", IF($H52=99,"Interrompu", $D52)), 0),"Non requis") -> Non requis | M52: =IF(INTRO!$E$40="Endémique", IF($I52>0, IF($I52=4,"Inconnu",IF($I52=99,"Interrompu", $D52)), 0),"Non requis") -> 0 | N52: =IF(INTRO!$E$42="Endémique", IF(AND($J52>1,$J52<5), IF($J52=4, "Inconnu", E52+F52), 0),"Non requis") -> Non requis | O52: 376503 | P52: 0 | Q52: 0 | R52: 0 | S52: 1 | U52: T2 (PZQ) | Y52: 30009 | Z52: Mopti | AB52: =ROUND(_xlfn.XLOOKUP(Y52,[1]Sheet1!$B:$B,[1]Sheet1!$D:$D),0) -> 509576 | AC52: =_xlfn.XLOOKUP($Y52,[1]IU_PROJECTIONS!$F$5:$F$79,[1]IU_PROJECTIONS!G$5:G$79) -> 3 | AH52: =ROUND(_xlfn.XLOOKUP($Y52,[1]IU_PROJECTIONS!$F$5:$F$79,[1]IU_PROJECTIONS!H$5:H$79),0) -> 157071 | AI52: =ROUND(_xlfn.XLOOKUP($Y52,[1]IU_PROJECTIONS!$F$5:$F$79,[1]IU_PROJECTIONS!I$5:I$79),0) -> 219432 | AJ52: =ROUND(_xlfn.XLOOKUP($Y52,[1]IU_PROJECTIONS!$F$5:$F$79,[1]IU_PROJECTIONS!J$5:J$79),0) -> 376503 | AM52: =_xlfn.XLOOKUP(Y52,[2]IU_PROJECTIONS!$F$5:$F$79,[2]IU_PROJECTIONS!$G$5:$G$79) -> 3 | AN52: TRUE | AP52: =_xlfn.XLOOKUP($Y52,[2]IU_PROJECTIONS!$F$5:$F$79,[2]IU_PROJECTIONS!H$5:H$79) -> 157071 | AQ52: =_xlfn.XLOOKUP($Y52,[2]IU_PROJECTIONS!$F$5:$F$79,[2]IU_PROJECTIONS!I$5:I$79) -> 219432 | AR52: =_xlfn.XLOOKUP($Y52,[2]IU_PROJECTIONS!$F$5:$F$79,[2]IU_PROJECTIONS!J$5:J$79) -> 376503
A53: =IF(INTRO!$E$34<>0,INTRO!$E$34,"") -> Mali | B53: Mopti | C53: Teninkou | D53: 244735 | E53: =IF(INTRO!$E$48="","",ROUND($D53*INTRO!$E$48,0)) -> 34263 | F53: =IF(INTRO!$E$49="","",ROUND($D53*INTRO!$E$49,0)) -> 69749 | G53: =IF(INTRO!$E$50="","",ROUND($D53*INTRO!$E$50,0)) -> 126039 | H53: 99 | I53: 0 | J53: 0 | K53: 3 | L53: =IF(INTRO!$E$38="Endémique", IF($H53>0, IF($H53=4,"Inconnu", IF($H53=99,"Interrompu", $D53)), 0),"Non requis") -> Non requis | M53: =IF(INTRO!$E$40="Endémique", IF($I53>0, IF($I53=4,"Inconnu",IF($I53=99,"Interrompu", $D53)), 0),"Non requis") -> 0 | N53: =IF(INTRO!$E$42="Endémique", IF(AND($J53>1,$J53<5), IF($J53=4, "Inconnu", E53+F53), 0),"Non requis") -> Non requis | O53: 91820 | P53: 0 | Q53: 0 | R53: 0 | S53: 1 | U53: T2 (PZQ) | Y53: 30010 | Z53: Teninkou | AB53: =ROUND(_xlfn.XLOOKUP(Y53,[1]Sheet1!$B:$B,[1]Sheet1!$D:$D),0) -> 228412 | AC53: =_xlfn.XLOOKUP($Y53,[1]IU_PROJECTIONS!$F$5:$F$79,[1]IU_PROJECTIONS!G$5:G$79) -> 3 | AH53: =ROUND(_xlfn.XLOOKUP($Y53,[1]IU_PROJECTIONS!$F$5:$F$79,[1]IU_PROJECTIONS!H$5:H$79),0) -> 66234 | AI53: =ROUND(_xlfn.XLOOKUP($Y53,[1]IU_PROJECTIONS!$F$5:$F$79,[1]IU_PROJECTIONS!I$5:I$79),0) -> 25586 | AJ53: =ROUND(_xlfn.XLOOKUP($Y53,[1]IU_PROJECTIONS!$F$5:$F$79,[1]IU_PROJECTIONS!J$5:J$79),0) -> 91820 | AM53: =_xlfn.XLOOKUP(Y53,[2]IU_PROJECTIONS!$F$5:$F$79,[2]IU_PROJECTIONS!$G$5:$G$79) -> 3 | AN53: TRUE | AP53: =_xlfn.XLOOKUP($Y53,[2]IU_PROJECTIONS!$F$5:$F$79,[2]IU_PROJECTIONS!H$5:H$79) -> 66234 | AQ53: =_xlfn.XLOOKUP($Y53,[2]IU_PROJECTIONS!$F$5:$F$79,[2]IU_PROJECTIONS!I$5:I$79) -> 25586 | AR53: =_xlfn.XLOOKUP($Y53,[2]IU_PROJECTIONS!$F$5:$F$79,[2]IU_PROJECTIONS!J$5:J$79) -> 91820
A54: =IF(INTRO!$E$34<>0,INTRO!$E$34,"") -> Mali | B54: Mopti | C54: Youwarou | D54: 159678 | E54: =IF(INTRO!$E$48="","",ROUND($D54*INTRO!$E$48,0)) -> 22355 | F54: =IF(INTRO!$E$49="","",ROUND($D54*INTRO!$E$49,0)) -> 45508 | G54: =IF(INTRO!$E$50="","",ROUND($D54*INTRO!$E$50,0)) -> 82234 | H54: 99 | I54: 0 | J54: 0 | K54: 2 | L54: =IF(INTRO!$E$38="Endémique", IF($H54>0, IF($H54=4,"Inconnu", IF($H54=99,"Interrompu", $D54)), 0),"Non requis") -> Non requis | M54: =IF(INTRO!$E$40="Endémique", IF($I54>0, IF($I54=4,"Inconnu",IF($I54=99,"Interrompu", $D54)), 0),"Non requis") -> 0 | N54: =IF(INTRO!$E$42="Endémique", IF(AND($J54>1,$J54<5), IF($J54=4, "Inconnu", E54+F54), 0),"Non requis") -> Non requis | O54: 61954 | P54: 0 | Q54: 0 | R54: 0 | S54: 0 | Y54: 30011 | Z54: Youwarou | AB54: =ROUND(_xlfn.XLOOKUP(Y54,[1]Sheet1!$B:$B,[1]Sheet1!$D:$D),0) -> 150619 | AC54: =_xlfn.XLOOKUP($Y54,[1]IU_PROJECTIONS!$F$5:$F$79,[1]IU_PROJECTIONS!G$5:G$79) -> 2 | AH54: =ROUND(_xlfn.XLOOKUP($Y54,[1]IU_PROJECTIONS!$F$5:$F$79,[1]IU_PROJECTIONS!H$5:H$79),0) -> 45508 | AI54: =ROUND(_xlfn.XLOOKUP($Y54,[1]IU_PROJECTIONS!$F$5:$F$79,[1]IU_PROJECTIONS!I$5:I$79),0) -> 16446 | AJ54: =ROUND(_xlfn.XLOOKUP($Y54,[1]IU_PROJECTIONS!$F$5:$F$79,[1]IU_PROJECTIONS!J$5:J$79),0) -> 61954 | AM54: =_xlfn.XLOOKUP(Y54,[2]IU_PROJECTIONS!$F$5:$F$79,[2]IU_PROJECTIONS!$G$5:$G$79) -> 2 | AN54: TRUE | AP54: =_xlfn.XLOOKUP($Y54,[2]IU_PROJECTIONS!$F$5:$F$79,[2]IU_PROJECTIONS!H$5:H$79) -> 45508 | AQ54: =_xlfn.XLOOKUP($Y54,[2]IU_PROJECTIONS!$F$5:$F$79,[2]IU_PROJECTIONS!I$5:I$79) -> 16446 | AR54: =_xlfn.XLOOKUP($Y54,[2]IU_PROJECTIONS!$F$5:$F$79,[2]IU_PROJECTIONS!J$5:J$79) -> 61954
A55: =IF(INTRO!$E$34<>0,INTRO!$E$34,"") -> Mali | B55: Segou | C55: Barouéli | D55: 304914 | E55: =IF(INTRO!$E$48="","",ROUND($D55*INTRO!$E$48,0)) -> 42688 | F55: =IF(INTRO!$E$49="","",ROUND($D55*INTRO!$E$49,0)) -> 86900 | G55: =IF(INTRO!$E$50="","",ROUND($D55*INTRO!$E$50,0)) -> 157031 | H55: 99 | I55: 0 | J55: 0 | K55: 2 | L55: =IF(INTRO!$E$38="Endémique", IF($H55>0, IF($H55=4,"Inconnu", IF($H55=99,"Interrompu", $D55)), 0),"Non requis") -> Non requis | M55: =IF(INTRO!$E$40="Endémique", IF($I55>0, IF($I55=4,"Inconnu",IF($I55=99,"Interrompu", $D55)), 0),"Non requis") -> 0 | N55: =IF(INTRO!$E$42="Endémique", IF(AND($J55>1,$J55<5), IF($J55=4, "Inconnu", E55+F55), 0),"Non requis") -> Non requis | O55: 89359 | P55: 0 | Q55: 0 | R55: 0 | S55: 1 | U55: T2 (PZQ) | Y55: 30012 | Z55: Barouéli | AB55: =ROUND(_xlfn.XLOOKUP(Y55,[1]Sheet1!$B:$B,[1]Sheet1!$D:$D),0) -> 295312 | AC55: =_xlfn.XLOOKUP($Y55,[1]IU_PROJECTIONS!$F$5:$F$79,[1]IU_PROJECTIONS!G$5:G$79) -> 2 | AH55: =ROUND(_xlfn.XLOOKUP($Y55,[1]IU_PROJECTIONS!$F$5:$F$79,[1]IU_PROJECTIONS!H$5:H$79),0) -> 86901 | AI55: =ROUND(_xlfn.XLOOKUP($Y55,[1]IU_PROJECTIONS!$F$5:$F$79,[1]IU_PROJECTIONS!I$5:I$79),0) -> 2458 | AJ55: =ROUND(_xlfn.XLOOKUP($Y55,[1]IU_PROJECTIONS!$F$5:$F$79,[1]IU_PROJECTIONS!J$5:J$79),0) -> 89359 | AM55: =_xlfn.XLOOKUP(Y55,[2]IU_PROJECTIONS!$F$5:$F$79,[2]IU_PROJECTIONS!$G$5:$G$79) -> 2 | AN55: TRUE | AP55: =_xlfn.XLOOKUP($Y55,[2]IU_PROJECTIONS!$F$5:$F$79,[2]IU_PROJECTIONS!H$5:H$79) -> 86901 | AQ55: =_xlfn.XLOOKUP($Y55,[2]IU_PROJECTIONS!$F$5:$F$79,[2]IU_PROJECTIONS!I$5:I$79) -> 2458 | AR55: =_xlfn.XLOOKUP($Y55,[2]IU_PROJECTIONS!$F$5:$F$79,[2]IU_PROJECTIONS!J$5:J$79) -> 89359
A56: =IF(INTRO!$E$34<>0,INTRO!$E$34,"") -> Mali | B56: Segou | C56: Bla | D56: 424922 | E56: =IF(INTRO!$E$48="","",ROUND($D56*INTRO!$E$48,0)) -> 59489 | F56: =IF(INTRO!$E$49="","",ROUND($D56*INTRO!$E$49,0)) -> 121103 | G56: =IF(INTRO!$E$50="","",ROUND($D56*INTRO!$E$50,0)) -> 218835 | H56: 99 | I56: 0 | J56: 0 | K56: 3 | L56: =IF(INTRO!$E$38="Endémique", IF($H56>0, IF($H56=4,"Inconnu", IF($H56=99,"Interrompu", $D56)), 0),"Non requis") -> Non requis | M56: =IF(INTRO!$E$40="Endémique", IF($I56>0, IF($I56=4,"Inconnu",IF($I56=99,"Interrompu", $D56)), 0),"Non requis") -> 0 | N56: =IF(INTRO!$E$42="Endémique", IF(AND($J56>1,$J56<5), IF($J56=4, "Inconnu", E56+F56), 0),"Non requis") -> Non requis | O56: 209853 | P56: 0 | Q56: 0 | R56: 0 | S56: 1 | U56: T2 (PZQ) | Y56: 30013 | Z56: Bla | AB56: =ROUND(_xlfn.XLOOKUP(Y56,[1]Sheet1!$B:$B,[1]Sheet1!$D:$D),0) -> 408075 | AC56: =_xlfn.XLOOKUP($Y56,[1]IU_PROJECTIONS!$F$5:$F$79,[1]IU_PROJECTIONS!G$5:G$79) -> 3 | AH56: =ROUND(_xlfn.XLOOKUP($Y56,[1]IU_PROJECTIONS!$F$5:$F$79,[1]IU_PROJECTIONS!H$5:H$79),0) -> 121103 | AI56: =ROUND(_xlfn.XLOOKUP($Y56,[1]IU_PROJECTIONS!$F$5:$F$79,[1]IU_PROJECTIONS!I$5:I$79),0) -> 88750 | AJ56: =ROUND(_xlfn.XLOOKUP($Y56,[1]IU_PROJECTIONS!$F$5:$F$79,[1]IU_PROJECTIONS!J$5:J$79),0) -> 209853 | AM56: =_xlfn.XLOOKUP(Y56,[2]IU_PROJECTIONS!$F$5:$F$79,[2]IU_PROJECTIONS!$G$5:$G$79) -> 3 | AN56: TRUE | AP56: =_xlfn.XLOOKUP($Y56,[2]IU_PROJECTIONS!$F$5:$F$79,[2]IU_PROJECTIONS!H$5:H$79) -> 121103 | AQ56: =_xlfn.XLOOKUP($Y56,[2]IU_PROJECTIONS!$F$5:$F$79,[2]IU_PROJECTIONS!I$5:I$79) -> 88750 | AR56: =_xlfn.XLOOKUP($Y56,[2]IU_PROJECTIONS!$F$5:$F$79,[2]IU_PROJECTIONS!J$5:J$79) -> 209853
A57: =IF(INTRO!$E$34<>0,INTRO!$E$34,"") -> Mali | B57: Segou | C57: Macina | D57: 355735 | E57: =IF(INTRO!$E$48="","",ROUND($D57*INTRO!$E$48,0)) -> 49803 | F57: =IF(INTRO!$E$49="","",ROUND($D57*INTRO!$E$49,0)) -> 101384 | G57: =IF(INTRO!$E$50="","",ROUND($D57*INTRO!$E$50,0)) -> 183204 | H57: 99 | I57: 0 | J57: 0 | K57: 3 | L57: =IF(INTRO!$E$38="Endémique", IF($H57>0, IF($H57=4,"Inconnu", IF($H57=99,"Interrompu", $D57)), 0),"Non requis") -> Non requis | M57: =IF(INTRO!$E$40="Endémique", IF($I57>0, IF($I57=4,"Inconnu",IF($I57=99,"Interrompu", $D57)), 0),"Non requis") -> 0 | N57: =IF(INTRO!$E$42="Endémique", IF(AND($J57>1,$J57<5), IF($J57=4, "Inconnu", E57+F57), 0),"Non requis") -> Non requis | O57: 274210 | P57: 0 | Q57: 0 | R57: 0 | S57: 1 | U57: T2 (PZQ) | Y57: 30014 | Z57: Macina | AB57: =ROUND(_xlfn.XLOOKUP(Y57,[1]Sheet1!$B:$B,[1]Sheet1!$D:$D),0) -> 334807 | AC57: =_xlfn.XLOOKUP($Y57,[1]IU_PROJECTIONS!$F$5:$F$79,[1]IU_PROJECTIONS!G$5:G$79) -> 3 | AH57: =ROUND(_xlfn.XLOOKUP($Y57,[1]IU_PROJECTIONS!$F$5:$F$79,[1]IU_PROJECTIONS!H$5:H$79),0) -> 101387 | AI57: =ROUND(_xlfn.XLOOKUP($Y57,[1]IU_PROJECTIONS!$F$5:$F$79,[1]IU_PROJECTIONS!I$5:I$79),0) -> 172823 | AJ57: =ROUND(_xlfn.XLOOKUP($Y57,[1]IU_PROJECTIONS!$F$5:$F$79,[1]IU_PROJECTIONS!J$5:J$79),0) -> 274210 | AM57: =_xlfn.XLOOKUP(Y57,[2]IU_PROJECTIONS!$F$5:$F$79,[2]IU_PROJECTIONS!$G$5:$G$79) -> 3 | AN57: TRUE | AP57: =_xlfn.XLOOKUP($Y57,[2]IU_PROJECTIONS!$F$5:$F$79,[2]IU_PROJECTIONS!H$5:H$79) -> 101387 | AQ57: =_xlfn.XLOOKUP($Y57,[2]IU_PROJECTIONS!$F$5:$F$79,[2]IU_PROJECTIONS!I$5:I$79) -> 172823 | AR57: =_xlfn.XLOOKUP($Y57,[2]IU_PROJECTIONS!$F$5:$F$79,[2]IU_PROJECTIONS!J$5:J$79) -> 274210
A58: =IF(INTRO!$E$34<>0,INTRO!$E$34,"") -> Mali | B58: Segou | C58: Markala | D58: 269266 | E58: =IF(INTRO!$E$48="","",ROUND($D58*INTRO!$E$48,0)) -> 37697 | F58: =IF(INTRO!$E$49="","",ROUND($D58*INTRO!$E$49,0)) -> 76741 | G58: =IF(INTRO!$E$50="","",ROUND($D58*INTRO!$E$50,0)) -> 138672 | H58: 99 | I58: 0 | J58: 0 | K58: 3 | L58: =IF(INTRO!$E$38="Endémique", IF($H58>0, IF($H58=4,"Inconnu", IF($H58=99,"Interrompu", $D58)), 0),"Non requis") -> Non requis | M58: =IF(INTRO!$E$40="Endémique", IF($I58>0, IF($I58=4,"Inconnu",IF($I58=99,"Interrompu", $D58)), 0),"Non requis") -> 0 | N58: =IF(INTRO!$E$42="Endémique", IF(AND($J58>1,$J58<5), IF($J58=4, "Inconnu", E58+F58), 0),"Non requis") -> Non requis | O58: 213569 | P58: 0 | Q58: 0 | R58: 0 | S58: 1 | U58: T2 (PZQ) | Y58: 30015 | Z58: Markala | AB58: =ROUND(_xlfn.XLOOKUP(Y58,[1]Sheet1!$B:$B,[1]Sheet1!$D:$D),0) -> 351581 | AC58: =_xlfn.XLOOKUP($Y58,[1]IU_PROJECTIONS!$F$5:$F$79,[1]IU_PROJECTIONS!G$5:G$79) -> 3 | AH58: =ROUND(_xlfn.XLOOKUP($Y58,[1]IU_PROJECTIONS!$F$5:$F$79,[1]IU_PROJECTIONS!H$5:H$79),0) -> 76739 | AI58: =ROUND(_xlfn.XLOOKUP($Y58,[1]IU_PROJECTIONS!$F$5:$F$79,[1]IU_PROJECTIONS!I$5:I$79),0) -> 136830 | AJ58: =ROUND(_xlfn.XLOOKUP($Y58,[1]IU_PROJECTIONS!$F$5:$F$79,[1]IU_PROJECTIONS!J$5:J$79),0) -> 213569 | AM58: =_xlfn.XLOOKUP(Y58,[2]IU_PROJECTIONS!$F$5:$F$79,[2]IU_PROJECTIONS!$G$5:$G$79) -> 3 | AN58: TRUE | AP58: =_xlfn.XLOOKUP($Y58,[2]IU_PROJECTIONS!$F$5:$F$79,[2]IU_PROJECTIONS!H$5:H$79) -> 76739 | AQ58: =_xlfn.XLOOKUP($Y58,[2]IU_PROJECTIONS!$F$5:$F$79,[2]IU_PROJECTIONS!I$5:I$79) -> 136830 | AR58: =_xlfn.XLOOKUP($Y58,[2]IU_PROJECTIONS!$F$5:$F$79,[2]IU_PROJECTIONS!J$5:J$79) -> 213569
A59: =IF(INTRO!$E$34<>0,INTRO!$E$34,"") -> Mali | B59: Segou | C59: Niono | D59: 547428 | E59: =IF(INTRO!$E$48="","",ROUND($D59*INTRO!$E$48,0)) -> 76640 | F59: =IF(INTRO!$E$49="","",ROUND($D59*INTRO!$E$49,0)) -> 156017 | G59: =IF(INTRO!$E$50="","",ROUND($D59*INTRO!$E$50,0)) -> 281925 | H59: 99 | I59: 0 | J59: 0 | K59: 3 | L59: =IF(INTRO!$E$38="Endémique", IF($H59>0, IF($H59=4,"Inconnu", IF($H59=99,"Interrompu", $D59)), 0),"Non requis") -> Non requis | M59: =IF(INTRO!$E$40="Endémique", IF($I59>0, IF($I59=4,"Inconnu",IF($I59=99,"Interrompu", $D59)), 0),"Non requis") -> 0 | N59: =IF(INTRO!$E$42="Endémique", IF(AND($J59>1,$J59<5), IF($J59=4, "Inconnu", E59+F59), 0),"Non requis") -> Non requis | O59: 437942 | P59: 0 | Q59: 0 | R59: 0 | S59: 1 | U59: T2 (PZQ) | Y59: 30016 | Z59: Niono | AB59: =ROUND(_xlfn.XLOOKUP(Y59,[1]Sheet1!$B:$B,[1]Sheet1!$D:$D),0) -> 519551 | AC59: =_xlfn.XLOOKUP($Y59,[1]IU_PROJECTIONS!$F$5:$F$79,[1]IU_PROJECTIONS!G$5:G$79) -> 3 | AH59: =ROUND(_xlfn.XLOOKUP($Y59,[1]IU_PROJECTIONS!$F$5:$F$79,[1]IU_PROJECTIONS!H$5:H$79),0) -> 156017 | AI59: =ROUND(_xlfn.XLOOKUP($Y59,[1]IU_PROJECTIONS!$F$5:$F$79,[1]IU_PROJECTIONS!I$5:I$79),0) -> 281925 | AJ59: =ROUND(_xlfn.XLOOKUP($Y59,[1]IU_PROJECTIONS!$F$5:$F$79,[1]IU_PROJECTIONS!J$5:J$79),0) -> 437942 | AM59: =_xlfn.XLOOKUP(Y59,[2]IU_PROJECTIONS!$F$5:$F$79,[2]IU_PROJECTIONS!$G$5:$G$79) -> 3 | AN59: TRUE | AP59: =_xlfn.XLOOKUP($Y59,[2]IU_PROJECTIONS!$F$5:$F$79,[2]IU_PROJECTIONS!H$5:H$79) -> 156017 | AQ59: =_xlfn.XLOOKUP($Y59,[2]IU_PROJECTIONS!$F$5:$F$79,[2]IU_PROJECTIONS!I$5:I$79) -> 281925 | AR59: =_xlfn.XLOOKUP($Y59,[2]IU_PROJECTIONS!$F$5:$F$79,[2]IU_PROJECTIONS!J$5:J$79) -> 437942
A60: =IF(INTRO!$E$34<>0,INTRO!$E$34,"") -> Mali | B60: Segou | C60: San | D60: 501691 | E60: =IF(INTRO!$E$48="","",ROUND($D60*INTRO!$E$48,0)) -> 70237 | F60: =IF(INTRO!$E$49="","",ROUND($D60*INTRO!$E$49,0)) -> 142982 | G60: =IF(INTRO!$E$50="","",ROUND($D60*INTRO!$E$50,0)) -> 258371 | H60: 99 | I60: 0 | J60: 0 | K60: 3 | L60: =IF(INTRO!$E$38="Endémique", IF($H60>0, IF($H60=4,"Inconnu", IF($H60=99,"Interrompu", $D60)), 0),"Non requis") -> Non requis | M60: =IF(INTRO!$E$40="Endémique", IF($I60>0, IF($I60=4,"Inconnu",IF($I60=99,"Interrompu", $D60)), 0),"Non requis") -> 0 | N60: =IF(INTRO!$E$42="Endémique", IF(AND($J60>1,$J60<5), IF($J60=4, "Inconnu", E60+F60), 0),"Non requis") -> Non requis | O60: 316132 | P60: 0 | Q60: 0 | R60: 0 | S60: 1 | U60: T2 (PZQ) | Y60: 30017 | Z60: San | AB60: =ROUND(_xlfn.XLOOKUP(Y60,[1]Sheet1!$B:$B,[1]Sheet1!$D:$D),0) -> 469163 | AC60: =_xlfn.XLOOKUP($Y60,[1]IU_PROJECTIONS!$F$5:$F$79,[1]IU_PROJECTIONS!G$5:G$79) -> 3 | AH60: =ROUND(_xlfn.XLOOKUP($Y60,[1]IU_PROJECTIONS!$F$5:$F$79,[1]IU_PROJECTIONS!H$5:H$79),0) -> 142979 | AI60: =ROUND(_xlfn.XLOOKUP($Y60,[1]IU_PROJECTIONS!$F$5:$F$79,[1]IU_PROJECTIONS!I$5:I$79),0) -> 173153 | AJ60: =ROUND(_xlfn.XLOOKUP($Y60,[1]IU_PROJECTIONS!$F$5:$F$79,[1]IU_PROJECTIONS!J$5:J$79),0) -> 316132 | AM60: =_xlfn.XLOOKUP(Y60,[2]IU_PROJECTIONS!$F$5:$F$79,[2]IU_PROJECTIONS!$G$5:$G$79) -> 3 | AN60: TRUE | AP60: =_xlfn.XLOOKUP($Y60,[2]IU_PROJECTIONS!$F$5:$F$79,[2]IU_PROJECTIONS!H$5:H$79) -> 142979 | AQ60: =_xlfn.XLOOKUP($Y60,[2]IU_PROJECTIONS!$F$5:$F$79,[2]IU_PROJECTIONS!I$5:I$79) -> 173153 | AR60: =_xlfn.XLOOKUP($Y60,[2]IU_PROJECTIONS!$F$5:$F$79,[2]IU_PROJECTIONS!J$5:J$79) -> 316132
A61: =IF(INTRO!$E$34<>0,INTRO!$E$34,"") -> Mali | B61: Segou | C61: Segou | D61: 766376 | E61: =IF(INTRO!$E$48="","",ROUND($D61*INTRO!$E$48,0)) -> 107293 | F61: =IF(INTRO!$E$49="","",ROUND($D61*INTRO!$E$49,0)) -> 218417 | G61: =IF(INTRO!$E$50="","",ROUND($D61*INTRO!$E$50,0)) -> 394684 | H61: 99 | I61: 0 | J61: 0 | K61: 3 | L61: =IF(INTRO!$E$38="Endémique", IF($H61>0, IF($H61=4,"Inconnu", IF($H61=99,"Interrompu", $D61)), 0),"Non requis") -> Non requis | M61: =IF(INTRO!$E$40="Endémique", IF($I61>0, IF($I61=4,"Inconnu",IF($I61=99,"Interrompu", $D61)), 0),"Non requis") -> 0 | N61: =IF(INTRO!$E$42="Endémique", IF(AND($J61>1,$J61<5), IF($J61=4, "Inconnu", E61+F61), 0),"Non requis") -> Non requis | O61: 613104 | P61: 0 | Q61: 0 | R61: 0 | S61: 1 | U61: T2 (PZQ) | Y61: 30018 | Z61: Segou | AB61: =ROUND(_xlfn.XLOOKUP(Y61,[1]Sheet1!$B:$B,[1]Sheet1!$D:$D),0) -> 622150 | AC61: =_xlfn.XLOOKUP($Y61,[1]IU_PROJECTIONS!$F$5:$F$79,[1]IU_PROJECTIONS!G$5:G$79) -> 3 | AH61: =ROUND(_xlfn.XLOOKUP($Y61,[1]IU_PROJECTIONS!$F$5:$F$79,[1]IU_PROJECTIONS!H$5:H$79),0) -> 218418 | AI61: =ROUND(_xlfn.XLOOKUP($Y61,[1]IU_PROJECTIONS!$F$5:$F$79,[1]IU_PROJECTIONS!I$5:I$79),0) -> 394686 | AJ61: =ROUND(_xlfn.XLOOKUP($Y61,[1]IU_PROJECTIONS!$F$5:$F$79,[1]IU_PROJECTIONS!J$5:J$79),0) -> 613104 | AM61: =_xlfn.XLOOKUP(Y61,[2]IU_PROJECTIONS!$F$5:$F$79,[2]IU_PROJECTIONS!$G$5:$G$79) -> 3 | AN61: TRUE | AP61: =_xlfn.XLOOKUP($Y61,[2]IU_PROJECTIONS!$F$5:$F$79,[2]IU_PROJECTIONS!H$5:H$79) -> 218418 | AQ61: =_xlfn.XLOOKUP($Y61,[2]IU_PROJECTIONS!$F$5:$F$79,[2]IU_PROJECTIONS!I$5:I$79) -> 394686 | AR61: =_xlfn.XLOOKUP($Y61,[2]IU_PROJECTIONS!$F$5:$F$79,[2]IU_PROJECTIONS!J$5:J$79) -> 613104
A62: =IF(INTRO!$E$34<>0,INTRO!$E$34,"") -> Mali | B62: Segou | C62: Tominian | D62: 329336 | E62: =IF(INTRO!$E$48="","",ROUND($D62*INTRO!$E$48,0)) -> 46107 | F62: =IF(INTRO!$E$49="","",ROUND($D62*INTRO!$E$49,0)) -> 93861 | G62: =IF(INTRO!$E$50="","",ROUND($D62*INTRO!$E$50,0)) -> 169608 | H62: 99 | I62: 0 | J62: 0 | K62: 1 | L62: =IF(INTRO!$E$38="Endémique", IF($H62>0, IF($H62=4,"Inconnu", IF($H62=99,"Interrompu", $D62)), 0),"Non requis") -> Non requis | M62: =IF(INTRO!$E$40="Endémique", IF($I62>0, IF($I62=4,"Inconnu",IF($I62=99,"Interrompu", $D62)), 0),"Non requis") -> 0 | N62: =IF(INTRO!$E$42="Endémique", IF(AND($J62>1,$J62<5), IF($J62=4, "Inconnu", E62+F62), 0),"Non requis") -> Non requis | O62: 93861 | P62: 0 | Q62: 0 | R62: 0 | S62: 0 | Y62: 30019 | Z62: Tominian | AB62: =ROUND(_xlfn.XLOOKUP(Y62,[1]Sheet1!$B:$B,[1]Sheet1!$D:$D),0) -> 315116 | AC62: =_xlfn.XLOOKUP($Y62,[1]IU_PROJECTIONS!$F$5:$F$79,[1]IU_PROJECTIONS!G$5:G$79) -> 1 | AH62: =ROUND(_xlfn.XLOOKUP($Y62,[1]IU_PROJECTIONS!$F$5:$F$79,[1]IU_PROJECTIONS!H$5:H$79),0) -> 93861 | AI62: =ROUND(_xlfn.XLOOKUP($Y62,[1]IU_PROJECTIONS!$F$5:$F$79,[1]IU_PROJECTIONS!I$5:I$79),0) -> 0 | AJ62: =ROUND(_xlfn.XLOOKUP($Y62,[1]IU_PROJECTIONS!$F$5:$F$79,[1]IU_PROJECTIONS!J$5:J$79),0) -> 93861 | AM62: =_xlfn.XLOOKUP(Y62,[2]IU_PROJECTIONS!$F$5:$F$79,[2]IU_PROJECTIONS!$G$5:$G$79) -> 1 | AN62: TRUE | AP62: =_xlfn.XLOOKUP($Y62,[2]IU_PROJECTIONS!$F$5:$F$79,[2]IU_PROJECTIONS!H$5:H$79) -> 93861 | AQ62: =_xlfn.XLOOKUP($Y62,[2]IU_PROJECTIONS!$F$5:$F$79,[2]IU_PROJECTIONS!I$5:I$79) -> 0 | AR62: =_xlfn.XLOOKUP($Y62,[2]IU_PROJECTIONS!$F$5:$F$79,[2]IU_PROJECTIONS!J$5:J$79) -> 93861
A63: =IF(INTRO!$E$34<>0,INTRO!$E$34,"") -> Mali | B63: Sikasso | C63: Bougouni | D63: 692232 | E63: =IF(INTRO!$E$48="","",ROUND($D63*INTRO!$E$48,0)) -> 96912 | F63: =IF(INTRO!$E$49="","",ROUND($D63*INTRO!$E$49,0)) -> 197286 | G63: =IF(INTRO!$E$50="","",ROUND($D63*INTRO!$E$50,0)) -> 356499 | H63: 99 | I63: 99 | J63: 0 | K63: 2 | L63: =IF(INTRO!$E$38="Endémique", IF($H63>0, IF($H63=4,"Inconnu", IF($H63=99,"Interrompu", $D63)), 0),"Non requis") -> Non requis | M63: =IF(INTRO!$E$40="Endémique", IF($I63>0, IF($I63=4,"Inconnu",IF($I63=99,"Interrompu", $D63)), 0),"Non requis") -> Interrompu | N63: =IF(INTRO!$E$42="Endémique", IF(AND($J63>1,$J63<5), IF($J63=4, "Inconnu", E63+F63), 0),"Non requis") -> Non requis | O63: 216096 | P63: 0 | Q63: 0 | R63: 0 | S63: 1 | U63: T2 (PZQ) | Y63: 30020 | Z63: Bougouni | AB63: =ROUND(_xlfn.XLOOKUP(Y63,[1]Sheet1!$B:$B,[1]Sheet1!$D:$D),0) -> 653152 | AC63: =_xlfn.XLOOKUP($Y63,[1]IU_PROJECTIONS!$F$5:$F$79,[1]IU_PROJECTIONS!G$5:G$79) -> 2 | AH63: =ROUND(_xlfn.XLOOKUP($Y63,[1]IU_PROJECTIONS!$F$5:$F$79,[1]IU_PROJECTIONS!H$5:H$79),0) -> 194142 | AI63: =ROUND(_xlfn.XLOOKUP($Y63,[1]IU_PROJECTIONS!$F$5:$F$79,[1]IU_PROJECTIONS!I$5:I$79),0) -> 21954 | AJ63: =ROUND(_xlfn.XLOOKUP($Y63,[1]IU_PROJECTIONS!$F$5:$F$79,[1]IU_PROJECTIONS!J$5:J$79),0) -> 216096 | AM63: =_xlfn.XLOOKUP(Y63,[2]IU_PROJECTIONS!$F$5:$F$79,[2]IU_PROJECTIONS!$G$5:$G$79) -> 2 | AN63: TRUE | AP63: =_xlfn.XLOOKUP($Y63,[2]IU_PROJECTIONS!$F$5:$F$79,[2]IU_PROJECTIONS!H$5:H$79) -> 194142 | AQ63: =_xlfn.XLOOKUP($Y63,[2]IU_PROJECTIONS!$F$5:$F$79,[2]IU_PROJECTIONS!I$5:I$79) -> 21954 | AR63: =_xlfn.XLOOKUP($Y63,[2]IU_PROJECTIONS!$F$5:$F$79,[2]IU_PROJECTIONS!J$5:J$79) -> 216096
A64: =IF(INTRO!$E$34<>0,INTRO!$E$34,"") -> Mali | B64: Sikasso | C64: Kadiolo | D64: 361119 | E64: =IF(INTRO!$E$48="","",ROUND($D64*INTRO!$E$48,0)) -> 50557 | F64: =IF(INTRO!$E$49="","",ROUND($D64*INTRO!$E$49,0)) -> 102919 | G64: =IF(INTRO!$E$50="","",ROUND($D64*INTRO!$E$50,0)) -> 185976 | H64: 99 | I64: 0 | J64: 0 | K64: 0 | L64: =IF(INTRO!$E$38="Endémique", IF($H64>0, IF($H64=4,"Inconnu", IF($H64=99,"Interrompu", $D64)), 0),"Non requis") -> Non requis | M64: =IF(INTRO!$E$40="Endémique", IF($I64>0, IF($I64=4,"Inconnu",IF($I64=99,"Interrompu", $D64)), 0),"Non requis") -> 0 | N64: =IF(INTRO!$E$42="Endémique", IF(AND($J64>1,$J64<5), IF($J64=4, "Inconnu", E64+F64), 0),"Non requis") -> Non requis | O64: 0 | P64: 0 | Q64: 0 | R64: 0 | S64: 1 | U64: T2 (PZQ) | Y64: 30021 | Z64: Kadiolo | AB64: =ROUND(_xlfn.XLOOKUP(Y64,[1]Sheet1!$B:$B,[1]Sheet1!$D:$D),0) -> 340493 | AC64: =_xlfn.XLOOKUP($Y64,[1]IU_PROJECTIONS!$F$5:$F$79,[1]IU_PROJECTIONS!G$5:G$79) -> 0 | AH64: =ROUND(_xlfn.XLOOKUP($Y64,[1]IU_PROJECTIONS!$F$5:$F$79,[1]IU_PROJECTIONS!H$5:H$79),0) -> 0 | AI64: =ROUND(_xlfn.XLOOKUP($Y64,[1]IU_PROJECTIONS!$F$5:$F$79,[1]IU_PROJECTIONS!I$5:I$79),0) -> 0 | AJ64: =ROUND(_xlfn.XLOOKUP($Y64,[1]IU_PROJECTIONS!$F$5:$F$79,[1]IU_PROJECTIONS!J$5:J$79),0) -> 0 | AM64: =_xlfn.XLOOKUP(Y64,[2]IU_PROJECTIONS!$F$5:$F$79,[2]IU_PROJECTIONS!$G$5:$G$79) -> 0 | AN64: TRUE | AP64: =_xlfn.XLOOKUP($Y64,[2]IU_PROJECTIONS!$F$5:$F$79,[2]IU_PROJECTIONS!H$5:H$79) -> 0 | AQ64: =_xlfn.XLOOKUP($Y64,[2]IU_PROJECTIONS!$F$5:$F$79,[2]IU_PROJECTIONS!I$5:I$79) -> 0 | AR64: =_xlfn.XLOOKUP($Y64,[2]IU_PROJECTIONS!$F$5:$F$79,[2]IU_PROJECTIONS!J$5:J$79) -> 0
A65: =IF(INTRO!$E$34<>0,INTRO!$E$34,"") -> Mali | B65: Sikasso | C65: Kignan | D65: 174869 | E65: =IF(INTRO!$E$48="","",ROUND($D65*INTRO!$E$48,0)) -> 24482 | F65: =IF(INTRO!$E$49="","",ROUND($D65*INTRO!$E$49,0)) -> 49838 | G65: =IF(INTRO!$E$50="","",ROUND($D65*INTRO!$E$50,0)) -> 90058 | H65: 99 | I65: 1 | J65: 0 | K65: 1 | L65: =IF(INTRO!$E$38="Endémique", IF($H65>0, IF($H65=4,"Inconnu", IF($H65=99,"Interrompu", $D65)), 0),"Non requis") -> Non requis | M65: =IF(INTRO!$E$40="Endémique", IF($I65>0, IF($I65=4,"Inconnu",IF($I65=99,"Interrompu", $D65)), 0),"Non requis") -> 174869 | N65: =IF(INTRO!$E$42="Endémique", IF(AND($J65>1,$J65<5), IF($J65=4, "Inconnu", E65+F65), 0),"Non requis") -> Non requis | O65: 9357 | P65: 0 | Q65: 0 | R65: 0 | S65: 1 | U65: T2 (PZQ) | Y65: 30022 | Z65: Kignan | AB65: =ROUND(_xlfn.XLOOKUP(Y65,[1]Sheet1!$B:$B,[1]Sheet1!$D:$D),0) -> 149800 | AC65: =_xlfn.XLOOKUP($Y65,[1]IU_PROJECTIONS!$F$5:$F$79,[1]IU_PROJECTIONS!G$5:G$79) -> 1 | AH65: =ROUND(_xlfn.XLOOKUP($Y65,[1]IU_PROJECTIONS!$F$5:$F$79,[1]IU_PROJECTIONS!H$5:H$79),0) -> 9357 | AI65: =ROUND(_xlfn.XLOOKUP($Y65,[1]IU_PROJECTIONS!$F$5:$F$79,[1]IU_PROJECTIONS!I$5:I$79),0) -> 0 | AJ65: =ROUND(_xlfn.XLOOKUP($Y65,[1]IU_PROJECTIONS!$F$5:$F$79,[1]IU_PROJECTIONS!J$5:J$79),0) -> 9357 | AM65: =_xlfn.XLOOKUP(Y65,[2]IU_PROJECTIONS!$F$5:$F$79,[2]IU_PROJECTIONS!$G$5:$G$79) -> 1 | AN65: TRUE | AP65: =_xlfn.XLOOKUP($Y65,[2]IU_PROJECTIONS!$F$5:$F$79,[2]IU_PROJECTIONS!H$5:H$79) -> 9357 | AQ65: =_xlfn.XLOOKUP($Y65,[2]IU_PROJECTIONS!$F$5:$F$79,[2]IU_PROJECTIONS!I$5:I$79) -> 0 | AR65: =_xlfn.XLOOKUP($Y65,[2]IU_PROJECTIONS!$F$5:$F$79,[2]IU_PROJECTIONS!J$5:J$79) -> 9357
A66: =IF(INTRO!$E$34<>0,INTRO!$E$34,"") -> Mali | B66: Sikasso | C66: Kolondieba | D66: 305236 | E66: =IF(INTRO!$E$48="","",ROUND($D66*INTRO!$E$48,0)) -> 42733 | F66: =IF(INTRO!$E$49="","",ROUND($D66*INTRO!$E$49,0)) -> 86992 | G66: =IF(INTRO!$E$50="","",ROUND($D66*INTRO!$E$50,0)) -> 157197 | H66: 99 | I66: 1 | J66: 1 | K66: 1 | L66: =IF(INTRO!$E$38="Endémique", IF($H66>0, IF($H66=4,"Inconnu", IF($H66=99,"Interrompu", $D66)), 0),"Non requis") -> Non requis | M66: =IF(INTRO!$E$40="Endémique", IF($I66>0, IF($I66=4,"Inconnu",IF($I66=99,"Interrompu", $D66)), 0),"Non requis") -> 305236 | N66: =IF(INTRO!$E$42="Endémique", IF(AND($J66>1,$J66<5), IF($J66=4, "Inconnu", E66+F66), 0),"Non requis") -> Non requis | O66: 25509 | P66: 0 | Q66: 0 | R66: 0 | S66: 0 | Y66: 30023 | Z66: Kolondieba | AB66: =ROUND(_xlfn.XLOOKUP(Y66,[1]Sheet1!$B:$B,[1]Sheet1!$D:$D),0) -> 293096 | AC66: =_xlfn.XLOOKUP($Y66,[1]IU_PROJECTIONS!$F$5:$F$79,[1]IU_PROJECTIONS!G$5:G$79) -> 1 | AH66: =ROUND(_xlfn.XLOOKUP($Y66,[1]IU_PROJECTIONS!$F$5:$F$79,[1]IU_PROJECTIONS!H$5:H$79),0) -> 25509 | AI66: =ROUND(_xlfn.XLOOKUP($Y66,[1]IU_PROJECTIONS!$F$5:$F$79,[1]IU_PROJECTIONS!I$5:I$79),0) -> 0 | AJ66: =ROUND(_xlfn.XLOOKUP($Y66,[1]IU_PROJECTIONS!$F$5:$F$79,[1]IU_PROJECTIONS!J$5:J$79),0) -> 25509 | AM66: =_xlfn.XLOOKUP(Y66,[2]IU_PROJECTIONS!$F$5:$F$79,[2]IU_PROJECTIONS!$G$5:$G$79) -> 1 | AN66: TRUE | AP66: =_xlfn.XLOOKUP($Y66,[2]IU_PROJECTIONS!$F$5:$F$79,[2]IU_PROJECTIONS!H$5:H$79) -> 25509 | AQ66: =_xlfn.XLOOKUP($Y66,[2]IU_PROJECTIONS!$F$5:$F$79,[2]IU_PROJECTIONS!I$5:I$79) -> 0 | AR66: =_xlfn.XLOOKUP($Y66,[2]IU_PROJECTIONS!$F$5:$F$79,[2]IU_PROJECTIONS!J$5:J$79) -> 25509
A67: =IF(INTRO!$E$34<>0,INTRO!$E$34,"") -> Mali | B67: Sikasso | C67: Koutiala | D67: 866596 | E67: =IF(INTRO!$E$48="","",ROUND($D67*INTRO!$E$48,0)) -> 121323 | F67: =IF(INTRO!$E$49="","",ROUND($D67*INTRO!$E$49,0)) -> 246980 | G67: =IF(INTRO!$E$50="","",ROUND($D67*INTRO!$E$50,0)) -> 446297 | H67: 99 | I67: 0 | J67: 0 | K67: 1 | L67: =IF(INTRO!$E$38="Endémique", IF($H67>0, IF($H67=4,"Inconnu", IF($H67=99,"Interrompu", $D67)), 0),"Non requis") -> Non requis | M67: =IF(INTRO!$E$40="Endémique", IF($I67>0, IF($I67=4,"Inconnu",IF($I67=99,"Interrompu", $D67)), 0),"Non requis") -> 0 | N67: =IF(INTRO!$E$42="Endémique", IF(AND($J67>1,$J67<5), IF($J67=4, "Inconnu", E67+F67), 0),"Non requis") -> Non requis | O67: 51932 | P67: 0 | Q67: 0 | R67: 0 | S67: 1 | U67: T2 (PZQ) | Y67: 30024 | Z67: Koutiala | AB67: =ROUND(_xlfn.XLOOKUP(Y67,[1]Sheet1!$B:$B,[1]Sheet1!$D:$D),0) -> 832595 | AC67: =_xlfn.XLOOKUP($Y67,[1]IU_PROJECTIONS!$F$5:$F$79,[1]IU_PROJECTIONS!G$5:G$79) -> 1 | AH67: =ROUND(_xlfn.XLOOKUP($Y67,[1]IU_PROJECTIONS!$F$5:$F$79,[1]IU_PROJECTIONS!H$5:H$79),0) -> 51932 | AI67: =ROUND(_xlfn.XLOOKUP($Y67,[1]IU_PROJECTIONS!$F$5:$F$79,[1]IU_PROJECTIONS!I$5:I$79),0) -> 0 | AJ67: =ROUND(_xlfn.XLOOKUP($Y67,[1]IU_PROJECTIONS!$F$5:$F$79,[1]IU_PROJECTIONS!J$5:J$79),0) -> 51932 | AM67: =_xlfn.XLOOKUP(Y67,[2]IU_PROJECTIONS!$F$5:$F$79,[2]IU_PROJECTIONS!$G$5:$G$79) -> 1 | AN67: TRUE | AP67: =_xlfn.XLOOKUP($Y67,[2]IU_PROJECTIONS!$F$5:$F$79,[2]IU_PROJECTIONS!H$5:H$79) -> 51932 | AQ67: =_xlfn.XLOOKUP($Y67,[2]IU_PROJECTIONS!$F$5:$F$79,[2]IU_PROJECTIONS!I$5:I$79) -> 0 | AR67: =_xlfn.XLOOKUP($Y67,[2]IU_PROJECTIONS!$F$5:$F$79,[2]IU_PROJECTIONS!J$5:J$79) -> 51932
A68: =IF(INTRO!$E$34<>0,INTRO!$E$34,"") -> Mali | B68: Sikasso | C68: Niena | D68: 183611 | E68: =IF(INTRO!$E$48="","",ROUND($D68*INTRO!$E$48,0)) -> 25706 | F68: =IF(INTRO!$E$49="","",ROUND($D68*INTRO!$E$49,0)) -> 52329 | G68: =IF(INTRO!$E$50="","",ROUND($D68*INTRO!$E$50,0)) -> 94560 | H68: 99 | I68: 1 | J68: 0 | K68: 2 | L68: =IF(INTRO!$E$38="Endémique", IF($H68>0, IF($H68=4,"Inconnu", IF($H68=99,"Interrompu", $D68)), 0),"Non requis") -> Non requis | M68: =IF(INTRO!$E$40="Endémique", IF($I68>0, IF($I68=4,"Inconnu",IF($I68=99,"Interrompu", $D68)), 0),"Non requis") -> 183611 | N68: =IF(INTRO!$E$42="Endémique", IF(AND($J68>1,$J68<5), IF($J68=4, "Inconnu", E68+F68), 0),"Non requis") -> Non requis | O68: 10902 | P68: 0 | Q68: 0 | R68: 0 | S68: 1 | U68: T2 (PZQ) | Y68: 30025 | Z68: Niena | AB68: =ROUND(_xlfn.XLOOKUP(Y68,[1]Sheet1!$B:$B,[1]Sheet1!$D:$D),0) -> 189018 | AC68: =_xlfn.XLOOKUP($Y68,[1]IU_PROJECTIONS!$F$5:$F$79,[1]IU_PROJECTIONS!G$5:G$79) -> 2 | AH68: =ROUND(_xlfn.XLOOKUP($Y68,[1]IU_PROJECTIONS!$F$5:$F$79,[1]IU_PROJECTIONS!H$5:H$79),0) -> 9377 | AI68: =ROUND(_xlfn.XLOOKUP($Y68,[1]IU_PROJECTIONS!$F$5:$F$79,[1]IU_PROJECTIONS!I$5:I$79),0) -> 1525 | AJ68: =ROUND(_xlfn.XLOOKUP($Y68,[1]IU_PROJECTIONS!$F$5:$F$79,[1]IU_PROJECTIONS!J$5:J$79),0) -> 10902 | AM68: =_xlfn.XLOOKUP(Y68,[2]IU_PROJECTIONS!$F$5:$F$79,[2]IU_PROJECTIONS!$G$5:$G$79) -> 2 | AN68: TRUE | AP68: =_xlfn.XLOOKUP($Y68,[2]IU_PROJECTIONS!$F$5:$F$79,[2]IU_PROJECTIONS!H$5:H$79) -> 9377 | AQ68: =_xlfn.XLOOKUP($Y68,[2]IU_PROJECTIONS!$F$5:$F$79,[2]IU_PROJECTIONS!I$5:I$79) -> 1525 | AR68: =_xlfn.XLOOKUP($Y68,[2]IU_PROJECTIONS!$F$5:$F$79,[2]IU_PROJECTIONS!J$5:J$79) -> 10902
A69: =IF(INTRO!$E$34<>0,INTRO!$E$34,"") -> Mali | B69: Sikasso | C69: Sélingué | D69: 124451 | E69: =IF(INTRO!$E$48="","",ROUND($D69*INTRO!$E$48,0)) -> 17423 | F69: =IF(INTRO!$E$49="","",ROUND($D69*INTRO!$E$49,0)) -> 35469 | G69: =IF(INTRO!$E$50="","",ROUND($D69*INTRO!$E$50,0)) -> 64092 | H69: 99 | I69: 1 | J69: 0 | K69: 2 | L69: =IF(INTRO!$E$38="Endémique", IF($H69>0, IF($H69=4,"Inconnu", IF($H69=99,"Interrompu", $D69)), 0),"Non requis") -> Non requis | M69: =IF(INTRO!$E$40="Endémique", IF($I69>0, IF($I69=4,"Inconnu",IF($I69=99,"Interrompu", $D69)), 0),"Non requis") -> 124451 | N69: =IF(INTRO!$E$42="Endémique", IF(AND($J69>1,$J69<5), IF($J69=4, "Inconnu", E69+F69), 0),"Non requis") -> Non requis | O69: 215214 | P69: 0 | Q69: 0 | R69: 0 | S69: 0 | Y69: 30027 | Z69: Sélingué | AB69: =ROUND(_xlfn.XLOOKUP(Y69,[1]Sheet1!$B:$B,[1]Sheet1!$D:$D),0) -> 111192 | AC69: =_xlfn.XLOOKUP($Y69,[1]IU_PROJECTIONS!$F$5:$F$79,[1]IU_PROJECTIONS!G$5:G$79) -> 2 | AH69: =ROUND(_xlfn.XLOOKUP($Y69,[1]IU_PROJECTIONS!$F$5:$F$79,[1]IU_PROJECTIONS!H$5:H$79),0) -> 209317 | AI69: =ROUND(_xlfn.XLOOKUP($Y69,[1]IU_PROJECTIONS!$F$5:$F$79,[1]IU_PROJECTIONS!I$5:I$79),0) -> 5897 | AJ69: =ROUND(_xlfn.XLOOKUP($Y69,[1]IU_PROJECTIONS!$F$5:$F$79,[1]IU_PROJECTIONS!J$5:J$79),0) -> 215214 | AM69: =_xlfn.XLOOKUP(Y69,[2]IU_PROJECTIONS!$F$5:$F$79,[2]IU_PROJECTIONS!$G$5:$G$79) -> 2 | AN69: TRUE | AP69: =_xlfn.XLOOKUP($Y69,[2]IU_PROJECTIONS!$F$5:$F$79,[2]IU_PROJECTIONS!H$5:H$79) -> 209317 | AQ69: =_xlfn.XLOOKUP($Y69,[2]IU_PROJECTIONS!$F$5:$F$79,[2]IU_PROJECTIONS!I$5:I$79) -> 5897 | AR69: =_xlfn.XLOOKUP($Y69,[2]IU_PROJECTIONS!$F$5:$F$79,[2]IU_PROJECTIONS!J$5:J$79) -> 215214
A70: =IF(INTRO!$E$34<>0,INTRO!$E$34,"") -> Mali | B70: Sikasso | C70: Sikasso | D70: 734448 | E70: =IF(INTRO!$E$48="","",ROUND($D70*INTRO!$E$48,0)) -> 102823 | F70: =IF(INTRO!$E$49="","",ROUND($D70*INTRO!$E$49,0)) -> 209318 | G70: =IF(INTRO!$E$50="","",ROUND($D70*INTRO!$E$50,0)) -> 378241 | H70: 99 | I70: 1 | J70: 0 | K70: 1 | L70: =IF(INTRO!$E$38="Endémique", IF($H70>0, IF($H70=4,"Inconnu", IF($H70=99,"Interrompu", $D70)), 0),"Non requis") -> Non requis | M70: =IF(INTRO!$E$40="Endémique", IF($I70>0, IF($I70=4,"Inconnu",IF($I70=99,"Interrompu", $D70)), 0),"Non requis") -> 734448 | N70: =IF(INTRO!$E$42="Endémique", IF(AND($J70>1,$J70<5), IF($J70=4, "Inconnu", E70+F70), 0),"Non requis") -> Non requis | O70: 199743 | P70: 0 | Q70: 0 | R70: 0 | S70: 0 | Y70: 30026 | Z70: Sikasso | AB70: =ROUND(_xlfn.XLOOKUP(Y70,[1]Sheet1!$B:$B,[1]Sheet1!$D:$D),0) -> 667242 | AC70: =_xlfn.XLOOKUP($Y70,[1]IU_PROJECTIONS!$F$5:$F$79,[1]IU_PROJECTIONS!G$5:G$79) -> 1 | AH70: =ROUND(_xlfn.XLOOKUP($Y70,[1]IU_PROJECTIONS!$F$5:$F$79,[1]IU_PROJECTIONS!H$5:H$79),0) -> 199743 | AI70: =ROUND(_xlfn.XLOOKUP($Y70,[1]IU_PROJECTIONS!$F$5:$F$79,[1]IU_PROJECTIONS!I$5:I$79),0) -> 0 | AJ70: =ROUND(_xlfn.XLOOKUP($Y70,[1]IU_PROJECTIONS!$F$5:$F$79,[1]IU_PROJECTIONS!J$5:J$79),0) -> 199743 | AM70: =_xlfn.XLOOKUP(Y70,[2]IU_PROJECTIONS!$F$5:$F$79,[2]IU_PROJECTIONS!$G$5:$G$79) -> 1 | AN70: TRUE | AP70: =_xlfn.XLOOKUP($Y70,[2]IU_PROJECTIONS!$F$5:$F$79,[2]IU_PROJECTIONS!H$5:H$79) -> 199743 | AQ70: =_xlfn.XLOOKUP($Y70,[2]IU_PROJECTIONS!$F$5:$F$79,[2]IU_PROJECTIONS!I$5:I$79) -> 0 | AR70: =_xlfn.XLOOKUP($Y70,[2]IU_PROJECTIONS!$F$5:$F$79,[2]IU_PROJECTIONS!J$5:J$79) -> 199743
A71: =IF(INTRO!$E$34<>0,INTRO!$E$34,"") -> Mali | B71: Sikasso | C71: Yanfolila | D71: 194654 | E71: =IF(INTRO!$E$48="","",ROUND($D71*INTRO!$E$48,0)) -> 27252 | F71: =IF(INTRO!$E$49="","",ROUND($D71*INTRO!$E$49,0)) -> 55476 | G71: =IF(INTRO!$E$50="","",ROUND($D71*INTRO!$E$50,0)) -> 100247 | H71: 99 | I71: 99 | J71: 0 | K71: 1 | L71: =IF(INTRO!$E$38="Endémique", IF($H71>0, IF($H71=4,"Inconnu", IF($H71=99,"Interrompu", $D71)), 0),"Non requis") -> Non requis | M71: =IF(INTRO!$E$40="Endémique", IF($I71>0, IF($I71=4,"Inconnu",IF($I71=99,"Interrompu", $D71)), 0),"Non requis") -> Interrompu | N71: =IF(INTRO!$E$42="Endémique", IF(AND($J71>1,$J71<5), IF($J71=4, "Inconnu", E71+F71), 0),"Non requis") -> Non requis | O71: 12553 | P71: 0 | Q71: 0 | R71: 0 | S71: 1 | U71: T2 (PZQ) | Y71: 30028 | Z71: Yanfolila | AB71: =ROUND(_xlfn.XLOOKUP(Y71,[1]Sheet1!$B:$B,[1]Sheet1!$D:$D),0) -> 193701 | AC71: =_xlfn.XLOOKUP($Y71,[1]IU_PROJECTIONS!$F$5:$F$79,[1]IU_PROJECTIONS!G$5:G$79) -> 1 | AH71: =ROUND(_xlfn.XLOOKUP($Y71,[1]IU_PROJECTIONS!$F$5:$F$79,[1]IU_PROJECTIONS!H$5:H$79),0) -> 12553 | AI71: =ROUND(_xlfn.XLOOKUP($Y71,[1]IU_PROJECTIONS!$F$5:$F$79,[1]IU_PROJECTIONS!I$5:I$79),0) -> 0 | AJ71: =ROUND(_xlfn.XLOOKUP($Y71,[1]IU_PROJECTIONS!$F$5:$F$79,[1]IU_PROJECTIONS!J$5:J$79),0) -> 12553 | AM71: =_xlfn.XLOOKUP(Y71,[2]IU_PROJECTIONS!$F$5:$F$79,[2]IU_PROJECTIONS!$G$5:$G$79) -> 1 | AN71: TRUE | AP71: =_xlfn.XLOOKUP($Y71,[2]IU_PROJECTIONS!$F$5:$F$79,[2]IU_PROJECTIONS!H$5:H$79) -> 12553 | AQ71: =_xlfn.XLOOKUP($Y71,[2]IU_PROJECTIONS!$F$5:$F$79,[2]IU_PROJECTIONS!I$5:I$79) -> 0 | AR71: =_xlfn.XLOOKUP($Y71,[2]IU_PROJECTIONS!$F$5:$F$79,[2]IU_PROJECTIONS!J$5:J$79) -> 12553
A72: =IF(INTRO!$E$34<>0,INTRO!$E$34,"") -> Mali | B72: Sikasso | C72: Yorosso | D72: 318629 | E72: =IF(INTRO!$E$48="","",ROUND($D72*INTRO!$E$48,0)) -> 44608 | F72: =IF(INTRO!$E$49="","",ROUND($D72*INTRO!$E$49,0)) -> 90809 | G72: =IF(INTRO!$E$50="","",ROUND($D72*INTRO!$E$50,0)) -> 164094 | H72: 99 | I72: 0 | J72: 0 | K72: 1 | L72: =IF(INTRO!$E$38="Endémique", IF($H72>0, IF($H72=4,"Inconnu", IF($H72=99,"Interrompu", $D72)), 0),"Non requis") -> Non requis | M72: =IF(INTRO!$E$40="Endémique", IF($I72>0, IF($I72=4,"Inconnu",IF($I72=99,"Interrompu", $D72)), 0),"Non requis") -> 0 | N72: =IF(INTRO!$E$42="Endémique", IF(AND($J72>1,$J72<5), IF($J72=4, "Inconnu", E72+F72), 0),"Non requis") -> Non requis | O72: 11928 | P72: 0 | Q72: 0 | R72: 0 | S72: 1 | U72: T2 (PZQ) | Y72: 30029 | Z72: Yorosso | AB72: =ROUND(_xlfn.XLOOKUP(Y72,[1]Sheet1!$B:$B,[1]Sheet1!$D:$D),0) -> 328085 | AC72: =_xlfn.XLOOKUP($Y72,[1]IU_PROJECTIONS!$F$5:$F$79,[1]IU_PROJECTIONS!G$5:G$79) -> 1 | AH72: =ROUND(_xlfn.XLOOKUP($Y72,[1]IU_PROJECTIONS!$F$5:$F$79,[1]IU_PROJECTIONS!H$5:H$79),0) -> 11928 | AI72: =ROUND(_xlfn.XLOOKUP($Y72,[1]IU_PROJECTIONS!$F$5:$F$79,[1]IU_PROJECTIONS!I$5:I$79),0) -> 0 | AJ72: =ROUND(_xlfn.XLOOKUP($Y72,[1]IU_PROJECTIONS!$F$5:$F$79,[1]IU_PROJECTIONS!J$5:J$79),0) -> 11928 | AM72: =_xlfn.XLOOKUP(Y72,[2]IU_PROJECTIONS!$F$5:$F$79,[2]IU_PROJECTIONS!$G$5:$G$79) -> 1 | AN72: TRUE | AP72: =_xlfn.XLOOKUP($Y72,[2]IU_PROJECTIONS!$F$5:$F$79,[2]IU_PROJECTIONS!H$5:H$79) -> 11928 | AQ72: =_xlfn.XLOOKUP($Y72,[2]IU_PROJECTIONS!$F$5:$F$79,[2]IU_PROJECTIONS!I$5:I$79) -> 0 | AR72: =_xlfn.XLOOKUP($Y72,[2]IU_PROJECTIONS!$F$5:$F$79,[2]IU_PROJECTIONS!J$5:J$79) -> 11928
A73: =IF(INTRO!$E$34<>0,INTRO!$E$34,"") -> Mali | B73: Tombouctou | C73: Diré | D73: 164983 | E73: =IF(INTRO!$E$48="","",ROUND($D73*INTRO!$E$48,0)) -> 23098 | F73: =IF(INTRO!$E$49="","",ROUND($D73*INTRO!$E$49,0)) -> 47020 | G73: =IF(INTRO!$E$50="","",ROUND($D73*INTRO!$E$50,0)) -> 84966 | H73: 99 | I73: 0 | J73: 0 | K73: 3 | L73: =IF(INTRO!$E$38="Endémique", IF($H73>0, IF($H73=4,"Inconnu", IF($H73=99,"Interrompu", $D73)), 0),"Non requis") -> Non requis | M73: =IF(INTRO!$E$40="Endémique", IF($I73>0, IF($I73=4,"Inconnu",IF($I73=99,"Interrompu", $D73)), 0),"Non requis") -> 0 | N73: =IF(INTRO!$E$42="Endémique", IF(AND($J73>1,$J73<5), IF($J73=4, "Inconnu", E73+F73), 0),"Non requis") -> Non requis | O73: 131159 | P73: 0 | Q73: 0 | R73: 0 | S73: 1 | U73: T2 (PZQ) | Y73: 30030 | Z73: Diré | AB73: =ROUND(_xlfn.XLOOKUP(Y73,[1]Sheet1!$B:$B,[1]Sheet1!$D:$D),0) -> 158247 | AC73: =_xlfn.XLOOKUP($Y73,[1]IU_PROJECTIONS!$F$5:$F$79,[1]IU_PROJECTIONS!G$5:G$79) -> 3 | AH73: =ROUND(_xlfn.XLOOKUP($Y73,[1]IU_PROJECTIONS!$F$5:$F$79,[1]IU_PROJECTIONS!H$5:H$79),0) -> 90807 | AI73: =ROUND(_xlfn.XLOOKUP($Y73,[1]IU_PROJECTIONS!$F$5:$F$79,[1]IU_PROJECTIONS!I$5:I$79),0) -> 40352 | AJ73: =ROUND(_xlfn.XLOOKUP($Y73,[1]IU_PROJECTIONS!$F$5:$F$79,[1]IU_PROJECTIONS!J$5:J$79),0) -> 131159 | AM73: =_xlfn.XLOOKUP(Y73,[2]IU_PROJECTIONS!$F$5:$F$79,[2]IU_PROJECTIONS!$G$5:$G$79) -> 3 | AN73: TRUE | AP73: =_xlfn.XLOOKUP($Y73,[2]IU_PROJECTIONS!$F$5:$F$79,[2]IU_PROJECTIONS!H$5:H$79) -> 90807 | AQ73: =_xlfn.XLOOKUP($Y73,[2]IU_PROJECTIONS!$F$5:$F$79,[2]IU_PROJECTIONS!I$5:I$79) -> 40352 | AR73: =_xlfn.XLOOKUP($Y73,[2]IU_PROJECTIONS!$F$5:$F$79,[2]IU_PROJECTIONS!J$5:J$79) -> 131159
A74: =IF(INTRO!$E$34<>0,INTRO!$E$34,"") -> Mali | B74: Tombouctou | C74: Goundam | D74: 222523 | E74: =IF(INTRO!$E$48="","",ROUND($D74*INTRO!$E$48,0)) -> 31153 | F74: =IF(INTRO!$E$49="","",ROUND($D74*INTRO!$E$49,0)) -> 63419 | G74: =IF(INTRO!$E$50="","",ROUND($D74*INTRO!$E$50,0)) -> 114599 | H74: 99 | I74: 0 | J74: 0 | K74: 2 | L74: =IF(INTRO!$E$38="Endémique", IF($H74>0, IF($H74=4,"Inconnu", IF($H74=99,"Interrompu", $D74)), 0),"Non requis") -> Non requis | M74: =IF(INTRO!$E$40="Endémique", IF($I74>0, IF($I74=4,"Inconnu",IF($I74=99,"Interrompu", $D74)), 0),"Non requis") -> 0 | N74: =IF(INTRO!$E$42="Endémique", IF(AND($J74>1,$J74<5), IF($J74=4, "Inconnu", E74+F74), 0),"Non requis") -> Non requis | O74: 84738 | P74: 0 | Q74: 0 | R74: 0 | S74: 0 | Y74: 30031 | Z74: Goundam | AB74: =ROUND(_xlfn.XLOOKUP(Y74,[1]Sheet1!$B:$B,[1]Sheet1!$D:$D),0) -> 147931 | AC74: =_xlfn.XLOOKUP($Y74,[1]IU_PROJECTIONS!$F$5:$F$79,[1]IU_PROJECTIONS!G$5:G$79) -> 2 | AH74: =ROUND(_xlfn.XLOOKUP($Y74,[1]IU_PROJECTIONS!$F$5:$F$79,[1]IU_PROJECTIONS!H$5:H$79),0) -> 63419 | AI74: =ROUND(_xlfn.XLOOKUP($Y74,[1]IU_PROJECTIONS!$F$5:$F$79,[1]IU_PROJECTIONS!I$5:I$79),0) -> 21319 | AJ74: =ROUND(_xlfn.XLOOKUP($Y74,[1]IU_PROJECTIONS!$F$5:$F$79,[1]IU_PROJECTIONS!J$5:J$79),0) -> 84738 | AM74: =_xlfn.XLOOKUP(Y74,[2]IU_PROJECTIONS!$F$5:$F$79,[2]IU_PROJECTIONS!$G$5:$G$79) -> 2 | AN74: =AM74=K74 -> TRUE | AP74: =_xlfn.XLOOKUP($Y74,[2]IU_PROJECTIONS!$F$5:$F$79,[2]IU_PROJECTIONS!H$5:H$79) -> 63419 | AQ74: =_xlfn.XLOOKUP($Y74,[2]IU_PROJECTIONS!$F$5:$F$79,[2]IU_PROJECTIONS!I$5:I$79) -> 21319 | AR74: =_xlfn.XLOOKUP($Y74,[2]IU_PROJECTIONS!$F$5:$F$79,[2]IU_PROJECTIONS!J$5:J$79) -> 84738
A75: =IF(INTRO!$E$34<>0,INTRO!$E$34,"") -> Mali | B75: Tombouctou | C75: Gourma-Rharous | D75: 165075 | E75: =IF(INTRO!$E$48="","",ROUND($D75*INTRO!$E$48,0)) -> 23111 | F75: =IF(INTRO!$E$49="","",ROUND($D75*INTRO!$E$49,0)) -> 47046 | G75: =IF(INTRO!$E$50="","",ROUND($D75*INTRO!$E$50,0)) -> 85014 | H75: 99 | I75: 0 | J75: 0 | K75: 3 | L75: =IF(INTRO!$E$38="Endémique", IF($H75>0, IF($H75=4,"Inconnu", IF($H75=99,"Interrompu", $D75)), 0),"Non requis") -> Non requis | M75: =IF(INTRO!$E$40="Endémique", IF($I75>0, IF($I75=4,"Inconnu",IF($I75=99,"Interrompu", $D75)), 0),"Non requis") -> 0 | N75: =IF(INTRO!$E$42="Endémique", IF(AND($J75>1,$J75<5), IF($J75=4, "Inconnu", E75+F75), 0),"Non requis") -> Non requis | O75: 123731 | P75: 0 | Q75: 0 | R75: 0 | S75: 1 | U75: T2 (PZQ) | Y75: 30032 | Z75: GourmA-Rharous | AB75: =ROUND(_xlfn.XLOOKUP(Y75,[1]Sheet1!$B:$B,[1]Sheet1!$D:$D),0) -> 140674 | AC75: =_xlfn.XLOOKUP($Y75,[1]IU_PROJECTIONS!$F$5:$F$79,[1]IU_PROJECTIONS!G$5:G$79) -> 3 | AH75: =ROUND(_xlfn.XLOOKUP($Y75,[1]IU_PROJECTIONS!$F$5:$F$79,[1]IU_PROJECTIONS!H$5:H$79),0) -> 47047 | AI75: =ROUND(_xlfn.XLOOKUP($Y75,[1]IU_PROJECTIONS!$F$5:$F$79,[1]IU_PROJECTIONS!I$5:I$79),0) -> 76684 | AJ75: =ROUND(_xlfn.XLOOKUP($Y75,[1]IU_PROJECTIONS!$F$5:$F$79,[1]IU_PROJECTIONS!J$5:J$79),0) -> 123731 | AM75: =_xlfn.XLOOKUP(Y75,[2]IU_PROJECTIONS!$F$5:$F$79,[2]IU_PROJECTIONS!$G$5:$G$79) -> 3 | AN75: TRUE | AP75: =_xlfn.XLOOKUP($Y75,[2]IU_PROJECTIONS!$F$5:$F$79,[2]IU_PROJECTIONS!H$5:H$79) -> 47047 | AQ75: =_xlfn.XLOOKUP($Y75,[2]IU_PROJECTIONS!$F$5:$F$79,[2]IU_PROJECTIONS!I$5:I$79) -> 76684 | AR75: =_xlfn.XLOOKUP($Y75,[2]IU_PROJECTIONS!$F$5:$F$79,[2]IU_PROJECTIONS!J$5:J$79) -> 123731
A76: =IF(INTRO!$E$34<>0,INTRO!$E$34,"") -> Mali | B76: Tombouctou | C76: Niafunké | D76: 273112 | E76: =IF(INTRO!$E$48="","",ROUND($D76*INTRO!$E$48,0)) -> 38236 | F76: =IF(INTRO!$E$49="","",ROUND($D76*INTRO!$E$49,0)) -> 77837 | G76: =IF(INTRO!$E$50="","",ROUND($D76*INTRO!$E$50,0)) -> 140653 | H76: 99 | I76: 0 | J76: 0 | K76: 3 | L76: =IF(INTRO!$E$38="Endémique", IF($H76>0, IF($H76=4,"Inconnu", IF($H76=99,"Interrompu", $D76)), 0),"Non requis") -> Non requis | M76: =IF(INTRO!$E$40="Endémique", IF($I76>0, IF($I76=4,"Inconnu",IF($I76=99,"Interrompu", $D76)), 0),"Non requis") -> 0 | N76: =IF(INTRO!$E$42="Endémique", IF(AND($J76>1,$J76<5), IF($J76=4, "Inconnu", E76+F76), 0),"Non requis") -> Non requis | O76: 117001 | P76: 0 | Q76: 0 | R76: 0 | S76: 1 | U76: T2 (PZQ) | Y76: 30033 | Z76: Niafunké | AB76: =ROUND(_xlfn.XLOOKUP(Y76,[1]Sheet1!$B:$B,[1]Sheet1!$D:$D),0) -> 251087 | AC76: =_xlfn.XLOOKUP($Y76,[1]IU_PROJECTIONS!$F$5:$F$79,[1]IU_PROJECTIONS!G$5:G$79) -> 3 | AH76: =ROUND(_xlfn.XLOOKUP($Y76,[1]IU_PROJECTIONS!$F$5:$F$79,[1]IU_PROJECTIONS!H$5:H$79),0) -> 77837 | AI76: =ROUND(_xlfn.XLOOKUP($Y76,[1]IU_PROJECTIONS!$F$5:$F$79,[1]IU_PROJECTIONS!I$5:I$79),0) -> 39164 | AJ76: =ROUND(_xlfn.XLOOKUP($Y76,[1]IU_PROJECTIONS!$F$5:$F$79,[1]IU_PROJECTIONS!J$5:J$79),0) -> 117001 | AM76: =_xlfn.XLOOKUP(Y76,[2]IU_PROJECTIONS!$F$5:$F$79,[2]IU_PROJECTIONS!$G$5:$G$79) -> 3 | AN76: TRUE | AP76: =_xlfn.XLOOKUP($Y76,[2]IU_PROJECTIONS!$F$5:$F$79,[2]IU_PROJECTIONS!H$5:H$79) -> 77837 | AQ76: =_xlfn.XLOOKUP($Y76,[2]IU_PROJECTIONS!$F$5:$F$79,[2]IU_PROJECTIONS!I$5:I$79) -> 39164 | AR76: =_xlfn.XLOOKUP($Y76,[2]IU_PROJECTIONS!$F$5:$F$79,[2]IU_PROJECTIONS!J$5:J$79) -> 117001
A77: =IF(INTRO!$E$34<>0,INTRO!$E$34,"") -> Mali | B77: Tombouctou | C77: Tombouctou | D77: 184578 | E77: =IF(INTRO!$E$48="","",ROUND($D77*INTRO!$E$48,0)) -> 25841 | F77: =IF(INTRO!$E$49="","",ROUND($D77*INTRO!$E$49,0)) -> 52605 | G77: =IF(INTRO!$E$50="","",ROUND($D77*INTRO!$E$50,0)) -> 95058 | H77: 99 | I77: 0 | J77: 0 | K77: 2 | L77: =IF(INTRO!$E$38="Endémique", IF($H77>0, IF($H77=4,"Inconnu", IF($H77=99,"Interrompu", $D77)), 0),"Non requis") -> Non requis | M77: =IF(INTRO!$E$40="Endémique", IF($I77>0, IF($I77=4,"Inconnu",IF($I77=99,"Interrompu", $D77)), 0),"Non requis") -> 0 | N77: =IF(INTRO!$E$42="Endémique", IF(AND($J77>1,$J77<5), IF($J77=4, "Inconnu", E77+F77), 0),"Non requis") -> Non requis | O77: 59256 | P77: 0 | Q77: 0 | R77: 0 | S77: 1 | U77: T2 (PZQ) | Y77: 30034 | Z77: Tombouctou | AB77: =ROUND(_xlfn.XLOOKUP(Y77,[1]Sheet1!$B:$B,[1]Sheet1!$D:$D),0) -> 178587 | AC77: =_xlfn.XLOOKUP($Y77,[1]IU_PROJECTIONS!$F$5:$F$79,[1]IU_PROJECTIONS!G$5:G$79) -> 2 | AH77: =ROUND(_xlfn.XLOOKUP($Y77,[1]IU_PROJECTIONS!$F$5:$F$79,[1]IU_PROJECTIONS!H$5:H$79),0) -> 58877 | AI77: =ROUND(_xlfn.XLOOKUP($Y77,[1]IU_PROJECTIONS!$F$5:$F$79,[1]IU_PROJECTIONS!I$5:I$79),0) -> 379 | AJ77: =ROUND(_xlfn.XLOOKUP($Y77,[1]IU_PROJECTIONS!$F$5:$F$79,[1]IU_PROJECTIONS!J$5:J$79),0) -> 59256 | AM77: =_xlfn.XLOOKUP(Y77,[2]IU_PROJECTIONS!$F$5:$F$79,[2]IU_PROJECTIONS!$G$5:$G$79) -> 2 | AN77: TRUE | AP77: =_xlfn.XLOOKUP($Y77,[2]IU_PROJECTIONS!$F$5:$F$79,[2]IU_PROJECTIONS!H$5:H$79) -> 58877 | AQ77: =_xlfn.XLOOKUP($Y77,[2]IU_PROJECTIONS!$F$5:$F$79,[2]IU_PROJECTIONS!I$5:I$79) -> 379 | AR77: =_xlfn.XLOOKUP($Y77,[2]IU_PROJECTIONS!$F$5:$F$79,[2]IU_PROJECTIONS!J$5:J$79) -> 59256
A78: =IF(INTRO!$E$34<>0,INTRO!$E$34,"") -> Mali | B78: Taoudenit | C78: Achourat | D78: 34213 | E78: =IF(INTRO!$E$48="","",ROUND($D78*INTRO!$E$48,0)) -> 4790 | F78: =IF(INTRO!$E$49="","",ROUND($D78*INTRO!$E$49,0)) -> 9751 | G78: =IF(INTRO!$E$50="","",ROUND($D78*INTRO!$E$50,0)) -> 17620 | H78: 99 | I78: 0 | J78: 0 | K78: 1 | L78: =IF(INTRO!$E$38="Endémique", IF($H78>0, IF($H78=4,"Inconnu", IF($H78=99,"Interrompu", $D78)), 0),"Non requis") -> Non requis | M78: =IF(INTRO!$E$40="Endémique", IF($I78>0, IF($I78=4,"Inconnu",IF($I78=99,"Interrompu", $D78)), 0),"Non requis") -> 0 | N78: =IF(INTRO!$E$42="Endémique", IF(AND($J78>1,$J78<5), IF($J78=4, "Inconnu", E78+F78), 0),"Non requis") -> Non requis | O78: 52605 | P78: 0 | Q78: 0 | R78: 0 | S78: 1 | U78: T2 (PZQ) | Y78: 30041 | Z78: Achourat | AB78: =ROUND(_xlfn.XLOOKUP(Y78,[1]Sheet1!$B:$B,[1]Sheet1!$D:$D),0) -> 32352 | AC78: =_xlfn.XLOOKUP($Y78,[1]IU_PROJECTIONS!$F$5:$F$79,[1]IU_PROJECTIONS!G$5:G$79) -> 1 | AH78: =ROUND(_xlfn.XLOOKUP($Y78,[1]IU_PROJECTIONS!$F$5:$F$79,[1]IU_PROJECTIONS!H$5:H$79),0) -> 52605 | AI78: =ROUND(_xlfn.XLOOKUP($Y78,[1]IU_PROJECTIONS!$F$5:$F$79,[1]IU_PROJECTIONS!I$5:I$79),0) -> 0 | AJ78: =ROUND(_xlfn.XLOOKUP($Y78,[1]IU_PROJECTIONS!$F$5:$F$79,[1]IU_PROJECTIONS!J$5:J$79),0) -> 52605 | AM78: =_xlfn.XLOOKUP(Y78,[2]IU_PROJECTIONS!$F$5:$F$79,[2]IU_PROJECTIONS!$G$5:$G$79) -> 1 | AN78: TRUE | AP78: =_xlfn.XLOOKUP($Y78,[2]IU_PROJECTIONS!$F$5:$F$79,[2]IU_PROJECTIONS!H$5:H$79) -> 52605 | AQ78: =_xlfn.XLOOKUP($Y78,[2]IU_PROJECTIONS!$F$5:$F$79,[2]IU_PROJECTIONS!I$5:I$79) -> 0 | AR78: =_xlfn.XLOOKUP($Y78,[2]IU_PROJECTIONS!$F$5:$F$79,[2]IU_PROJECTIONS!J$5:J$79) -> 52605
A79: =IF(INTRO!$E$34<>0,INTRO!$E$34,"") -> Mali | B79: Taoudenit | C79: Al-Ourch | D79: 56572 | E79: =IF(INTRO!$E$48="","",ROUND($D79*INTRO!$E$48,0)) -> 7920 | F79: =IF(INTRO!$E$49="","",ROUND($D79*INTRO!$E$49,0)) -> 16123 | G79: =IF(INTRO!$E$50="","",ROUND($D79*INTRO!$E$50,0)) -> 29135 | H79: 99 | I79: 0 | J79: 0 | K79: 1 | L79: =IF(INTRO!$E$38="Endémique", IF($H79>0, IF($H79=4,"Inconnu", IF($H79=99,"Interrompu", $D79)), 0),"Non requis") -> Non requis | M79: =IF(INTRO!$E$40="Endémique", IF($I79>0, IF($I79=4,"Inconnu",IF($I79=99,"Interrompu", $D79)), 0),"Non requis") -> 0 | N79: =IF(INTRO!$E$42="Endémique", IF(AND($J79>1,$J79<5), IF($J79=4, "Inconnu", E79+F79), 0),"Non requis") -> Non requis | O79: 52604 | P79: 0 | Q79: 0 | R79: 0 | S79: 1 | U79: T2 (PZQ) | Y79: 30042 | Z79: AL-Ourch | AB79: =ROUND(_xlfn.XLOOKUP(Y79,[1]Sheet1!$B:$B,[1]Sheet1!$D:$D),0) -> 53498 | AC79: =_xlfn.XLOOKUP($Y79,[1]IU_PROJECTIONS!$F$5:$F$79,[1]IU_PROJECTIONS!G$5:G$79) -> 1 | AH79: =ROUND(_xlfn.XLOOKUP($Y79,[1]IU_PROJECTIONS!$F$5:$F$79,[1]IU_PROJECTIONS!H$5:H$79),0) -> 52604 | AI79: =ROUND(_xlfn.XLOOKUP($Y79,[1]IU_PROJECTIONS!$F$5:$F$79,[1]IU_PROJECTIONS!I$5:I$79),0) -> 0 | AJ79: =ROUND(_xlfn.XLOOKUP($Y79,[1]IU_PROJECTIONS!$F$5:$F$79,[1]IU_PROJECTIONS!J$5:J$79),0) -> 52604 | AM79: =_xlfn.XLOOKUP(Y79,[2]IU_PROJECTIONS!$F$5:$F$79,[2]IU_PROJECTIONS!$G$5:$G$79) -> 1 | AN79: TRUE | AP79: =_xlfn.XLOOKUP($Y79,[2]IU_PROJECTIONS!$F$5:$F$79,[2]IU_PROJECTIONS!H$5:H$79) -> 52604 | AQ79: =_xlfn.XLOOKUP($Y79,[2]IU_PROJECTIONS!$F$5:$F$79,[2]IU_PROJECTIONS!I$5:I$79) -> 0 | AR79: =_xlfn.XLOOKUP($Y79,[2]IU_PROJECTIONS!$F$5:$F$79,[2]IU_PROJECTIONS!J$5:J$79) -> 52604
A80: =IF(INTRO!$E$34<>0,INTRO!$E$34,"") -> Mali | B80: Taoudenit | C80: Araouane | D80: 31453 | E80: =IF(INTRO!$E$48="","",ROUND($D80*INTRO!$E$48,0)) -> 4403 | F80: =IF(INTRO!$E$49="","",ROUND($D80*INTRO!$E$49,0)) -> 8964 | G80: =IF(INTRO!$E$50="","",ROUND($D80*INTRO!$E$50,0)) -> 16198 | H80: 99 | I80: 0 | J80: 0 | K80: 1 | L80: =IF(INTRO!$E$38="Endémique", IF($H80>0, IF($H80=4,"Inconnu", IF($H80=99,"Interrompu", $D80)), 0),"Non requis") -> Non requis | M80: =IF(INTRO!$E$40="Endémique", IF($I80>0, IF($I80=4,"Inconnu",IF($I80=99,"Interrompu", $D80)), 0),"Non requis") -> 0 | N80: =IF(INTRO!$E$42="Endémique", IF(AND($J80>1,$J80<5), IF($J80=4, "Inconnu", E80+F80), 0),"Non requis") -> Non requis | O80: 52605 | P80: 0 | Q80: 0 | R80: 0 | S80: 1 | U80: T2 (PZQ) | Y80: 30043 | Z80: Araouane | AB80: =ROUND(_xlfn.XLOOKUP(Y80,[1]Sheet1!$B:$B,[1]Sheet1!$D:$D),0) -> 24269 | AC80: =_xlfn.XLOOKUP($Y80,[1]IU_PROJECTIONS!$F$5:$F$79,[1]IU_PROJECTIONS!G$5:G$79) -> 1 | AH80: =ROUND(_xlfn.XLOOKUP($Y80,[1]IU_PROJECTIONS!$F$5:$F$79,[1]IU_PROJECTIONS!H$5:H$79),0) -> 52605 | AI80: =ROUND(_xlfn.XLOOKUP($Y80,[1]IU_PROJECTIONS!$F$5:$F$79,[1]IU_PROJECTIONS!I$5:I$79),0) -> 0 | AJ80: =ROUND(_xlfn.XLOOKUP($Y80,[1]IU_PROJECTIONS!$F$5:$F$79,[1]IU_PROJECTIONS!J$5:J$79),0) -> 52605 | AM80: =_xlfn.XLOOKUP(Y80,[2]IU_PROJECTIONS!$F$5:$F$79,[2]IU_PROJECTIONS!$G$5:$G$79) -> 1 | AN80: TRUE | AP80: =_xlfn.XLOOKUP($Y80,[2]IU_PROJECTIONS!$F$5:$F$79,[2]IU_PROJECTIONS!H$5:H$79) -> 52605 | AQ80: =_xlfn.XLOOKUP($Y80,[2]IU_PROJECTIONS!$F$5:$F$79,[2]IU_PROJECTIONS!I$5:I$79) -> 0 | AR80: =_xlfn.XLOOKUP($Y80,[2]IU_PROJECTIONS!$F$5:$F$79,[2]IU_PROJECTIONS!J$5:J$79) -> 52605
A81: =IF(INTRO!$E$34<>0,INTRO!$E$34,"") -> Mali | B81: Taoudenit | C81: Boujbeha | D81: 35409 | E81: =IF(INTRO!$E$48="","",ROUND($D81*INTRO!$E$48,0)) -> 4957 | F81: =IF(INTRO!$E$49="","",ROUND($D81*INTRO!$E$49,0)) -> 10092 | G81: =IF(INTRO!$E$50="","",ROUND($D81*INTRO!$E$50,0)) -> 18236 | H81: 99 | I81: 0 | J81: 0 | K81: 1 | L81: =IF(INTRO!$E$38="Endémique", IF($H81>0, IF($H81=4,"Inconnu", IF($H81=99,"Interrompu", $D81)), 0),"Non requis") -> Non requis | M81: =IF(INTRO!$E$40="Endémique", IF($I81>0, IF($I81=4,"Inconnu",IF($I81=99,"Interrompu", $D81)), 0),"Non requis") -> 0 | N81: =IF(INTRO!$E$42="Endémique", IF(AND($J81>1,$J81<5), IF($J81=4, "Inconnu", E81+F81), 0),"Non requis") -> Non requis | O81: 41330 | P81: 0 | Q81: 0 | R81: 0 | S81: 1 | U81: T2 (PZQ) | Y81: 30044 | Z81: Boujbeha | AB81: =ROUND(_xlfn.XLOOKUP(Y81,[1]Sheet1!$B:$B,[1]Sheet1!$D:$D),0) -> 29616 | AC81: =_xlfn.XLOOKUP($Y81,[1]IU_PROJECTIONS!$F$5:$F$79,[1]IU_PROJECTIONS!G$5:G$79) -> 1 | AH81: =ROUND(_xlfn.XLOOKUP($Y81,[1]IU_PROJECTIONS!$F$5:$F$79,[1]IU_PROJECTIONS!H$5:H$79),0) -> 41330 | AI81: =ROUND(_xlfn.XLOOKUP($Y81,[1]IU_PROJECTIONS!$F$5:$F$79,[1]IU_PROJECTIONS!I$5:I$79),0) -> 0 | AJ81: =ROUND(_xlfn.XLOOKUP($Y81,[1]IU_PROJECTIONS!$F$5:$F$79,[1]IU_PROJECTIONS!J$5:J$79),0) -> 41330 | AM81: =_xlfn.XLOOKUP(Y81,[2]IU_PROJECTIONS!$F$5:$F$79,[2]IU_PROJECTIONS!$G$5:$G$79) -> 1 | AN81: TRUE | AP81: =_xlfn.XLOOKUP($Y81,[2]IU_PROJECTIONS!$F$5:$F$79,[2]IU_PROJECTIONS!H$5:H$79) -> 41330 | AQ81: =_xlfn.XLOOKUP($Y81,[2]IU_PROJECTIONS!$F$5:$F$79,[2]IU_PROJECTIONS!I$5:I$79) -> 0 | AR81: =_xlfn.XLOOKUP($Y81,[2]IU_PROJECTIONS!$F$5:$F$79,[2]IU_PROJECTIONS!J$5:J$79) -> 41330
A82: =IF(INTRO!$E$34<>0,INTRO!$E$34,"") -> Mali | B82: Taoudenit | C82: Foum-Elba | D82: 18531 | E82: =IF(INTRO!$E$48="","",ROUND($D82*INTRO!$E$48,0)) -> 2594 | F82: =IF(INTRO!$E$49="","",ROUND($D82*INTRO!$E$49,0)) -> 5281 | G82: =IF(INTRO!$E$50="","",ROUND($D82*INTRO!$E$50,0)) -> 9543 | H82: 99 | I82: 0 | J82: 0 | K82: 1 | L82: =IF(INTRO!$E$38="Endémique", IF($H82>0, IF($H82=4,"Inconnu", IF($H82=99,"Interrompu", $D82)), 0),"Non requis") -> Non requis | M82: =IF(INTRO!$E$40="Endémique", IF($I82>0, IF($I82=4,"Inconnu",IF($I82=99,"Interrompu", $D82)), 0),"Non requis") -> 0 | N82: =IF(INTRO!$E$42="Endémique", IF(AND($J82>1,$J82<5), IF($J82=4, "Inconnu", E82+F82), 0),"Non requis") -> Non requis | O82: 52605 | P82: 0 | Q82: 0 | R82: 0 | S82: 1 | U82: T2 (PZQ) | Y82: 30045 | Z82: FouM-Elba | AB82: =ROUND(_xlfn.XLOOKUP(Y82,[1]Sheet1!$B:$B,[1]Sheet1!$D:$D),0) -> 17523 | AC82: =_xlfn.XLOOKUP($Y82,[1]IU_PROJECTIONS!$F$5:$F$79,[1]IU_PROJECTIONS!G$5:G$79) -> 1 | AH82: =ROUND(_xlfn.XLOOKUP($Y82,[1]IU_PROJECTIONS!$F$5:$F$79,[1]IU_PROJECTIONS!H$5:H$79),0) -> 52605 | AI82: =ROUND(_xlfn.XLOOKUP($Y82,[1]IU_PROJECTIONS!$F$5:$F$79,[1]IU_PROJECTIONS!I$5:I$79),0) -> 0 | AJ82: =ROUND(_xlfn.XLOOKUP($Y82,[1]IU_PROJECTIONS!$F$5:$F$79,[1]IU_PROJECTIONS!J$5:J$79),0) -> 52605 | AM82: =_xlfn.XLOOKUP(Y82,[2]IU_PROJECTIONS!$F$5:$F$79,[2]IU_PROJECTIONS!$G$5:$G$79) -> 1 | AN82: TRUE | AP82: =_xlfn.XLOOKUP($Y82,[2]IU_PROJECTIONS!$F$5:$F$79,[2]IU_PROJECTIONS!H$5:H$79) -> 52605 | AQ82: =_xlfn.XLOOKUP($Y82,[2]IU_PROJECTIONS!$F$5:$F$79,[2]IU_PROJECTIONS!I$5:I$79) -> 0 | AR82: =_xlfn.XLOOKUP($Y82,[2]IU_PROJECTIONS!$F$5:$F$79,[2]IU_PROJECTIONS!J$5:J$79) -> 52605
A83: =IF(INTRO!$E$34<>0,INTRO!$E$34,"") -> Mali | B83: Taoudenit | C83: Taoudenit | D83: 26552 | E83: =IF(INTRO!$E$48="","",ROUND($D83*INTRO!$E$48,0)) -> 3717 | F83: =IF(INTRO!$E$49="","",ROUND($D83*INTRO!$E$49,0)) -> 7567 | G83: =IF(INTRO!$E$50="","",ROUND($D83*INTRO!$E$50,0)) -> 13674 | H83: 99 | I83: 0 | J83: 0 | K83: 1 | L83: =IF(INTRO!$E$38="Endémique", IF($H83>0, IF($H83=4,"Inconnu", IF($H83=99,"Interrompu", $D83)), 0),"Non requis") -> Non requis | M83: =IF(INTRO!$E$40="Endémique", IF($I83>0, IF($I83=4,"Inconnu",IF($I83=99,"Interrompu", $D83)), 0),"Non requis") -> 0 | N83: =IF(INTRO!$E$42="Endémique", IF(AND($J83>1,$J83<5), IF($J83=4, "Inconnu", E83+F83), 0),"Non requis") -> Non requis | O83: 52604 | P83: 0 | Q83: 0 | R83: 0 | S83: 1 | U83: T2 (PZQ) | Y83: 30046 | Z83: Taoudenit | AB83: =ROUND(_xlfn.XLOOKUP(Y83,[1]Sheet1!$B:$B,[1]Sheet1!$D:$D),0) -> 25109 | AC83: =_xlfn.XLOOKUP($Y83,[1]IU_PROJECTIONS!$F$5:$F$79,[1]IU_PROJECTIONS!G$5:G$79) -> 1 | AH83: =ROUND(_xlfn.XLOOKUP($Y83,[1]IU_PROJECTIONS!$F$5:$F$79,[1]IU_PROJECTIONS!H$5:H$79),0) -> 52604 | AI83: =ROUND(_xlfn.XLOOKUP($Y83,[1]IU_PROJECTIONS!$F$5:$F$79,[1]IU_PROJECTIONS!I$5:I$79),0) -> 0 | AJ83: =ROUND(_xlfn.XLOOKUP($Y83,[1]IU_PROJECTIONS!$F$5:$F$79,[1]IU_PROJECTIONS!J$5:J$79),0) -> 52604 | AM83: =_xlfn.XLOOKUP(Y83,[2]IU_PROJECTIONS!$F$5:$F$79,[2]IU_PROJECTIONS!$G$5:$G$79) -> 1 | AN83: TRUE | AP83: =_xlfn.XLOOKUP($Y83,[2]IU_PROJECTIONS!$F$5:$F$79,[2]IU_PROJECTIONS!H$5:H$79) -> 52604 | AQ83: =_xlfn.XLOOKUP($Y83,[2]IU_PROJECTIONS!$F$5:$F$79,[2]IU_PROJECTIONS!I$5:I$79) -> 0 | AR83: =_xlfn.XLOOKUP($Y83,[2]IU_PROJECTIONS!$F$5:$F$79,[2]IU_PROJECTIONS!J$5:J$79) -> 52604

Sheet MDA1 (hidden)
A1: MDA 1 - Ivermectine (IVM) et Albendazole (ALB)
A2: Structure administrative, population nécessitant une chimioprévention par groupe d'âge, population traitée par groupe d'âge et couverture
A4: TOTAL | G4: =SUM(G$9:G$1000) -> 0 | H4: =SUM(H$9:H$1000) -> 0 | I4: =SUM(I$9:I$1000) -> 0 | K4: =SUM(K$9:K$1000) -> 0 | L4: =SUM(L$9:L$1000) -> 0 | M4: =SUM(M$9:M$1000) -> 0 | O4: =IF(G4<>0, IF(K4/G4*100=0, "-", K4/G4*100), " ") ->  | P4: =IF(H4<>0, IF(L4/H4*100=0, "-", L4/H4*100), " ") ->  | Q4: =IF(I4<>0, IF(M4/I4*100=0, "-", M4/I4*100), " ") -> 
A6: Structure administrative du pays | D6: Mise en oeuvre de la CP | E6: Date | F6: Population ciblée pour MDA 1 | J6: Population traitée | N6: Couverture du Programme (%)
A7: Pays | B7: Région/Département | C7: District | F7: EAPréS | G7: EAS | H7: Adultes | I7: Total | J7: EAPréS | K7: EAS | L7: Adultes | M7: Total | N7: EAPréS | O7: EAS | P7: Adultes | Q7: Total
A9: =IF(COUNTRY_INFO!A9=0," ",COUNTRY_INFO!A9) -> Mali | B9: =IF(COUNTRY_INFO!B9=0," ",COUNTRY_INFO!B9) -> Bamako | C9: =IF(COUNTRY_INFO!C9=0," ",COUNTRY_INFO!C9) -> Commune 1 | D9: =IF(COUNTRY_INFO!$T$9:$T$1000="MDA1 (IVM+ALB)", COUNTRY_INFO!$T$9:$T$1000, " ") ->  | I9: =SUM(F9:H9) -> 0 | M9: =SUM(J9:L9) -> 0 | O9: =IF(G9<>0, IF(K9/G9*100=0, "-", K9/G9*100), " ") ->  | P9: =IF(H9<>0, IF(L9/H9*100=0, "-", L9/H9*100), " ") -> 
A10: =IF(COUNTRY_INFO!A10=0," ",COUNTRY_INFO!A10) -> Mali | B10: =IF(COUNTRY_INFO!B10=0," ",COUNTRY_INFO!B10) -> Bamako | C10: =IF(COUNTRY_INFO!C10=0," ",COUNTRY_INFO!C10) -> Commune 2 | D10: =IF(COUNTRY_INFO!$T$9:$T$1000="MDA1 (IVM+ALB)", COUNTRY_INFO!$T$9:$T$1000, " ") ->  | I10: =SUM(F10:H10) -> 0 | M10: =SUM(J10:L10) -> 0 | O10: =IF(G10<>0, IF(K10/G10*100=0, "-", K10/G10*100), " ") ->  | P10: =IF(H10<>0, IF(L10/H10*100=0, "-", L10/H10*100), " ") ->  | Q10: =IF(I10<>0, IF(M10/I10*100=0, "-", M10/I10*100), " ") -> 
A11: =IF(COUNTRY_INFO!A11=0," ",COUNTRY_INFO!A11) -> Mali | B11: =IF(COUNTRY_INFO!B11=0," ",COUNTRY_INFO!B11) -> Bamako | C11: =IF(COUNTRY_INFO!C11=0," ",COUNTRY_INFO!C11) -> Commune 3 | D11: =IF(COUNTRY_INFO!$T$9:$T$1000="MDA1 (IVM+ALB)", COUNTRY_INFO!$T$9:$T$1000, " ") ->  | I11: 0 | M11: 0
A12: =IF(COUNTRY_INFO!A12=0," ",COUNTRY_INFO!A12) -> Mali | B12: =IF(COUNTRY_INFO!B12=0," ",COUNTRY_INFO!B12) -> Bamako | C12: =IF(COUNTRY_INFO!C12=0," ",COUNTRY_INFO!C12) -> Commune 4 | D12: =IF(COUNTRY_INFO!$T$9:$T$1000="MDA1 (IVM+ALB)", COUNTRY_INFO!$T$9:$T$1000, " ") ->  | I12: 0 | M12: 0
A13: =IF(COUNTRY_INFO!A13=0," ",COUNTRY_INFO!A13) -> Mali | B13: =IF(COUNTRY_INFO!B13=0," ",COUNTRY_INFO!B13) -> Bamako | C13: =IF(COUNTRY_INFO!C13=0," ",COUNTRY_INFO!C13) -> Commune 5 | D13: =IF(COUNTRY_INFO!$T$9:$T$1000="MDA1 (IVM+ALB)", COUNTRY_INFO!$T$9:$T$1000, " ") ->  | I13: 0 | M13: 0
A14: =IF(COUNTRY_INFO!A14=0," ",COUNTRY_INFO!A14) -> Mali | B14: =IF(COUNTRY_INFO!B14=0," ",COUNTRY_INFO!B14) -> Bamako | C14: =IF(COUNTRY_INFO!C14=0," ",COUNTRY_INFO!C14) -> Commune 6 | D14: =IF(COUNTRY_INFO!$T$9:$T$1000="MDA1 (IVM+ALB)", COUNTRY_INFO!$T$9:$T$1000, " ") ->  | I14: 0 | M14: 0
A15: =IF(COUNTRY_INFO!A15=0," ",COUNTRY_INFO!A15) -> Mali | B15: =IF(COUNTRY_INFO!B15=0," ",COUNTRY_INFO!B15) -> Gao | C15: =IF(COUNTRY_INFO!C15=0," ",COUNTRY_INFO!C15) -> Ansongo | D15: =IF(COUNTRY_INFO!$T$9:$T$1000="MDA1 (IVM+ALB)", COUNTRY_INFO!$T$9:$T$1000, " ") ->  | I15: 0 | M15: 0
A16: =IF(COUNTRY_INFO!A16=0," ",COUNTRY_INFO!A16) -> Mali | B16: =IF(COUNTRY_INFO!B16=0," ",COUNTRY_INFO!B16) -> Gao | C16: =IF(COUNTRY_INFO!C16=0," ",COUNTRY_INFO!C16) -> Bourem | D16: =IF(COUNTRY_INFO!$T$9:$T$1000="MDA1 (IVM+ALB)", COUNTRY_INFO!$T$9:$T$1000, " ") ->  | I16: 0 | M16: 0
A17: =IF(COUNTRY_INFO!A17=0," ",COUNTRY_INFO!A17) -> Mali | B17: =IF(COUNTRY_INFO!B17=0," ",COUNTRY_INFO!B17) -> Gao | C17: =IF(COUNTRY_INFO!C17=0," ",COUNTRY_INFO!C17) -> Almoustrat | D17: =IF(COUNTRY_INFO!$T$9:$T$1000="MDA1 (IVM+ALB)", COUNTRY_INFO!$T$9:$T$1000, " ") ->  | I17: 0 | M17: 0
A18: =IF(COUNTRY_INFO!A18=0," ",COUNTRY_INFO!A18) -> Mali | B18: =IF(COUNTRY_INFO!B18=0," ",COUNTRY_INFO!B18) -> Gao | C18: =IF(COUNTRY_INFO!C18=0," ",COUNTRY_INFO!C18) -> Gao | D18: =IF(COUNTRY_INFO!$T$9:$T$1000="MDA1 (IVM+ALB)", COUNTRY_INFO!$T$9:$T$1000, " ") ->  | I18: 0 | M18: 0
A19: =IF(COUNTRY_INFO!A19=0," ",COUNTRY_INFO!A19) -> Mali | B19: =IF(COUNTRY_INFO!B19=0," ",COUNTRY_INFO!B19) -> Menaka | C19: =IF(COUNTRY_INFO!C19=0," ",COUNTRY_INFO!C19) -> Menaka | D19: =IF(COUNTRY_INFO!$T$9:$T$1000="MDA1 (IVM+ALB)", COUNTRY_INFO!$T$9:$T$1000, " ") ->  | I19: 0 | M19: 0
A20: =IF(COUNTRY_INFO!A20=0," ",COUNTRY_INFO!A20) -> Mali | B20: =IF(COUNTRY_INFO!B20=0," ",COUNTRY_INFO!B20) -> Menaka | C20: =IF(COUNTRY_INFO!C20=0," ",COUNTRY_INFO!C20) -> Anderamboukane | D20: =IF(COUNTRY_INFO!$T$9:$T$1000="MDA1 (IVM+ALB)", COUNTRY_INFO!$T$9:$T$1000, " ") ->  | I20: 0 | M20: 0
A21: =IF(COUNTRY_INFO!A21=0," ",COUNTRY_INFO!A21) -> Mali | B21: =IF(COUNTRY_INFO!B21=0," ",COUNTRY_INFO!B21) -> Menaka | C21: =IF(COUNTRY_INFO!C21=0," ",COUNTRY_INFO!C21) -> Inekar | D21: =IF(COUNTRY_INFO!$T$9:$T$1000="MDA1 (IVM+ALB)", COUNTRY_INFO!$T$9:$T$1000, " ") ->  | I21: 0 | M21: 0
A22: =IF(COUNTRY_INFO!A22=0," ",COUNTRY_INFO!A22) -> Mali | B22: =IF(COUNTRY_INFO!B22=0," ",COUNTRY_INFO!B22) -> Menaka | C22: =IF(COUNTRY_INFO!C22=0," ",COUNTRY_INFO!C22) -> Tidermene | D22: =IF(COUNTRY_INFO!$T$9:$T$1000="MDA1 (IVM+ALB)", COUNTRY_INFO!$T$9:$T$1000, " ") ->  | I22: 0 | M22: 0
A23: =IF(COUNTRY_INFO!A23=0," ",COUNTRY_INFO!A23) -> Mali | B23: =IF(COUNTRY_INFO!B23=0," ",COUNTRY_INFO!B23) -> Kayes | C23: =IF(COUNTRY_INFO!C23=0," ",COUNTRY_INFO!C23) -> Bafoulabe | D23: =IF(COUNTRY_INFO!$T$9:$T$1000="MDA1 (IVM+ALB)", COUNTRY_INFO!$T$9:$T$1000, " ") ->  | I23: 0 | M23: 0
A24: =IF(COUNTRY_INFO!A24=0," ",COUNTRY_INFO!A24) -> Mali | B24: =IF(COUNTRY_INFO!B24=0," ",COUNTRY_INFO!B24) -> Kayes | C24: =IF(COUNTRY_INFO!C24=0," ",COUNTRY_INFO!C24) -> Diema | D24: =IF(COUNTRY_INFO!$T$9:$T$1000="MDA1 (IVM+ALB)", COUNTRY_INFO!$T$9:$T$1000, " ") ->  | I24: 0 | M24: 0
A25: =IF(COUNTRY_INFO!A25=0," ",COUNTRY_INFO!A25) -> Mali | B25: =IF(COUNTRY_INFO!B25=0," ",COUNTRY_INFO!B25) -> Kayes | C25: =IF(COUNTRY_INFO!C25=0," ",COUNTRY_INFO!C25) -> Kayes | D25: =IF(COUNTRY_INFO!$T$9:$T$1000="MDA1 (IVM+ALB)", COUNTRY_INFO!$T$9:$T$1000, " ") ->  | I25: 0 | M25: 0
A26: =IF(COUNTRY_INFO!A26=0," ",COUNTRY_INFO!A26) -> Mali | B26: =IF(COUNTRY_INFO!B26=0," ",COUNTRY_INFO!B26) -> Kayes | C26: =IF(COUNTRY_INFO!C26=0," ",COUNTRY_INFO!C26) -> Kenieba | D26: =IF(COUNTRY_INFO!$T$9:$T$1000="MDA1 (IVM+ALB)", COUNTRY_INFO!$T$9:$T$1000, " ") ->  | I26: 0 | M26: 0
A27: =IF(COUNTRY_INFO!A27=0," ",COUNTRY_INFO!A27) -> Mali | B27: =IF(COUNTRY_INFO!B27=0," ",COUNTRY_INFO!B27) -> Kayes | C27: =IF(COUNTRY_INFO!C27=0," ",COUNTRY_INFO!C27) -> Kita | D27: =IF(COUNTRY_INFO!$T$9:$T$1000="MDA1 (IVM+ALB)", COUNTRY_INFO!$T$9:$T$1000, " ") ->  | I27: 0 | M27: 0
A28: =IF(COUNTRY_INFO!A28=0," ",COUNTRY_INFO!A28) -> Mali | B28: =IF(COUNTRY_INFO!B28=0," ",COUNTRY_INFO!B28) -> Kayes | C28: =IF(COUNTRY_INFO!C28=0," ",COUNTRY_INFO!C28) -> Sagabari | D28: =IF(COUNTRY_INFO!$T$9:$T$1000="MDA1 (IVM+ALB)", COUNTRY_INFO!$T$9:$T$1000, " ") ->  | I28: 0 | M28: 0
A29: =IF(COUNTRY_INFO!A29=0," ",COUNTRY_INFO!A29) -> Mali | B29: =IF(COUNTRY_INFO!B29=0," ",COUNTRY_INFO!B29) -> Kayes | C29: =IF(COUNTRY_INFO!C29=0," ",COUNTRY_INFO!C29) -> Sefeto | D29: =IF(COUNTRY_INFO!$T$9:$T$1000="MDA1 (IVM+ALB)", COUNTRY_INFO!$T$9:$T$1000, " ") ->  | I29: 0 | M29: 0
A30: =IF(COUNTRY_INFO!A30=0," ",COUNTRY_INFO!A30) -> Mali | B30: =IF(COUNTRY_INFO!B30=0," ",COUNTRY_INFO!B30) -> Kayes | C30: =IF(COUNTRY_INFO!C30=0," ",COUNTRY_INFO!C30) -> Nioro | D30: =IF(COUNTRY_INFO!$T$9:$T$1000="MDA1 (IVM+ALB)", COUNTRY_INFO!$T$9:$T$1000, " ") ->  | I30: 0 | M30: 0
A31: =IF(COUNTRY_INFO!A31=0," ",COUNTRY_INFO!A31) -> Mali | B31: =IF(COUNTRY_INFO!B31=0," ",COUNTRY_INFO!B31) -> Kayes | C31: =IF(COUNTRY_INFO!C31=0," ",COUNTRY_INFO!C31) -> Oussoubidiagna | D31: =IF(COUNTRY_INFO!$T$9:$T$1000="MDA1 (IVM+ALB)", COUNTRY_INFO!$T$9:$T$1000, " ") ->  | I31: 0 | M31: 0
A32: =IF(COUNTRY_INFO!A32=0," ",COUNTRY_INFO!A32) -> Mali | B32: =IF(COUNTRY_INFO!B32=0," ",COUNTRY_INFO!B32) -> Kayes | C32: =IF(COUNTRY_INFO!C32=0," ",COUNTRY_INFO!C32) -> Yelimane | D32: =IF(COUNTRY_INFO!$T$9:$T$1000="MDA1 (IVM+ALB)", COUNTRY_INFO!$T$9:$T$1000, " ") ->  | I32: 0 | M32: 0
A33: =IF(COUNTRY_INFO!A33=0," ",COUNTRY_INFO!A33) -> Mali | B33: =IF(COUNTRY_INFO!B33=0," ",COUNTRY_INFO!B33) -> Kidal | C33: =IF(COUNTRY_INFO!C33=0," ",COUNTRY_INFO!C33) -> Abeibara | D33: =IF(COUNTRY_INFO!$T$9:$T$1000="MDA1 (IVM+ALB)", COUNTRY_INFO!$T$9:$T$1000, " ") ->  | I33: 0 | M33: 0
A34: =IF(COUNTRY_INFO!A34=0," ",COUNTRY_INFO!A34) -> Mali | B34: =IF(COUNTRY_INFO!B34=0," ",COUNTRY_INFO!B34) -> Kidal | C34: =IF(COUNTRY_INFO!C34=0," ",COUNTRY_INFO!C34) -> Kidal | D34: =IF(COUNTRY_INFO!$T$9:$T$1000="MDA1 (IVM+ALB)", COUNTRY_INFO!$T$9:$T$1000, " ") ->  | I34: 0 | M34: 0
A35: =IF(COUNTRY_INFO!A35=0," ",COUNTRY_INFO!A35) -> Mali | B35: =IF(COUNTRY_INFO!B35=0," ",COUNTRY_INFO!B35) -> Kidal | C35: =IF(COUNTRY_INFO!C35=0," ",COUNTRY_INFO!C35) -> Tessalit | D35: =IF(COUNTRY_INFO!$T$9:$T$1000="MDA1 (IVM+ALB)", COUNTRY_INFO!$T$9:$T$1000, " ") ->  | I35: 0 | M35: 0
A36: =IF(COUNTRY_INFO!A36=0," ",COUNTRY_INFO!A36) -> Mali | B36: =IF(COUNTRY_INFO!B36=0," ",COUNTRY_INFO!B36) -> Kidal | C36: =IF(COUNTRY_INFO!C36=0," ",COUNTRY_INFO!C36) -> Tin-Essako | D36: =IF(COUNTRY_INFO!$T$9:$T$1000="MDA1 (IVM+ALB)", COUNTRY_INFO!$T$9:$T$1000, " ") ->  | I36: 0 | M36: 0
A37: =IF(COUNTRY_INFO!A37=0," ",COUNTRY_INFO!A37) -> Mali | B37: =IF(COUNTRY_INFO!B37=0," ",COUNTRY_INFO!B37) -> Koulikoro | C37: =IF(COUNTRY_INFO!C37=0," ",COUNTRY_INFO!C37) -> Banamba | D37: =IF(COUNTRY_INFO!$T$9:$T$1000="MDA1 (IVM+ALB)", COUNTRY_INFO!$T$9:$T$1000, " ") ->  | I37: 0 | M37: 0
A38: =IF(COUNTRY_INFO!A38=0," ",COUNTRY_INFO!A38) -> Mali | B38: =IF(COUNTRY_INFO!B38=0," ",COUNTRY_INFO!B38) -> Koulikoro | C38: =IF(COUNTRY_INFO!C38=0," ",COUNTRY_INFO!C38) -> Dioila | D38: =IF(COUNTRY_INFO!$T$9:$T$1000="MDA1 (IVM+ALB)", COUNTRY_INFO!$T$9:$T$1000, " ") ->  | I38: 0 | M38: 0
A39: =IF(COUNTRY_INFO!A39=0," ",COUNTRY_INFO!A39) -> Mali | B39: =IF(COUNTRY_INFO!B39=0," ",COUNTRY_INFO!B39) -> Koulikoro | C39: =IF(COUNTRY_INFO!C39=0," ",COUNTRY_INFO!C39) -> Fana | D39: =IF(COUNTRY_INFO!$T$9:$T$1000="MDA1 (IVM+ALB)", COUNTRY_INFO!$T$9:$T$1000, " ") ->  | I39: 0 | M39: 0
A40: =IF(COUNTRY_INFO!A40=0," ",COUNTRY_INFO!A40) -> Mali | B40: =IF(COUNTRY_INFO!B40=0," ",COUNTRY_INFO!B40) -> Koulikoro | C40: =IF(COUNTRY_INFO!C40=0," ",COUNTRY_INFO!C40) -> Kalabancoro | D40: =IF(COUNTRY_INFO!$T$9:$T$1000="MDA1 (IVM+ALB)", COUNTRY_INFO!$T$9:$T$1000, " ") ->  | I40: 0 | M40: 0
A41: =IF(COUNTRY_INFO!A41=0," ",COUNTRY_INFO!A41) -> Mali | B41: =IF(COUNTRY_INFO!B41=0," ",COUNTRY_INFO!B41) -> Koulikoro | C41: =IF(COUNTRY_INFO!C41=0," ",COUNTRY_INFO!C41) -> Kangaba | D41: =IF(COUNTRY_INFO!$T$9:$T$1000="MDA1 (IVM+ALB)", COUNTRY_INFO!$T$9:$T$1000, " ") ->  | I41: 0 | M41: 0
A42: =IF(COUNTRY_INFO!A42=0," ",COUNTRY_INFO!A42) -> Mali | B42: =IF(COUNTRY_INFO!B42=0," ",COUNTRY_INFO!B42) -> Koulikoro | C42: =IF(COUNTRY_INFO!C42=0," ",COUNTRY_INFO!C42) -> Kati | D42: =IF(COUNTRY_INFO!$T$9:$T$1000="MDA1 (IVM+ALB)", COUNTRY_INFO!$T$9:$T$1000, " ") ->  | I42: 0 | M42: 0
A43: =IF(COUNTRY_INFO!A43=0," ",COUNTRY_INFO!A43) -> Mali | B43: =IF(COUNTRY_INFO!B43=0," ",COUNTRY_INFO!B43) -> Koulikoro | C43: =IF(COUNTRY_INFO!C43=0," ",COUNTRY_INFO!C43) -> Kolokani | D43: =IF(COUNTRY_INFO!$T$9:$T$1000="MDA1 (IVM+ALB)", COUNTRY_INFO!$T$9:$T$1000, " ") ->  | I43: 0 | M43: 0
A44: =IF(COUNTRY_INFO!A44=0," ",COUNTRY_INFO!A44) -> Mali | B44: =IF(COUNTRY_INFO!B44=0," ",COUNTRY_INFO!B44) -> Koulikoro | C44: =IF(COUNTRY_INFO!C44=0," ",COUNTRY_INFO!C44) -> Koulikoro | D44: =IF(COUNTRY_INFO!$T$9:$T$1000="MDA1 (IVM+ALB)", COUNTRY_INFO!$T$9:$T$1000, " ") ->  | I44: 0 | M44: 0
A45: =IF(COUNTRY_INFO!A45=0," ",COUNTRY_INFO!A45) -> Mali | B45: =IF(COUNTRY_INFO!B45=0," ",COUNTRY_INFO!B45) -> Koulikoro | C45: =IF(COUNTRY_INFO!C45=0," ",COUNTRY_INFO!C45) -> Nara | D45: =IF(COUNTRY_INFO!$T$9:$T$1000="MDA1 (IVM+ALB)", COUNTRY_INFO!$T$9:$T$1000, " ") ->  | I45: 0 | M45: 0
A46: =IF(COUNTRY_INFO!A46=0," ",COUNTRY_INFO!A46) -> Mali | B46: =IF(COUNTRY_INFO!B46=0," ",COUNTRY_INFO!B46) -> Koulikoro | C46: =IF(COUNTRY_INFO!C46=0," ",COUNTRY_INFO!C46) -> Ouelessebougou | D46: =IF(COUNTRY_INFO!$T$9:$T$1000="MDA1 (IVM+ALB)", COUNTRY_INFO!$T$9:$T$1000, " ") ->  | I46: 0 | M46: 0
A47: =IF(COUNTRY_INFO!A47=0," ",COUNTRY_INFO!A47) -> Mali | B47: =IF(COUNTRY_INFO!B47=0," ",COUNTRY_INFO!B47) -> Mopti | C47: =IF(COUNTRY_INFO!C47=0," ",COUNTRY_INFO!C47) -> Bandiagara | D47: =IF(COUNTRY_INFO!$T$9:$T$1000="MDA1 (IVM+ALB)", COUNTRY_INFO!$T$9:$T$1000, " ") ->  | I47: 0 | M47: 0
A48: =IF(COUNTRY_INFO!A48=0," ",COUNTRY_INFO!A48) -> Mali | B48: =IF(COUNTRY_INFO!B48=0," ",COUNTRY_INFO!B48) -> Mopti | C48: =IF(COUNTRY_INFO!C48=0," ",COUNTRY_INFO!C48) -> Bankass | D48: =IF(COUNTRY_INFO!$T$9:$T$1000="MDA1 (IVM+ALB)", COUNTRY_INFO!$T$9:$T$1000, " ") ->  | I48: 0 | M48: 0
A49: =IF(COUNTRY_INFO!A49=0," ",COUNTRY_INFO!A49) -> Mali | B49: =IF(COUNTRY_INFO!B49=0," ",COUNTRY_INFO!B49) -> Mopti | C49: =IF(COUNTRY_INFO!C49=0," ",COUNTRY_INFO!C49) -> Djenne | D49: =IF(COUNTRY_INFO!$T$9:$T$1000="MDA1 (IVM+ALB)", COUNTRY_INFO!$T$9:$T$1000, " ") ->  | I49: 0 | M49: 0
A50: =IF(COUNTRY_INFO!A50=0," ",COUNTRY_INFO!A50) -> Mali | B50: =IF(COUNTRY_INFO!B50=0," ",COUNTRY_INFO!B50) -> Mopti | C50: =IF(COUNTRY_INFO!C50=0," ",COUNTRY_INFO!C50) -> Douentza | D50: =IF(COUNTRY_INFO!$T$9:$T$1000="MDA1 (IVM+ALB)", COUNTRY_INFO!$T$9:$T$1000, " ") ->  | I50: 0 | M50: 0
A51: =IF(COUNTRY_INFO!A51=0," ",COUNTRY_INFO!A51) -> Mali | B51: =IF(COUNTRY_INFO!B51=0," ",COUNTRY_INFO!B51) -> Mopti | C51: =IF(COUNTRY_INFO!C51=0," ",COUNTRY_INFO!C51) -> Koro | D51: =IF(COUNTRY_INFO!$T$9:$T$1000="MDA1 (IVM+ALB)", COUNTRY_INFO!$T$9:$T$1000, " ") ->  | I51: 0 | M51: 0
A52: =IF(COUNTRY_INFO!A52=0," ",COUNTRY_INFO!A52) -> Mali | B52: =IF(COUNTRY_INFO!B52=0," ",COUNTRY_INFO!B52) -> Mopti | C52: =IF(COUNTRY_INFO!C52=0," ",COUNTRY_INFO!C52) -> Mopti | D52: =IF(COUNTRY_INFO!$T$9:$T$1000="MDA1 (IVM+ALB)", COUNTRY_INFO!$T$9:$T$1000, " ") ->  | I52: 0 | M52: 0
A53: =IF(COUNTRY_INFO!A53=0," ",COUNTRY_INFO!A53) -> Mali | B53: =IF(COUNTRY_INFO!B53=0," ",COUNTRY_INFO!B53) -> Mopti | C53: =IF(COUNTRY_INFO!C53=0," ",COUNTRY_INFO!C53) -> Teninkou | D53: =IF(COUNTRY_INFO!$T$9:$T$1000="MDA1 (IVM+ALB)", COUNTRY_INFO!$T$9:$T$1000, " ") ->  | I53: 0 | M53: 0
A54: =IF(COUNTRY_INFO!A54=0," ",COUNTRY_INFO!A54) -> Mali | B54: =IF(COUNTRY_INFO!B54=0," ",COUNTRY_INFO!B54) -> Mopti | C54: =IF(COUNTRY_INFO!C54=0," ",COUNTRY_INFO!C54) -> Youwarou | D54: =IF(COUNTRY_INFO!$T$9:$T$1000="MDA1 (IVM+ALB)", COUNTRY_INFO!$T$9:$T$1000, " ") ->  | I54: 0 | M54: 0
A55: =IF(COUNTRY_INFO!A55=0," ",COUNTRY_INFO!A55) -> Mali | B55: =IF(COUNTRY_INFO!B55=0," ",COUNTRY_INFO!B55) -> Segou | C55: =IF(COUNTRY_INFO!C55=0," ",COUNTRY_INFO!C55) -> Barouéli | D55: =IF(COUNTRY_INFO!$T$9:$T$1000="MDA1 (IVM+ALB)", COUNTRY_INFO!$T$9:$T$1000, " ") ->  | I55: 0 | M55: 0
A56: =IF(COUNTRY_INFO!A56=0," ",COUNTRY_INFO!A56) -> Mali | B56: =IF(COUNTRY_INFO!B56=0," ",COUNTRY_INFO!B56) -> Segou | C56: =IF(COUNTRY_INFO!C56=0," ",COUNTRY_INFO!C56) -> Bla | D56: =IF(COUNTRY_INFO!$T$9:$T$1000="MDA1 (IVM+ALB)", COUNTRY_INFO!$T$9:$T$1000, " ") ->  | I56: 0 | M56: 0
A57: =IF(COUNTRY_INFO!A57=0," ",COUNTRY_INFO!A57) -> Mali | B57: =IF(COUNTRY_INFO!B57=0," ",COUNTRY_INFO!B57) -> Segou | C57: =IF(COUNTRY_INFO!C57=0," ",COUNTRY_INFO!C57) -> Macina | D57: =IF(COUNTRY_INFO!$T$9:$T$1000="MDA1 (IVM+ALB)", COUNTRY_INFO!$T$9:$T$1000, " ") ->  | I57: 0 | M57: 0
A58: =IF(COUNTRY_INFO!A58=0," ",COUNTRY_INFO!A58) -> Mali | B58: =IF(COUNTRY_INFO!B58=0," ",COUNTRY_INFO!B58) -> Segou | C58: =IF(COUNTRY_INFO!C58=0," ",COUNTRY_INFO!C58) -> Markala | D58: =IF(COUNTRY_INFO!$T$9:$T$1000="MDA1 (IVM+ALB)", COUNTRY_INFO!$T$9:$T$1000, " ") ->  | I58: 0 | M58: 0
A59: =IF(COUNTRY_INFO!A59=0," ",COUNTRY_INFO!A59) -> Mali | B59: =IF(COUNTRY_INFO!B59=0," ",COUNTRY_INFO!B59) -> Segou | C59: =IF(COUNTRY_INFO!C59=0," ",COUNTRY_INFO!C59) -> Niono | D59: =IF(COUNTRY_INFO!$T$9:$T$1000="MDA1 (IVM+ALB)", COUNTRY_INFO!$T$9:$T$1000, " ") ->  | I59: 0 | M59: 0
A60: =IF(COUNTRY_INFO!A60=0," ",COUNTRY_INFO!A60) -> Mali | B60: =IF(COUNTRY_INFO!B60=0," ",COUNTRY_INFO!B60) -> Segou | C60: =IF(COUNTRY_INFO!C60=0," ",COUNTRY_INFO!C60) -> San | D60: =IF(COUNTRY_INFO!$T$9:$T$1000="MDA1 (IVM+ALB)", COUNTRY_INFO!$T$9:$T$1000, " ") ->  | I60: 0 | M60: 0
A61: =IF(COUNTRY_INFO!A61=0," ",COUNTRY_INFO!A61) -> Mali | B61: =IF(COUNTRY_INFO!B61=0," ",COUNTRY_INFO!B61) -> Segou | C61: =IF(COUNTRY_INFO!C61=0," ",COUNTRY_INFO!C61) -> Segou | D61: =IF(COUNTRY_INFO!$T$9:$T$1000="MDA1 (IVM+ALB)", COUNTRY_INFO!$T$9:$T$1000, " ") ->  | I61: 0 | M61: 0
A62: =IF(COUNTRY_INFO!A62=0," ",COUNTRY_INFO!A62) -> Mali | B62: =IF(COUNTRY_INFO!B62=0," ",COUNTRY_INFO!B62) -> Segou | C62: =IF(COUNTRY_INFO!C62=0," ",COUNTRY_INFO!C62) -> Tominian | D62: =IF(COUNTRY_INFO!$T$9:$T$1000="MDA1 (IVM+ALB)", COUNTRY_INFO!$T$9:$T$1000, " ") ->  | I62: 0 | M62: 0
A63: =IF(COUNTRY_INFO!A63=0," ",COUNTRY_INFO!A63) -> Mali | B63: =IF(COUNTRY_INFO!B63=0," ",COUNTRY_INFO!B63) -> Sikasso | C63: =IF(COUNTRY_INFO!C63=0," ",COUNTRY_INFO!C63) -> Bougouni | D63: =IF(COUNTRY_INFO!$T$9:$T$1000="MDA1 (IVM+ALB)", COUNTRY_INFO!$T$9:$T$1000, " ") ->  | I63: 0 | M63: 0
A64: =IF(COUNTRY_INFO!A64=0," ",COUNTRY_INFO!A64) -> Mali | B64: =IF(COUNTRY_INFO!B64=0," ",COUNTRY_INFO!B64) -> Sikasso | C64: =IF(COUNTRY_INFO!C64=0," ",COUNTRY_INFO!C64) -> Kadiolo | D64: =IF(COUNTRY_INFO!$T$9:$T$1000="MDA1 (IVM+ALB)", COUNTRY_INFO!$T$9:$T$1000, " ") ->  | I64: 0 | M64: 0
A65: =IF(COUNTRY_INFO!A65=0," ",COUNTRY_INFO!A65) -> Mali | B65: =IF(COUNTRY_INFO!B65=0," ",COUNTRY_INFO!B65) -> Sikasso | C65: =IF(COUNTRY_INFO!C65=0," ",COUNTRY_INFO!C65) -> Kignan | D65: =IF(COUNTRY_INFO!$T$9:$T$1000="MDA1 (IVM+ALB)", COUNTRY_INFO!$T$9:$T$1000, " ") ->  | I65: 0 | M65: 0
A66: =IF(COUNTRY_INFO!A66=0," ",COUNTRY_INFO!A66) -> Mali | B66: =IF(COUNTRY_INFO!B66=0," ",COUNTRY_INFO!B66) -> Sikasso | C66: =IF(COUNTRY_INFO!C66=0," ",COUNTRY_INFO!C66) -> Kolondieba | D66: =IF(COUNTRY_INFO!$T$9:$T$1000="MDA1 (IVM+ALB)", COUNTRY_INFO!$T$9:$T$1000, " ") ->  | I66: 0 | M66: 0
A67: =IF(COUNTRY_INFO!A67=0," ",COUNTRY_INFO!A67) -> Mali | B67: =IF(COUNTRY_INFO!B67=0," ",COUNTRY_INFO!B67) -> Sikasso | C67: =IF(COUNTRY_INFO!C67=0," ",COUNTRY_INFO!C67) -> Koutiala | D67: =IF(COUNTRY_INFO!$T$9:$T$1000="MDA1 (IVM+ALB)", COUNTRY_INFO!$T$9:$T$1000, " ") ->  | I67: 0 | M67: 0
A68: =IF(COUNTRY_INFO!A68=0," ",COUNTRY_INFO!A68) -> Mali | B68: =IF(COUNTRY_INFO!B68=0," ",COUNTRY_INFO!B68) -> Sikasso | C68: =IF(COUNTRY_INFO!C68=0," ",COUNTRY_INFO!C68) -> Niena | D68: =IF(COUNTRY_INFO!$T$9:$T$1000="MDA1 (IVM+ALB)", COUNTRY_INFO!$T$9:$T$1000, " ") ->  | I68: 0 | M68: 0
A69: =IF(COUNTRY_INFO!A69=0," ",COUNTRY_INFO!A69) -> Mali | B69: =IF(COUNTRY_INFO!B69=0," ",COUNTRY_INFO!B69) -> Sikasso | C69: =IF(COUNTRY_INFO!C69=0," ",COUNTRY_INFO!C69) -> Sélingué | D69: =IF(COUNTRY_INFO!$T$9:$T$1000="MDA1 (IVM+ALB)", COUNTRY_INFO!$T$9:$T$1000, " ") ->  | I69: 0 | M69: 0
A70: =IF(COUNTRY_INFO!A70=0," ",COUNTRY_INFO!A70) -> Mali | B70: =IF(COUNTRY_INFO!B70=0," ",COUNTRY_INFO!B70) -> Sikasso | C70: =IF(COUNTRY_INFO!C70=0," ",COUNTRY_INFO!C70) -> Sikasso | D70: =IF(COUNTRY_INFO!$T$9:$T$1000="MDA1 (IVM+ALB)", COUNTRY_INFO!$T$9:$T$1000, " ") ->  | I70: 0 | M70: 0
A71: =IF(COUNTRY_INFO!A71=0," ",COUNTRY_INFO!A71) -> Mali | B71: =IF(COUNTRY_INFO!B71=0," ",COUNTRY_INFO!B71) -> Sikasso | C71: =IF(COUNTRY_INFO!C71=0," ",COUNTRY_INFO!C71) -> Yanfolila | D71: =IF(COUNTRY_INFO!$T$9:$T$1000="MDA1 (IVM+ALB)", COUNTRY_INFO!$T$9:$T$1000, " ") ->  | I71: 0 | M71: 0
A72: =IF(COUNTRY_INFO!A72=0," ",COUNTRY_INFO!A72) -> Mali | B72: =IF(COUNTRY_INFO!B72=0," ",COUNTRY_INFO!B72) -> Sikasso | C72: =IF(COUNTRY_INFO!C72=0," ",COUNTRY_INFO!C72) -> Yorosso | D72: =IF(COUNTRY_INFO!$T$9:$T$1000="MDA1 (IVM+ALB)", COUNTRY_INFO!$T$9:$T$1000, " ") ->  | I72: 0 | M72: 0
A73: =IF(COUNTRY_INFO!A73=0," ",COUNTRY_INFO!A73) -> Mali | B73: =IF(COUNTRY_INFO!B73=0," ",COUNTRY_INFO!B73) -> Tombouctou | C73: =IF(COUNTRY_INFO!C73=0," ",COUNTRY_INFO!C73) -> Diré | D73: =IF(COUNTRY_INFO!$T$9:$T$1000="MDA1 (IVM+ALB)", COUNTRY_INFO!$T$9:$T$1000, " ") ->  | I73: 0 | M73: 0
A74: =IF(COUNTRY_INFO!A74=0," ",COUNTRY_INFO!A74) -> Mali | B74: =IF(COUNTRY_INFO!B74=0," ",COUNTRY_INFO!B74) -> Tombouctou | C74: =IF(COUNTRY_INFO!C74=0," ",COUNTRY_INFO!C74) -> Goundam | D74: =IF(COUNTRY_INFO!$T$9:$T$1000="MDA1 (IVM+ALB)", COUNTRY_INFO!$T$9:$T$1000, " ") ->  | I74: =SUM(F74:H74) -> 0 | M74: =SUM(J74:L74) -> 0 | O74: =IF(G74<>0, IF(K74/G74*100=0, "-", K74/G74*100), " ") ->  | P74: =IF(H74<>0, IF(L74/H74*100=0, "-", L74/H74*100), " ") ->  | Q74: =IF(I74<>0, IF(M74/I74*100=0, "-", M74/I74*100), " ") -> 
A75: =IF(COUNTRY_INFO!A75=0," ",COUNTRY_INFO!A75) -> Mali | B75: =IF(COUNTRY_INFO!B75=0," ",COUNTRY_INFO!B75) -> Tombouctou | C75: =IF(COUNTRY_INFO!C75=0," ",COUNTRY_INFO!C75) -> Gourma-Rharous | D75: =IF(COUNTRY_INFO!$T$9:$T$1000="MDA1 (IVM+ALB)", COUNTRY_INFO!$T$9:$T$1000, " ") ->  | I75: 0 | M75: 0
A76: =IF(COUNTRY_INFO!A76=0," ",COUNTRY_INFO!A76) -> Mali | B76: =IF(COUNTRY_INFO!B76=0," ",COUNTRY_INFO!B76) -> Tombouctou | C76: =IF(COUNTRY_INFO!C76=0," ",COUNTRY_INFO!C76) -> Niafunké | D76: =IF(COUNTRY_INFO!$T$9:$T$1000="MDA1 (IVM+ALB)", COUNTRY_INFO!$T$9:$T$1000, " ") ->  | I76: 0 | M76: 0
A77: =IF(COUNTRY_INFO!A77=0," ",COUNTRY_INFO!A77) -> Mali | B77: =IF(COUNTRY_INFO!B77=0," ",COUNTRY_INFO!B77) -> Tombouctou | C77: =IF(COUNTRY_INFO!C77=0," ",COUNTRY_INFO!C77) -> Tombouctou | D77: =IF(COUNTRY_INFO!$T$9:$T$1000="MDA1 (IVM+ALB)", COUNTRY_INFO!$T$9:$T$1000, " ") ->  | I77: 0 | M77: 0
A78: =IF(COUNTRY_INFO!A78=0," ",COUNTRY_INFO!A78) -> Mali | B78: =IF(COUNTRY_INFO!B78=0," ",COUNTRY_INFO!B78) -> Taoudenit | C78: =IF(COUNTRY_INFO!C78=0," ",COUNTRY_INFO!C78) -> Achourat | D78: =IF(COUNTRY_INFO!$T$9:$T$1000="MDA1 (IVM+ALB)", COUNTRY_INFO!$T$9:$T$1000, " ") ->  | I78: 0 | M78: 0
A79: =IF(COUNTRY_INFO!A79=0," ",COUNTRY_INFO!A79) -> Mali | B79: =IF(COUNTRY_INFO!B79=0," ",COUNTRY_INFO!B79) -> Taoudenit | C79: =IF(COUNTRY_INFO!C79=0," ",COUNTRY_INFO!C79) -> Al-Ourch | D79: =IF(COUNTRY_INFO!$T$9:$T$1000="MDA1 (IVM+ALB)", COUNTRY_INFO!$T$9:$T$1000, " ") ->  | I79: 0 | M79: 0
A80: =IF(COUNTRY_INFO!A80=0," ",COUNTRY_INFO!A80) -> Mali | B80: =IF(COUNTRY_INFO!B80=0," ",COUNTRY_INFO!B80) -> Taoudenit | C80: =IF(COUNTRY_INFO!C80=0," ",COUNTRY_INFO!C80) -> Araouane | D80: =IF(COUNTRY_INFO!$T$9:$T$1000="MDA1 (IVM+ALB)", COUNTRY_INFO!$T$9:$T$1000, " ") ->  | I80: 0 | M80: 0
A81: =IF(COUNTRY_INFO!A81=0," ",COUNTRY_INFO!A81) -> Mali | B81: =IF(COUNTRY_INFO!B81=0," ",COUNTRY_INFO!B81) -> Taoudenit | C81: =IF(COUNTRY_INFO!C81=0," ",COUNTRY_INFO!C81) -> Boujbeha | D81: =IF(COUNTRY_INFO!$T$9:$T$1000="MDA1 (IVM+ALB)", COUNTRY_INFO!$T$9:$T$1000, " ") ->  | I81: 0 | M81: 0
A82: =IF(COUNTRY_INFO!A82=0," ",COUNTRY_INFO!A82) -> Mali | B82: =IF(COUNTRY_INFO!B82=0," ",COUNTRY_INFO!B82) -> Taoudenit | C82: =IF(COUNTRY_INFO!C82=0," ",COUNTRY_INFO!C82) -> Foum-Elba | D82: =IF(COUNTRY_INFO!$T$9:$T$1000="MDA1 (IVM+ALB)", COUNTRY_INFO!$T$9:$T$1000, " ") ->  | I82: 0 | M82: 0
A83: =IF(COUNTRY_INFO!A83=0," ",COUNTRY_INFO!A83) -> Mali | B83: =IF(COUNTRY_INFO!B83=0," ",COUNTRY_INFO!B83) -> Taoudenit | C83: =IF(COUNTRY_INFO!C83=0," ",COUNTRY_INFO!C83) -> Taoudenit | D83: =IF(COUNTRY_INFO!$T$9:$T$1000="MDA1 (IVM+ALB)", COUNTRY_INFO!$T$9:$T$1000, " ") ->  | I83: 0 | M83: 0

Sheet MDA2 (hidden)
A1: MDA 2 - Diethylcarbamazine (DEC) + Albendazole (ALB)
A2: Structure administrative, population nécessitant une chimioprévention par groupe d'âge, population traitée par groupe d'âge et couverture
A4: TOTAL | F4: =SUM(F$9:F$1000) -> 0 | G4: =SUM(G$9:G$1000) -> 0 | H4: 0 | I4: 0 | J4: 0 | K4: 0 | L4: 0 | M4: 0 | N4: =IF(F4<>0, IF(J4/F4*100=0, "-", J4/F4*100), " ") ->  | O4: =IF(G4<>0, IF(K4/G4*100=0, "-", K4/G4*100), " ") ->  | P4: =IF(H4<>0, IF(L4/H4*100=0, "-", L4/H4*100), " ") ->  | Q4: =IF(I4<>0, IF(M4/I4*100=0, "-", M4/I4*100), " ") -> 
A6: Structure administrative du pays | D6: Mise en oeuvre de la CP | E6: Date | F6: Population ciblée pour MDA 2 | J6: Population traitée | N6: Couverture du Programme (%)
A7: Pays | B7: Région/Département | C7: District | F7: EAPréS | G7: EAS | H7: Adultes | I7: Total | J7: EAPréS | K7: EAS | L7: Adultes | M7: Total | N7: EAPréS | O7: EAS | P7: Adultes | Q7: Total
A9: =IF(COUNTRY_INFO!A9=0," ",COUNTRY_INFO!A9) -> Mali | B9: =IF(COUNTRY_INFO!B9=0," ",COUNTRY_INFO!B9) -> Bamako | C9: =IF(COUNTRY_INFO!C9=0," ",COUNTRY_INFO!C9) -> Commune 1 | D9: =IF(COUNTRY_INFO!$T$9:$T$1000="MDA2 (DEC+ALB)", COUNTRY_INFO!$T$9:$T$1000, " ") ->  | I9: =SUM(F9:H9) -> 0 | M9: =SUM(J9:L9) -> 0 | N9: =IF(F9<>0, IF(J9/F9*100=0, "-", J9/F9*100), " ") -> 
A10: =IF(COUNTRY_INFO!A10=0," ",COUNTRY_INFO!A10) -> Mali | B10: =IF(COUNTRY_INFO!B10=0," ",COUNTRY_INFO!B10) -> Bamako | C10: =IF(COUNTRY_INFO!C10=0," ",COUNTRY_INFO!C10) -> Commune 2 | D10: =IF(COUNTRY_INFO!$T$9:$T$1000="MDA2 (DEC+ALB)", COUNTRY_INFO!$T$9:$T$1000, " ") ->  | I10: =SUM(F10:H10) -> 0 | M10: =SUM(J10:L10) -> 0 | N10: =IF(F10<>0, IF(J10/F10*100=0, "-", J10/F10*100), " ") ->  | O10: =IF(G10<>0, IF(K10/G10*100=0, "-", K10/G10*100), " ") ->  | P10: =IF(H10<>0, IF(L10/H10*100=0, "-", L10/H10*100), " ") ->  | Q10: =IF(I10<>0, IF(M10/I10*100=0, "-", M10/I10*100), " ") -> 
A11: =IF(COUNTRY_INFO!A11=0," ",COUNTRY_INFO!A11) -> Mali | B11: =IF(COUNTRY_INFO!B11=0," ",COUNTRY_INFO!B11) -> Bamako | C11: =IF(COUNTRY_INFO!C11=0," ",COUNTRY_INFO!C11) -> Commune 3 | D11: =IF(COUNTRY_INFO!$T$9:$T$1000="MDA2 (DEC+ALB)", COUNTRY_INFO!$T$9:$T$1000, " ") ->  | I11: 0 | M11: 0
A12: =IF(COUNTRY_INFO!A12=0," ",COUNTRY_INFO!A12) -> Mali | B12: =IF(COUNTRY_INFO!B12=0," ",COUNTRY_INFO!B12) -> Bamako | C12: =IF(COUNTRY_INFO!C12=0," ",COUNTRY_INFO!C12) -> Commune 4 | D12: =IF(COUNTRY_INFO!$T$9:$T$1000="MDA2 (DEC+ALB)", COUNTRY_INFO!$T$9:$T$1000, " ") ->  | I12: 0 | M12: 0
A13: =IF(COUNTRY_INFO!A13=0," ",COUNTRY_INFO!A13) -> Mali | B13: =IF(COUNTRY_INFO!B13=0," ",COUNTRY_INFO!B13) -> Bamako | C13: =IF(COUNTRY_INFO!C13=0," ",COUNTRY_INFO!C13) -> Commune 5 | D13: =IF(COUNTRY_INFO!$T$9:$T$1000="MDA2 (DEC+ALB)", COUNTRY_INFO!$T$9:$T$1000, " ") ->  | I13: 0 | M13: 0
A14: =IF(COUNTRY_INFO!A14=0," ",COUNTRY_INFO!A14) -> Mali | B14: =IF(COUNTRY_INFO!B14=0," ",COUNTRY_INFO!B14) -> Bamako | C14: =IF(COUNTRY_INFO!C14=0," ",COUNTRY_INFO!C14) -> Commune 6 | D14: =IF(COUNTRY_INFO!$T$9:$T$1000="MDA2 (DEC+ALB)", COUNTRY_INFO!$T$9:$T$1000, " ") ->  | I14: 0 | M14: 0
A15: =IF(COUNTRY_INFO!A15=0," ",COUNTRY_INFO!A15) -> Mali | B15: =IF(COUNTRY_INFO!B15=0," ",COUNTRY_INFO!B15) -> Gao | C15: =IF(COUNTRY_INFO!C15=0," ",COUNTRY_INFO!C15) -> Ansongo | D15: =IF(COUNTRY_INFO!$T$9:$T$1000="MDA2 (DEC+ALB)", COUNTRY_INFO!$T$9:$T$1000, " ") ->  | I15: 0 | M15: 0
A16: =IF(COUNTRY_INFO!A16=0," ",COUNTRY_INFO!A16) -> Mali | B16: =IF(COUNTRY_INFO!B16=0," ",COUNTRY_INFO!B16) -> Gao | C16: =IF(COUNTRY_INFO!C16=0," ",COUNTRY_INFO!C16) -> Bourem | D16: =IF(COUNTRY_INFO!$T$9:$T$1000="MDA2 (DEC+ALB)", COUNTRY_INFO!$T$9:$T$1000, " ") ->  | I16: 0 | M16: 0
A17: =IF(COUNTRY_INFO!A17=0," ",COUNTRY_INFO!A17) -> Mali | B17: =IF(COUNTRY_INFO!B17=0," ",COUNTRY_INFO!B17) -> Gao | C17: =IF(COUNTRY_INFO!C17=0," ",COUNTRY_INFO!C17) -> Almoustrat | D17: =IF(COUNTRY_INFO!$T$9:$T$1000="MDA2 (DEC+ALB)", COUNTRY_INFO!$T$9:$T$1000, " ") ->  | I17: 0 | M17: 0
A18: =IF(COUNTRY_INFO!A18=0," ",COUNTRY_INFO!A18) -> Mali | B18: =IF(COUNTRY_INFO!B18=0," ",COUNTRY_INFO!B18) -> Gao | C18: =IF(COUNTRY_INFO!C18=0," ",COUNTRY_INFO!C18) -> Gao | D18: =IF(COUNTRY_INFO!$T$9:$T$1000="MDA2 (DEC+ALB)", COUNTRY_INFO!$T$9:$T$1000, " ") ->  | I18: 0 | M18: 0
A19: =IF(COUNTRY_INFO!A19=0," ",COUNTRY_INFO!A19) -> Mali | B19: =IF(COUNTRY_INFO!B19=0," ",COUNTRY_INFO!B19) -> Menaka | C19: =IF(COUNTRY_INFO!C19=0," ",COUNTRY_INFO!C19) -> Menaka | D19: =IF(COUNTRY_INFO!$T$9:$T$1000="MDA2 (DEC+ALB)", COUNTRY_INFO!$T$9:$T$1000, " ") ->  | I19: 0 | M19: 0
A20: =IF(COUNTRY_INFO!A20=0," ",COUNTRY_INFO!A20) -> Mali | B20: =IF(COUNTRY_INFO!B20=0," ",COUNTRY_INFO!B20) -> Menaka | C20: =IF(COUNTRY_INFO!C20=0," ",COUNTRY_INFO!C20) -> Anderamboukane | D20: =IF(COUNTRY_INFO!$T$9:$T$1000="MDA2 (DEC+ALB)", COUNTRY_INFO!$T$9:$T$1000, " ") ->  | I20: 0 | M20: 0
A21: =IF(COUNTRY_INFO!A21=0," ",COUNTRY_INFO!A21) -> Mali | B21: =IF(COUNTRY_INFO!B21=0," ",COUNTRY_INFO!B21) -> Menaka | C21: =IF(COUNTRY_INFO!C21=0," ",COUNTRY_INFO!C21) -> Inekar | D21: =IF(COUNTRY_INFO!$T$9:$T$1000="MDA2 (DEC+ALB)", COUNTRY_INFO!$T$9:$T$1000, " ") ->  | I21: 0 | M21: 0
A22: =IF(COUNTRY_INFO!A22=0," ",COUNTRY_INFO!A22) -> Mali | B22: =IF(COUNTRY_INFO!B22=0," ",COUNTRY_INFO!B22) -> Menaka | C22: =IF(COUNTRY_INFO!C22=0," ",COUNTRY_INFO!C22) -> Tidermene | D22: =IF(COUNTRY_INFO!$T$9:$T$1000="MDA2 (DEC+ALB)", COUNTRY_INFO!$T$9:$T$1000, " ") ->  | I22: 0 | M22: 0
A23: =IF(COUNTRY_INFO!A23=0," ",COUNTRY_INFO!A23) -> Mali | B23: =IF(COUNTRY_INFO!B23=0," ",COUNTRY_INFO!B23) -> Kayes | C23: =IF(COUNTRY_INFO!C23=0," ",COUNTRY_INFO!C23) -> Bafoulabe | D23: =IF(COUNTRY_INFO!$T$9:$T$1000="MDA2 (DEC+ALB)", COUNTRY_INFO!$T$9:$T$1000, " ") ->  | I23: 0 | M23: 0
A24: =IF(COUNTRY_INFO!A24=0," ",COUNTRY_INFO!A24) -> Mali | B24: =IF(COUNTRY_INFO!B24=0," ",COUNTRY_INFO!B24) -> Kayes | C24: =IF(COUNTRY_INFO!C24=0," ",COUNTRY_INFO!C24) -> Diema | D24: =IF(COUNTRY_INFO!$T$9:$T$1000="MDA2 (DEC+ALB)", COUNTRY_INFO!$T$9:$T$1000, " ") ->  | I24: 0 | M24: 0
A25: =IF(COUNTRY_INFO!A25=0," ",COUNTRY_INFO!A25) -> Mali | B25: =IF(COUNTRY_INFO!B25=0," ",COUNTRY_INFO!B25) -> Kayes | C25: =IF(COUNTRY_INFO!C25=0," ",COUNTRY_INFO!C25) -> Kayes | D25: =IF(COUNTRY_INFO!$T$9:$T$1000="MDA2 (DEC+ALB)", COUNTRY_INFO!$T$9:$T$1000, " ") ->  | I25: 0 | M25: 0
A26: =IF(COUNTRY_INFO!A26=0," ",COUNTRY_INFO!A26) -> Mali | B26: =IF(COUNTRY_INFO!B26=0," ",COUNTRY_INFO!B26) -> Kayes | C26: =IF(COUNTRY_INFO!C26=0," ",COUNTRY_INFO!C26) -> Kenieba | D26: =IF(COUNTRY_INFO!$T$9:$T$1000="MDA2 (DEC+ALB)", COUNTRY_INFO!$T$9:$T$1000, " ") ->  | I26: 0 | M26: 0
A27: =IF(COUNTRY_INFO!A27=0," ",COUNTRY_INFO!A27) -> Mali | B27: =IF(COUNTRY_INFO!B27=0," ",COUNTRY_INFO!B27) -> Kayes | C27: =IF(COUNTRY_INFO!C27=0," ",COUNTRY_INFO!C27) -> Kita | D27: =IF(COUNTRY_INFO!$T$9:$T$1000="MDA2 (DEC+ALB)", COUNTRY_INFO!$T$9:$T$1000, " ") ->  | I27: 0 | M27: 0
A28: =IF(COUNTRY_INFO!A28=0," ",COUNTRY_INFO!A28) -> Mali | B28: =IF(COUNTRY_INFO!B28=0," ",COUNTRY_INFO!B28) -> Kayes | C28: =IF(COUNTRY_INFO!C28=0," ",COUNTRY_INFO!C28) -> Sagabari | D28: =IF(COUNTRY_INFO!$T$9:$T$1000="MDA2 (DEC+ALB)", COUNTRY_INFO!$T$9:$T$1000, " ") ->  | I28: 0 | M28: 0
A29: =IF(COUNTRY_INFO!A29=0," ",COUNTRY_INFO!A29) -> Mali | B29: =IF(COUNTRY_INFO!B29=0," ",COUNTRY_INFO!B29) -> Kayes | C29: =IF(COUNTRY_INFO!C29=0," ",COUNTRY_INFO!C29) -> Sefeto | D29: =IF(COUNTRY_INFO!$T$9:$T$1000="MDA2 (DEC+ALB)", COUNTRY_INFO!$T$9:$T$1000, " ") ->  | I29: 0 | M29: 0
A30: =IF(COUNTRY_INFO!A30=0," ",COUNTRY_INFO!A30) -> Mali | B30: =IF(COUNTRY_INFO!B30=0," ",COUNTRY_INFO!B30) -> Kayes | C30: =IF(COUNTRY_INFO!C30=0," ",COUNTRY_INFO!C30) -> Nioro | D30: =IF(COUNTRY_INFO!$T$9:$T$1000="MDA2 (DEC+ALB)", COUNTRY_INFO!$T$9:$T$1000, " ") ->  | I30: 0 | M30: 0
A31: =IF(COUNTRY_INFO!A31=0," ",COUNTRY_INFO!A31) -> Mali | B31: =IF(COUNTRY_INFO!B31=0," ",COUNTRY_INFO!B31) -> Kayes | C31: =IF(COUNTRY_INFO!C31=0," ",COUNTRY_INFO!C31) -> Oussoubidiagna | D31: =IF(COUNTRY_INFO!$T$9:$T$1000="MDA2 (DEC+ALB)", COUNTRY_INFO!$T$9:$T$1000, " ") ->  | I31: 0 | M31: 0
A32: =IF(COUNTRY_INFO!A32=0," ",COUNTRY_INFO!A32) -> Mali | B32: =IF(COUNTRY_INFO!B32=0," ",COUNTRY_INFO!B32) -> Kayes | C32: =IF(COUNTRY_INFO!C32=0," ",COUNTRY_INFO!C32) -> Yelimane | D32: =IF(COUNTRY_INFO!$T$9:$T$1000="MDA2 (DEC+ALB)", COUNTRY_INFO!$T$9:$T$1000, " ") ->  | I32: 0 | M32: 0
A33: =IF(COUNTRY_INFO!A33=0," ",COUNTRY_INFO!A33) -> Mali | B33: =IF(COUNTRY_INFO!B33=0," ",COUNTRY_INFO!B33) -> Kidal | C33: =IF(COUNTRY_INFO!C33=0," ",COUNTRY_INFO!C33) -> Abeibara | D33: =IF(COUNTRY_INFO!$T$9:$T$1000="MDA2 (DEC+ALB)", COUNTRY_INFO!$T$9:$T$1000, " ") ->  | I33: 0 | M33: 0
A34: =IF(COUNTRY_INFO!A34=0," ",COUNTRY_INFO!A34) -> Mali | B34: =IF(COUNTRY_INFO!B34=0," ",COUNTRY_INFO!B34) -> Kidal | C34: =IF(COUNTRY_INFO!C34=0," ",COUNTRY_INFO!C34) -> Kidal | D34: =IF(COUNTRY_INFO!$T$9:$T$1000="MDA2 (DEC+ALB)", COUNTRY_INFO!$T$9:$T$1000, " ") ->  | I34: 0 | M34: 0
A35: =IF(COUNTRY_INFO!A35=0," ",COUNTRY_INFO!A35) -> Mali | B35: =IF(COUNTRY_INFO!B35=0," ",COUNTRY_INFO!B35) -> Kidal | C35: =IF(COUNTRY_INFO!C35=0," ",COUNTRY_INFO!C35) -> Tessalit | D35: =IF(COUNTRY_INFO!$T$9:$T$1000="MDA2 (DEC+ALB)", COUNTRY_INFO!$T$9:$T$1000, " ") ->  | I35: 0 | M35: 0
A36: =IF(COUNTRY_INFO!A36=0," ",COUNTRY_INFO!A36) -> Mali | B36: =IF(COUNTRY_INFO!B36=0," ",COUNTRY_INFO!B36) -> Kidal | C36: =IF(COUNTRY_INFO!C36=0," ",COUNTRY_INFO!C36) -> Tin-Essako | D36: =IF(COUNTRY_INFO!$T$9:$T$1000="MDA2 (DEC+ALB)", COUNTRY_INFO!$T$9:$T$1000, " ") ->  | I36: 0 | M36: 0
A37: =IF(COUNTRY_INFO!A37=0," ",COUNTRY_INFO!A37) -> Mali | B37: =IF(COUNTRY_INFO!B37=0," ",COUNTRY_INFO!B37) -> Koulikoro | C37: =IF(COUNTRY_INFO!C37=0," ",COUNTRY_INFO!C37) -> Banamba | D37: =IF(COUNTRY_INFO!$T$9:$T$1000="MDA2 (DEC+ALB)", COUNTRY_INFO!$T$9:$T$1000, " ") ->  | I37: 0 | M37: 0
A38: =IF(COUNTRY_INFO!A38=0," ",COUNTRY_INFO!A38) -> Mali | B38: =IF(COUNTRY_INFO!B38=0," ",COUNTRY_INFO!B38) -> Koulikoro | C38: =IF(COUNTRY_INFO!C38=0," ",COUNTRY_INFO!C38) -> Dioila | D38: =IF(COUNTRY_INFO!$T$9:$T$1000="MDA2 (DEC+ALB)", COUNTRY_INFO!$T$9:$T$1000, " ") ->  | I38: 0 | M38: 0
A39: =IF(COUNTRY_INFO!A39=0," ",COUNTRY_INFO!A39) -> Mali | B39: =IF(COUNTRY_INFO!B39=0," ",COUNTRY_INFO!B39) -> Koulikoro | C39: =IF(COUNTRY_INFO!C39=0," ",COUNTRY_INFO!C39) -> Fana | D39: =IF(COUNTRY_INFO!$T$9:$T$1000="MDA2 (DEC+ALB)", COUNTRY_INFO!$T$9:$T$1000, " ") ->  | I39: 0 | M39: 0
A40: =IF(COUNTRY_INFO!A40=0," ",COUNTRY_INFO!A40) -> Mali | B40: =IF(COUNTRY_INFO!B40=0," ",COUNTRY_INFO!B40) -> Koulikoro | C40: =IF(COUNTRY_INFO!C40=0," ",COUNTRY_INFO!C40) -> Kalabancoro | D40: =IF(COUNTRY_INFO!$T$9:$T$1000="MDA2 (DEC+ALB)", COUNTRY_INFO!$T$9:$T$1000, " ") ->  | I40: 0 | M40: 0
A41: =IF(COUNTRY_INFO!A41=0," ",COUNTRY_INFO!A41) -> Mali | B41: =IF(COUNTRY_INFO!B41=0," ",COUNTRY_INFO!B41) -> Koulikoro | C41: =IF(COUNTRY_INFO!C41=0," ",COUNTRY_INFO!C41) -> Kangaba | D41: =IF(COUNTRY_INFO!$T$9:$T$1000="MDA2 (DEC+ALB)", COUNTRY_INFO!$T$9:$T$1000, " ") ->  | I41: 0 | M41: 0
A42: =IF(COUNTRY_INFO!A42=0," ",COUNTRY_INFO!A42) -> Mali | B42: =IF(COUNTRY_INFO!B42=0," ",COUNTRY_INFO!B42) -> Koulikoro | C42: =IF(COUNTRY_INFO!C42=0," ",COUNTRY_INFO!C42) -> Kati | D42: =IF(COUNTRY_INFO!$T$9:$T$1000="MDA2 (DEC+ALB)", COUNTRY_INFO!$T$9:$T$1000, " ") ->  | I42: 0 | M42: 0
A43: =IF(COUNTRY_INFO!A43=0," ",COUNTRY_INFO!A43) -> Mali | B43: =IF(COUNTRY_INFO!B43=0," ",COUNTRY_INFO!B43) -> Koulikoro | C43: =IF(COUNTRY_INFO!C43=0," ",COUNTRY_INFO!C43) -> Kolokani | D43: =IF(COUNTRY_INFO!$T$9:$T$1000="MDA2 (DEC+ALB)", COUNTRY_INFO!$T$9:$T$1000, " ") ->  | I43: 0 | M43: 0
A44: =IF(COUNTRY_INFO!A44=0," ",COUNTRY_INFO!A44) -> Mali | B44: =IF(COUNTRY_INFO!B44=0," ",COUNTRY_INFO!B44) -> Koulikoro | C44: =IF(COUNTRY_INFO!C44=0," ",COUNTRY_INFO!C44) -> Koulikoro | D44: =IF(COUNTRY_INFO!$T$9:$T$1000="MDA2 (DEC+ALB)", COUNTRY_INFO!$T$9:$T$1000, " ") ->  | I44: 0 | M44: 0
A45: =IF(COUNTRY_INFO!A45=0," ",COUNTRY_INFO!A45) -> Mali | B45: =IF(COUNTRY_INFO!B45=0," ",COUNTRY_INFO!B45) -> Koulikoro | C45: =IF(COUNTRY_INFO!C45=0," ",COUNTRY_INFO!C45) -> Nara | D45: =IF(COUNTRY_INFO!$T$9:$T$1000="MDA2 (DEC+ALB)", COUNTRY_INFO!$T$9:$T$1000, " ") ->  | I45: 0 | M45: 0
A46: =IF(COUNTRY_INFO!A46=0," ",COUNTRY_INFO!A46) -> Mali | B46: =IF(COUNTRY_INFO!B46=0," ",COUNTRY_INFO!B46) -> Koulikoro | C46: =IF(COUNTRY_INFO!C46=0," ",COUNTRY_INFO!C46) -> Ouelessebougou | D46: =IF(COUNTRY_INFO!$T$9:$T$1000="MDA2 (DEC+ALB)", COUNTRY_INFO!$T$9:$T$1000, " ") ->  | I46: 0 | M46: 0
A47: =IF(COUNTRY_INFO!A47=0," ",COUNTRY_INFO!A47) -> Mali | B47: =IF(COUNTRY_INFO!B47=0," ",COUNTRY_INFO!B47) -> Mopti | C47: =IF(COUNTRY_INFO!C47=0," ",COUNTRY_INFO!C47) -> Bandiagara | D47: =IF(COUNTRY_INFO!$T$9:$T$1000="MDA2 (DEC+ALB)", COUNTRY_INFO!$T$9:$T$1000, " ") ->  | I47: 0 | M47: 0
A48: =IF(COUNTRY_INFO!A48=0," ",COUNTRY_INFO!A48) -> Mali | B48: =IF(COUNTRY_INFO!B48=0," ",COUNTRY_INFO!B48) -> Mopti | C48: =IF(COUNTRY_INFO!C48=0," ",COUNTRY_INFO!C48) -> Bankass | D48: =IF(COUNTRY_INFO!$T$9:$T$1000="MDA2 (DEC+ALB)", COUNTRY_INFO!$T$9:$T$1000, " ") ->  | I48: 0 | M48: 0
A49: =IF(COUNTRY_INFO!A49=0," ",COUNTRY_INFO!A49) -> Mali | B49: =IF(COUNTRY_INFO!B49=0," ",COUNTRY_INFO!B49) -> Mopti | C49: =IF(COUNTRY_INFO!C49=0," ",COUNTRY_INFO!C49) -> Djenne | D49: =IF(COUNTRY_INFO!$T$9:$T$1000="MDA2 (DEC+ALB)", COUNTRY_INFO!$T$9:$T$1000, " ") ->  | I49: 0 | M49: 0
A50: =IF(COUNTRY_INFO!A50=0," ",COUNTRY_INFO!A50) -> Mali | B50: =IF(COUNTRY_INFO!B50=0," ",COUNTRY_INFO!B50) -> Mopti | C50: =IF(COUNTRY_INFO!C50=0," ",COUNTRY_INFO!C50) -> Douentza | D50: =IF(COUNTRY_INFO!$T$9:$T$1000="MDA2 (DEC+ALB)", COUNTRY_INFO!$T$9:$T$1000, " ") ->  | I50: 0 | M50: 0
A51: =IF(COUNTRY_INFO!A51=0," ",COUNTRY_INFO!A51) -> Mali | B51: =IF(COUNTRY_INFO!B51=0," ",COUNTRY_INFO!B51) -> Mopti | C51: =IF(COUNTRY_INFO!C51=0," ",COUNTRY_INFO!C51) -> Koro | D51: =IF(COUNTRY_INFO!$T$9:$T$1000="MDA2 (DEC+ALB)", COUNTRY_INFO!$T$9:$T$1000, " ") ->  | I51: 0 | M51: 0
A52: =IF(COUNTRY_INFO!A52=0," ",COUNTRY_INFO!A52) -> Mali | B52: =IF(COUNTRY_INFO!B52=0," ",COUNTRY_INFO!B52) -> Mopti | C52: =IF(COUNTRY_INFO!C52=0," ",COUNTRY_INFO!C52) -> Mopti | D52: =IF(COUNTRY_INFO!$T$9:$T$1000="MDA2 (DEC+ALB)", COUNTRY_INFO!$T$9:$T$1000, " ") ->  | I52: 0 | M52: 0
A53: =IF(COUNTRY_INFO!A53=0," ",COUNTRY_INFO!A53) -> Mali | B53: =IF(COUNTRY_INFO!B53=0," ",COUNTRY_INFO!B53) -> Mopti | C53: =IF(COUNTRY_INFO!C53=0," ",COUNTRY_INFO!C53) -> Teninkou | D53: =IF(COUNTRY_INFO!$T$9:$T$1000="MDA2 (DEC+ALB)", COUNTRY_INFO!$T$9:$T$1000, " ") ->  | I53: 0 | M53: 0
A54: =IF(COUNTRY_INFO!A54=0," ",COUNTRY_INFO!A54) -> Mali | B54: =IF(COUNTRY_INFO!B54=0," ",COUNTRY_INFO!B54) -> Mopti | C54: =IF(COUNTRY_INFO!C54=0," ",COUNTRY_INFO!C54) -> Youwarou | D54: =IF(COUNTRY_INFO!$T$9:$T$1000="MDA2 (DEC+ALB)", COUNTRY_INFO!$T$9:$T$1000, " ") ->  | I54: 0 | M54: 0
A55: =IF(COUNTRY_INFO!A55=0," ",COUNTRY_INFO!A55) -> Mali | B55: =IF(COUNTRY_INFO!B55=0," ",COUNTRY_INFO!B55) -> Segou | C55: =IF(COUNTRY_INFO!C55=0," ",COUNTRY_INFO!C55) -> Barouéli | D55: =IF(COUNTRY_INFO!$T$9:$T$1000="MDA2 (DEC+ALB)", COUNTRY_INFO!$T$9:$T$1000, " ") ->  | I55: 0 | M55: 0
A56: =IF(COUNTRY_INFO!A56=0," ",COUNTRY_INFO!A56) -> Mali | B56: =IF(COUNTRY_INFO!B56=0," ",COUNTRY_INFO!B56) -> Segou | C56: =IF(COUNTRY_INFO!C56=0," ",COUNTRY_INFO!C56) -> Bla | D56: =IF(COUNTRY_INFO!$T$9:$T$1000="MDA2 (DEC+ALB)", COUNTRY_INFO!$T$9:$T$1000, " ") ->  | I56: 0 | M56: 0
A57: =IF(COUNTRY_INFO!A57=0," ",COUNTRY_INFO!A57) -> Mali | B57: =IF(COUNTRY_INFO!B57=0," ",COUNTRY_INFO!B57) -> Segou | C57: =IF(COUNTRY_INFO!C57=0," ",COUNTRY_INFO!C57) -> Macina | D57: =IF(COUNTRY_INFO!$T$9:$T$1000="MDA2 (DEC+ALB)", COUNTRY_INFO!$T$9:$T$1000, " ") ->  | I57: 0 | M57: 0
A58: =IF(COUNTRY_INFO!A58=0," ",COUNTRY_INFO!A58) -> Mali | B58: =IF(COUNTRY_INFO!B58=0," ",COUNTRY_INFO!B58) -> Segou | C58: =IF(COUNTRY_INFO!C58=0," ",COUNTRY_INFO!C58) -> Markala | D58: =IF(COUNTRY_INFO!$T$9:$T$1000="MDA2 (DEC+ALB)", COUNTRY_INFO!$T$9:$T$1000, " ") ->  | I58: 0 | M58: 0
A59: =IF(COUNTRY_INFO!A59=0," ",COUNTRY_INFO!A59) -> Mali | B59: =IF(COUNTRY_INFO!B59=0," ",COUNTRY_INFO!B59) -> Segou | C59: =IF(COUNTRY_INFO!C59=0," ",COUNTRY_INFO!C59) -> Niono | D59: =IF(COUNTRY_INFO!$T$9:$T$1000="MDA2 (DEC+ALB)", COUNTRY_INFO!$T$9:$T$1000, " ") ->  | I59: 0 | M59: 0
A60: =IF(COUNTRY_INFO!A60=0," ",COUNTRY_INFO!A60) -> Mali | B60: =IF(COUNTRY_INFO!B60=0," ",COUNTRY_INFO!B60) -> Segou | C60: =IF(COUNTRY_INFO!C60=0," ",COUNTRY_INFO!C60) -> San | D60: =IF(COUNTRY_INFO!$T$9:$T$1000="MDA2 (DEC+ALB)", COUNTRY_INFO!$T$9:$T$1000, " ") ->  | I60: 0 | M60: 0
A61: =IF(COUNTRY_INFO!A61=0," ",COUNTRY_INFO!A61) -> Mali | B61: =IF(COUNTRY_INFO!B61=0," ",COUNTRY_INFO!B61) -> Segou | C61: =IF(COUNTRY_INFO!C61=0," ",COUNTRY_INFO!C61) -> Segou | D61: =IF(COUNTRY_INFO!$T$9:$T$1000="MDA2 (DEC+ALB)", COUNTRY_INFO!$T$9:$T$1000, " ") ->  | I61: 0 | M61: 0
A62: =IF(COUNTRY_INFO!A62=0," ",COUNTRY_INFO!A62) -> Mali | B62: =IF(COUNTRY_INFO!B62=0," ",COUNTRY_INFO!B62) -> Segou | C62: =IF(COUNTRY_INFO!C62=0," ",COUNTRY_INFO!C62) -> Tominian | D62: =IF(COUNTRY_INFO!$T$9:$T$1000="MDA2 (DEC+ALB)", COUNTRY_INFO!$T$9:$T$1000, " ") ->  | I62: 0 | M62: 0
A63: =IF(COUNTRY_INFO!A63=0," ",COUNTRY_INFO!A63) -> Mali | B63: =IF(COUNTRY_INFO!B63=0," ",COUNTRY_INFO!B63) -> Sikasso | C63: =IF(COUNTRY_INFO!C63=0," ",COUNTRY_INFO!C63) -> Bougouni | D63: =IF(COUNTRY_INFO!$T$9:$T$1000="MDA2 (DEC+ALB)", COUNTRY_INFO!$T$9:$T$1000, " ") ->  | I63: 0 | M63: 0
A64: =IF(COUNTRY_INFO!A64=0," ",COUNTRY_INFO!A64) -> Mali | B64: =IF(COUNTRY_INFO!B64=0," ",COUNTRY_INFO!B64) -> Sikasso | C64: =IF(COUNTRY_INFO!C64=0," ",COUNTRY_INFO!C64) -> Kadiolo | D64: =IF(COUNTRY_INFO!$T$9:$T$1000="MDA2 (DEC+ALB)", COUNTRY_INFO!$T$9:$T$1000, " ") ->  | I64: 0 | M64: 0
A65: =IF(COUNTRY_INFO!A65=0," ",COUNTRY_INFO!A65) -> Mali | B65: =IF(COUNTRY_INFO!B65=0," ",COUNTRY_INFO!B65) -> Sikasso | C65: =IF(COUNTRY_INFO!C65=0," ",COUNTRY_INFO!C65) -> Kignan | D65: =IF(COUNTRY_INFO!$T$9:$T$1000="MDA2 (DEC+ALB)", COUNTRY_INFO!$T$9:$T$1000, " ") ->  | I65: 0 | M65: 0
A66: =IF(COUNTRY_INFO!A66=0," ",COUNTRY_INFO!A66) -> Mali | B66: =IF(COUNTRY_INFO!B66=0," ",COUNTRY_INFO!B66) -> Sikasso | C66: =IF(COUNTRY_INFO!C66=0," ",COUNTRY_INFO!C66) -> Kolondieba | D66: =IF(COUNTRY_INFO!$T$9:$T$1000="MDA2 (DEC+ALB)", COUNTRY_INFO!$T$9:$T$1000, " ") ->  | I66: 0 | M66: 0
A67: =IF(COUNTRY_INFO!A67=0," ",COUNTRY_INFO!A67) -> Mali | B67: =IF(COUNTRY_INFO!B67=0," ",COUNTRY_INFO!B67) -> Sikasso | C67: =IF(COUNTRY_INFO!C67=0," ",COUNTRY_INFO!C67) -> Koutiala | D67: =IF(COUNTRY_INFO!$T$9:$T$1000="MDA2 (DEC+ALB)", COUNTRY_INFO!$T$9:$T$1000, " ") ->  | I67: 0 | M67: 0
A68: =IF(COUNTRY_INFO!A68=0," ",COUNTRY_INFO!A68) -> Mali | B68: =IF(COUNTRY_INFO!B68=0," ",COUNTRY_INFO!B68) -> Sikasso | C68: =IF(COUNTRY_INFO!C68=0," ",COUNTRY_INFO!C68) -> Niena | D68: =IF(COUNTRY_INFO!$T$9:$T$1000="MDA2 (DEC+ALB)", COUNTRY_INFO!$T$9:$T$1000, " ") ->  | I68: 0 | M68: 0
A69: =IF(COUNTRY_INFO!A69=0," ",COUNTRY_INFO!A69) -> Mali | B69: =IF(COUNTRY_INFO!B69=0," ",COUNTRY_INFO!B69) -> Sikasso | C69: =IF(COUNTRY_INFO!C69=0," ",COUNTRY_INFO!C69) -> Sélingué | D69: =IF(COUNTRY_INFO!$T$9:$T$1000="MDA2 (DEC+ALB)", COUNTRY_INFO!$T$9:$T$1000, " ") ->  | I69: 0 | M69: 0
A70: =IF(COUNTRY_INFO!A70=0," ",COUNTRY_INFO!A70) -> Mali | B70: =IF(COUNTRY_INFO!B70=0," ",COUNTRY_INFO!B70) -> Sikasso | C70: =IF(COUNTRY_INFO!C70=0," ",COUNTRY_INFO!C70) -> Sikasso | D70: =IF(COUNTRY_INFO!$T$9:$T$1000="MDA2 (DEC+ALB)", COUNTRY_INFO!$T$9:$T$1000, " ") ->  | I70: 0 | M70: 0
A71: =IF(COUNTRY_INFO!A71=0," ",COUNTRY_INFO!A71) -> Mali | B71: =IF(COUNTRY_INFO!B71=0," ",COUNTRY_INFO!B71) -> Sikasso | C71: =IF(COUNTRY_INFO!C71=0," ",COUNTRY_INFO!C71) -> Yanfolila | D71: =IF(COUNTRY_INFO!$T$9:$T$1000="MDA2 (DEC+ALB)", COUNTRY_INFO!$T$9:$T$1000, " ") ->  | I71: 0 | M71: 0
A72: =IF(COUNTRY_INFO!A72=0," ",COUNTRY_INFO!A72) -> Mali | B72: =IF(COUNTRY_INFO!B72=0," ",COUNTRY_INFO!B72) -> Sikasso | C72: =IF(COUNTRY_INFO!C72=0," ",COUNTRY_INFO!C72) -> Yorosso | D72: =IF(COUNTRY_INFO!$T$9:$T$1000="MDA2 (DEC+ALB)", COUNTRY_INFO!$T$9:$T$1000, " ") ->  | I72: 0 | M72: 0
A73: =IF(COUNTRY_INFO!A73=0," ",COUNTRY_INFO!A73) -> Mali | B73: =IF(COUNTRY_INFO!B73=0," ",COUNTRY_INFO!B73) -> Tombouctou | C73: =IF(COUNTRY_INFO!C73=0," ",COUNTRY_INFO!C73) -> Diré | D73: =IF(COUNTRY_INFO!$T$9:$T$1000="MDA2 (DEC+ALB)", COUNTRY_INFO!$T$9:$T$1000, " ") ->  | I73: 0 | M73: 0
A74: =IF(COUNTRY_INFO!A74=0," ",COUNTRY_INFO!A74) -> Mali | B74: =IF(COUNTRY_INFO!B74=0," ",COUNTRY_INFO!B74) -> Tombouctou | C74: =IF(COUNTRY_INFO!C74=0," ",COUNTRY_INFO!C74) -> Goundam | D74: =IF(COUNTRY_INFO!$T$9:$T$1000="MDA2 (DEC+ALB)", COUNTRY_INFO!$T$9:$T$1000, " ") ->  | I74: =SUM(F74:H74) -> 0 | M74: =SUM(J74:L74) -> 0 | N74: =IF(F74<>0, IF(J74/F74*100=0, "-", J74/F74*100), " ") ->  | O74: =IF(G74<>0, IF(K74/G74*100=0, "-", K74/G74*100), " ") ->  | P74: =IF(H74<>0, IF(L74/H74*100=0, "-", L74/H74*100), " ") ->  | Q74: =IF(I74<>0, IF(M74/I74*100=0, "-", M74/I74*100), " ") -> 
A75: =IF(COUNTRY_INFO!A75=0," ",COUNTRY_INFO!A75) -> Mali | B75: =IF(COUNTRY_INFO!B75=0," ",COUNTRY_INFO!B75) -> Tombouctou | C75: =IF(COUNTRY_INFO!C75=0," ",COUNTRY_INFO!C75) -> Gourma-Rharous | D75: =IF(COUNTRY_INFO!$T$9:$T$1000="MDA2 (DEC+ALB)", COUNTRY_INFO!$T$9:$T$1000, " ") ->  | I75: 0 | M75: 0
A76: =IF(COUNTRY_INFO!A76=0," ",COUNTRY_INFO!A76) -> Mali | B76: =IF(COUNTRY_INFO!B76=0," ",COUNTRY_INFO!B76) -> Tombouctou | C76: =IF(COUNTRY_INFO!C76=0," ",COUNTRY_INFO!C76) -> Niafunké | D76: =IF(COUNTRY_INFO!$T$9:$T$1000="MDA2 (DEC+ALB)", COUNTRY_INFO!$T$9:$T$1000, " ") ->  | I76: 0 | M76: 0
A77: =IF(COUNTRY_INFO!A77=0," ",COUNTRY_INFO!A77) -> Mali | B77: =IF(COUNTRY_INFO!B77=0," ",COUNTRY_INFO!B77) -> Tombouctou | C77: =IF(COUNTRY_INFO!C77=0," ",COUNTRY_INFO!C77) -> Tombouctou | D77: =IF(COUNTRY_INFO!$T$9:$T$1000="MDA2 (DEC+ALB)", COUNTRY_INFO!$T$9:$T$1000, " ") ->  | I77: 0 | M77: 0
A78: =IF(COUNTRY_INFO!A78=0," ",COUNTRY_INFO!A78) -> Mali | B78: =IF(COUNTRY_INFO!B78=0," ",COUNTRY_INFO!B78) -> Taoudenit | C78: =IF(COUNTRY_INFO!C78=0," ",COUNTRY_INFO!C78) -> Achourat | D78: =IF(COUNTRY_INFO!$T$9:$T$1000="MDA2 (DEC+ALB)", COUNTRY_INFO!$T$9:$T$1000, " ") ->  | I78: 0 | M78: 0
A79: =IF(COUNTRY_INFO!A79=0," ",COUNTRY_INFO!A79) -> Mali | B79: =IF(COUNTRY_INFO!B79=0," ",COUNTRY_INFO!B79) -> Taoudenit | C79: =IF(COUNTRY_INFO!C79=0," ",COUNTRY_INFO!C79) -> Al-Ourch | D79: =IF(COUNTRY_INFO!$T$9:$T$1000="MDA2 (DEC+ALB)", COUNTRY_INFO!$T$9:$T$1000, " ") ->  | I79: 0 | M79: 0
A80: =IF(COUNTRY_INFO!A80=0," ",COUNTRY_INFO!A80) -> Mali | B80: =IF(COUNTRY_INFO!B80=0," ",COUNTRY_INFO!B80) -> Taoudenit | C80: =IF(COUNTRY_INFO!C80=0," ",COUNTRY_INFO!C80) -> Araouane | D80: =IF(COUNTRY_INFO!$T$9:$T$1000="MDA2 (DEC+ALB)", COUNTRY_INFO!$T$9:$T$1000, " ") ->  | I80: 0 | M80: 0
A81: =IF(COUNTRY_INFO!A81=0," ",COUNTRY_INFO!A81) -> Mali | B81: =IF(COUNTRY_INFO!B81=0," ",COUNTRY_INFO!B81) -> Taoudenit | C81: =IF(COUNTRY_INFO!C81=0," ",COUNTRY_INFO!C81) -> Boujbeha | D81: =IF(COUNTRY_INFO!$T$9:$T$1000="MDA2 (DEC+ALB)", COUNTRY_INFO!$T$9:$T$1000, " ") ->  | I81: 0 | M81: 0
A82: =IF(COUNTRY_INFO!A82=0," ",COUNTRY_INFO!A82) -> Mali | B82: =IF(COUNTRY_INFO!B82=0," ",COUNTRY_INFO!B82) -> Taoudenit | C82: =IF(COUNTRY_INFO!C82=0," ",COUNTRY_INFO!C82) -> Foum-Elba | D82: =IF(COUNTRY_INFO!$T$9:$T$1000="MDA2 (DEC+ALB)", COUNTRY_INFO!$T$9:$T$1000, " ") ->  | I82: 0 | M82: 0
A83: =IF(COUNTRY_INFO!A83=0," ",COUNTRY_INFO!A83) -> Mali | B83: =IF(COUNTRY_INFO!B83=0," ",COUNTRY_INFO!B83) -> Taoudenit | C83: =IF(COUNTRY_INFO!C83=0," ",COUNTRY_INFO!C83) -> Taoudenit | D83: =IF(COUNTRY_INFO!$T$9:$T$1000="MDA2 (DEC+ALB)", COUNTRY_INFO!$T$9:$T$1000, " ") ->  | I83: 0 | M83: 0

Sheet MDA3
A1: MDA 3 - Ivermectine (IVM)
A2: Structure administrative, population nécessitant une chimioprévention par groupe d'âge, population traitée par groupe d'âge et couverture
A4: TOTAL | F4: =SUM(F$9:F$1000) -> 0 | G4: 0 | H4: 0 | I4: 0 | J4: 0 | K4: 0 | L4: 0 | M4: 0 | N4: 0 | O4: 0 | P4: 0 | Q4: 0 | R4: =IF(F4<>0, IF(O4/F4*100=0, "-", O4/F4*100), " ") ->  | S4: =IF(G4<>0, IF(P4/G4*100=0, "-", P4/G4*100), " ") ->  | T4: =IF(H4<>0, IF(Q4/H4*100=0, "-", Q4/H4*100), " ") -> 
A6: Structure administrative du pays | D6: Mise en oeuvre de la CP | E6: Date | F6: Population ciblée pour MDA 3 | I6: Population traitée - tournée 1 | L6: Population traitée - tournée 2 | O6: Population traitée | R6: Couverture du Programme (%)
A7: Pays | B7: Région/Département | C7: District | F7: EAS | G7: Adultes | H7: Total | I7: EAS | J7: Adultes | K7: Total | L7: EAS | M7: Adultes | N7: Total | O7: EAS | P7: Adultes | Q7: Total | R7: EAS | S7: Adultes | T7: Total
A9: =IF(COUNTRY_INFO!A9=0," ",COUNTRY_INFO!A9) -> Mali | B9: =IF(COUNTRY_INFO!B9=0," ",COUNTRY_INFO!B9) -> Bamako | C9: =IF(COUNTRY_INFO!C9=0," ",COUNTRY_INFO!C9) -> Commune 1 | D9: =IF(COUNTRY_INFO!$T$9:$T$1000="MDA3 (IVM)", COUNTRY_INFO!$T$9:$T$1000, " ") ->  | H9: =SUM(F9:G9) -> 0 | K9: =SUM(I9:J9) -> 0 | N9: =SUM(L9:M9) -> 0 | O9: =MAX(I9,L9) -> 0 | P9: 0 | Q9: =SUM(O9:P9) -> 0 | R9: =IF(F9<>0, IF(MAX(I9,L9)/F9*100=0, "-", MAX(I9,L9)/F9*100), " ") ->  | T9: =IF(H9<>0, IF((MAX(I9,L9)+MAX(J9,M9))/H9*100=0, "-",(MAX(I9,L9)+MAX(J9,M9))/H9*100), " ") -> 
A10: =IF(COUNTRY_INFO!A10=0," ",COUNTRY_INFO!A10) -> Mali | B10: =IF(COUNTRY_INFO!B10=0," ",COUNTRY_INFO!B10) -> Bamako | C10: =IF(COUNTRY_INFO!C10=0," ",COUNTRY_INFO!C10) -> Commune 2 | D10: =IF(COUNTRY_INFO!$T$9:$T$1000="MDA3 (IVM)", COUNTRY_INFO!$T$9:$T$1000, " ") ->  | H10: =SUM(F10:G10) -> 0 | K10: =SUM(I10:J10) -> 0 | N10: =SUM(L10:M10) -> 0 | O10: =MAX(I10,L10) -> 0 | P10: =MAX(J10,M10) -> 0 | Q10: =SUM(O10:P10) -> 0 | R10: =IF(F10<>0, IF(MAX(I10,L10)/F10*100=0, "-", MAX(I10,L10)/F10*100), " ") ->  | S10: =IF(G10<>0, IF(MAX(J10,M10)/G10*100=0, "-", MAX(J10,M10)/G10*100), " ") ->  | T10: =IF(H10<>0, IF((MAX(I10,L10)+MAX(J10,M10))/H10*100=0, "-",(MAX(I10,L10)+MAX(J10,M10))/H10*100), " ") -> 
A11: =IF(COUNTRY_INFO!A11=0," ",COUNTRY_INFO!A11) -> Mali | B11: =IF(COUNTRY_INFO!B11=0," ",COUNTRY_INFO!B11) -> Bamako | C11: =IF(COUNTRY_INFO!C11=0," ",COUNTRY_INFO!C11) -> Commune 3 | D11: =IF(COUNTRY_INFO!$T$9:$T$1000="MDA3 (IVM)", COUNTRY_INFO!$T$9:$T$1000, " ") ->  | H11: 0 | K11: 0 | N11: 0 | O11: 0 | P11: 0 | Q11: 0
A12: =IF(COUNTRY_INFO!A12=0," ",COUNTRY_INFO!A12) -> Mali | B12: =IF(COUNTRY_INFO!B12=0," ",COUNTRY_INFO!B12) -> Bamako | C12: =IF(COUNTRY_INFO!C12=0," ",COUNTRY_INFO!C12) -> Commune 4 | D12: =IF(COUNTRY_INFO!$T$9:$T$1000="MDA3 (IVM)", COUNTRY_INFO!$T$9:$T$1000, " ") ->  | H12: 0 | K12: 0 | N12: 0 | O12: 0 | P12: 0 | Q12: 0
A13: =IF(COUNTRY_INFO!A13=0," ",COUNTRY_INFO!A13) -> Mali | B13: =IF(COUNTRY_INFO!B13=0," ",COUNTRY_INFO!B13) -> Bamako | C13: =IF(COUNTRY_INFO!C13=0," ",COUNTRY_INFO!C13) -> Commune 5 | D13: =IF(COUNTRY_INFO!$T$9:$T$1000="MDA3 (IVM)", COUNTRY_INFO!$T$9:$T$1000, " ") ->  | H13: 0 | K13: 0 | N13: 0 | O13: 0 | P13: 0 | Q13: 0
A14: =IF(COUNTRY_INFO!A14=0," ",COUNTRY_INFO!A14) -> Mali | B14: =IF(COUNTRY_INFO!B14=0," ",COUNTRY_INFO!B14) -> Bamako | C14: =IF(COUNTRY_INFO!C14=0," ",COUNTRY_INFO!C14) -> Commune 6 | D14: =IF(COUNTRY_INFO!$T$9:$T$1000="MDA3 (IVM)", COUNTRY_INFO!$T$9:$T$1000, " ") ->  | H14: 0 | K14: 0 | N14: 0 | O14: 0 | P14: 0 | Q14: 0
A15: =IF(COUNTRY_INFO!A15=0," ",COUNTRY_INFO!A15) -> Mali | B15: =IF(COUNTRY_INFO!B15=0," ",COUNTRY_INFO!B15) -> Gao | C15: =IF(COUNTRY_INFO!C15=0," ",COUNTRY_INFO!C15) -> Ansongo | D15: =IF(COUNTRY_INFO!$T$9:$T$1000="MDA3 (IVM)", COUNTRY_INFO!$T$9:$T$1000, " ") ->  | H15: 0 | K15: 0 | N15: 0 | O15: 0 | P15: 0 | Q15: 0
A16: =IF(COUNTRY_INFO!A16=0," ",COUNTRY_INFO!A16) -> Mali | B16: =IF(COUNTRY_INFO!B16=0," ",COUNTRY_INFO!B16) -> Gao | C16: =IF(COUNTRY_INFO!C16=0," ",COUNTRY_INFO!C16) -> Bourem | D16: =IF(COUNTRY_INFO!$T$9:$T$1000="MDA3 (IVM)", COUNTRY_INFO!$T$9:$T$1000, " ") ->  | H16: 0 | K16: 0 | N16: 0 | O16: 0 | P16: 0 | Q16: 0
A17: =IF(COUNTRY_INFO!A17=0," ",COUNTRY_INFO!A17) -> Mali | B17: =IF(COUNTRY_INFO!B17=0," ",COUNTRY_INFO!B17) -> Gao | C17: =IF(COUNTRY_INFO!C17=0," ",COUNTRY_INFO!C17) -> Almoustrat | D17: =IF(COUNTRY_INFO!$T$9:$T$1000="MDA3 (IVM)", COUNTRY_INFO!$T$9:$T$1000, " ") ->  | H17: 0 | K17: 0 | N17: 0 | O17: 0 | P17: 0 | Q17: 0
A18: =IF(COUNTRY_INFO!A18=0," ",COUNTRY_INFO!A18) -> Mali | B18: =IF(COUNTRY_INFO!B18=0," ",COUNTRY_INFO!B18) -> Gao | C18: =IF(COUNTRY_INFO!C18=0," ",COUNTRY_INFO!C18) -> Gao | D18: =IF(COUNTRY_INFO!$T$9:$T$1000="MDA3 (IVM)", COUNTRY_INFO!$T$9:$T$1000, " ") ->  | H18: 0 | K18: 0 | N18: 0 | O18: 0 | P18: 0 | Q18: 0
A19: =IF(COUNTRY_INFO!A19=0," ",COUNTRY_INFO!A19) -> Mali | B19: =IF(COUNTRY_INFO!B19=0," ",COUNTRY_INFO!B19) -> Menaka | C19: =IF(COUNTRY_INFO!C19=0," ",COUNTRY_INFO!C19) -> Menaka | D19: =IF(COUNTRY_INFO!$T$9:$T$1000="MDA3 (IVM)", COUNTRY_INFO!$T$9:$T$1000, " ") ->  | H19: 0 | K19: 0 | N19: 0 | O19: 0 | P19: 0 | Q19: 0
A20: =IF(COUNTRY_INFO!A20=0," ",COUNTRY_INFO!A20) -> Mali | B20: =IF(COUNTRY_INFO!B20=0," ",COUNTRY_INFO!B20) -> Menaka | C20: =IF(COUNTRY_INFO!C20=0," ",COUNTRY_INFO!C20) -> Anderamboukane | D20: =IF(COUNTRY_INFO!$T$9:$T$1000="MDA3 (IVM)", COUNTRY_INFO!$T$9:$T$1000, " ") ->  | H20: 0 | K20: 0 | N20: 0 | O20: 0 | P20: 0 | Q20: 0
A21: =IF(COUNTRY_INFO!A21=0," ",COUNTRY_INFO!A21) -> Mali | B21: =IF(COUNTRY_INFO!B21=0," ",COUNTRY_INFO!B21) -> Menaka | C21: =IF(COUNTRY_INFO!C21=0," ",COUNTRY_INFO!C21) -> Inekar | D21: =IF(COUNTRY_INFO!$T$9:$T$1000="MDA3 (IVM)", COUNTRY_INFO!$T$9:$T$1000, " ") ->  | H21: 0 | K21: 0 | N21: 0 | O21: 0 | P21: 0 | Q21: 0
A22: =IF(COUNTRY_INFO!A22=0," ",COUNTRY_INFO!A22) -> Mali | B22: =IF(COUNTRY_INFO!B22=0," ",COUNTRY_INFO!B22) -> Menaka | C22: =IF(COUNTRY_INFO!C22=0," ",COUNTRY_INFO!C22) -> Tidermene | D22: =IF(COUNTRY_INFO!$T$9:$T$1000="MDA3 (IVM)", COUNTRY_INFO!$T$9:$T$1000, " ") ->  | H22: 0 | K22: 0 | N22: 0 | O22: 0 | P22: 0 | Q22: 0
A23: =IF(COUNTRY_INFO!A23=0," ",COUNTRY_INFO!A23) -> Mali | B23: =IF(COUNTRY_INFO!B23=0," ",COUNTRY_INFO!B23) -> Kayes | C23: =IF(COUNTRY_INFO!C23=0," ",COUNTRY_INFO!C23) -> Bafoulabe | D23: =IF(COUNTRY_INFO!$T$9:$T$1000="MDA3 (IVM)", COUNTRY_INFO!$T$9:$T$1000, " ") ->  | H23: 0 | K23: 0 | N23: 0 | O23: 0 | P23: 0 | Q23: 0
A24: =IF(COUNTRY_INFO!A24=0," ",COUNTRY_INFO!A24) -> Mali | B24: =IF(COUNTRY_INFO!B24=0," ",COUNTRY_INFO!B24) -> Kayes | C24: =IF(COUNTRY_INFO!C24=0," ",COUNTRY_INFO!C24) -> Diema | D24: =IF(COUNTRY_INFO!$T$9:$T$1000="MDA3 (IVM)", COUNTRY_INFO!$T$9:$T$1000, " ") ->  | H24: 0 | K24: 0 | N24: 0 | O24: 0 | P24: 0 | Q24: 0
A25: =IF(COUNTRY_INFO!A25=0," ",COUNTRY_INFO!A25) -> Mali | B25: =IF(COUNTRY_INFO!B25=0," ",COUNTRY_INFO!B25) -> Kayes | C25: =IF(COUNTRY_INFO!C25=0," ",COUNTRY_INFO!C25) -> Kayes | D25: =IF(COUNTRY_INFO!$T$9:$T$1000="MDA3 (IVM)", COUNTRY_INFO!$T$9:$T$1000, " ") ->  | H25: 0 | K25: 0 | N25: 0 | O25: 0 | P25: 0 | Q25: 0
A26: =IF(COUNTRY_INFO!A26=0," ",COUNTRY_INFO!A26) -> Mali | B26: =IF(COUNTRY_INFO!B26=0," ",COUNTRY_INFO!B26) -> Kayes | C26: =IF(COUNTRY_INFO!C26=0," ",COUNTRY_INFO!C26) -> Kenieba | D26: =IF(COUNTRY_INFO!$T$9:$T$1000="MDA3 (IVM)", COUNTRY_INFO!$T$9:$T$1000, " ") ->  | H26: 0 | K26: 0 | N26: 0 | O26: 0 | P26: 0 | Q26: 0
A27: =IF(COUNTRY_INFO!A27=0," ",COUNTRY_INFO!A27) -> Mali | B27: =IF(COUNTRY_INFO!B27=0," ",COUNTRY_INFO!B27) -> Kayes | C27: =IF(COUNTRY_INFO!C27=0," ",COUNTRY_INFO!C27) -> Kita | D27: =IF(COUNTRY_INFO!$T$9:$T$1000="MDA3 (IVM)", COUNTRY_INFO!$T$9:$T$1000, " ") ->  | H27: 0 | K27: 0 | N27: 0 | O27: 0 | P27: 0 | Q27: 0
A28: =IF(COUNTRY_INFO!A28=0," ",COUNTRY_INFO!A28) -> Mali | B28: =IF(COUNTRY_INFO!B28=0," ",COUNTRY_INFO!B28) -> Kayes | C28: =IF(COUNTRY_INFO!C28=0," ",COUNTRY_INFO!C28) -> Sagabari | D28: =IF(COUNTRY_INFO!$T$9:$T$1000="MDA3 (IVM)", COUNTRY_INFO!$T$9:$T$1000, " ") ->  | H28: 0 | K28: 0 | N28: 0 | O28: 0 | P28: 0 | Q28: 0
A29: =IF(COUNTRY_INFO!A29=0," ",COUNTRY_INFO!A29) -> Mali | B29: =IF(COUNTRY_INFO!B29=0," ",COUNTRY_INFO!B29) -> Kayes | C29: =IF(COUNTRY_INFO!C29=0," ",COUNTRY_INFO!C29) -> Sefeto | D29: =IF(COUNTRY_INFO!$T$9:$T$1000="MDA3 (IVM)", COUNTRY_INFO!$T$9:$T$1000, " ") ->  | H29: 0 | K29: 0 | N29: 0 | O29: 0 | P29: 0 | Q29: 0
A30: =IF(COUNTRY_INFO!A30=0," ",COUNTRY_INFO!A30) -> Mali | B30: =IF(COUNTRY_INFO!B30=0," ",COUNTRY_INFO!B30) -> Kayes | C30: =IF(COUNTRY_INFO!C30=0," ",COUNTRY_INFO!C30) -> Nioro | D30: =IF(COUNTRY_INFO!$T$9:$T$1000="MDA3 (IVM)", COUNTRY_INFO!$T$9:$T$1000, " ") ->  | H30: 0 | K30: 0 | N30: 0 | O30: 0 | P30: 0 | Q30: 0
A31: =IF(COUNTRY_INFO!A31=0," ",COUNTRY_INFO!A31) -> Mali | B31: =IF(COUNTRY_INFO!B31=0," ",COUNTRY_INFO!B31) -> Kayes | C31: =IF(COUNTRY_INFO!C31=0," ",COUNTRY_INFO!C31) -> Oussoubidiagna | D31: =IF(COUNTRY_INFO!$T$9:$T$1000="MDA3 (IVM)", COUNTRY_INFO!$T$9:$T$1000, " ") ->  | H31: 0 | K31: 0 | N31: 0 | O31: 0 | P31: 0 | Q31: 0
A32: =IF(COUNTRY_INFO!A32=0," ",COUNTRY_INFO!A32) -> Mali | B32: =IF(COUNTRY_INFO!B32=0," ",COUNTRY_INFO!B32) -> Kayes | C32: =IF(COUNTRY_INFO!C32=0," ",COUNTRY_INFO!C32) -> Yelimane | D32: =IF(COUNTRY_INFO!$T$9:$T$1000="MDA3 (IVM)", COUNTRY_INFO!$T$9:$T$1000, " ") ->  | H32: 0 | K32: 0 | N32: 0 | O32: 0 | P32: 0 | Q32: 0
A33: =IF(COUNTRY_INFO!A33=0," ",COUNTRY_INFO!A33) -> Mali | B33: =IF(COUNTRY_INFO!B33=0," ",COUNTRY_INFO!B33) -> Kidal | C33: =IF(COUNTRY_INFO!C33=0," ",COUNTRY_INFO!C33) -> Abeibara | D33: =IF(COUNTRY_INFO!$T$9:$T$1000="MDA3 (IVM)", COUNTRY_INFO!$T$9:$T$1000, " ") ->  | H33: 0 | K33: 0 | N33: 0 | O33: 0 | P33: 0 | Q33: 0
A34: =IF(COUNTRY_INFO!A34=0," ",COUNTRY_INFO!A34) -> Mali | B34: =IF(COUNTRY_INFO!B34=0," ",COUNTRY_INFO!B34) -> Kidal | C34: =IF(COUNTRY_INFO!C34=0," ",COUNTRY_INFO!C34) -> Kidal | D34: =IF(COUNTRY_INFO!$T$9:$T$1000="MDA3 (IVM)", COUNTRY_INFO!$T$9:$T$1000, " ") ->  | H34: 0 | K34: 0 | N34: 0 | O34: 0 | P34: 0 | Q34: 0
A35: =IF(COUNTRY_INFO!A35=0," ",COUNTRY_INFO!A35) -> Mali | B35: =IF(COUNTRY_INFO!B35=0," ",COUNTRY_INFO!B35) -> Kidal | C35: =IF(COUNTRY_INFO!C35=0," ",COUNTRY_INFO!C35) -> Tessalit | D35: =IF(COUNTRY_INFO!$T$9:$T$1000="MDA3 (IVM)", COUNTRY_INFO!$T$9:$T$1000, " ") ->  | H35: 0 | K35: 0 | N35: 0 | O35: 0 | P35: 0 | Q35: 0
A36: =IF(COUNTRY_INFO!A36=0," ",COUNTRY_INFO!A36) -> Mali | B36: =IF(COUNTRY_INFO!B36=0," ",COUNTRY_INFO!B36) -> Kidal | C36: =IF(COUNTRY_INFO!C36=0," ",COUNTRY_INFO!C36) -> Tin-Essako | D36: =IF(COUNTRY_INFO!$T$9:$T$1000="MDA3 (IVM)", COUNTRY_INFO!$T$9:$T$1000, " ") ->  | H36: 0 | K36: 0 | N36: 0 | O36: 0 | P36: 0 | Q36: 0
A37: =IF(COUNTRY_INFO!A37=0," ",COUNTRY_INFO!A37) -> Mali | B37: =IF(COUNTRY_INFO!B37=0," ",COUNTRY_INFO!B37) -> Koulikoro | C37: =IF(COUNTRY_INFO!C37=0," ",COUNTRY_INFO!C37) -> Banamba | D37: =IF(COUNTRY_INFO!$T$9:$T$1000="MDA3 (IVM)", COUNTRY_INFO!$T$9:$T$1000, " ") ->  | H37: 0 | K37: 0 | N37: 0 | O37: 0 | P37: 0 | Q37: 0
A38: =IF(COUNTRY_INFO!A38=0," ",COUNTRY_INFO!A38) -> Mali | B38: =IF(COUNTRY_INFO!B38=0," ",COUNTRY_INFO!B38) -> Koulikoro | C38: =IF(COUNTRY_INFO!C38=0," ",COUNTRY_INFO!C38) -> Dioila | D38: =IF(COUNTRY_INFO!$T$9:$T$1000="MDA3 (IVM)", COUNTRY_INFO!$T$9:$T$1000, " ") ->  | H38: 0 | K38: 0 | N38: 0 | O38: 0 | P38: 0 | Q38: 0
A39: =IF(COUNTRY_INFO!A39=0," ",COUNTRY_INFO!A39) -> Mali | B39: =IF(COUNTRY_INFO!B39=0," ",COUNTRY_INFO!B39) -> Koulikoro | C39: =IF(COUNTRY_INFO!C39=0," ",COUNTRY_INFO!C39) -> Fana | D39: =IF(COUNTRY_INFO!$T$9:$T$1000="MDA3 (IVM)", COUNTRY_INFO!$T$9:$T$1000, " ") ->  | H39: 0 | K39: 0 | N39: 0 | O39: 0 | P39: 0 | Q39: 0
A40: =IF(COUNTRY_INFO!A40=0," ",COUNTRY_INFO!A40) -> Mali | B40: =IF(COUNTRY_INFO!B40=0," ",COUNTRY_INFO!B40) -> Koulikoro | C40: =IF(COUNTRY_INFO!C40=0," ",COUNTRY_INFO!C40) -> Kalabancoro | D40: =IF(COUNTRY_INFO!$T$9:$T$1000="MDA3 (IVM)", COUNTRY_INFO!$T$9:$T$1000, " ") ->  | H40: 0 | K40: 0 | N40: 0 | O40: 0 | P40: 0 | Q40: 0
A41: =IF(COUNTRY_INFO!A41=0," ",COUNTRY_INFO!A41) -> Mali | B41: =IF(COUNTRY_INFO!B41=0," ",COUNTRY_INFO!B41) -> Koulikoro | C41: =IF(COUNTRY_INFO!C41=0," ",COUNTRY_INFO!C41) -> Kangaba | D41: =IF(COUNTRY_INFO!$T$9:$T$1000="MDA3 (IVM)", COUNTRY_INFO!$T$9:$T$1000, " ") ->  | H41: 0 | K41: 0 | N41: 0 | O41: 0 | P41: 0 | Q41: 0
A42: =IF(COUNTRY_INFO!A42=0," ",COUNTRY_INFO!A42) -> Mali | B42: =IF(COUNTRY_INFO!B42=0," ",COUNTRY_INFO!B42) -> Koulikoro | C42: =IF(COUNTRY_INFO!C42=0," ",COUNTRY_INFO!C42) -> Kati | D42: =IF(COUNTRY_INFO!$T$9:$T$1000="MDA3 (IVM)", COUNTRY_INFO!$T$9:$T$1000, " ") ->  | H42: 0 | K42: 0 | N42: 0 | O42: 0 | P42: 0 | Q42: 0
A43: =IF(COUNTRY_INFO!A43=0," ",COUNTRY_INFO!A43) -> Mali | B43: =IF(COUNTRY_INFO!B43=0," ",COUNTRY_INFO!B43) -> Koulikoro | C43: =IF(COUNTRY_INFO!C43=0," ",COUNTRY_INFO!C43) -> Kolokani | D43: =IF(COUNTRY_INFO!$T$9:$T$1000="MDA3 (IVM)", COUNTRY_INFO!$T$9:$T$1000, " ") ->  | H43: 0 | K43: 0 | N43: 0 | O43: 0 | P43: 0 | Q43: 0
A44: =IF(COUNTRY_INFO!A44=0," ",COUNTRY_INFO!A44) -> Mali | B44: =IF(COUNTRY_INFO!B44=0," ",COUNTRY_INFO!B44) -> Koulikoro | C44: =IF(COUNTRY_INFO!C44=0," ",COUNTRY_INFO!C44) -> Koulikoro | D44: =IF(COUNTRY_INFO!$T$9:$T$1000="MDA3 (IVM)", COUNTRY_INFO!$T$9:$T$1000, " ") ->  | H44: 0 | K44: 0 | N44: 0 | O44: 0 | P44: 0 | Q44: 0
A45: =IF(COUNTRY_INFO!A45=0," ",COUNTRY_INFO!A45) -> Mali | B45: =IF(COUNTRY_INFO!B45=0," ",COUNTRY_INFO!B45) -> Koulikoro | C45: =IF(COUNTRY_INFO!C45=0," ",COUNTRY_INFO!C45) -> Nara | D45: =IF(COUNTRY_INFO!$T$9:$T$1000="MDA3 (IVM)", COUNTRY_INFO!$T$9:$T$1000, " ") ->  | H45: 0 | K45: 0 | N45: 0 | O45: 0 | P45: 0 | Q45: 0
A46: =IF(COUNTRY_INFO!A46=0," ",COUNTRY_INFO!A46) -> Mali | B46: =IF(COUNTRY_INFO!B46=0," ",COUNTRY_INFO!B46) -> Koulikoro | C46: =IF(COUNTRY_INFO!C46=0," ",COUNTRY_INFO!C46) -> Ouelessebougou | D46: =IF(COUNTRY_INFO!$T$9:$T$1000="MDA3 (IVM)", COUNTRY_INFO!$T$9:$T$1000, " ") ->  | H46: 0 | K46: 0 | N46: 0 | O46: 0 | P46: 0 | Q46: 0
A47: =IF(COUNTRY_INFO!A47=0," ",COUNTRY_INFO!A47) -> Mali | B47: =IF(COUNTRY_INFO!B47=0," ",COUNTRY_INFO!B47) -> Mopti | C47: =IF(COUNTRY_INFO!C47=0," ",COUNTRY_INFO!C47) -> Bandiagara | D47: =IF(COUNTRY_INFO!$T$9:$T$1000="MDA3 (IVM)", COUNTRY_INFO!$T$9:$T$1000, " ") ->  | H47: 0 | K47: 0 | N47: 0 | O47: 0 | P47: 0 | Q47: 0
A48: =IF(COUNTRY_INFO!A48=0," ",COUNTRY_INFO!A48) -> Mali | B48: =IF(COUNTRY_INFO!B48=0," ",COUNTRY_INFO!B48) -> Mopti | C48: =IF(COUNTRY_INFO!C48=0," ",COUNTRY_INFO!C48) -> Bankass | D48: =IF(COUNTRY_INFO!$T$9:$T$1000="MDA3 (IVM)", COUNTRY_INFO!$T$9:$T$1000, " ") ->  | H48: 0 | K48: 0 | N48: 0 | O48: 0 | P48: 0 | Q48: 0
A49: =IF(COUNTRY_INFO!A49=0," ",COUNTRY_INFO!A49) -> Mali | B49: =IF(COUNTRY_INFO!B49=0," ",COUNTRY_INFO!B49) -> Mopti | C49: =IF(COUNTRY_INFO!C49=0," ",COUNTRY_INFO!C49) -> Djenne | D49: =IF(COUNTRY_INFO!$T$9:$T$1000="MDA3 (IVM)", COUNTRY_INFO!$T$9:$T$1000, " ") ->  | H49: 0 | K49: 0 | N49: 0 | O49: 0 | P49: 0 | Q49: 0
A50: =IF(COUNTRY_INFO!A50=0," ",COUNTRY_INFO!A50) -> Mali | B50: =IF(COUNTRY_INFO!B50=0," ",COUNTRY_INFO!B50) -> Mopti | C50: =IF(COUNTRY_INFO!C50=0," ",COUNTRY_INFO!C50) -> Douentza | D50: =IF(COUNTRY_INFO!$T$9:$T$1000="MDA3 (IVM)", COUNTRY_INFO!$T$9:$T$1000, " ") ->  | H50: 0 | K50: 0 | N50: 0 | O50: 0 | P50: 0 | Q50: 0
A51: =IF(COUNTRY_INFO!A51=0," ",COUNTRY_INFO!A51) -> Mali | B51: =IF(COUNTRY_INFO!B51=0," ",COUNTRY_INFO!B51) -> Mopti | C51: =IF(COUNTRY_INFO!C51=0," ",COUNTRY_INFO!C51) -> Koro | D51: =IF(COUNTRY_INFO!$T$9:$T$1000="MDA3 (IVM)", COUNTRY_INFO!$T$9:$T$1000, " ") ->  | H51: 0 | K51: 0 | N51: 0 | O51: 0 | P51: 0 | Q51: 0
A52: =IF(COUNTRY_INFO!A52=0," ",COUNTRY_INFO!A52) -> Mali | B52: =IF(COUNTRY_INFO!B52=0," ",COUNTRY_INFO!B52) -> Mopti | C52: =IF(COUNTRY_INFO!C52=0," ",COUNTRY_INFO!C52) -> Mopti | D52: =IF(COUNTRY_INFO!$T$9:$T$1000="MDA3 (IVM)", COUNTRY_INFO!$T$9:$T$1000, " ") ->  | H52: 0 | K52: 0 | N52: 0 | O52: 0 | P52: 0 | Q52: 0
A53: =IF(COUNTRY_INFO!A53=0," ",COUNTRY_INFO!A53) -> Mali | B53: =IF(COUNTRY_INFO!B53=0," ",COUNTRY_INFO!B53) -> Mopti | C53: =IF(COUNTRY_INFO!C53=0," ",COUNTRY_INFO!C53) -> Teninkou | D53: =IF(COUNTRY_INFO!$T$9:$T$1000="MDA3 (IVM)", COUNTRY_INFO!$T$9:$T$1000, " ") ->  | H53: 0 | K53: 0 | N53: 0 | O53: 0 | P53: 0 | Q53: 0
A54: =IF(COUNTRY_INFO!A54=0," ",COUNTRY_INFO!A54) -> Mali | B54: =IF(COUNTRY_INFO!B54=0," ",COUNTRY_INFO!B54) -> Mopti | C54: =IF(COUNTRY_INFO!C54=0," ",COUNTRY_INFO!C54) -> Youwarou | D54: =IF(COUNTRY_INFO!$T$9:$T$1000="MDA3 (IVM)", COUNTRY_INFO!$T$9:$T$1000, " ") ->  | H54: 0 | K54: 0 | N54: 0 | O54: 0 | P54: 0 | Q54: 0
A55: =IF(COUNTRY_INFO!A55=0," ",COUNTRY_INFO!A55) -> Mali | B55: =IF(COUNTRY_INFO!B55=0," ",COUNTRY_INFO!B55) -> Segou | C55: =IF(COUNTRY_INFO!C55=0," ",COUNTRY_INFO!C55) -> Barouéli | D55: =IF(COUNTRY_INFO!$T$9:$T$1000="MDA3 (IVM)", COUNTRY_INFO!$T$9:$T$1000, " ") ->  | H55: 0 | K55: 0 | N55: 0 | O55: 0 | P55: 0 | Q55: 0
A56: =IF(COUNTRY_INFO!A56=0," ",COUNTRY_INFO!A56) -> Mali | B56: =IF(COUNTRY_INFO!B56=0," ",COUNTRY_INFO!B56) -> Segou | C56: =IF(COUNTRY_INFO!C56=0," ",COUNTRY_INFO!C56) -> Bla | D56: =IF(COUNTRY_INFO!$T$9:$T$1000="MDA3 (IVM)", COUNTRY_INFO!$T$9:$T$1000, " ") ->  | H56: 0 | K56: 0 | N56: 0 | O56: 0 | P56: 0 | Q56: 0
A57: =IF(COUNTRY_INFO!A57=0," ",COUNTRY_INFO!A57) -> Mali | B57: =IF(COUNTRY_INFO!B57=0," ",COUNTRY_INFO!B57) -> Segou | C57: =IF(COUNTRY_INFO!C57=0," ",COUNTRY_INFO!C57) -> Macina | D57: =IF(COUNTRY_INFO!$T$9:$T$1000="MDA3 (IVM)", COUNTRY_INFO!$T$9:$T$1000, " ") ->  | H57: 0 | K57: 0 | N57: 0 | O57: 0 | P57: 0 | Q57: 0
A58: =IF(COUNTRY_INFO!A58=0," ",COUNTRY_INFO!A58) -> Mali | B58: =IF(COUNTRY_INFO!B58=0," ",COUNTRY_INFO!B58) -> Segou | C58: =IF(COUNTRY_INFO!C58=0," ",COUNTRY_INFO!C58) -> Markala | D58: =IF(COUNTRY_INFO!$T$9:$T$1000="MDA3 (IVM)", COUNTRY_INFO!$T$9:$T$1000, " ") ->  | H58: 0 | K58: 0 | N58: 0 | O58: 0 | P58: 0 | Q58: 0
A59: =IF(COUNTRY_INFO!A59=0," ",COUNTRY_INFO!A59) -> Mali | B59: =IF(COUNTRY_INFO!B59=0," ",COUNTRY_INFO!B59) -> Segou | C59: =IF(COUNTRY_INFO!C59=0," ",COUNTRY_INFO!C59) -> Niono | D59: =IF(COUNTRY_INFO!$T$9:$T$1000="MDA3 (IVM)", COUNTRY_INFO!$T$9:$T$1000, " ") ->  | H59: 0 | K59: 0 | N59: 0 | O59: 0 | P59: 0 | Q59: 0
A60: =IF(COUNTRY_INFO!A60=0," ",COUNTRY_INFO!A60) -> Mali | B60: =IF(COUNTRY_INFO!B60=0," ",COUNTRY_INFO!B60) -> Segou | C60: =IF(COUNTRY_INFO!C60=0," ",COUNTRY_INFO!C60) -> San | D60: =IF(COUNTRY_INFO!$T$9:$T$1000="MDA3 (IVM)", COUNTRY_INFO!$T$9:$T$1000, " ") ->  | H60: 0 | K60: 0 | N60: 0 | O60: 0 | P60: 0 | Q60: 0
A61: =IF(COUNTRY_INFO!A61=0," ",COUNTRY_INFO!A61) -> Mali | B61: =IF(COUNTRY_INFO!B61=0," ",COUNTRY_INFO!B61) -> Segou | C61: =IF(COUNTRY_INFO!C61=0," ",COUNTRY_INFO!C61) -> Segou | D61: =IF(COUNTRY_INFO!$T$9:$T$1000="MDA3 (IVM)", COUNTRY_INFO!$T$9:$T$1000, " ") ->  | H61: 0 | K61: 0 | N61: 0 | O61: 0 | P61: 0 | Q61: 0
A62: =IF(COUNTRY_INFO!A62=0," ",COUNTRY_INFO!A62) -> Mali | B62: =IF(COUNTRY_INFO!B62=0," ",COUNTRY_INFO!B62) -> Segou | C62: =IF(COUNTRY_INFO!C62=0," ",COUNTRY_INFO!C62) -> Tominian | D62: =IF(COUNTRY_INFO!$T$9:$T$1000="MDA3 (IVM)", COUNTRY_INFO!$T$9:$T$1000, " ") ->  | H62: 0 | K62: 0 | N62: 0 | O62: 0 | P62: 0 | Q62: 0
A63: =IF(COUNTRY_INFO!A63=0," ",COUNTRY_INFO!A63) -> Mali | B63: =IF(COUNTRY_INFO!B63=0," ",COUNTRY_INFO!B63) -> Sikasso | C63: =IF(COUNTRY_INFO!C63=0," ",COUNTRY_INFO!C63) -> Bougouni | D63: =IF(COUNTRY_INFO!$T$9:$T$1000="MDA3 (IVM)", COUNTRY_INFO!$T$9:$T$1000, " ") ->  | H63: 0 | K63: 0 | N63: 0 | O63: 0 | P63: 0 | Q63: 0
A64: =IF(COUNTRY_INFO!A64=0," ",COUNTRY_INFO!A64) -> Mali | B64: =IF(COUNTRY_INFO!B64=0," ",COUNTRY_INFO!B64) -> Sikasso | C64: =IF(COUNTRY_INFO!C64=0," ",COUNTRY_INFO!C64) -> Kadiolo | D64: =IF(COUNTRY_INFO!$T$9:$T$1000="MDA3 (IVM)", COUNTRY_INFO!$T$9:$T$1000, " ") ->  | H64: 0 | K64: 0 | N64: 0 | O64: 0 | P64: 0 | Q64: 0
A65: =IF(COUNTRY_INFO!A65=0," ",COUNTRY_INFO!A65) -> Mali | B65: =IF(COUNTRY_INFO!B65=0," ",COUNTRY_INFO!B65) -> Sikasso | C65: =IF(COUNTRY_INFO!C65=0," ",COUNTRY_INFO!C65) -> Kignan | D65: =IF(COUNTRY_INFO!$T$9:$T$1000="MDA3 (IVM)", COUNTRY_INFO!$T$9:$T$1000, " ") ->  | H65: 0 | K65: 0 | N65: 0 | O65: 0 | P65: 0 | Q65: 0
A66: =IF(COUNTRY_INFO!A66=0," ",COUNTRY_INFO!A66) -> Mali | B66: =IF(COUNTRY_INFO!B66=0," ",COUNTRY_INFO!B66) -> Sikasso | C66: =IF(COUNTRY_INFO!C66=0," ",COUNTRY_INFO!C66) -> Kolondieba | D66: =IF(COUNTRY_INFO!$T$9:$T$1000="MDA3 (IVM)", COUNTRY_INFO!$T$9:$T$1000, " ") ->  | H66: 0 | K66: 0 | N66: 0 | O66: 0 | P66: 0 | Q66: 0
A67: =IF(COUNTRY_INFO!A67=0," ",COUNTRY_INFO!A67) -> Mali | B67: =IF(COUNTRY_INFO!B67=0," ",COUNTRY_INFO!B67) -> Sikasso | C67: =IF(COUNTRY_INFO!C67=0," ",COUNTRY_INFO!C67) -> Koutiala | D67: =IF(COUNTRY_INFO!$T$9:$T$1000="MDA3 (IVM)", COUNTRY_INFO!$T$9:$T$1000, " ") ->  | H67: 0 | K67: 0 | N67: 0 | O67: 0 | P67: 0 | Q67: 0
A68: =IF(COUNTRY_INFO!A68=0," ",COUNTRY_INFO!A68) -> Mali | B68: =IF(COUNTRY_INFO!B68=0," ",COUNTRY_INFO!B68) -> Sikasso | C68: =IF(COUNTRY_INFO!C68=0," ",COUNTRY_INFO!C68) -> Niena | D68: =IF(COUNTRY_INFO!$T$9:$T$1000="MDA3 (IVM)", COUNTRY_INFO!$T$9:$T$1000, " ") ->  | H68: 0 | K68: 0 | N68: 0 | O68: 0 | P68: 0 | Q68: 0
A69: =IF(COUNTRY_INFO!A69=0," ",COUNTRY_INFO!A69) -> Mali | B69: =IF(COUNTRY_INFO!B69=0," ",COUNTRY_INFO!B69) -> Sikasso | C69: =IF(COUNTRY_INFO!C69=0," ",COUNTRY_INFO!C69) -> Sélingué | D69: =IF(COUNTRY_INFO!$T$9:$T$1000="MDA3 (IVM)", COUNTRY_INFO!$T$9:$T$1000, " ") ->  | H69: 0 | K69: 0 | N69: 0 | O69: 0 | P69: 0 | Q69: 0
A70: =IF(COUNTRY_INFO!A70=0," ",COUNTRY_INFO!A70) -> Mali | B70: =IF(COUNTRY_INFO!B70=0," ",COUNTRY_INFO!B70) -> Sikasso | C70: =IF(COUNTRY_INFO!C70=0," ",COUNTRY_INFO!C70) -> Sikasso | D70: =IF(COUNTRY_INFO!$T$9:$T$1000="MDA3 (IVM)", COUNTRY_INFO!$T$9:$T$1000, " ") ->  | H70: 0 | K70: 0 | N70: 0 | O70: 0 | P70: 0 | Q70: 0
A71: =IF(COUNTRY_INFO!A71=0," ",COUNTRY_INFO!A71) -> Mali | B71: =IF(COUNTRY_INFO!B71=0," ",COUNTRY_INFO!B71) -> Sikasso | C71: =IF(COUNTRY_INFO!C71=0," ",COUNTRY_INFO!C71) -> Yanfolila | D71: =IF(COUNTRY_INFO!$T$9:$T$1000="MDA3 (IVM)", COUNTRY_INFO!$T$9:$T$1000, " ") ->  | H71: 0 | K71: 0 | N71: 0 | O71: 0 | P71: 0 | Q71: 0
A72: =IF(COUNTRY_INFO!A72=0," ",COUNTRY_INFO!A72) -> Mali | B72: =IF(COUNTRY_INFO!B72=0," ",COUNTRY_INFO!B72) -> Sikasso | C72: =IF(COUNTRY_INFO!C72=0," ",COUNTRY_INFO!C72) -> Yorosso | D72: =IF(COUNTRY_INFO!$T$9:$T$1000="MDA3 (IVM)", COUNTRY_INFO!$T$9:$T$1000, " ") ->  | H72: 0 | K72: 0 | N72: 0 | O72: 0 | P72: 0 | Q72: 0
A73: =IF(COUNTRY_INFO!A73=0," ",COUNTRY_INFO!A73) -> Mali | B73: =IF(COUNTRY_INFO!B73=0," ",COUNTRY_INFO!B73) -> Tombouctou | C73: =IF(COUNTRY_INFO!C73=0," ",COUNTRY_INFO!C73) -> Diré | D73: =IF(COUNTRY_INFO!$T$9:$T$1000="MDA3 (IVM)", COUNTRY_INFO!$T$9:$T$1000, " ") ->  | H73: 0 | K73: 0 | N73: 0 | O73: 0 | P73: 0 | Q73: 0
A74: =IF(COUNTRY_INFO!A74=0," ",COUNTRY_INFO!A74) -> Mali | B74: =IF(COUNTRY_INFO!B74=0," ",COUNTRY_INFO!B74) -> Tombouctou | C74: =IF(COUNTRY_INFO!C74=0," ",COUNTRY_INFO!C74) -> Goundam | D74: =IF(COUNTRY_INFO!$T$9:$T$1000="MDA3 (IVM)", COUNTRY_INFO!$T$9:$T$1000, " ") ->  | H74: =SUM(F74:G74) -> 0 | K74: =SUM(I74:J74) -> 0 | N74: =SUM(L74:M74) -> 0 | O74: =MAX(I74,L74) -> 0 | P74: =MAX(J74,M74) -> 0 | Q74: =SUM(O74:P74) -> 0 | R74: =IF(F74<>0, IF(MAX(I74,L74)/F74*100=0, "-", MAX(I74,L74)/F74*100), " ") ->  | S74: =IF(G74<>0, IF(MAX(J74,M74)/G74*100=0, "-", MAX(J74,M74)/G74*100), " ") ->  | T74: =IF(H74<>0, IF((MAX(I74,L74)+MAX(J74,M74))/H74*100=0, "-",(MAX(I74,L74)+MAX(J74,M74))/H74*100), " ") -> 
A75: =IF(COUNTRY_INFO!A75=0," ",COUNTRY_INFO!A75) -> Mali | B75: =IF(COUNTRY_INFO!B75=0," ",COUNTRY_INFO!B75) -> Tombouctou | C75: =IF(COUNTRY_INFO!C75=0," ",COUNTRY_INFO!C75) -> Gourma-Rharous | D75: =IF(COUNTRY_INFO!$T$9:$T$1000="MDA3 (IVM)", COUNTRY_INFO!$T$9:$T$1000, " ") ->  | H75: 0 | K75: 0 | N75: 0 | O75: 0 | P75: 0 | Q75: 0
A76: =IF(COUNTRY_INFO!A76=0," ",COUNTRY_INFO!A76) -> Mali | B76: =IF(COUNTRY_INFO!B76=0," ",COUNTRY_INFO!B76) -> Tombouctou | C76: =IF(COUNTRY_INFO!C76=0," ",COUNTRY_INFO!C76) -> Niafunké | D76: =IF(COUNTRY_INFO!$T$9:$T$1000="MDA3 (IVM)", COUNTRY_INFO!$T$9:$T$1000, " ") ->  | H76: 0 | K76: 0 | N76: 0 | O76: 0 | P76: 0 | Q76: 0
A77: =IF(COUNTRY_INFO!A77=0," ",COUNTRY_INFO!A77) -> Mali | B77: =IF(COUNTRY_INFO!B77=0," ",COUNTRY_INFO!B77) -> Tombouctou | C77: =IF(COUNTRY_INFO!C77=0," ",COUNTRY_INFO!C77) -> Tombouctou | D77: =IF(COUNTRY_INFO!$T$9:$T$1000="MDA3 (IVM)", COUNTRY_INFO!$T$9:$T$1000, " ") ->  | H77: 0 | K77: 0 | N77: 0 | O77: 0 | P77: 0 | Q77: 0
A78: =IF(COUNTRY_INFO!A78=0," ",COUNTRY_INFO!A78) -> Mali | B78: =IF(COUNTRY_INFO!B78=0," ",COUNTRY_INFO!B78) -> Taoudenit | C78: =IF(COUNTRY_INFO!C78=0," ",COUNTRY_INFO!C78) -> Achourat | D78: =IF(COUNTRY_INFO!$T$9:$T$1000="MDA3 (IVM)", COUNTRY_INFO!$T$9:$T$1000, " ") ->  | H78: 0 | K78: 0 | N78: 0 | O78: 0 | P78: 0 | Q78: 0
A79: =IF(COUNTRY_INFO!A79=0," ",COUNTRY_INFO!A79) -> Mali | B79: =IF(COUNTRY_INFO!B79=0," ",COUNTRY_INFO!B79) -> Taoudenit | C79: =IF(COUNTRY_INFO!C79=0," ",COUNTRY_INFO!C79) -> Al-Ourch | D79: =IF(COUNTRY_INFO!$T$9:$T$1000="MDA3 (IVM)", COUNTRY_INFO!$T$9:$T$1000, " ") ->  | H79: 0 | K79: 0 | N79: 0 | O79: 0 | P79: 0 | Q79: 0
A80: =IF(COUNTRY_INFO!A80=0," ",COUNTRY_INFO!A80) -> Mali | B80: =IF(COUNTRY_INFO!B80=0," ",COUNTRY_INFO!B80) -> Taoudenit | C80: =IF(COUNTRY_INFO!C80=0," ",COUNTRY_INFO!C80) -> Araouane | D80: =IF(COUNTRY_INFO!$T$9:$T$1000="MDA3 (IVM)", COUNTRY_INFO!$T$9:$T$1000, " ") ->  | H80: 0 | K80: 0 | N80: 0 | O80: 0 | P80: 0 | Q80: 0
A81: =IF(COUNTRY_INFO!A81=0," ",COUNTRY_INFO!A81) -> Mali | B81: =IF(COUNTRY_INFO!B81=0," ",COUNTRY_INFO!B81) -> Taoudenit | C81: =IF(COUNTRY_INFO!C81=0," ",COUNTRY_INFO!C81) -> Boujbeha | D81: =IF(COUNTRY_INFO!$T$9:$T$1000="MDA3 (IVM)", COUNTRY_INFO!$T$9:$T$1000, " ") ->  | H81: 0 | K81: 0 | N81: 0 | O81: 0 | P81: 0 | Q81: 0
A82: =IF(COUNTRY_INFO!A82=0," ",COUNTRY_INFO!A82) -> Mali | B82: =IF(COUNTRY_INFO!B82=0," ",COUNTRY_INFO!B82) -> Taoudenit | C82: =IF(COUNTRY_INFO!C82=0," ",COUNTRY_INFO!C82) -> Foum-Elba | D82: =IF(COUNTRY_INFO!$T$9:$T$1000="MDA3 (IVM)", COUNTRY_INFO!$T$9:$T$1000, " ") ->  | H82: 0 | K82: 0 | N82: 0 | O82: 0 | P82: 0 | Q82: 0
A83: =IF(COUNTRY_INFO!A83=0," ",COUNTRY_INFO!A83) -> Mali | B83: =IF(COUNTRY_INFO!B83=0," ",COUNTRY_INFO!B83) -> Taoudenit | C83: =IF(COUNTRY_INFO!C83=0," ",COUNTRY_INFO!C83) -> Taoudenit | D83: =IF(COUNTRY_INFO!$T$9:$T$1000="MDA3 (IVM)", COUNTRY_INFO!$T$9:$T$1000, " ") ->  | H83: 0 | K83: 0 | N83: 0 | O83: 0 | P83: 0 | Q83: 0

Sheet T1 (hidden)
A1: T 1 - Praziquantel (PZQ) et Albendazole (ALB) ou Mebendazole (MBD)
A2: Structure administrative, population nécessitant une chimioprévention par groupe d'âge, population traitée par groupe d'âge et couverture
A4: TOTAL | G4: =SUM(G$9:G$1000) -> 0 | H4: 0 | I4: 0 | J4: 0 | K4: =SUM(K$9:K$1000) -> 0 | L4: 0 | M4: 0 | N4: 0 | O4: 0 | P4: =IF(G4<>0, IF(L4/G4*100=0, "-", L4/G4*100), " ") ->  | Q4: =IF(OR(I4<>0,H4<>0), IF(M4/MAX(H4,I4)*100=0, "-", M4/MAX(H4,I4)*100), " ") ->  | R4: =IF(J4<>0, IF(N4/J4*100=0, "-", N4/J4*100), " ") ->  | S4: =IF(K4<>0, IF(O4/K4*100=0, "-", O4/K4*100), " ") -> 
A6: Structure administrative du pays | D6: Mise en oeuvre de la CP | E6: Médica-ment | F6: Date | G6: Population ciblée pour T1 | L6: Population traitée | P6: Couverture du Programme (%)
A7: Pays | B7: Région/Département | C7: District | G7: EAPréS (ALB) | H7: EAS (ALB) | I7: EAS (PZQ) | J7: Adultes (PZQ) | K7: Total | L7: EAPréS | M7: EAS | N7: Adultes | O7: Total | P7: EAPréS | Q7: EAS | R7: Adultes | S7: Total
A9: =IF(COUNTRY_INFO!A9=0," ",COUNTRY_INFO!A9) -> Mali | B9: =IF(COUNTRY_INFO!B9=0," ",COUNTRY_INFO!B9) -> Bamako | C9: =IF(COUNTRY_INFO!C9=0," ",COUNTRY_INFO!C9) -> Commune 1 | D9: =IF(OR(COUNTRY_INFO!$T$9:$T$1000="T1 (PZQ+ALB/MBD)",COUNTRY_INFO!$U$9:$U$1000="T1 (PZQ+ALB/MBD)"), "T1 (PZQ+ALB/MBD)", " ") ->  | K9: =MAX(H9:I9)+G9+J9 -> 0 | O9: =SUM(L9:N9) -> 0 | P9: =IF(G9<>0, IF(L9/G9*100=0, "-", L9/G9*100), " ") ->  | Q9: =IF(OR(I9<>0,H9<>0), IF(M9/MAX(H9,I9)*100=0, "-", M9/MAX(H9,I9)*100), " ") ->  | R9: =IF(J9<>0, IF(N9/J9*100=0, "-", N9/J9*100), " ") -> 
A10: =IF(COUNTRY_INFO!A10=0," ",COUNTRY_INFO!A10) -> Mali | B10: =IF(COUNTRY_INFO!B10=0," ",COUNTRY_INFO!B10) -> Bamako | C10: =IF(COUNTRY_INFO!C10=0," ",COUNTRY_INFO!C10) -> Commune 2 | D10: =IF(OR(COUNTRY_INFO!$T$9:$T$1000="T1 (PZQ+ALB/MBD)",COUNTRY_INFO!$U$9:$U$1000="T1 (PZQ+ALB/MBD)"), "T1 (PZQ+ALB/MBD)", " ") ->  | K10: =MAX(H10:I10)+G10+J10 -> 0 | O10: =SUM(L10:N10) -> 0 | P10: =IF(G10<>0, IF(L10/G10*100=0, "-", L10/G10*100), " ") ->  | Q10: =IF(OR(I10<>0,H10<>0), IF(M10/MAX(H10,I10)*100=0, "-", M10/MAX(H10,I10)*100), " ") ->  | R10: =IF(J10<>0, IF(N10/J10*100=0, "-", N10/J10*100), " ") ->  | S10: =IF(K10<>0, IF(O10/K10*100=0, "-", O10/K10*100), " ") -> 
A11: =IF(COUNTRY_INFO!A11=0," ",COUNTRY_INFO!A11) -> Mali | B11: =IF(COUNTRY_INFO!B11=0," ",COUNTRY_INFO!B11) -> Bamako | C11: =IF(COUNTRY_INFO!C11=0," ",COUNTRY_INFO!C11) -> Commune 3 | D11: =IF(OR(COUNTRY_INFO!$T$9:$T$1000="T1 (PZQ+ALB/MBD)",COUNTRY_INFO!$U$9:$U$1000="T1 (PZQ+ALB/MBD)"), "T1 (PZQ+ALB/MBD)", " ") ->  | K11: 0 | O11: 0
A12: =IF(COUNTRY_INFO!A12=0," ",COUNTRY_INFO!A12) -> Mali | B12: =IF(COUNTRY_INFO!B12=0," ",COUNTRY_INFO!B12) -> Bamako | C12: =IF(COUNTRY_INFO!C12=0," ",COUNTRY_INFO!C12) -> Commune 4 | D12: =IF(OR(COUNTRY_INFO!$T$9:$T$1000="T1 (PZQ+ALB/MBD)",COUNTRY_INFO!$U$9:$U$1000="T1 (PZQ+ALB/MBD)"), "T1 (PZQ+ALB/MBD)", " ") ->  | K12: 0 | O12: 0
A13: =IF(COUNTRY_INFO!A13=0," ",COUNTRY_INFO!A13) -> Mali | B13: =IF(COUNTRY_INFO!B13=0," ",COUNTRY_INFO!B13) -> Bamako | C13: =IF(COUNTRY_INFO!C13=0," ",COUNTRY_INFO!C13) -> Commune 5 | D13: =IF(OR(COUNTRY_INFO!$T$9:$T$1000="T1 (PZQ+ALB/MBD)",COUNTRY_INFO!$U$9:$U$1000="T1 (PZQ+ALB/MBD)"), "T1 (PZQ+ALB/MBD)", " ") ->  | K13: 0 | O13: 0
A14: =IF(COUNTRY_INFO!A14=0," ",COUNTRY_INFO!A14) -> Mali | B14: =IF(COUNTRY_INFO!B14=0," ",COUNTRY_INFO!B14) -> Bamako | C14: =IF(COUNTRY_INFO!C14=0," ",COUNTRY_INFO!C14) -> Commune 6 | D14: =IF(OR(COUNTRY_INFO!$T$9:$T$1000="T1 (PZQ+ALB/MBD)",COUNTRY_INFO!$U$9:$U$1000="T1 (PZQ+ALB/MBD)"), "T1 (PZQ+ALB/MBD)", " ") ->  | K14: 0 | O14: 0
A15: =IF(COUNTRY_INFO!A15=0," ",COUNTRY_INFO!A15) -> Mali | B15: =IF(COUNTRY_INFO!B15=0," ",COUNTRY_INFO!B15) -> Gao | C15: =IF(COUNTRY_INFO!C15=0," ",COUNTRY_INFO!C15) -> Ansongo | D15: =IF(OR(COUNTRY_INFO!$T$9:$T$1000="T1 (PZQ+ALB/MBD)",COUNTRY_INFO!$U$9:$U$1000="T1 (PZQ+ALB/MBD)"), "T1 (PZQ+ALB/MBD)", " ") ->  | K15: 0 | O15: 0
A16: =IF(COUNTRY_INFO!A16=0," ",COUNTRY_INFO!A16) -> Mali | B16: =IF(COUNTRY_INFO!B16=0," ",COUNTRY_INFO!B16) -> Gao | C16: =IF(COUNTRY_INFO!C16=0," ",COUNTRY_INFO!C16) -> Bourem | D16: =IF(OR(COUNTRY_INFO!$T$9:$T$1000="T1 (PZQ+ALB/MBD)",COUNTRY_INFO!$U$9:$U$1000="T1 (PZQ+ALB/MBD)"), "T1 (PZQ+ALB/MBD)", " ") ->  | K16: 0 | O16: 0
A17: =IF(COUNTRY_INFO!A17=0," ",COUNTRY_INFO!A17) -> Mali | B17: =IF(COUNTRY_INFO!B17=0," ",COUNTRY_INFO!B17) -> Gao | C17: =IF(COUNTRY_INFO!C17=0," ",COUNTRY_INFO!C17) -> Almoustrat | D17: =IF(OR(COUNTRY_INFO!$T$9:$T$1000="T1 (PZQ+ALB/MBD)",COUNTRY_INFO!$U$9:$U$1000="T1 (PZQ+ALB/MBD)"), "T1 (PZQ+ALB/MBD)", " ") ->  | K17: 0 | O17: 0
A18: =IF(COUNTRY_INFO!A18=0," ",COUNTRY_INFO!A18) -> Mali | B18: =IF(COUNTRY_INFO!B18=0," ",COUNTRY_INFO!B18) -> Gao | C18: =IF(COUNTRY_INFO!C18=0," ",COUNTRY_INFO!C18) -> Gao | D18: =IF(OR(COUNTRY_INFO!$T$9:$T$1000="T1 (PZQ+ALB/MBD)",COUNTRY_INFO!$U$9:$U$1000="T1 (PZQ+ALB/MBD)"), "T1 (PZQ+ALB/MBD)", " ") ->  | K18: 0 | O18: 0
A19: =IF(COUNTRY_INFO!A19=0," ",COUNTRY_INFO!A19) -> Mali | B19: =IF(COUNTRY_INFO!B19=0," ",COUNTRY_INFO!B19) -> Menaka | C19: =IF(COUNTRY_INFO!C19=0," ",COUNTRY_INFO!C19) -> Menaka | D19: =IF(OR(COUNTRY_INFO!$T$9:$T$1000="T1 (PZQ+ALB/MBD)",COUNTRY_INFO!$U$9:$U$1000="T1 (PZQ+ALB/MBD)"), "T1 (PZQ+ALB/MBD)", " ") ->  | K19: 0 | O19: 0
A20: =IF(COUNTRY_INFO!A20=0," ",COUNTRY_INFO!A20) -> Mali | B20: =IF(COUNTRY_INFO!B20=0," ",COUNTRY_INFO!B20) -> Menaka | C20: =IF(COUNTRY_INFO!C20=0," ",COUNTRY_INFO!C20) -> Anderamboukane | D20: =IF(OR(COUNTRY_INFO!$T$9:$T$1000="T1 (PZQ+ALB/MBD)",COUNTRY_INFO!$U$9:$U$1000="T1 (PZQ+ALB/MBD)"), "T1 (PZQ+ALB/MBD)", " ") ->  | K20: 0 | O20: 0
A21: =IF(COUNTRY_INFO!A21=0," ",COUNTRY_INFO!A21) -> Mali | B21: =IF(COUNTRY_INFO!B21=0," ",COUNTRY_INFO!B21) -> Menaka | C21: =IF(COUNTRY_INFO!C21=0," ",COUNTRY_INFO!C21) -> Inekar | D21: =IF(OR(COUNTRY_INFO!$T$9:$T$1000="T1 (PZQ+ALB/MBD)",COUNTRY_INFO!$U$9:$U$1000="T1 (PZQ+ALB/MBD)"), "T1 (PZQ+ALB/MBD)", " ") ->  | K21: 0 | O21: 0
A22: =IF(COUNTRY_INFO!A22=0," ",COUNTRY_INFO!A22) -> Mali | B22: =IF(COUNTRY_INFO!B22=0," ",COUNTRY_INFO!B22) -> Menaka | C22: =IF(COUNTRY_INFO!C22=0," ",COUNTRY_INFO!C22) -> Tidermene | D22: =IF(OR(COUNTRY_INFO!$T$9:$T$1000="T1 (PZQ+ALB/MBD)",COUNTRY_INFO!$U$9:$U$1000="T1 (PZQ+ALB/MBD)"), "T1 (PZQ+ALB/MBD)", " ") ->  | K22: 0 | O22: 0
A23: =IF(COUNTRY_INFO!A23=0," ",COUNTRY_INFO!A23) -> Mali | B23: =IF(COUNTRY_INFO!B23=0," ",COUNTRY_INFO!B23) -> Kayes | C23: =IF(COUNTRY_INFO!C23=0," ",COUNTRY_INFO!C23) -> Bafoulabe | D23: =IF(OR(COUNTRY_INFO!$T$9:$T$1000="T1 (PZQ+ALB/MBD)",COUNTRY_INFO!$U$9:$U$1000="T1 (PZQ+ALB/MBD)"), "T1 (PZQ+ALB/MBD)", " ") ->  | K23: 0 | O23: 0
A24: =IF(COUNTRY_INFO!A24=0," ",COUNTRY_INFO!A24) -> Mali | B24: =IF(COUNTRY_INFO!B24=0," ",COUNTRY_INFO!B24) -> Kayes | C24: =IF(COUNTRY_INFO!C24=0," ",COUNTRY_INFO!C24) -> Diema | D24: =IF(OR(COUNTRY_INFO!$T$9:$T$1000="T1 (PZQ+ALB/MBD)",COUNTRY_INFO!$U$9:$U$1000="T1 (PZQ+ALB/MBD)"), "T1 (PZQ+ALB/MBD)", " ") ->  | K24: 0 | O24: 0
A25: =IF(COUNTRY_INFO!A25=0," ",COUNTRY_INFO!A25) -> Mali | B25: =IF(COUNTRY_INFO!B25=0," ",COUNTRY_INFO!B25) -> Kayes | C25: =IF(COUNTRY_INFO!C25=0," ",COUNTRY_INFO!C25) -> Kayes | D25: =IF(OR(COUNTRY_INFO!$T$9:$T$1000="T1 (PZQ+ALB/MBD)",COUNTRY_INFO!$U$9:$U$1000="T1 (PZQ+ALB/MBD)"), "T1 (PZQ+ALB/MBD)", " ") ->  | K25: 0 | O25: 0
A26: =IF(COUNTRY_INFO!A26=0," ",COUNTRY_INFO!A26) -> Mali | B26: =IF(COUNTRY_INFO!B26=0," ",COUNTRY_INFO!B26) -> Kayes | C26: =IF(COUNTRY_INFO!C26=0," ",COUNTRY_INFO!C26) -> Kenieba | D26: =IF(OR(COUNTRY_INFO!$T$9:$T$1000="T1 (PZQ+ALB/MBD)",COUNTRY_INFO!$U$9:$U$1000="T1 (PZQ+ALB/MBD)"), "T1 (PZQ+ALB/MBD)", " ") ->  | K26: 0 | O26: 0
A27: =IF(COUNTRY_INFO!A27=0," ",COUNTRY_INFO!A27) -> Mali | B27: =IF(COUNTRY_INFO!B27=0," ",COUNTRY_INFO!B27) -> Kayes | C27: =IF(COUNTRY_INFO!C27=0," ",COUNTRY_INFO!C27) -> Kita | D27: =IF(OR(COUNTRY_INFO!$T$9:$T$1000="T1 (PZQ+ALB/MBD)",COUNTRY_INFO!$U$9:$U$1000="T1 (PZQ+ALB/MBD)"), "T1 (PZQ+ALB/MBD)", " ") ->  | K27: 0 | O27: 0
A28: =IF(COUNTRY_INFO!A28=0," ",COUNTRY_INFO!A28) -> Mali | B28: =IF(COUNTRY_INFO!B28=0," ",COUNTRY_INFO!B28) -> Kayes | C28: =IF(COUNTRY_INFO!C28=0," ",COUNTRY_INFO!C28) -> Sagabari | D28: =IF(OR(COUNTRY_INFO!$T$9:$T$1000="T1 (PZQ+ALB/MBD)",COUNTRY_INFO!$U$9:$U$1000="T1 (PZQ+ALB/MBD)"), "T1 (PZQ+ALB/MBD)", " ") ->  | K28: 0 | O28: 0
A29: =IF(COUNTRY_INFO!A29=0," ",COUNTRY_INFO!A29) -> Mali | B29: =IF(COUNTRY_INFO!B29=0," ",COUNTRY_INFO!B29) -> Kayes | C29: =IF(COUNTRY_INFO!C29=0," ",COUNTRY_INFO!C29) -> Sefeto | D29: =IF(OR(COUNTRY_INFO!$T$9:$T$1000="T1 (PZQ+ALB/MBD)",COUNTRY_INFO!$U$9:$U$1000="T1 (PZQ+ALB/MBD)"), "T1 (PZQ+ALB/MBD)", " ") ->  | K29: 0 | O29: 0
A30: =IF(COUNTRY_INFO!A30=0," ",COUNTRY_INFO!A30) -> Mali | B30: =IF(COUNTRY_INFO!B30=0," ",COUNTRY_INFO!B30) -> Kayes | C30: =IF(COUNTRY_INFO!C30=0," ",COUNTRY_INFO!C30) -> Nioro | D30: =IF(OR(COUNTRY_INFO!$T$9:$T$1000="T1 (PZQ+ALB/MBD)",COUNTRY_INFO!$U$9:$U$1000="T1 (PZQ+ALB/MBD)"), "T1 (PZQ+ALB/MBD)", " ") ->  | K30: 0 | O30: 0
A31: =IF(COUNTRY_INFO!A31=0," ",COUNTRY_INFO!A31) -> Mali | B31: =IF(COUNTRY_INFO!B31=0," ",COUNTRY_INFO!B31) -> Kayes | C31: =IF(COUNTRY_INFO!C31=0," ",COUNTRY_INFO!C31) -> Oussoubidiagna | D31: =IF(OR(COUNTRY_INFO!$T$9:$T$1000="T1 (PZQ+ALB/MBD)",COUNTRY_INFO!$U$9:$U$1000="T1 (PZQ+ALB/MBD)"), "T1 (PZQ+ALB/MBD)", " ") ->  | K31: 0 | O31: 0
A32: =IF(COUNTRY_INFO!A32=0," ",COUNTRY_INFO!A32) -> Mali | B32: =IF(COUNTRY_INFO!B32=0," ",COUNTRY_INFO!B32) -> Kayes | C32: =IF(COUNTRY_INFO!C32=0," ",COUNTRY_INFO!C32) -> Yelimane | D32: =IF(OR(COUNTRY_INFO!$T$9:$T$1000="T1 (PZQ+ALB/MBD)",COUNTRY_INFO!$U$9:$U$1000="T1 (PZQ+ALB/MBD)"), "T1 (PZQ+ALB/MBD)", " ") ->  | K32: 0 | O32: 0
A33: =IF(COUNTRY_INFO!A33=0," ",COUNTRY_INFO!A33) -> Mali | B33: =IF(COUNTRY_INFO!B33=0," ",COUNTRY_INFO!B33) -> Kidal | C33: =IF(COUNTRY_INFO!C33=0," ",COUNTRY_INFO!C33) -> Abeibara | D33: =IF(OR(COUNTRY_INFO!$T$9:$T$1000="T1 (PZQ+ALB/MBD)",COUNTRY_INFO!$U$9:$U$1000="T1 (PZQ+ALB/MBD)"), "T1 (PZQ+ALB/MBD)", " ") ->  | K33: 0 | O33: 0
A34: =IF(COUNTRY_INFO!A34=0," ",COUNTRY_INFO!A34) -> Mali | B34: =IF(COUNTRY_INFO!B34=0," ",COUNTRY_INFO!B34) -> Kidal | C34: =IF(COUNTRY_INFO!C34=0," ",COUNTRY_INFO!C34) -> Kidal | D34: =IF(OR(COUNTRY_INFO!$T$9:$T$1000="T1 (PZQ+ALB/MBD)",COUNTRY_INFO!$U$9:$U$1000="T1 (PZQ+ALB/MBD)"), "T1 (PZQ+ALB/MBD)", " ") ->  | K34: 0 | O34: 0
A35: =IF(COUNTRY_INFO!A35=0," ",COUNTRY_INFO!A35) -> Mali | B35: =IF(COUNTRY_INFO!B35=0," ",COUNTRY_INFO!B35) -> Kidal | C35: =IF(COUNTRY_INFO!C35=0," ",COUNTRY_INFO!C35) -> Tessalit | D35: =IF(OR(COUNTRY_INFO!$T$9:$T$1000="T1 (PZQ+ALB/MBD)",COUNTRY_INFO!$U$9:$U$1000="T1 (PZQ+ALB/MBD)"), "T1 (PZQ+ALB/MBD)", " ") ->  | K35: 0 | O35: 0
A36: =IF(COUNTRY_INFO!A36=0," ",COUNTRY_INFO!A36) -> Mali | B36: =IF(COUNTRY_INFO!B36=0," ",COUNTRY_INFO!B36) -> Kidal | C36: =IF(COUNTRY_INFO!C36=0," ",COUNTRY_INFO!C36) -> Tin-Essako | D36: =IF(OR(COUNTRY_INFO!$T$9:$T$1000="T1 (PZQ+ALB/MBD)",COUNTRY_INFO!$U$9:$U$1000="T1 (PZQ+ALB/MBD)"), "T1 (PZQ+ALB/MBD)", " ") ->  | K36: 0 | O36: 0
A37: =IF(COUNTRY_INFO!A37=0," ",COUNTRY_INFO!A37) -> Mali | B37: =IF(COUNTRY_INFO!B37=0," ",COUNTRY_INFO!B37) -> Koulikoro | C37: =IF(COUNTRY_INFO!C37=0," ",COUNTRY_INFO!C37) -> Banamba | D37: =IF(OR(COUNTRY_INFO!$T$9:$T$1000="T1 (PZQ+ALB/MBD)",COUNTRY_INFO!$U$9:$U$1000="T1 (PZQ+ALB/MBD)"), "T1 (PZQ+ALB/MBD)", " ") ->  | K37: 0 | O37: 0
A38: =IF(COUNTRY_INFO!A38=0," ",COUNTRY_INFO!A38) -> Mali | B38: =IF(COUNTRY_INFO!B38=0," ",COUNTRY_INFO!B38) -> Koulikoro | C38: =IF(COUNTRY_INFO!C38=0," ",COUNTRY_INFO!C38) -> Dioila | D38: =IF(OR(COUNTRY_INFO!$T$9:$T$1000="T1 (PZQ+ALB/MBD)",COUNTRY_INFO!$U$9:$U$1000="T1 (PZQ+ALB/MBD)"), "T1 (PZQ+ALB/MBD)", " ") ->  | K38: 0 | O38: 0
A39: =IF(COUNTRY_INFO!A39=0," ",COUNTRY_INFO!A39) -> Mali | B39: =IF(COUNTRY_INFO!B39=0," ",COUNTRY_INFO!B39) -> Koulikoro | C39: =IF(COUNTRY_INFO!C39=0," ",COUNTRY_INFO!C39) -> Fana | D39: =IF(OR(COUNTRY_INFO!$T$9:$T$1000="T1 (PZQ+ALB/MBD)",COUNTRY_INFO!$U$9:$U$1000="T1 (PZQ+ALB/MBD)"), "T1 (PZQ+ALB/MBD)", " ") ->  | K39: 0 | O39: 0
A40: =IF(COUNTRY_INFO!A40=0," ",COUNTRY_INFO!A40) -> Mali | B40: =IF(COUNTRY_INFO!B40=0," ",COUNTRY_INFO!B40) -> Koulikoro | C40: =IF(COUNTRY_INFO!C40=0," ",COUNTRY_INFO!C40) -> Kalabancoro | D40: =IF(OR(COUNTRY_INFO!$T$9:$T$1000="T1 (PZQ+ALB/MBD)",COUNTRY_INFO!$U$9:$U$1000="T1 (PZQ+ALB/MBD)"), "T1 (PZQ+ALB/MBD)", " ") ->  | K40: 0 | O40: 0
A41: =IF(COUNTRY_INFO!A41=0," ",COUNTRY_INFO!A41) -> Mali | B41: =IF(COUNTRY_INFO!B41=0," ",COUNTRY_INFO!B41) -> Koulikoro | C41: =IF(COUNTRY_INFO!C41=0," ",COUNTRY_INFO!C41) -> Kangaba | D41: =IF(OR(COUNTRY_INFO!$T$9:$T$1000="T1 (PZQ+ALB/MBD)",COUNTRY_INFO!$U$9:$U$1000="T1 (PZQ+ALB/MBD)"), "T1 (PZQ+ALB/MBD)", " ") ->  | K41: 0 | O41: 0
A42: =IF(COUNTRY_INFO!A42=0," ",COUNTRY_INFO!A42) -> Mali | B42: =IF(COUNTRY_INFO!B42=0," ",COUNTRY_INFO!B42) -> Koulikoro | C42: =IF(COUNTRY_INFO!C42=0," ",COUNTRY_INFO!C42) -> Kati | D42: =IF(OR(COUNTRY_INFO!$T$9:$T$1000="T1 (PZQ+ALB/MBD)",COUNTRY_INFO!$U$9:$U$1000="T1 (PZQ+ALB/MBD)"), "T1 (PZQ+ALB/MBD)", " ") ->  | K42: 0 | O42: 0
A43: =IF(COUNTRY_INFO!A43=0," ",COUNTRY_INFO!A43) -> Mali | B43: =IF(COUNTRY_INFO!B43=0," ",COUNTRY_INFO!B43) -> Koulikoro | C43: =IF(COUNTRY_INFO!C43=0," ",COUNTRY_INFO!C43) -> Kolokani | D43: =IF(OR(COUNTRY_INFO!$T$9:$T$1000="T1 (PZQ+ALB/MBD)",COUNTRY_INFO!$U$9:$U$1000="T1 (PZQ+ALB/MBD)"), "T1 (PZQ+ALB/MBD)", " ") ->  | K43: 0 | O43: 0
A44: =IF(COUNTRY_INFO!A44=0," ",COUNTRY_INFO!A44) -> Mali | B44: =IF(COUNTRY_INFO!B44=0," ",COUNTRY_INFO!B44) -> Koulikoro | C44: =IF(COUNTRY_INFO!C44=0," ",COUNTRY_INFO!C44) -> Koulikoro | D44: =IF(OR(COUNTRY_INFO!$T$9:$T$1000="T1 (PZQ+ALB/MBD)",COUNTRY_INFO!$U$9:$U$1000="T1 (PZQ+ALB/MBD)"), "T1 (PZQ+ALB/MBD)", " ") ->  | K44: 0 | O44: 0
A45: =IF(COUNTRY_INFO!A45=0," ",COUNTRY_INFO!A45) -> Mali | B45: =IF(COUNTRY_INFO!B45=0," ",COUNTRY_INFO!B45) -> Koulikoro | C45: =IF(COUNTRY_INFO!C45=0," ",COUNTRY_INFO!C45) -> Nara | D45: =IF(OR(COUNTRY_INFO!$T$9:$T$1000="T1 (PZQ+ALB/MBD)",COUNTRY_INFO!$U$9:$U$1000="T1 (PZQ+ALB/MBD)"), "T1 (PZQ+ALB/MBD)", " ") ->  | K45: 0 | O45: 0
A46: =IF(COUNTRY_INFO!A46=0," ",COUNTRY_INFO!A46) -> Mali | B46: =IF(COUNTRY_INFO!B46=0," ",COUNTRY_INFO!B46) -> Koulikoro | C46: =IF(COUNTRY_INFO!C46=0," ",COUNTRY_INFO!C46) -> Ouelessebougou | D46: =IF(OR(COUNTRY_INFO!$T$9:$T$1000="T1 (PZQ+ALB/MBD)",COUNTRY_INFO!$U$9:$U$1000="T1 (PZQ+ALB/MBD)"), "T1 (PZQ+ALB/MBD)", " ") ->  | K46: 0 | O46: 0
A47: =IF(COUNTRY_INFO!A47=0," ",COUNTRY_INFO!A47) -> Mali | B47: =IF(COUNTRY_INFO!B47=0," ",COUNTRY_INFO!B47) -> Mopti | C47: =IF(COUNTRY_INFO!C47=0," ",COUNTRY_INFO!C47) -> Bandiagara | D47: =IF(OR(COUNTRY_INFO!$T$9:$T$1000="T1 (PZQ+ALB/MBD)",COUNTRY_INFO!$U$9:$U$1000="T1 (PZQ+ALB/MBD)"), "T1 (PZQ+ALB/MBD)", " ") ->  | K47: 0 | O47: 0
A48: =IF(COUNTRY_INFO!A48=0," ",COUNTRY_INFO!A48) -> Mali | B48: =IF(COUNTRY_INFO!B48=0," ",COUNTRY_INFO!B48) -> Mopti | C48: =IF(COUNTRY_INFO!C48=0," ",COUNTRY_INFO!C48) -> Bankass | D48: =IF(OR(COUNTRY_INFO!$T$9:$T$1000="T1 (PZQ+ALB/MBD)",COUNTRY_INFO!$U$9:$U$1000="T1 (PZQ+ALB/MBD)"), "T1 (PZQ+ALB/MBD)", " ") ->  | K48: 0 | O48: 0
A49: =IF(COUNTRY_INFO!A49=0," ",COUNTRY_INFO!A49) -> Mali | B49: =IF(COUNTRY_INFO!B49=0," ",COUNTRY_INFO!B49) -> Mopti | C49: =IF(COUNTRY_INFO!C49=0," ",COUNTRY_INFO!C49) -> Djenne | D49: =IF(OR(COUNTRY_INFO!$T$9:$T$1000="T1 (PZQ+ALB/MBD)",COUNTRY_INFO!$U$9:$U$1000="T1 (PZQ+ALB/MBD)"), "T1 (PZQ+ALB/MBD)", " ") ->  | K49: 0 | O49: 0
A50: =IF(COUNTRY_INFO!A50=0," ",COUNTRY_INFO!A50) -> Mali | B50: =IF(COUNTRY_INFO!B50=0," ",COUNTRY_INFO!B50) -> Mopti | C50: =IF(COUNTRY_INFO!C50=0," ",COUNTRY_INFO!C50) -> Douentza | D50: =IF(OR(COUNTRY_INFO!$T$9:$T$1000="T1 (PZQ+ALB/MBD)",COUNTRY_INFO!$U$9:$U$1000="T1 (PZQ+ALB/MBD)"), "T1 (PZQ+ALB/MBD)", " ") ->  | K50: 0 | O50: 0
A51: =IF(COUNTRY_INFO!A51=0," ",COUNTRY_INFO!A51) -> Mali | B51: =IF(COUNTRY_INFO!B51=0," ",COUNTRY_INFO!B51) -> Mopti | C51: =IF(COUNTRY_INFO!C51=0," ",COUNTRY_INFO!C51) -> Koro | D51: =IF(OR(COUNTRY_INFO!$T$9:$T$1000="T1 (PZQ+ALB/MBD)",COUNTRY_INFO!$U$9:$U$1000="T1 (PZQ+ALB/MBD)"), "T1 (PZQ+ALB/MBD)", " ") ->  | K51: 0 | O51: 0
A52: =IF(COUNTRY_INFO!A52=0," ",COUNTRY_INFO!A52) -> Mali | B52: =IF(COUNTRY_INFO!B52=0," ",COUNTRY_INFO!B52) -> Mopti | C52: =IF(COUNTRY_INFO!C52=0," ",COUNTRY_INFO!C52) -> Mopti | D52: =IF(OR(COUNTRY_INFO!$T$9:$T$1000="T1 (PZQ+ALB/MBD)",COUNTRY_INFO!$U$9:$U$1000="T1 (PZQ+ALB/MBD)"), "T1 (PZQ+ALB/MBD)", " ") ->  | K52: 0 | O52: 0
A53: =IF(COUNTRY_INFO!A53=0," ",COUNTRY_INFO!A53) -> Mali | B53: =IF(COUNTRY_INFO!B53=0," ",COUNTRY_INFO!B53) -> Mopti | C53: =IF(COUNTRY_INFO!C53=0," ",COUNTRY_INFO!C53) -> Teninkou | D53: =IF(OR(COUNTRY_INFO!$T$9:$T$1000="T1 (PZQ+ALB/MBD)",COUNTRY_INFO!$U$9:$U$1000="T1 (PZQ+ALB/MBD)"), "T1 (PZQ+ALB/MBD)", " ") ->  | K53: 0 | O53: 0
A54: =IF(COUNTRY_INFO!A54=0," ",COUNTRY_INFO!A54) -> Mali | B54: =IF(COUNTRY_INFO!B54=0," ",COUNTRY_INFO!B54) -> Mopti | C54: =IF(COUNTRY_INFO!C54=0," ",COUNTRY_INFO!C54) -> Youwarou | D54: =IF(OR(COUNTRY_INFO!$T$9:$T$1000="T1 (PZQ+ALB/MBD)",COUNTRY_INFO!$U$9:$U$1000="T1 (PZQ+ALB/MBD)"), "T1 (PZQ+ALB/MBD)", " ") ->  | K54: 0 | O54: 0
A55: =IF(COUNTRY_INFO!A55=0," ",COUNTRY_INFO!A55) -> Mali | B55: =IF(COUNTRY_INFO!B55=0," ",COUNTRY_INFO!B55) -> Segou | C55: =IF(COUNTRY_INFO!C55=0," ",COUNTRY_INFO!C55) -> Barouéli | D55: =IF(OR(COUNTRY_INFO!$T$9:$T$1000="T1 (PZQ+ALB/MBD)",COUNTRY_INFO!$U$9:$U$1000="T1 (PZQ+ALB/MBD)"), "T1 (PZQ+ALB/MBD)", " ") ->  | K55: 0 | O55: 0
A56: =IF(COUNTRY_INFO!A56=0," ",COUNTRY_INFO!A56) -> Mali | B56: =IF(COUNTRY_INFO!B56=0," ",COUNTRY_INFO!B56) -> Segou | C56: =IF(COUNTRY_INFO!C56=0," ",COUNTRY_INFO!C56) -> Bla | D56: =IF(OR(COUNTRY_INFO!$T$9:$T$1000="T1 (PZQ+ALB/MBD)",COUNTRY_INFO!$U$9:$U$1000="T1 (PZQ+ALB/MBD)"), "T1 (PZQ+ALB/MBD)", " ") ->  | K56: 0 | O56: 0
A57: =IF(COUNTRY_INFO!A57=0," ",COUNTRY_INFO!A57) -> Mali | B57: =IF(COUNTRY_INFO!B57=0," ",COUNTRY_INFO!B57) -> Segou | C57: =IF(COUNTRY_INFO!C57=0," ",COUNTRY_INFO!C57) -> Macina | D57: =IF(OR(COUNTRY_INFO!$T$9:$T$1000="T1 (PZQ+ALB/MBD)",COUNTRY_INFO!$U$9:$U$1000="T1 (PZQ+ALB/MBD)"), "T1 (PZQ+ALB/MBD)", " ") ->  | K57: 0 | O57: 0
A58: =IF(COUNTRY_INFO!A58=0," ",COUNTRY_INFO!A58) -> Mali | B58: =IF(COUNTRY_INFO!B58=0," ",COUNTRY_INFO!B58) -> Segou | C58: =IF(COUNTRY_INFO!C58=0," ",COUNTRY_INFO!C58) -> Markala | D58: =IF(OR(COUNTRY_INFO!$T$9:$T$1000="T1 (PZQ+ALB/MBD)",COUNTRY_INFO!$U$9:$U$1000="T1 (PZQ+ALB/MBD)"), "T1 (PZQ+ALB/MBD)", " ") ->  | K58: 0 | O58: 0
A59: =IF(COUNTRY_INFO!A59=0," ",COUNTRY_INFO!A59) -> Mali | B59: =IF(COUNTRY_INFO!B59=0," ",COUNTRY_INFO!B59) -> Segou | C59: =IF(COUNTRY_INFO!C59=0," ",COUNTRY_INFO!C59) -> Niono | D59: =IF(OR(COUNTRY_INFO!$T$9:$T$1000="T1 (PZQ+ALB/MBD)",COUNTRY_INFO!$U$9:$U$1000="T1 (PZQ+ALB/MBD)"), "T1 (PZQ+ALB/MBD)", " ") ->  | K59: 0 | O59: 0
A60: =IF(COUNTRY_INFO!A60=0," ",COUNTRY_INFO!A60) -> Mali | B60: =IF(COUNTRY_INFO!B60=0," ",COUNTRY_INFO!B60) -> Segou | C60: =IF(COUNTRY_INFO!C60=0," ",COUNTRY_INFO!C60) -> San | D60: =IF(OR(COUNTRY_INFO!$T$9:$T$1000="T1 (PZQ+ALB/MBD)",COUNTRY_INFO!$U$9:$U$1000="T1 (PZQ+ALB/MBD)"), "T1 (PZQ+ALB/MBD)", " ") ->  | K60: 0 | O60: 0
A61: =IF(COUNTRY_INFO!A61=0," ",COUNTRY_INFO!A61) -> Mali | B61: =IF(COUNTRY_INFO!B61=0," ",COUNTRY_INFO!B61) -> Segou | C61: =IF(COUNTRY_INFO!C61=0," ",COUNTRY_INFO!C61) -> Segou | D61: =IF(OR(COUNTRY_INFO!$T$9:$T$1000="T1 (PZQ+ALB/MBD)",COUNTRY_INFO!$U$9:$U$1000="T1 (PZQ+ALB/MBD)"), "T1 (PZQ+ALB/MBD)", " ") ->  | K61: 0 | O61: 0
A62: =IF(COUNTRY_INFO!A62=0," ",COUNTRY_INFO!A62) -> Mali | B62: =IF(COUNTRY_INFO!B62=0," ",COUNTRY_INFO!B62) -> Segou | C62: =IF(COUNTRY_INFO!C62=0," ",COUNTRY_INFO!C62) -> Tominian | D62: =IF(OR(COUNTRY_INFO!$T$9:$T$1000="T1 (PZQ+ALB/MBD)",COUNTRY_INFO!$U$9:$U$1000="T1 (PZQ+ALB/MBD)"), "T1 (PZQ+ALB/MBD)", " ") ->  | K62: 0 | O62: 0
A63: =IF(COUNTRY_INFO!A63=0," ",COUNTRY_INFO!A63) -> Mali | B63: =IF(COUNTRY_INFO!B63=0," ",COUNTRY_INFO!B63) -> Sikasso | C63: =IF(COUNTRY_INFO!C63=0," ",COUNTRY_INFO!C63) -> Bougouni | D63: =IF(OR(COUNTRY_INFO!$T$9:$T$1000="T1 (PZQ+ALB/MBD)",COUNTRY_INFO!$U$9:$U$1000="T1 (PZQ+ALB/MBD)"), "T1 (PZQ+ALB/MBD)", " ") ->  | K63: 0 | O63: 0
A64: =IF(COUNTRY_INFO!A64=0," ",COUNTRY_INFO!A64) -> Mali | B64: =IF(COUNTRY_INFO!B64=0," ",COUNTRY_INFO!B64) -> Sikasso | C64: =IF(COUNTRY_INFO!C64=0," ",COUNTRY_INFO!C64) -> Kadiolo | D64: =IF(OR(COUNTRY_INFO!$T$9:$T$1000="T1 (PZQ+ALB/MBD)",COUNTRY_INFO!$U$9:$U$1000="T1 (PZQ+ALB/MBD)"), "T1 (PZQ+ALB/MBD)", " ") ->  | K64: 0 | O64: 0
A65: =IF(COUNTRY_INFO!A65=0," ",COUNTRY_INFO!A65) -> Mali | B65: =IF(COUNTRY_INFO!B65=0," ",COUNTRY_INFO!B65) -> Sikasso | C65: =IF(COUNTRY_INFO!C65=0," ",COUNTRY_INFO!C65) -> Kignan | D65: =IF(OR(COUNTRY_INFO!$T$9:$T$1000="T1 (PZQ+ALB/MBD)",COUNTRY_INFO!$U$9:$U$1000="T1 (PZQ+ALB/MBD)"), "T1 (PZQ+ALB/MBD)", " ") ->  | K65: 0 | O65: 0
A66: =IF(COUNTRY_INFO!A66=0," ",COUNTRY_INFO!A66) -> Mali | B66: =IF(COUNTRY_INFO!B66=0," ",COUNTRY_INFO!B66) -> Sikasso | C66: =IF(COUNTRY_INFO!C66=0," ",COUNTRY_INFO!C66) -> Kolondieba | D66: =IF(OR(COUNTRY_INFO!$T$9:$T$1000="T1 (PZQ+ALB/MBD)",COUNTRY_INFO!$U$9:$U$1000="T1 (PZQ+ALB/MBD)"), "T1 (PZQ+ALB/MBD)", " ") ->  | K66: 0 | O66: 0
A67: =IF(COUNTRY_INFO!A67=0," ",COUNTRY_INFO!A67) -> Mali | B67: =IF(COUNTRY_INFO!B67=0," ",COUNTRY_INFO!B67) -> Sikasso | C67: =IF(COUNTRY_INFO!C67=0," ",COUNTRY_INFO!C67) -> Koutiala | D67: =IF(OR(COUNTRY_INFO!$T$9:$T$1000="T1 (PZQ+ALB/MBD)",COUNTRY_INFO!$U$9:$U$1000="T1 (PZQ+ALB/MBD)"), "T1 (PZQ+ALB/MBD)", " ") ->  | K67: 0 | O67: 0
A68: =IF(COUNTRY_INFO!A68=0," ",COUNTRY_INFO!A68) -> Mali | B68: =IF(COUNTRY_INFO!B68=0," ",COUNTRY_INFO!B68) -> Sikasso | C68: =IF(COUNTRY_INFO!C68=0," ",COUNTRY_INFO!C68) -> Niena | D68: =IF(OR(COUNTRY_INFO!$T$9:$T$1000="T1 (PZQ+ALB/MBD)",COUNTRY_INFO!$U$9:$U$1000="T1 (PZQ+ALB/MBD)"), "T1 (PZQ+ALB/MBD)", " ") ->  | K68: 0 | O68: 0
A69: =IF(COUNTRY_INFO!A69=0," ",COUNTRY_INFO!A69) -> Mali | B69: =IF(COUNTRY_INFO!B69=0," ",COUNTRY_INFO!B69) -> Sikasso | C69: =IF(COUNTRY_INFO!C69=0," ",COUNTRY_INFO!C69) -> Sélingué | D69: =IF(OR(COUNTRY_INFO!$T$9:$T$1000="T1 (PZQ+ALB/MBD)",COUNTRY_INFO!$U$9:$U$1000="T1 (PZQ+ALB/MBD)"), "T1 (PZQ+ALB/MBD)", " ") ->  | K69: 0 | O69: 0
A70: =IF(COUNTRY_INFO!A70=0," ",COUNTRY_INFO!A70) -> Mali | B70: =IF(COUNTRY_INFO!B70=0," ",COUNTRY_INFO!B70) -> Sikasso | C70: =IF(COUNTRY_INFO!C70=0," ",COUNTRY_INFO!C70) -> Sikasso | D70: =IF(OR(COUNTRY_INFO!$T$9:$T$1000="T1 (PZQ+ALB/MBD)",COUNTRY_INFO!$U$9:$U$1000="T1 (PZQ+ALB/MBD)"), "T1 (PZQ+ALB/MBD)", " ") ->  | K70: 0 | O70: 0
A71: =IF(COUNTRY_INFO!A71=0," ",COUNTRY_INFO!A71) -> Mali | B71: =IF(COUNTRY_INFO!B71=0," ",COUNTRY_INFO!B71) -> Sikasso | C71: =IF(COUNTRY_INFO!C71=0," ",COUNTRY_INFO!C71) -> Yanfolila | D71: =IF(OR(COUNTRY_INFO!$T$9:$T$1000="T1 (PZQ+ALB/MBD)",COUNTRY_INFO!$U$9:$U$1000="T1 (PZQ+ALB/MBD)"), "T1 (PZQ+ALB/MBD)", " ") ->  | K71: 0 | O71: 0
A72: =IF(COUNTRY_INFO!A72=0," ",COUNTRY_INFO!A72) -> Mali | B72: =IF(COUNTRY_INFO!B72=0," ",COUNTRY_INFO!B72) -> Sikasso | C72: =IF(COUNTRY_INFO!C72=0," ",COUNTRY_INFO!C72) -> Yorosso | D72: =IF(OR(COUNTRY_INFO!$T$9:$T$1000="T1 (PZQ+ALB/MBD)",COUNTRY_INFO!$U$9:$U$1000="T1 (PZQ+ALB/MBD)"), "T1 (PZQ+ALB/MBD)", " ") ->  | K72: 0 | O72: 0
A73: =IF(COUNTRY_INFO!A73=0," ",COUNTRY_INFO!A73) -> Mali | B73: =IF(COUNTRY_INFO!B73=0," ",COUNTRY_INFO!B73) -> Tombouctou | C73: =IF(COUNTRY_INFO!C73=0," ",COUNTRY_INFO!C73) -> Diré | D73: =IF(OR(COUNTRY_INFO!$T$9:$T$1000="T1 (PZQ+ALB/MBD)",COUNTRY_INFO!$U$9:$U$1000="T1 (PZQ+ALB/MBD)"), "T1 (PZQ+ALB/MBD)", " ") ->  | K73: 0 | O73: 0
A74: =IF(COUNTRY_INFO!A74=0," ",COUNTRY_INFO!A74) -> Mali | B74: =IF(COUNTRY_INFO!B74=0," ",COUNTRY_INFO!B74) -> Tombouctou | C74: =IF(COUNTRY_INFO!C74=0," ",COUNTRY_INFO!C74) -> Goundam | D74: =IF(OR(COUNTRY_INFO!$T$9:$T$1000="T1 (PZQ+ALB/MBD)",COUNTRY_INFO!$U$9:$U$1000="T1 (PZQ+ALB/MBD)"), "T1 (PZQ+ALB/MBD)", " ") ->  | K74: =MAX(H74:I74)+G74+J74 -> 0 | O74: =SUM(L74:N74) -> 0 | P74: =IF(G74<>0, IF(L74/G74*100=0, "-", L74/G74*100), " ") ->  | Q74: =IF(OR(I74<>0,H74<>0), IF(M74/MAX(H74,I74)*100=0, "-", M74/MAX(H74,I74)*100), " ") ->  | R74: =IF(J74<>0, IF(N74/J74*100=0, "-", N74/J74*100), " ") ->  | S74: =IF(K74<>0, IF(O74/K74*100=0, "-", O74/K74*100), " ") -> 
A75: =IF(COUNTRY_INFO!A75=0," ",COUNTRY_INFO!A75) -> Mali | B75: =IF(COUNTRY_INFO!B75=0," ",COUNTRY_INFO!B75) -> Tombouctou | C75: =IF(COUNTRY_INFO!C75=0," ",COUNTRY_INFO!C75) -> Gourma-Rharous | D75: =IF(OR(COUNTRY_INFO!$T$9:$T$1000="T1 (PZQ+ALB/MBD)",COUNTRY_INFO!$U$9:$U$1000="T1 (PZQ+ALB/MBD)"), "T1 (PZQ+ALB/MBD)", " ") ->  | K75: 0 | O75: 0
A76: =IF(COUNTRY_INFO!A76=0," ",COUNTRY_INFO!A76) -> Mali | B76: =IF(COUNTRY_INFO!B76=0," ",COUNTRY_INFO!B76) -> Tombouctou | C76: =IF(COUNTRY_INFO!C76=0," ",COUNTRY_INFO!C76) -> Niafunké | D76: =IF(OR(COUNTRY_INFO!$T$9:$T$1000="T1 (PZQ+ALB/MBD)",COUNTRY_INFO!$U$9:$U$1000="T1 (PZQ+ALB/MBD)"), "T1 (PZQ+ALB/MBD)", " ") ->  | K76: 0 | O76: 0
A77: =IF(COUNTRY_INFO!A77=0," ",COUNTRY_INFO!A77) -> Mali | B77: =IF(COUNTRY_INFO!B77=0," ",COUNTRY_INFO!B77) -> Tombouctou | C77: =IF(COUNTRY_INFO!C77=0," ",COUNTRY_INFO!C77) -> Tombouctou | D77: =IF(OR(COUNTRY_INFO!$T$9:$T$1000="T1 (PZQ+ALB/MBD)",COUNTRY_INFO!$U$9:$U$1000="T1 (PZQ+ALB/MBD)"), "T1 (PZQ+ALB/MBD)", " ") ->  | K77: 0 | O77: 0
A78: =IF(COUNTRY_INFO!A78=0," ",COUNTRY_INFO!A78) -> Mali | B78: =IF(COUNTRY_INFO!B78=0," ",COUNTRY_INFO!B78) -> Taoudenit | C78: =IF(COUNTRY_INFO!C78=0," ",COUNTRY_INFO!C78) -> Achourat | D78: =IF(OR(COUNTRY_INFO!$T$9:$T$1000="T1 (PZQ+ALB/MBD)",COUNTRY_INFO!$U$9:$U$1000="T1 (PZQ+ALB/MBD)"), "T1 (PZQ+ALB/MBD)", " ") ->  | K78: 0 | O78: 0
A79: =IF(COUNTRY_INFO!A79=0," ",COUNTRY_INFO!A79) -> Mali | B79: =IF(COUNTRY_INFO!B79=0," ",COUNTRY_INFO!B79) -> Taoudenit | C79: =IF(COUNTRY_INFO!C79=0," ",COUNTRY_INFO!C79) -> Al-Ourch | D79: =IF(OR(COUNTRY_INFO!$T$9:$T$1000="T1 (PZQ+ALB/MBD)",COUNTRY_INFO!$U$9:$U$1000="T1 (PZQ+ALB/MBD)"), "T1 (PZQ+ALB/MBD)", " ") ->  | K79: 0 | O79: 0
A80: =IF(COUNTRY_INFO!A80=0," ",COUNTRY_INFO!A80) -> Mali | B80: =IF(COUNTRY_INFO!B80=0," ",COUNTRY_INFO!B80) -> Taoudenit | C80: =IF(COUNTRY_INFO!C80=0," ",COUNTRY_INFO!C80) -> Araouane | D80: =IF(OR(COUNTRY_INFO!$T$9:$T$1000="T1 (PZQ+ALB/MBD)",COUNTRY_INFO!$U$9:$U$1000="T1 (PZQ+ALB/MBD)"), "T1 (PZQ+ALB/MBD)", " ") ->  | K80: 0 | O80: 0
A81: =IF(COUNTRY_INFO!A81=0," ",COUNTRY_INFO!A81) -> Mali | B81: =IF(COUNTRY_INFO!B81=0," ",COUNTRY_INFO!B81) -> Taoudenit | C81: =IF(COUNTRY_INFO!C81=0," ",COUNTRY_INFO!C81) -> Boujbeha | D81: =IF(OR(COUNTRY_INFO!$T$9:$T$1000="T1 (PZQ+ALB/MBD)",COUNTRY_INFO!$U$9:$U$1000="T1 (PZQ+ALB/MBD)"), "T1 (PZQ+ALB/MBD)", " ") ->  | K81: 0 | O81: 0
A82: =IF(COUNTRY_INFO!A82=0," ",COUNTRY_INFO!A82) -> Mali | B82: =IF(COUNTRY_INFO!B82=0," ",COUNTRY_INFO!B82) -> Taoudenit | C82: =IF(COUNTRY_INFO!C82=0," ",COUNTRY_INFO!C82) -> Foum-Elba | D82: =IF(OR(COUNTRY_INFO!$T$9:$T$1000="T1 (PZQ+ALB/MBD)",COUNTRY_INFO!$U$9:$U$1000="T1 (PZQ+ALB/MBD)"), "T1 (PZQ+ALB/MBD)", " ") ->  | K82: 0 | O82: 0
A83: =IF(COUNTRY_INFO!A83=0," ",COUNTRY_INFO!A83) -> Mali | B83: =IF(COUNTRY_INFO!B83=0," ",COUNTRY_INFO!B83) -> Taoudenit | C83: =IF(COUNTRY_INFO!C83=0," ",COUNTRY_INFO!C83) -> Taoudenit | D83: =IF(OR(COUNTRY_INFO!$T$9:$T$1000="T1 (PZQ+ALB/MBD)",COUNTRY_INFO!$U$9:$U$1000="T1 (PZQ+ALB/MBD)"), "T1 (PZQ+ALB/MBD)", " ") ->  | K83: 0 | O83: 0

Sheet T2
A1: T 2 - Praziquantel (PZQ)
A2: Structure administrative, population nécessitant une chimioprévention par groupe d'âge, population traitée par groupe d'âge et couverture
A4: TOTAL | F4: =SUM(F$9:F$1000) -> 0 | G4: 4127680 | H4: 108022 | I4: 4235702 | J4: 0 | K4: 3896891.691 | L4: 80817 | M4: 3977708.691 | N4: =IF(F4<>0, IF(J4/F4*100=0, "-", J4/F4*100), " ") ->  | O4: =IF(G4<>0, IF(K4/G4*100=0, "-", K4/G4*100), " ") -> 94.40876451 | P4: =IF(H4<>0, IF(L4/H4*100=0, "-", L4/H4*100), " ") -> 74.8153154 | Q4: =IF(I4<>0, IF(M4/I4*100=0, "-", M4/I4*100), " ") -> 93.9090779
A6: Structure administrative du pays | D6: Mise en oeuvre de la CP | E6: Date | F6: Population ciblée pour T2 | J6: Population traitée | N6: Couverture du Programme (%)
A7: Pays | B7: Région/Département | C7: District | F7: EAPréS | G7: EAS | H7: Adultes | I7: Total | J7: EAPréS | K7: EAS | L7: Adultes | M7: Total | N7: EAPréS | O7: EAS | P7: Adultes | Q7: Total
A9: =IF(COUNTRY_INFO!A9=0," ",COUNTRY_INFO!A9) -> Mali | B9: =IF(COUNTRY_INFO!B9=0," ",COUNTRY_INFO!B9) -> Bamako | C9: =IF(COUNTRY_INFO!C9=0," ",COUNTRY_INFO!C9) -> Commune 1 | D9: =IF(OR(COUNTRY_INFO!$T$9:$T$1000="T2 (PZQ)",COUNTRY_INFO!$U$9:$U$1000="T2 (PZQ)"), "T2 (PZQ)", " ") -> T2 (PZQ) | E9: juillet 2021 | G9: 143162 | H9: 0 | I9: =SUM(F9:H9) -> 143162 | K9: 110801 | M9: =SUM(J9:L9) -> 110801 | N9: =IF(F9<>0, IF(J9/F9*100=0, "-", J9/F9*100), " ") ->  | O9: 77.39553792 | Q9: 77.39553792 | V9: 143162.34 | Y9: =ROUNDDOWN(G9,0) -> 143162 | Z9: =ROUNDDOWN(H9,0) -> 0
A10: =IF(COUNTRY_INFO!A10=0," ",COUNTRY_INFO!A10) -> Mali | B10: =IF(COUNTRY_INFO!B10=0," ",COUNTRY_INFO!B10) -> Bamako | C10: =IF(COUNTRY_INFO!C10=0," ",COUNTRY_INFO!C10) -> Commune 2 | D10: =IF(OR(COUNTRY_INFO!$T$9:$T$1000="T2 (PZQ)",COUNTRY_INFO!$U$9:$U$1000="T2 (PZQ)"), "T2 (PZQ)", " ") -> T2 (PZQ) | E10: juillet 2021 | G10: 68210 | H10: 0 | I10: =SUM(F10:H10) -> 68210 | K10: 53483 | M10: =SUM(J10:L10) -> 53483 | N10: =IF(F10<>0, IF(J10/F10*100=0, "-", J10/F10*100), " ") ->  | O10: =IF(G10<>0, IF(K10/G10*100=0, "-", K10/G10*100), " ") -> 78.40932415 | P10: =IF(H10<>0, IF(L10/H10*100=0, "-", L10/H10*100), " ") ->  | Q10: =IF(I10<>0, IF(M10/I10*100=0, "-", M10/I10*100), " ") -> 78.40932415 | V10: 68210.19 | Y10: =ROUNDDOWN(G10,0) -> 68210 | Z10: =ROUNDDOWN(H10,0) -> 0
A11: =IF(COUNTRY_INFO!A11=0," ",COUNTRY_INFO!A11) -> Mali | B11: =IF(COUNTRY_INFO!B11=0," ",COUNTRY_INFO!B11) -> Bamako | C11: =IF(COUNTRY_INFO!C11=0," ",COUNTRY_INFO!C11) -> Commune 3 | D11: =IF(OR(COUNTRY_INFO!$T$9:$T$1000="T2 (PZQ)",COUNTRY_INFO!$U$9:$U$1000="T2 (PZQ)"), "T2 (PZQ)", " ") -> T2 (PZQ) | E11: juillet 2021 | G11: 55006 | H11: 0 | I11: 55006 | K11: 48805 | M11: 48805 | O11: 88.72668436 | Q11: 88.72668436 | V11: 55006.71 | Y11: 55006 | Z11: 0
A12: =IF(COUNTRY_INFO!A12=0," ",COUNTRY_INFO!A12) -> Mali | B12: =IF(COUNTRY_INFO!B12=0," ",COUNTRY_INFO!B12) -> Bamako | C12: =IF(COUNTRY_INFO!C12=0," ",COUNTRY_INFO!C12) -> Commune 4 | D12: =IF(OR(COUNTRY_INFO!$T$9:$T$1000="T2 (PZQ)",COUNTRY_INFO!$U$9:$U$1000="T2 (PZQ)"), "T2 (PZQ)", " ") -> T2 (PZQ) | E12: juillet 2021 | G12: 128085 | H12: 0 | I12: 128085 | K12: 127810 | M12: 127810 | O12: 99.78529882 | Q12: 99.78529882 | V12: 128085.84 | Y12: 128085 | Z12: 0
A13: =IF(COUNTRY_INFO!A13=0," ",COUNTRY_INFO!A13) -> Mali | B13: =IF(COUNTRY_INFO!B13=0," ",COUNTRY_INFO!B13) -> Bamako | C13: =IF(COUNTRY_INFO!C13=0," ",COUNTRY_INFO!C13) -> Commune 5 | D13: =IF(OR(COUNTRY_INFO!$T$9:$T$1000="T2 (PZQ)",COUNTRY_INFO!$U$9:$U$1000="T2 (PZQ)"), "T2 (PZQ)", " ") -> T2 (PZQ) | E13: juillet 2021 | G13: 176993 | H13: 0 | I13: 176993 | K13: 167866 | M13: 167866 | O13: 94.84329889 | Q13: 94.84329889 | V13: 176993.835 | Y13: 176993 | Z13: 0
A14: =IF(COUNTRY_INFO!A14=0," ",COUNTRY_INFO!A14) -> Mali | B14: =IF(COUNTRY_INFO!B14=0," ",COUNTRY_INFO!B14) -> Bamako | C14: =IF(COUNTRY_INFO!C14=0," ",COUNTRY_INFO!C14) -> Commune 6 | D14: =IF(OR(COUNTRY_INFO!$T$9:$T$1000="T2 (PZQ)",COUNTRY_INFO!$U$9:$U$1000="T2 (PZQ)"), "T2 (PZQ)", " ") -> T2 (PZQ) | E14: juillet 2021 | G14: 200726 | H14: 0 | I14: 200726 | K14: 218454 | M14: 218454 | O14: 108.8319401 | Q14: 108.8319401 | V14: 200726.07 | Y14: 200726 | Z14: 0
A15: =IF(COUNTRY_INFO!A15=0," ",COUNTRY_INFO!A15) -> Mali | B15: =IF(COUNTRY_INFO!B15=0," ",COUNTRY_INFO!B15) -> Gao | C15: =IF(COUNTRY_INFO!C15=0," ",COUNTRY_INFO!C15) -> Ansongo | D15: =IF(OR(COUNTRY_INFO!$T$9:$T$1000="T2 (PZQ)",COUNTRY_INFO!$U$9:$U$1000="T2 (PZQ)"), "T2 (PZQ)", " ") -> T2 (PZQ) | E15: Septembre 2021 | G15: 22220 | H15: 0 | I15: 22220 | K15: 22198 | M15: 22198 | O15: 99.9009901 | Q15: 99.9009901 | V15: 22220 | Y15: 22220 | Z15: 0
A16: =IF(COUNTRY_INFO!A16=0," ",COUNTRY_INFO!A16) -> Mali | B16: =IF(COUNTRY_INFO!B16=0," ",COUNTRY_INFO!B16) -> Gao | C16: =IF(COUNTRY_INFO!C16=0," ",COUNTRY_INFO!C16) -> Bourem | D16: =IF(OR(COUNTRY_INFO!$T$9:$T$1000="T2 (PZQ)",COUNTRY_INFO!$U$9:$U$1000="T2 (PZQ)"), "T2 (PZQ)", " ") -> T2 (PZQ) | E16: Septembre 2021 | G16: 3303 | H16: 0 | I16: 3303 | K16: 2862 | M16: 2862 | O16: 86.64850136 | Q16: 86.64850136 | V16: 3303 | Y16: 3303 | Z16: 0
A17: =IF(COUNTRY_INFO!A17=0," ",COUNTRY_INFO!A17) -> Mali | B17: =IF(COUNTRY_INFO!B17=0," ",COUNTRY_INFO!B17) -> Gao | C17: =IF(COUNTRY_INFO!C17=0," ",COUNTRY_INFO!C17) -> Almoustrat | D17: =IF(OR(COUNTRY_INFO!$T$9:$T$1000="T2 (PZQ)",COUNTRY_INFO!$U$9:$U$1000="T2 (PZQ)"), "T2 (PZQ)", " ") ->  | G17: 0 | H17: 0 | I17: 0 | M17: 0 | Y17: 0 | Z17: 0
A18: =IF(COUNTRY_INFO!A18=0," ",COUNTRY_INFO!A18) -> Mali | B18: =IF(COUNTRY_INFO!B18=0," ",COUNTRY_INFO!B18) -> Gao | C18: =IF(COUNTRY_INFO!C18=0," ",COUNTRY_INFO!C18) -> Gao | D18: =IF(OR(COUNTRY_INFO!$T$9:$T$1000="T2 (PZQ)",COUNTRY_INFO!$U$9:$U$1000="T2 (PZQ)"), "T2 (PZQ)", " ") -> T2 (PZQ) | E18: Septembre 2021 | G18: 83314 | H18: 0 | I18: 83314 | K18: 87790 | M18: 87790 | O18: 105.3724464 | Q18: 105.3724464 | V18: 83314 | Y18: 83314 | Z18: 0
A19: =IF(COUNTRY_INFO!A19=0," ",COUNTRY_INFO!A19) -> Mali | B19: =IF(COUNTRY_INFO!B19=0," ",COUNTRY_INFO!B19) -> Menaka | C19: =IF(COUNTRY_INFO!C19=0," ",COUNTRY_INFO!C19) -> Menaka | D19: =IF(OR(COUNTRY_INFO!$T$9:$T$1000="T2 (PZQ)",COUNTRY_INFO!$U$9:$U$1000="T2 (PZQ)"), "T2 (PZQ)", " ") -> T2 (PZQ) | E19: Septembre 2021 | G19: 15052 | H19: 0 | I19: 15052 | K19: 14298 | M19: 14298 | O19: 94.99069891 | Q19: 94.99069891 | V19: 15052 | Y19: 15052 | Z19: 0
A20: =IF(COUNTRY_INFO!A20=0," ",COUNTRY_INFO!A20) -> Mali | B20: =IF(COUNTRY_INFO!B20=0," ",COUNTRY_INFO!B20) -> Menaka | C20: =IF(COUNTRY_INFO!C20=0," ",COUNTRY_INFO!C20) -> Anderamboukane | D20: =IF(OR(COUNTRY_INFO!$T$9:$T$1000="T2 (PZQ)",COUNTRY_INFO!$U$9:$U$1000="T2 (PZQ)"), "T2 (PZQ)", " ") -> T2 (PZQ) | E20: Septembre 2021 | G20: 6917 | H20: 0 | I20: 6917 | K20: 6917 | M20: 6917 | O20: 100 | Q20: 100 | V20: 6917 | Y20: 6917 | Z20: 0
A21: =IF(COUNTRY_INFO!A21=0," ",COUNTRY_INFO!A21) -> Mali | B21: =IF(COUNTRY_INFO!B21=0," ",COUNTRY_INFO!B21) -> Menaka | C21: =IF(COUNTRY_INFO!C21=0," ",COUNTRY_INFO!C21) -> Inekar | D21: =IF(OR(COUNTRY_INFO!$T$9:$T$1000="T2 (PZQ)",COUNTRY_INFO!$U$9:$U$1000="T2 (PZQ)"), "T2 (PZQ)", " ") -> T2 (PZQ) | E21: Septembre 2021 | G21: 2481 | H21: 0 | I21: 2481 | K21: 2481 | M21: 2481 | O21: 100 | Q21: 100 | V21: 2481 | Y21: 2481 | Z21: 0
A22: =IF(COUNTRY_INFO!A22=0," ",COUNTRY_INFO!A22) -> Mali | B22: =IF(COUNTRY_INFO!B22=0," ",COUNTRY_INFO!B22) -> Menaka | C22: =IF(COUNTRY_INFO!C22=0," ",COUNTRY_INFO!C22) -> Tidermene | D22: =IF(OR(COUNTRY_INFO!$T$9:$T$1000="T2 (PZQ)",COUNTRY_INFO!$U$9:$U$1000="T2 (PZQ)"), "T2 (PZQ)", " ") -> T2 (PZQ) | E22: Septembre 2021 | G22: 1215 | H22: 0 | I22: 1215 | K22: 1215 | M22: 1215 | O22: 100 | Q22: 100 | V22: 1215 | Y22: 1215 | Z22: 0
A23: =IF(COUNTRY_INFO!A23=0," ",COUNTRY_INFO!A23) -> Mali | B23: =IF(COUNTRY_INFO!B23=0," ",COUNTRY_INFO!B23) -> Kayes | C23: =IF(COUNTRY_INFO!C23=0," ",COUNTRY_INFO!C23) -> Bafoulabe | D23: =IF(OR(COUNTRY_INFO!$T$9:$T$1000="T2 (PZQ)",COUNTRY_INFO!$U$9:$U$1000="T2 (PZQ)"), "T2 (PZQ)", " ") -> T2 (PZQ) | E23: Aout 2021 | G23: 20716 | H23: 17025 | I23: 37741 | K23: 20716 | L23: 12240 | M23: 32956 | O23: 100 | P23: 71.89427313 | Q23: 87.32148062 | V23: 20716 | W23: 17025.84 | Y23: 20716 | Z23: 17025
A24: =IF(COUNTRY_INFO!A24=0," ",COUNTRY_INFO!A24) -> Mali | B24: =IF(COUNTRY_INFO!B24=0," ",COUNTRY_INFO!B24) -> Kayes | C24: =IF(COUNTRY_INFO!C24=0," ",COUNTRY_INFO!C24) -> Diema | D24: =IF(OR(COUNTRY_INFO!$T$9:$T$1000="T2 (PZQ)",COUNTRY_INFO!$U$9:$U$1000="T2 (PZQ)"), "T2 (PZQ)", " ") ->  | G24: 0 | H24: 0 | I24: 0 | M24: 0 | Y24: 0 | Z24: 0
A25: =IF(COUNTRY_INFO!A25=0," ",COUNTRY_INFO!A25) -> Mali | B25: =IF(COUNTRY_INFO!B25=0," ",COUNTRY_INFO!B25) -> Kayes | C25: =IF(COUNTRY_INFO!C25=0," ",COUNTRY_INFO!C25) -> Kayes | D25: =IF(OR(COUNTRY_INFO!$T$9:$T$1000="T2 (PZQ)",COUNTRY_INFO!$U$9:$U$1000="T2 (PZQ)"), "T2 (PZQ)", " ") -> T2 (PZQ) | E25: Aout 2021 | G25: 108862 | H25: 85343 | I25: 194205 | K25: 108862 | L25: 64500 | M25: 173362 | O25: 100 | P25: 75.577376 | Q25: 89.26752658 | V25: 108862 | W25: 85343.4 | Y25: 108862 | Z25: 85343
A26: =IF(COUNTRY_INFO!A26=0," ",COUNTRY_INFO!A26) -> Mali | B26: =IF(COUNTRY_INFO!B26=0," ",COUNTRY_INFO!B26) -> Kayes | C26: =IF(COUNTRY_INFO!C26=0," ",COUNTRY_INFO!C26) -> Kenieba | D26: =IF(OR(COUNTRY_INFO!$T$9:$T$1000="T2 (PZQ)",COUNTRY_INFO!$U$9:$U$1000="T2 (PZQ)"), "T2 (PZQ)", " ") -> T2 (PZQ) | E26: Aout 2021 | G26: 14086 | H26: 5654 | I26: 19740 | K26: 14086 | L26: 4077 | M26: 18163 | O26: 100 | P26: 72.10824195 | Q26: 92.01114488 | V26: 14086 | W26: 5654.81 | Y26: 14086 | Z26: 5654
A27: =IF(COUNTRY_INFO!A27=0," ",COUNTRY_INFO!A27) -> Mali | B27: =IF(COUNTRY_INFO!B27=0," ",COUNTRY_INFO!B27) -> Kayes | C27: =IF(COUNTRY_INFO!C27=0," ",COUNTRY_INFO!C27) -> Kita | D27: =IF(OR(COUNTRY_INFO!$T$9:$T$1000="T2 (PZQ)",COUNTRY_INFO!$U$9:$U$1000="T2 (PZQ)"), "T2 (PZQ)", " ") -> T2 (PZQ) | E27: Aout 2021 | G27: 85968 | H27: 0 | I27: 85968 | K27: 75575 | M27: 75575 | O27: 87.9106179 | Q27: 87.9106179 | V27: 85968.4 | Y27: 85968 | Z27: 0
A28: =IF(COUNTRY_INFO!A28=0," ",COUNTRY_INFO!A28) -> Mali | B28: =IF(COUNTRY_INFO!B28=0," ",COUNTRY_INFO!B28) -> Kayes | C28: =IF(COUNTRY_INFO!C28=0," ",COUNTRY_INFO!C28) -> Sagabari | D28: =IF(OR(COUNTRY_INFO!$T$9:$T$1000="T2 (PZQ)",COUNTRY_INFO!$U$9:$U$1000="T2 (PZQ)"), "T2 (PZQ)", " ") -> T2 (PZQ) | E28: Aout 2021 | G28: 14980 | H28: 0 | I28: 14980 | K28: 14004 | M28: 14004 | O28: 93.48464619 | Q28: 93.48464619 | V28: 14980 | Y28: 14980 | Z28: 0
A29: =IF(COUNTRY_INFO!A29=0," ",COUNTRY_INFO!A29) -> Mali | B29: =IF(COUNTRY_INFO!B29=0," ",COUNTRY_INFO!B29) -> Kayes | C29: =IF(COUNTRY_INFO!C29=0," ",COUNTRY_INFO!C29) -> Sefeto | D29: =IF(OR(COUNTRY_INFO!$T$9:$T$1000="T2 (PZQ)",COUNTRY_INFO!$U$9:$U$1000="T2 (PZQ)"), "T2 (PZQ)", " ") -> T2 (PZQ) | E29: Aout 2021 | G29: 18170 | H29: 0 | I29: 18170 | K29: 15901 | M29: 15901 | O29: 87.51238305 | Q29: 87.51238305 | V29: 18170.57227 | Y29: 18170 | Z29: 0
A30: =IF(COUNTRY_INFO!A30=0," ",COUNTRY_INFO!A30) -> Mali | B30: =IF(COUNTRY_INFO!B30=0," ",COUNTRY_INFO!B30) -> Kayes | C30: =IF(COUNTRY_INFO!C30=0," ",COUNTRY_INFO!C30) -> Nioro | D30: =IF(OR(COUNTRY_INFO!$T$9:$T$1000="T2 (PZQ)",COUNTRY_INFO!$U$9:$U$1000="T2 (PZQ)"), "T2 (PZQ)", " ") -> T2 (PZQ) | E30: Aout 2021 | G30: 13437 | H30: 0 | I30: 13437 | K30: 13209 | M30: 13209 | O30: 98.30319268 | Q30: 98.30319268 | V30: 13437.2 | Y30: 13437 | Z30: 0
A31: =IF(COUNTRY_INFO!A31=0," ",COUNTRY_INFO!A31) -> Mali | B31: =IF(COUNTRY_INFO!B31=0," ",COUNTRY_INFO!B31) -> Kayes | C31: =IF(COUNTRY_INFO!C31=0," ",COUNTRY_INFO!C31) -> Oussoubidiagna | D31: =IF(OR(COUNTRY_INFO!$T$9:$T$1000="T2 (PZQ)",COUNTRY_INFO!$U$9:$U$1000="T2 (PZQ)"), "T2 (PZQ)", " ") -> T2 (PZQ) | E31: Aout 2021 | G31: 37427 | H31: 0 | I31: 37427 | K31: 35863 | M31: 35863 | O31: 95.8211986 | Q31: 95.8211986 | V31: 37427.04 | Y31: 37427 | Z31: 0
A32: =IF(COUNTRY_INFO!A32=0," ",COUNTRY_INFO!A32) -> Mali | B32: =IF(COUNTRY_INFO!B32=0," ",COUNTRY_INFO!B32) -> Kayes | C32: =IF(COUNTRY_INFO!C32=0," ",COUNTRY_INFO!C32) -> Yelimane | D32: =IF(OR(COUNTRY_INFO!$T$9:$T$1000="T2 (PZQ)",COUNTRY_INFO!$U$9:$U$1000="T2 (PZQ)"), "T2 (PZQ)", " ") -> T2 (PZQ) | E32: Aout 2021 | G32: 70840 | H32: 0 | I32: 70840 | K32: 67162 | M32: 67162 | O32: 94.80801807 | Q32: 94.80801807 | V32: 70840.84 | Y32: 70840 | Z32: 0
A33: =IF(COUNTRY_INFO!A33=0," ",COUNTRY_INFO!A33) -> Mali | B33: =IF(COUNTRY_INFO!B33=0," ",COUNTRY_INFO!B33) -> Kidal | C33: =IF(COUNTRY_INFO!C33=0," ",COUNTRY_INFO!C33) -> Abeibara | D33: =IF(OR(COUNTRY_INFO!$T$9:$T$1000="T2 (PZQ)",COUNTRY_INFO!$U$9:$U$1000="T2 (PZQ)"), "T2 (PZQ)", " ") -> T2 (PZQ) | E33: Septembre 2021 | G33: 4443 | H33: 0 | I33: 4443 | K33: 2631 | M33: 2631 | O33: 59.21674544 | Q33: 59.21674544 | V33: 4443 | Y33: 4443 | Z33: 0
A34: =IF(COUNTRY_INFO!A34=0," ",COUNTRY_INFO!A34) -> Mali | B34: =IF(COUNTRY_INFO!B34=0," ",COUNTRY_INFO!B34) -> Kidal | C34: =IF(COUNTRY_INFO!C34=0," ",COUNTRY_INFO!C34) -> Kidal | D34: =IF(OR(COUNTRY_INFO!$T$9:$T$1000="T2 (PZQ)",COUNTRY_INFO!$U$9:$U$1000="T2 (PZQ)"), "T2 (PZQ)", " ") -> T2 (PZQ) | E34: Septembre 2021 | G34: 13371 | H34: 0 | I34: 13371 | K34: 6439 | M34: 6439 | O34: 48.15645801 | Q34: 48.15645801 | V34: 13371 | Y34: 13371 | Z34: 0
A35: =IF(COUNTRY_INFO!A35=0," ",COUNTRY_INFO!A35) -> Mali | B35: =IF(COUNTRY_INFO!B35=0," ",COUNTRY_INFO!B35) -> Kidal | C35: =IF(COUNTRY_INFO!C35=0," ",COUNTRY_INFO!C35) -> Tessalit | D35: =IF(OR(COUNTRY_INFO!$T$9:$T$1000="T2 (PZQ)",COUNTRY_INFO!$U$9:$U$1000="T2 (PZQ)"), "T2 (PZQ)", " ") -> T2 (PZQ) | E35: Septembre 2021 | G35: 7083 | H35: 0 | I35: 7083 | K35: 4312 | M35: 4312 | O35: 60.87815897 | Q35: 60.87815897 | V35: 7083 | Y35: 7083 | Z35: 0
A36: =IF(COUNTRY_INFO!A36=0," ",COUNTRY_INFO!A36) -> Mali | B36: =IF(COUNTRY_INFO!B36=0," ",COUNTRY_INFO!B36) -> Kidal | C36: =IF(COUNTRY_INFO!C36=0," ",COUNTRY_INFO!C36) -> Tin-Essako | D36: =IF(OR(COUNTRY_INFO!$T$9:$T$1000="T2 (PZQ)",COUNTRY_INFO!$U$9:$U$1000="T2 (PZQ)"), "T2 (PZQ)", " ") -> T2 (PZQ) | E36: Septembre 2021 | G36: 3444 | H36: 0 | I36: 3444 | K36: 2044 | M36: 2044 | O36: 59.3495935 | Q36: 59.3495935 | V36: 3444 | Y36: 3444 | Z36: 0
A37: =IF(COUNTRY_INFO!A37=0," ",COUNTRY_INFO!A37) -> Mali | B37: =IF(COUNTRY_INFO!B37=0," ",COUNTRY_INFO!B37) -> Koulikoro | C37: =IF(COUNTRY_INFO!C37=0," ",COUNTRY_INFO!C37) -> Banamba | D37: =IF(OR(COUNTRY_INFO!$T$9:$T$1000="T2 (PZQ)",COUNTRY_INFO!$U$9:$U$1000="T2 (PZQ)"), "T2 (PZQ)", " ") -> T2 (PZQ) | E37: Septembre 2021 | G37: 1496 | H37: 0 | I37: 1496 | K37: 1613 | M37: 1613 | O37: 107.8208556 | Q37: 107.8208556 | V37: 1496 | Y37: 1496 | Z37: 0
A38: =IF(COUNTRY_INFO!A38=0," ",COUNTRY_INFO!A38) -> Mali | B38: =IF(COUNTRY_INFO!B38=0," ",COUNTRY_INFO!B38) -> Koulikoro | C38: =IF(COUNTRY_INFO!C38=0," ",COUNTRY_INFO!C38) -> Dioila | D38: =IF(OR(COUNTRY_INFO!$T$9:$T$1000="T2 (PZQ)",COUNTRY_INFO!$U$9:$U$1000="T2 (PZQ)"), "T2 (PZQ)", " ") ->  | G38: 0 | H38: 0 | I38: 0 | M38: 0 | Y38: 0 | Z38: 0
A39: =IF(COUNTRY_INFO!A39=0," ",COUNTRY_INFO!A39) -> Mali | B39: =IF(COUNTRY_INFO!B39=0," ",COUNTRY_INFO!B39) -> Koulikoro | C39: =IF(COUNTRY_INFO!C39=0," ",COUNTRY_INFO!C39) -> Fana | D39: =IF(OR(COUNTRY_INFO!$T$9:$T$1000="T2 (PZQ)",COUNTRY_INFO!$U$9:$U$1000="T2 (PZQ)"), "T2 (PZQ)", " ") ->  | G39: 0 | H39: 0 | I39: 0 | M39: 0 | Y39: 0 | Z39: 0
A40: =IF(COUNTRY_INFO!A40=0," ",COUNTRY_INFO!A40) -> Mali | B40: =IF(COUNTRY_INFO!B40=0," ",COUNTRY_INFO!B40) -> Koulikoro | C40: =IF(COUNTRY_INFO!C40=0," ",COUNTRY_INFO!C40) -> Kalabancoro | D40: =IF(OR(COUNTRY_INFO!$T$9:$T$1000="T2 (PZQ)",COUNTRY_INFO!$U$9:$U$1000="T2 (PZQ)"), "T2 (PZQ)", " ") -> T2 (PZQ) | E40: Septembre 2021 | G40: 116513 | H40: 0 | I40: 116513 | K40: 99186 | M40: 99186 | O40: 85.12869809 | Q40: 85.12869809 | V40: 116513 | Y40: 116513 | Z40: 0
A41: =IF(COUNTRY_INFO!A41=0," ",COUNTRY_INFO!A41) -> Mali | B41: =IF(COUNTRY_INFO!B41=0," ",COUNTRY_INFO!B41) -> Koulikoro | C41: =IF(COUNTRY_INFO!C41=0," ",COUNTRY_INFO!C41) -> Kangaba | D41: =IF(OR(COUNTRY_INFO!$T$9:$T$1000="T2 (PZQ)",COUNTRY_INFO!$U$9:$U$1000="T2 (PZQ)"), "T2 (PZQ)", " ") ->  | G41: 0 | H41: 0 | I41: 0 | M41: 0 | Y41: 0 | Z41: 0
A42: =IF(COUNTRY_INFO!A42=0," ",COUNTRY_INFO!A42) -> Mali | B42: =IF(COUNTRY_INFO!B42=0," ",COUNTRY_INFO!B42) -> Koulikoro | C42: =IF(COUNTRY_INFO!C42=0," ",COUNTRY_INFO!C42) -> Kati | D42: =IF(OR(COUNTRY_INFO!$T$9:$T$1000="T2 (PZQ)",COUNTRY_INFO!$U$9:$U$1000="T2 (PZQ)"), "T2 (PZQ)", " ") -> T2 (PZQ) | E42: Septembre 2021 | G42: 211776 | H42: 0 | I42: 211776 | K42: 205898 | M42: 205898 | O42: 97.22442581 | Q42: 97.22442581 | V42: 211776 | Y42: 211776 | Z42: 0
A43: =IF(COUNTRY_INFO!A43=0," ",COUNTRY_INFO!A43) -> Mali | B43: =IF(COUNTRY_INFO!B43=0," ",COUNTRY_INFO!B43) -> Koulikoro | C43: =IF(COUNTRY_INFO!C43=0," ",COUNTRY_INFO!C43) -> Kolokani | D43: =IF(OR(COUNTRY_INFO!$T$9:$T$1000="T2 (PZQ)",COUNTRY_INFO!$U$9:$U$1000="T2 (PZQ)"), "T2 (PZQ)", " ") -> T2 (PZQ) | E43: Septembre 2021 | G43: 103683 | H43: 0 | I43: 103683 | K43: 103917 | M43: 103917 | O43: 100.2256879 | Q43: 100.2256879 | V43: 103683 | Y43: 103683 | Z43: 0
A44: =IF(COUNTRY_INFO!A44=0," ",COUNTRY_INFO!A44) -> Mali | B44: =IF(COUNTRY_INFO!B44=0," ",COUNTRY_INFO!B44) -> Koulikoro | C44: =IF(COUNTRY_INFO!C44=0," ",COUNTRY_INFO!C44) -> Koulikoro | D44: =IF(OR(COUNTRY_INFO!$T$9:$T$1000="T2 (PZQ)",COUNTRY_INFO!$U$9:$U$1000="T2 (PZQ)"), "T2 (PZQ)", " ") ->  | G44: 0 | H44: 0 | I44: 0 | M44: 0 | Y44: 0 | Z44: 0
A45: =IF(COUNTRY_INFO!A45=0," ",COUNTRY_INFO!A45) -> Mali | B45: =IF(COUNTRY_INFO!B45=0," ",COUNTRY_INFO!B45) -> Koulikoro | C45: =IF(COUNTRY_INFO!C45=0," ",COUNTRY_INFO!C45) -> Nara | D45: =IF(OR(COUNTRY_INFO!$T$9:$T$1000="T2 (PZQ)",COUNTRY_INFO!$U$9:$U$1000="T2 (PZQ)"), "T2 (PZQ)", " ") -> T2 (PZQ) | E45: Septembre 2021 | G45: 89403 | H45: 0 | I45: 89403 | K45: 89024 | M45: 89024 | O45: 99.57607687 | Q45: 99.57607687 | V45: 89403 | Y45: 89403 | Z45: 0
A46: =IF(COUNTRY_INFO!A46=0," ",COUNTRY_INFO!A46) -> Mali | B46: =IF(COUNTRY_INFO!B46=0," ",COUNTRY_INFO!B46) -> Koulikoro | C46: =IF(COUNTRY_INFO!C46=0," ",COUNTRY_INFO!C46) -> Ouelessebougou | D46: =IF(OR(COUNTRY_INFO!$T$9:$T$1000="T2 (PZQ)",COUNTRY_INFO!$U$9:$U$1000="T2 (PZQ)"), "T2 (PZQ)", " ") ->  | G46: 0 | H46: 0 | I46: 0 | M46: 0 | Y46: 0 | Z46: 0
A47: =IF(COUNTRY_INFO!A47=0," ",COUNTRY_INFO!A47) -> Mali | B47: =IF(COUNTRY_INFO!B47=0," ",COUNTRY_INFO!B47) -> Mopti | C47: =IF(COUNTRY_INFO!C47=0," ",COUNTRY_INFO!C47) -> Bandiagara | D47: =IF(OR(COUNTRY_INFO!$T$9:$T$1000="T2 (PZQ)",COUNTRY_INFO!$U$9:$U$1000="T2 (PZQ)"), "T2 (PZQ)", " ") -> T2 (PZQ) | E47: Octobre 2021 | G47: 122715 | H47: 0 | I47: 122715 | K47: 114257 | M47: 114257 | O47: 93.10760706 | Q47: 93.10760706 | V47: 122715 | Y47: 122715 | Z47: 0
A48: =IF(COUNTRY_INFO!A48=0," ",COUNTRY_INFO!A48) -> Mali | B48: =IF(COUNTRY_INFO!B48=0," ",COUNTRY_INFO!B48) -> Mopti | C48: =IF(COUNTRY_INFO!C48=0," ",COUNTRY_INFO!C48) -> Bankass | D48: =IF(OR(COUNTRY_INFO!$T$9:$T$1000="T2 (PZQ)",COUNTRY_INFO!$U$9:$U$1000="T2 (PZQ)"), "T2 (PZQ)", " ") -> T2 (PZQ) | E48: Octobre 2021 | G48: 109801 | H48: 0 | I48: 109801 | K48: 103095 | M48: 103095 | O48: 93.8925875 | Q48: 93.8925875 | V48: 109801 | Y48: 109801 | Z48: 0
A49: =IF(COUNTRY_INFO!A49=0," ",COUNTRY_INFO!A49) -> Mali | B49: =IF(COUNTRY_INFO!B49=0," ",COUNTRY_INFO!B49) -> Mopti | C49: =IF(COUNTRY_INFO!C49=0," ",COUNTRY_INFO!C49) -> Djenne | D49: =IF(OR(COUNTRY_INFO!$T$9:$T$1000="T2 (PZQ)",COUNTRY_INFO!$U$9:$U$1000="T2 (PZQ)"), "T2 (PZQ)", " ") -> T2 (PZQ) | E49: Octobre 2021 | G49: 68578 | H49: 0 | I49: 68578 | K49: 65495 | M49: 65495 | O49: 95.50438916 | Q49: 95.50438916 | V49: 68578 | Y49: 68578 | Z49: 0
A50: =IF(COUNTRY_INFO!A50=0," ",COUNTRY_INFO!A50) -> Mali | B50: =IF(COUNTRY_INFO!B50=0," ",COUNTRY_INFO!B50) -> Mopti | C50: =IF(COUNTRY_INFO!C50=0," ",COUNTRY_INFO!C50) -> Douentza | D50: =IF(OR(COUNTRY_INFO!$T$9:$T$1000="T2 (PZQ)",COUNTRY_INFO!$U$9:$U$1000="T2 (PZQ)"), "T2 (PZQ)", " ") -> T2 (PZQ) | E50: Octobre 2021 | G50: 74130 | H50: 0 | I50: 74130 | K50: 66432 | M50: 66432 | O50: 89.61554027 | Q50: 89.61554027 | V50: 74130 | Y50: 74130 | Z50: 0
A51: =IF(COUNTRY_INFO!A51=0," ",COUNTRY_INFO!A51) -> Mali | B51: =IF(COUNTRY_INFO!B51=0," ",COUNTRY_INFO!B51) -> Mopti | C51: =IF(COUNTRY_INFO!C51=0," ",COUNTRY_INFO!C51) -> Koro | D51: =IF(OR(COUNTRY_INFO!$T$9:$T$1000="T2 (PZQ)",COUNTRY_INFO!$U$9:$U$1000="T2 (PZQ)"), "T2 (PZQ)", " ") -> T2 (PZQ) | E51: Octobre 2021 | G51: 90584 | H51: 0 | I51: 90584 | K51: 85394 | M51: 85394 | O51: 94.27051135 | Q51: 94.27051135 | V51: 90584 | Y51: 90584 | Z51: 0
A52: =IF(COUNTRY_INFO!A52=0," ",COUNTRY_INFO!A52) -> Mali | B52: =IF(COUNTRY_INFO!B52=0," ",COUNTRY_INFO!B52) -> Mopti | C52: =IF(COUNTRY_INFO!C52=0," ",COUNTRY_INFO!C52) -> Mopti | D52: =IF(OR(COUNTRY_INFO!$T$9:$T$1000="T2 (PZQ)",COUNTRY_INFO!$U$9:$U$1000="T2 (PZQ)"), "T2 (PZQ)", " ") -> T2 (PZQ) | E52: Octobre 2021 | G52: 111662 | H52: 0 | I52: 111662 | K52: 94132 | M52: 94132 | O52: 84.30083645 | Q52: 84.30083645 | V52: 111662 | Y52: 111662 | Z52: 0
A53: =IF(COUNTRY_INFO!A53=0," ",COUNTRY_INFO!A53) -> Mali | B53: =IF(COUNTRY_INFO!B53=0," ",COUNTRY_INFO!B53) -> Mopti | C53: =IF(COUNTRY_INFO!C53=0," ",COUNTRY_INFO!C53) -> Teninkou | D53: =IF(OR(COUNTRY_INFO!$T$9:$T$1000="T2 (PZQ)",COUNTRY_INFO!$U$9:$U$1000="T2 (PZQ)"), "T2 (PZQ)", " ") -> T2 (PZQ) | E53: Octobre 2021 | G53: 3336 | H53: 0 | I53: 3336 | K53: 2951 | M53: 2951 | O53: 88.45923261 | Q53: 88.45923261 | V53: 3336 | Y53: 3336 | Z53: 0
A54: =IF(COUNTRY_INFO!A54=0," ",COUNTRY_INFO!A54) -> Mali | B54: =IF(COUNTRY_INFO!B54=0," ",COUNTRY_INFO!B54) -> Mopti | C54: =IF(COUNTRY_INFO!C54=0," ",COUNTRY_INFO!C54) -> Youwarou | D54: =IF(OR(COUNTRY_INFO!$T$9:$T$1000="T2 (PZQ)",COUNTRY_INFO!$U$9:$U$1000="T2 (PZQ)"), "T2 (PZQ)", " ") ->  | G54: 0 | H54: 0 | I54: 0 | M54: 0 | Y54: 0 | Z54: 0
A55: =IF(COUNTRY_INFO!A55=0," ",COUNTRY_INFO!A55) -> Mali | B55: =IF(COUNTRY_INFO!B55=0," ",COUNTRY_INFO!B55) -> Segou | C55: =IF(COUNTRY_INFO!C55=0," ",COUNTRY_INFO!C55) -> Barouéli | D55: =IF(OR(COUNTRY_INFO!$T$9:$T$1000="T2 (PZQ)",COUNTRY_INFO!$U$9:$U$1000="T2 (PZQ)"), "T2 (PZQ)", " ") -> T2 (PZQ) | E55: Septembre 2021 | G55: 90334 | H55: 0 | I55: 90334 | K55: 87628 | M55: 87628 | O55: 97.00445015 | Q55: 97.00445015 | V55: 90334 | Y55: 90334 | Z55: 0
A56: =IF(COUNTRY_INFO!A56=0," ",COUNTRY_INFO!A56) -> Mali | B56: =IF(COUNTRY_INFO!B56=0," ",COUNTRY_INFO!B56) -> Segou | C56: =IF(COUNTRY_INFO!C56=0," ",COUNTRY_INFO!C56) -> Bla | D56: =IF(OR(COUNTRY_INFO!$T$9:$T$1000="T2 (PZQ)",COUNTRY_INFO!$U$9:$U$1000="T2 (PZQ)"), "T2 (PZQ)", " ") -> T2 (PZQ) | E56: Septembre 2021 | G56: 122486 | H56: 0 | I56: 122486 | K56: 112911.04 | M56: 112911.04 | O56: 92.18281273 | Q56: 92.18281273 | V56: 122486 | Y56: 122486 | Z56: 0
A57: =IF(COUNTRY_INFO!A57=0," ",COUNTRY_INFO!A57) -> Mali | B57: =IF(COUNTRY_INFO!B57=0," ",COUNTRY_INFO!B57) -> Segou | C57: =IF(COUNTRY_INFO!C57=0," ",COUNTRY_INFO!C57) -> Macina | D57: =IF(OR(COUNTRY_INFO!$T$9:$T$1000="T2 (PZQ)",COUNTRY_INFO!$U$9:$U$1000="T2 (PZQ)"), "T2 (PZQ)", " ") -> T2 (PZQ) | E57: Septembre 2021 | G57: 95161 | H57: 0 | I57: 95161 | K57: 89220 | M57: 89220 | O57: 93.75689621 | Q57: 93.75689621 | V57: 95161 | Y57: 95161 | Z57: 0
A58: =IF(COUNTRY_INFO!A58=0," ",COUNTRY_INFO!A58) -> Mali | B58: =IF(COUNTRY_INFO!B58=0," ",COUNTRY_INFO!B58) -> Segou | C58: =IF(COUNTRY_INFO!C58=0," ",COUNTRY_INFO!C58) -> Markala | D58: =IF(OR(COUNTRY_INFO!$T$9:$T$1000="T2 (PZQ)",COUNTRY_INFO!$U$9:$U$1000="T2 (PZQ)"), "T2 (PZQ)", " ") -> T2 (PZQ) | E58: Septembre 2021 | G58: 105764 | H58: 0 | I58: 105764 | K58: 95190 | M58: 95190 | O58: 90.0022692 | Q58: 90.0022692 | V58: 105764 | Y58: 105764 | Z58: 0
A59: =IF(COUNTRY_INFO!A59=0," ",COUNTRY_INFO!A59) -> Mali | B59: =IF(COUNTRY_INFO!B59=0," ",COUNTRY_INFO!B59) -> Segou | C59: =IF(COUNTRY_INFO!C59=0," ",COUNTRY_INFO!C59) -> Niono | D59: =IF(OR(COUNTRY_INFO!$T$9:$T$1000="T2 (PZQ)",COUNTRY_INFO!$U$9:$U$1000="T2 (PZQ)"), "T2 (PZQ)", " ") -> T2 (PZQ) | E59: Septembre 2021 | G59: 157540 | H59: 0 | I59: 157540 | K59: 155598.16 | M59: 155598.16 | O59: 98.76739876 | Q59: 98.76739876 | V59: 157540 | Y59: 157540 | Z59: 0
A60: =IF(COUNTRY_INFO!A60=0," ",COUNTRY_INFO!A60) -> Mali | B60: =IF(COUNTRY_INFO!B60=0," ",COUNTRY_INFO!B60) -> Segou | C60: =IF(COUNTRY_INFO!C60=0," ",COUNTRY_INFO!C60) -> San | D60: =IF(OR(COUNTRY_INFO!$T$9:$T$1000="T2 (PZQ)",COUNTRY_INFO!$U$9:$U$1000="T2 (PZQ)"), "T2 (PZQ)", " ") -> T2 (PZQ) | E60: Septembre 2021 | G60: 86513 | H60: 0 | I60: 86513 | K60: 84131 | M60: 84131 | O60: 97.24665657 | Q60: 97.24665657 | V60: 86513 | Y60: 86513 | Z60: 0
A61: =IF(COUNTRY_INFO!A61=0," ",COUNTRY_INFO!A61) -> Mali | B61: =IF(COUNTRY_INFO!B61=0," ",COUNTRY_INFO!B61) -> Segou | C61: =IF(COUNTRY_INFO!C61=0," ",COUNTRY_INFO!C61) -> Segou | D61: =IF(OR(COUNTRY_INFO!$T$9:$T$1000="T2 (PZQ)",COUNTRY_INFO!$U$9:$U$1000="T2 (PZQ)"), "T2 (PZQ)", " ") -> T2 (PZQ) | E61: Septembre 2021 | G61: 190310 | H61: 0 | I61: 190310 | K61: 182339 | M61: 182339 | O61: 95.8115706 | Q61: 95.8115706 | V61: 190310 | Y61: 190310 | Z61: 0
A62: =IF(COUNTRY_INFO!A62=0," ",COUNTRY_INFO!A62) -> Mali | B62: =IF(COUNTRY_INFO!B62=0," ",COUNTRY_INFO!B62) -> Segou | C62: =IF(COUNTRY_INFO!C62=0," ",COUNTRY_INFO!C62) -> Tominian | D62: =IF(OR(COUNTRY_INFO!$T$9:$T$1000="T2 (PZQ)",COUNTRY_INFO!$U$9:$U$1000="T2 (PZQ)"), "T2 (PZQ)", " ") ->  | G62: 0 | H62: 0 | I62: 0 | M62: 0 | Y62: 0 | Z62: 0
A63: =IF(COUNTRY_INFO!A63=0," ",COUNTRY_INFO!A63) -> Mali | B63: =IF(COUNTRY_INFO!B63=0," ",COUNTRY_INFO!B63) -> Sikasso | C63: =IF(COUNTRY_INFO!C63=0," ",COUNTRY_INFO!C63) -> Bougouni | D63: =IF(OR(COUNTRY_INFO!$T$9:$T$1000="T2 (PZQ)",COUNTRY_INFO!$U$9:$U$1000="T2 (PZQ)"), "T2 (PZQ)", " ") -> T2 (PZQ) | E63: Septembre 2021 | G63: 189643 | H63: 0 | I63: 189643 | K63: 227309 | M63: 227309 | O63: 119.8615293 | Q63: 119.8615293 | V63: 189643 | Y63: 189643 | Z63: 0
A64: =IF(COUNTRY_INFO!A64=0," ",COUNTRY_INFO!A64) -> Mali | B64: =IF(COUNTRY_INFO!B64=0," ",COUNTRY_INFO!B64) -> Sikasso | C64: =IF(COUNTRY_INFO!C64=0," ",COUNTRY_INFO!C64) -> Kadiolo | D64: =IF(OR(COUNTRY_INFO!$T$9:$T$1000="T2 (PZQ)",COUNTRY_INFO!$U$9:$U$1000="T2 (PZQ)"), "T2 (PZQ)", " ") -> T2 (PZQ) | E64: Septembre 2021 | G64: 101136 | H64: 0 | I64: 101136 | K64: 81638 | M64: 81638 | O64: 80.72100933 | Q64: 80.72100933 | V64: 101136 | Y64: 101136 | Z64: 0
A65: =IF(COUNTRY_INFO!A65=0," ",COUNTRY_INFO!A65) -> Mali | B65: =IF(COUNTRY_INFO!B65=0," ",COUNTRY_INFO!B65) -> Sikasso | C65: =IF(COUNTRY_INFO!C65=0," ",COUNTRY_INFO!C65) -> Kignan | D65: =IF(OR(COUNTRY_INFO!$T$9:$T$1000="T2 (PZQ)",COUNTRY_INFO!$U$9:$U$1000="T2 (PZQ)"), "T2 (PZQ)", " ") -> T2 (PZQ) | E65: Septembre 2021 | G65: 30337 | H65: 0 | I65: 30337 | K65: 33237 | M65: 33237 | O65: 109.559284 | Q65: 109.559284 | V65: 30337 | Y65: 30337 | Z65: 0
A66: =IF(COUNTRY_INFO!A66=0," ",COUNTRY_INFO!A66) -> Mali | B66: =IF(COUNTRY_INFO!B66=0," ",COUNTRY_INFO!B66) -> Sikasso | C66: =IF(COUNTRY_INFO!C66=0," ",COUNTRY_INFO!C66) -> Kolondieba | D66: =IF(OR(COUNTRY_INFO!$T$9:$T$1000="T2 (PZQ)",COUNTRY_INFO!$U$9:$U$1000="T2 (PZQ)"), "T2 (PZQ)", " ") ->  | G66: 0 | H66: 0 | I66: 0 | M66: 0 | Y66: 0 | Z66: 0
A67: =IF(COUNTRY_INFO!A67=0," ",COUNTRY_INFO!A67) -> Mali | B67: =IF(COUNTRY_INFO!B67=0," ",COUNTRY_INFO!B67) -> Sikasso | C67: =IF(COUNTRY_INFO!C67=0," ",COUNTRY_INFO!C67) -> Koutiala | D67: =IF(OR(COUNTRY_INFO!$T$9:$T$1000="T2 (PZQ)",COUNTRY_INFO!$U$9:$U$1000="T2 (PZQ)"), "T2 (PZQ)", " ") -> T2 (PZQ) | E67: Septembre 2021 | G67: 249793 | H67: 0 | I67: 249793 | K67: 258719 | M67: 258719 | O67: 103.5733587 | Q67: 103.5733587 | V67: 249793 | Y67: 249793 | Z67: 0
A68: =IF(COUNTRY_INFO!A68=0," ",COUNTRY_INFO!A68) -> Mali | B68: =IF(COUNTRY_INFO!B68=0," ",COUNTRY_INFO!B68) -> Sikasso | C68: =IF(COUNTRY_INFO!C68=0," ",COUNTRY_INFO!C68) -> Niena | D68: =IF(OR(COUNTRY_INFO!$T$9:$T$1000="T2 (PZQ)",COUNTRY_INFO!$U$9:$U$1000="T2 (PZQ)"), "T2 (PZQ)", " ") -> T2 (PZQ) | E68: Septembre 2021 | G68: 7747 | H68: 0 | I68: 7747 | K68: 6347 | M68: 6347 | O68: 81.92848845 | Q68: 81.92848845 | V68: 7747 | Y68: 7747 | Z68: 0
A69: =IF(COUNTRY_INFO!A69=0," ",COUNTRY_INFO!A69) -> Mali | B69: =IF(COUNTRY_INFO!B69=0," ",COUNTRY_INFO!B69) -> Sikasso | C69: =IF(COUNTRY_INFO!C69=0," ",COUNTRY_INFO!C69) -> Sélingué | D69: =IF(OR(COUNTRY_INFO!$T$9:$T$1000="T2 (PZQ)",COUNTRY_INFO!$U$9:$U$1000="T2 (PZQ)"), "T2 (PZQ)", " ") ->  | G69: 0 | H69: 0 | I69: 0 | M69: 0 | Y69: 0 | Z69: 0
A70: =IF(COUNTRY_INFO!A70=0," ",COUNTRY_INFO!A70) -> Mali | B70: =IF(COUNTRY_INFO!B70=0," ",COUNTRY_INFO!B70) -> Sikasso | C70: =IF(COUNTRY_INFO!C70=0," ",COUNTRY_INFO!C70) -> Sikasso | D70: =IF(OR(COUNTRY_INFO!$T$9:$T$1000="T2 (PZQ)",COUNTRY_INFO!$U$9:$U$1000="T2 (PZQ)"), "T2 (PZQ)", " ") ->  | G70: 0 | H70: 0 | I70: 0 | M70: 0 | Y70: 0 | Z70: 0
A71: =IF(COUNTRY_INFO!A71=0," ",COUNTRY_INFO!A71) -> Mali | B71: =IF(COUNTRY_INFO!B71=0," ",COUNTRY_INFO!B71) -> Sikasso | C71: =IF(COUNTRY_INFO!C71=0," ",COUNTRY_INFO!C71) -> Yanfolila | D71: =IF(OR(COUNTRY_INFO!$T$9:$T$1000="T2 (PZQ)",COUNTRY_INFO!$U$9:$U$1000="T2 (PZQ)"), "T2 (PZQ)", " ") -> T2 (PZQ) | E71: Septembre 2021 | G71: 51728 | H71: 0 | I71: 51728 | K71: 51728 | M71: 51728 | O71: 100 | Q71: 100 | V71: 51728 | Y71: 51728 | Z71: 0
A72: =IF(COUNTRY_INFO!A72=0," ",COUNTRY_INFO!A72) -> Mali | B72: =IF(COUNTRY_INFO!B72=0," ",COUNTRY_INFO!B72) -> Sikasso | C72: =IF(COUNTRY_INFO!C72=0," ",COUNTRY_INFO!C72) -> Yorosso | D72: =IF(OR(COUNTRY_INFO!$T$9:$T$1000="T2 (PZQ)",COUNTRY_INFO!$U$9:$U$1000="T2 (PZQ)"), "T2 (PZQ)", " ") -> T2 (PZQ) | E72: Septembre 2021 | G72: 68911 | H72: 0 | I72: 68911 | K72: 34250 | M72: 34250 | O72: 49.70178926 | Q72: 49.70178926 | V72: 68911 | Y72: 68911 | Z72: 0
A73: =IF(COUNTRY_INFO!A73=0," ",COUNTRY_INFO!A73) -> Mali | B73: =IF(COUNTRY_INFO!B73=0," ",COUNTRY_INFO!B73) -> Tombouctou | C73: =IF(COUNTRY_INFO!C73=0," ",COUNTRY_INFO!C73) -> Diré | D73: =IF(OR(COUNTRY_INFO!$T$9:$T$1000="T2 (PZQ)",COUNTRY_INFO!$U$9:$U$1000="T2 (PZQ)"), "T2 (PZQ)", " ") -> T2 (PZQ) | E73: Octobre 2021 | G73: 3347 | H73: 0 | I73: 3347 | K73: 3347 | M73: 3347 | O73: 100 | Q73: 100 | V73: 3347 | Y73: 3347 | Z73: 0
A74: =IF(COUNTRY_INFO!A74=0," ",COUNTRY_INFO!A74) -> Mali | B74: =IF(COUNTRY_INFO!B74=0," ",COUNTRY_INFO!B74) -> Tombouctou | C74: =IF(COUNTRY_INFO!C74=0," ",COUNTRY_INFO!C74) -> Goundam | D74: =IF(OR(COUNTRY_INFO!$T$9:$T$1000="T2 (PZQ)",COUNTRY_INFO!$U$9:$U$1000="T2 (PZQ)"), "T2 (PZQ)", " ") ->  | G74: 0 | H74: 0 | I74: =SUM(F74:H74) -> 0 | M74: =SUM(J74:L74) -> 0 | N74: =IF(F74<>0, IF(J74/F74*100=0, "-", J74/F74*100), " ") ->  | O74: =IF(G74<>0, IF(K74/G74*100=0, "-", K74/G74*100), " ") ->  | P74: =IF(H74<>0, IF(L74/H74*100=0, "-", L74/H74*100), " ") ->  | Q74: =IF(I74<>0, IF(M74/I74*100=0, "-", M74/I74*100), " ") ->  | Y74: =ROUNDDOWN(G74,0) -> 0 | Z74: =ROUNDDOWN(H74,0) -> 0
A75: =IF(COUNTRY_INFO!A75=0," ",COUNTRY_INFO!A75) -> Mali | B75: =IF(COUNTRY_INFO!B75=0," ",COUNTRY_INFO!B75) -> Tombouctou | C75: =IF(COUNTRY_INFO!C75=0," ",COUNTRY_INFO!C75) -> Gourma-Rharous | D75: =IF(OR(COUNTRY_INFO!$T$9:$T$1000="T2 (PZQ)",COUNTRY_INFO!$U$9:$U$1000="T2 (PZQ)"), "T2 (PZQ)", " ") -> T2 (PZQ) | E75: Octobre 2021 | G75: 38614 | H75: 0 | I75: 38614 | K75: 37739 | M75: 37739 | O75: 97.73398249 | Q75: 97.73398249 | V75: 38614 | Y75: 38614 | Z75: 0
A76: =IF(COUNTRY_INFO!A76=0," ",COUNTRY_INFO!A76) -> Mali | B76: =IF(COUNTRY_INFO!B76=0," ",COUNTRY_INFO!B76) -> Tombouctou | C76: =IF(COUNTRY_INFO!C76=0," ",COUNTRY_INFO!C76) -> Niafunké | D76: =IF(OR(COUNTRY_INFO!$T$9:$T$1000="T2 (PZQ)",COUNTRY_INFO!$U$9:$U$1000="T2 (PZQ)"), "T2 (PZQ)", " ") -> T2 (PZQ) | E76: Octobre 2021 | G76: 4226 | H76: 0 | I76: 4226 | K76: 3800 | M76: 3800 | O76: 89.91954567 | Q76: 89.91954567 | V76: 4226 | Y76: 4226 | Z76: 0
A77: =IF(COUNTRY_INFO!A77=0," ",COUNTRY_INFO!A77) -> Mali | B77: =IF(COUNTRY_INFO!B77=0," ",COUNTRY_INFO!B77) -> Tombouctou | C77: =IF(COUNTRY_INFO!C77=0," ",COUNTRY_INFO!C77) -> Tombouctou | D77: =IF(OR(COUNTRY_INFO!$T$9:$T$1000="T2 (PZQ)",COUNTRY_INFO!$U$9:$U$1000="T2 (PZQ)"), "T2 (PZQ)", " ") -> T2 (PZQ) | E77: Octobre 2021 | G77: 52254 | H77: 0 | I77: 52254 | K77: 49685 | M77: 49685 | O77: 95.08362996 | Q77: 95.08362996 | V77: 52254 | Y77: 52254 | Z77: 0
A78: =IF(COUNTRY_INFO!A78=0," ",COUNTRY_INFO!A78) -> Mali | B78: =IF(COUNTRY_INFO!B78=0," ",COUNTRY_INFO!B78) -> Taoudenit | C78: =IF(COUNTRY_INFO!C78=0," ",COUNTRY_INFO!C78) -> Achourat | D78: =IF(OR(COUNTRY_INFO!$T$9:$T$1000="T2 (PZQ)",COUNTRY_INFO!$U$9:$U$1000="T2 (PZQ)"), "T2 (PZQ)", " ") -> T2 (PZQ) | E78: Septembre 2021 | G78: 9896 | H78: 0 | I78: 9896 | K78: 4615 | M78: 4615 | O78: 46.63500404 | Q78: 46.63500404 | V78: 9896 | Y78: 9896 | Z78: 0
A79: =IF(COUNTRY_INFO!A79=0," ",COUNTRY_INFO!A79) -> Mali | B79: =IF(COUNTRY_INFO!B79=0," ",COUNTRY_INFO!B79) -> Taoudenit | C79: =IF(COUNTRY_INFO!C79=0," ",COUNTRY_INFO!C79) -> Al-Ourch | D79: =IF(OR(COUNTRY_INFO!$T$9:$T$1000="T2 (PZQ)",COUNTRY_INFO!$U$9:$U$1000="T2 (PZQ)"), "T2 (PZQ)", " ") -> T2 (PZQ) | E79: Septembre 2021 | G79: 18312 | H79: 0 | I79: 18312 | K79: 6973 | M79: 6973 | O79: 38.0788554 | Q79: 38.0788554 | V79: 18312 | Y79: 18312 | Z79: 0
A80: =IF(COUNTRY_INFO!A80=0," ",COUNTRY_INFO!A80) -> Mali | B80: =IF(COUNTRY_INFO!B80=0," ",COUNTRY_INFO!B80) -> Taoudenit | C80: =IF(COUNTRY_INFO!C80=0," ",COUNTRY_INFO!C80) -> Araouane | D80: =IF(OR(COUNTRY_INFO!$T$9:$T$1000="T2 (PZQ)",COUNTRY_INFO!$U$9:$U$1000="T2 (PZQ)"), "T2 (PZQ)", " ") -> T2 (PZQ) | E80: Septembre 2021 | G80: 9098 | H80: 0 | I80: 9098 | K80: 3244 | M80: 3244 | O80: 35.65618817 | Q80: 35.65618817 | V80: 9098 | Y80: 9098 | Z80: 0
A81: =IF(COUNTRY_INFO!A81=0," ",COUNTRY_INFO!A81) -> Mali | B81: =IF(COUNTRY_INFO!B81=0," ",COUNTRY_INFO!B81) -> Taoudenit | C81: =IF(COUNTRY_INFO!C81=0," ",COUNTRY_INFO!C81) -> Boujbeha | D81: =IF(OR(COUNTRY_INFO!$T$9:$T$1000="T2 (PZQ)",COUNTRY_INFO!$U$9:$U$1000="T2 (PZQ)"), "T2 (PZQ)", " ") -> T2 (PZQ) | E81: Septembre 2021 | G81: 8301 | H81: 0 | I81: 8301 | K81: 4370 | M81: 4370 | O81: 52.64425973 | Q81: 52.64425973 | V81: 8301 | Y81: 8301 | Z81: 0
A82: =IF(COUNTRY_INFO!A82=0," ",COUNTRY_INFO!A82) -> Mali | B82: =IF(COUNTRY_INFO!B82=0," ",COUNTRY_INFO!B82) -> Taoudenit | C82: =IF(COUNTRY_INFO!C82=0," ",COUNTRY_INFO!C82) -> Foum-Elba | D82: =IF(OR(COUNTRY_INFO!$T$9:$T$1000="T2 (PZQ)",COUNTRY_INFO!$U$9:$U$1000="T2 (PZQ)"), "T2 (PZQ)", " ") -> T2 (PZQ) | E82: Septembre 2021 | G82: 5360 | H82: 0 | I82: 5360 | K82: 1580 | M82: 1580 | O82: 29.47761194 | Q82: 29.47761194 | V82: 5360 | Y82: 5360 | Z82: 0
A83: =IF(COUNTRY_INFO!A83=0," ",COUNTRY_INFO!A83) -> Mali | B83: =IF(COUNTRY_INFO!B83=0," ",COUNTRY_INFO!B83) -> Taoudenit | C83: =IF(COUNTRY_INFO!C83=0," ",COUNTRY_INFO!C83) -> Taoudenit | D83: =IF(OR(COUNTRY_INFO!$T$9:$T$1000="T2 (PZQ)",COUNTRY_INFO!$U$9:$U$1000="T2 (PZQ)"), "T2 (PZQ)", " ") -> T2 (PZQ) | E83: Septembre 2021 | G83: 7681 | H83: 0 | I83: 7681 | K83: 4115.490968 | M83: 4115.490968 | O83: 53.58014539 | Q83: 53.58014539 | V83: 7681 | Y83: 7681 | Z83: 0

Sheet T3_R1 (hidden)
A1: T 3 - Albendazole (ALB) ou Mebendazole (MBD) - Tournée 1
A2: Structure administrative, population nécessitant une chimioprévention par groupe d'âge, population traitée par groupe d'âge et couverture
A4: TOTAL | G4: =SUM(G$9:G$1000) -> 0 | H4: 0 | I4: 0 | J4: 0 | K4: 0 | L4: 0 | M4: 0 | N4: 0 | O4: =IF(G4<>0, IF(K4/G4*100=0, "-", K4/G4*100), " ") ->  | P4: =IF(H4<>0, IF(L4/H4*100=0, "-", L4/H4*100), " ") ->  | Q4: =IF(I4<>0, IF(M4/I4*100=0, "-", M4/I4*100), " ") ->  | R4: =IF(J4<>0, IF(N4/J4*100=0, "-", N4/J4*100), " ") -> 
A6: Structure administrative du pays | D6: Mise en oeuvre de la CP | E6: Médica-ment | F6: Date | G6: Population ciblée pour T3 | K6: Population traitée | O6: Couverture du Programme (%)
A7: Pays | B7: Région/Département | C7: District | G7: EAPréS | H7: EAS | I7: Adultes | J7: Total | K7: EAPréS | L7: EAS | M7: Adultes | N7: Total | O7: EAPréS | P7: EAS | Q7: Adultes | R7: Total
A9: =IF(COUNTRY_INFO!A9=0," ",COUNTRY_INFO!A9) -> Mali | B9: =IF(COUNTRY_INFO!B9=0," ",COUNTRY_INFO!B9) -> Bamako | C9: =IF(COUNTRY_INFO!C9=0," ",COUNTRY_INFO!C9) -> Commune 1 | D9: =IF(OR(COUNTRY_INFO!$T$9:$T$1000="T3 (ALB/MBD)",COUNTRY_INFO!$U$9:$U$1000="T3 (ALB/MBD)"), "T3 (ALB/MBD)", " ") ->  | J9: =SUM(G9:I9) -> 0 | N9: =SUM(K9:M9) -> 0 | O9: =IF(G9<>0, IF(K9/G9*100=0, "-", K9/G9*100), " ") -> 
A10: =IF(COUNTRY_INFO!A10=0," ",COUNTRY_INFO!A10) -> Mali | B10: =IF(COUNTRY_INFO!B10=0," ",COUNTRY_INFO!B10) -> Bamako | C10: =IF(COUNTRY_INFO!C10=0," ",COUNTRY_INFO!C10) -> Commune 2 | D10: =IF(OR(COUNTRY_INFO!$T$9:$T$1000="T3 (ALB/MBD)",COUNTRY_INFO!$U$9:$U$1000="T3 (ALB/MBD)"), "T3 (ALB/MBD)", " ") ->  | J10: =SUM(G10:I10) -> 0 | N10: =SUM(K10:M10) -> 0 | O10: =IF(G10<>0, IF(K10/G10*100=0, "-", K10/G10*100), " ") ->  | P10: =IF(H10<>0, IF(L10/H10*100=0, "-", L10/H10*100), " ") ->  | Q10: =IF(I10<>0, IF(M10/I10*100=0, "-", M10/I10*100), " ") ->  | R10: =IF(J10<>0, IF(N10/J10*100=0, "-", N10/J10*100), " ") -> 
A11: =IF(COUNTRY_INFO!A11=0," ",COUNTRY_INFO!A11) -> Mali | B11: =IF(COUNTRY_INFO!B11=0," ",COUNTRY_INFO!B11) -> Bamako | C11: =IF(COUNTRY_INFO!C11=0," ",COUNTRY_INFO!C11) -> Commune 3 | D11: =IF(OR(COUNTRY_INFO!$T$9:$T$1000="T3 (ALB/MBD)",COUNTRY_INFO!$U$9:$U$1000="T3 (ALB/MBD)"), "T3 (ALB/MBD)", " ") ->  | J11: 0 | N11: 0
A12: =IF(COUNTRY_INFO!A12=0," ",COUNTRY_INFO!A12) -> Mali | B12: =IF(COUNTRY_INFO!B12=0," ",COUNTRY_INFO!B12) -> Bamako | C12: =IF(COUNTRY_INFO!C12=0," ",COUNTRY_INFO!C12) -> Commune 4 | D12: =IF(OR(COUNTRY_INFO!$T$9:$T$1000="T3 (ALB/MBD)",COUNTRY_INFO!$U$9:$U$1000="T3 (ALB/MBD)"), "T3 (ALB/MBD)", " ") ->  | J12: 0 | N12: 0
A13: =IF(COUNTRY_INFO!A13=0," ",COUNTRY_INFO!A13) -> Mali | B13: =IF(COUNTRY_INFO!B13=0," ",COUNTRY_INFO!B13) -> Bamako | C13: =IF(COUNTRY_INFO!C13=0," ",COUNTRY_INFO!C13) -> Commune 5 | D13: =IF(OR(COUNTRY_INFO!$T$9:$T$1000="T3 (ALB/MBD)",COUNTRY_INFO!$U$9:$U$1000="T3 (ALB/MBD)"), "T3 (ALB/MBD)", " ") ->  | J13: 0 | N13: 0
A14: =IF(COUNTRY_INFO!A14=0," ",COUNTRY_INFO!A14) -> Mali | B14: =IF(COUNTRY_INFO!B14=0," ",COUNTRY_INFO!B14) -> Bamako | C14: =IF(COUNTRY_INFO!C14=0," ",COUNTRY_INFO!C14) -> Commune 6 | D14: =IF(OR(COUNTRY_INFO!$T$9:$T$1000="T3 (ALB/MBD)",COUNTRY_INFO!$U$9:$U$1000="T3 (ALB/MBD)"), "T3 (ALB/MBD)", " ") ->  | J14: 0 | N14: 0
A15: =IF(COUNTRY_INFO!A15=0," ",COUNTRY_INFO!A15) -> Mali | B15: =IF(COUNTRY_INFO!B15=0," ",COUNTRY_INFO!B15) -> Gao | C15: =IF(COUNTRY_INFO!C15=0," ",COUNTRY_INFO!C15) -> Ansongo | D15: =IF(OR(COUNTRY_INFO!$T$9:$T$1000="T3 (ALB/MBD)",COUNTRY_INFO!$U$9:$U$1000="T3 (ALB/MBD)"), "T3 (ALB/MBD)", " ") ->  | J15: 0 | N15: 0
A16: =IF(COUNTRY_INFO!A16=0," ",COUNTRY_INFO!A16) -> Mali | B16: =IF(COUNTRY_INFO!B16=0," ",COUNTRY_INFO!B16) -> Gao | C16: =IF(COUNTRY_INFO!C16=0," ",COUNTRY_INFO!C16) -> Bourem | D16: =IF(OR(COUNTRY_INFO!$T$9:$T$1000="T3 (ALB/MBD)",COUNTRY_INFO!$U$9:$U$1000="T3 (ALB/MBD)"), "T3 (ALB/MBD)", " ") ->  | J16: 0 | N16: 0
A17: =IF(COUNTRY_INFO!A17=0," ",COUNTRY_INFO!A17) -> Mali | B17: =IF(COUNTRY_INFO!B17=0," ",COUNTRY_INFO!B17) -> Gao | C17: =IF(COUNTRY_INFO!C17=0," ",COUNTRY_INFO!C17) -> Almoustrat | D17: =IF(OR(COUNTRY_INFO!$T$9:$T$1000="T3 (ALB/MBD)",COUNTRY_INFO!$U$9:$U$1000="T3 (ALB/MBD)"), "T3 (ALB/MBD)", " ") ->  | J17: 0 | N17: 0
A18: =IF(COUNTRY_INFO!A18=0," ",COUNTRY_INFO!A18) -> Mali | B18: =IF(COUNTRY_INFO!B18=0," ",COUNTRY_INFO!B18) -> Gao | C18: =IF(COUNTRY_INFO!C18=0," ",COUNTRY_INFO!C18) -> Gao | D18: =IF(OR(COUNTRY_INFO!$T$9:$T$1000="T3 (ALB/MBD)",COUNTRY_INFO!$U$9:$U$1000="T3 (ALB/MBD)"), "T3 (ALB/MBD)", " ") ->  | J18: 0 | N18: 0
A19: =IF(COUNTRY_INFO!A19=0," ",COUNTRY_INFO!A19) -> Mali | B19: =IF(COUNTRY_INFO!B19=0," ",COUNTRY_INFO!B19) -> Menaka | C19: =IF(COUNTRY_INFO!C19=0," ",COUNTRY_INFO!C19) -> Menaka | D19: =IF(OR(COUNTRY_INFO!$T$9:$T$1000="T3 (ALB/MBD)",COUNTRY_INFO!$U$9:$U$1000="T3 (ALB/MBD)"), "T3 (ALB/MBD)", " ") ->  | J19: 0 | N19: 0
A20: =IF(COUNTRY_INFO!A20=0," ",COUNTRY_INFO!A20) -> Mali | B20: =IF(COUNTRY_INFO!B20=0," ",COUNTRY_INFO!B20) -> Menaka | C20: =IF(COUNTRY_INFO!C20=0," ",COUNTRY_INFO!C20) -> Anderamboukane | D20: =IF(OR(COUNTRY_INFO!$T$9:$T$1000="T3 (ALB/MBD)",COUNTRY_INFO!$U$9:$U$1000="T3 (ALB/MBD)"), "T3 (ALB/MBD)", " ") ->  | J20: 0 | N20: 0
A21: =IF(COUNTRY_INFO!A21=0," ",COUNTRY_INFO!A21) -> Mali | B21: =IF(COUNTRY_INFO!B21=0," ",COUNTRY_INFO!B21) -> Menaka | C21: =IF(COUNTRY_INFO!C21=0," ",COUNTRY_INFO!C21) -> Inekar | D21: =IF(OR(COUNTRY_INFO!$T$9:$T$1000="T3 (ALB/MBD)",COUNTRY_INFO!$U$9:$U$1000="T3 (ALB/MBD)"), "T3 (ALB/MBD)", " ") ->  | J21: 0 | N21: 0
A22: =IF(COUNTRY_INFO!A22=0," ",COUNTRY_INFO!A22) -> Mali | B22: =IF(COUNTRY_INFO!B22=0," ",COUNTRY_INFO!B22) -> Menaka | C22: =IF(COUNTRY_INFO!C22=0," ",COUNTRY_INFO!C22) -> Tidermene | D22: =IF(OR(COUNTRY_INFO!$T$9:$T$1000="T3 (ALB/MBD)",COUNTRY_INFO!$U$9:$U$1000="T3 (ALB/MBD)"), "T3 (ALB/MBD)", " ") ->  | J22: 0 | N22: 0
A23: =IF(COUNTRY_INFO!A23=0," ",COUNTRY_INFO!A23) -> Mali | B23: =IF(COUNTRY_INFO!B23=0," ",COUNTRY_INFO!B23) -> Kayes | C23: =IF(COUNTRY_INFO!C23=0," ",COUNTRY_INFO!C23) -> Bafoulabe | D23: =IF(OR(COUNTRY_INFO!$T$9:$T$1000="T3 (ALB/MBD)",COUNTRY_INFO!$U$9:$U$1000="T3 (ALB/MBD)"), "T3 (ALB/MBD)", " ") ->  | J23: 0 | N23: 0
A24: =IF(COUNTRY_INFO!A24=0," ",COUNTRY_INFO!A24) -> Mali | B24: =IF(COUNTRY_INFO!B24=0," ",COUNTRY_INFO!B24) -> Kayes | C24: =IF(COUNTRY_INFO!C24=0," ",COUNTRY_INFO!C24) -> Diema | D24: =IF(OR(COUNTRY_INFO!$T$9:$T$1000="T3 (ALB/MBD)",COUNTRY_INFO!$U$9:$U$1000="T3 (ALB/MBD)"), "T3 (ALB/MBD)", " ") ->  | J24: 0 | N24: 0
A25: =IF(COUNTRY_INFO!A25=0," ",COUNTRY_INFO!A25) -> Mali | B25: =IF(COUNTRY_INFO!B25=0," ",COUNTRY_INFO!B25) -> Kayes | C25: =IF(COUNTRY_INFO!C25=0," ",COUNTRY_INFO!C25) -> Kayes | D25: =IF(OR(COUNTRY_INFO!$T$9:$T$1000="T3 (ALB/MBD)",COUNTRY_INFO!$U$9:$U$1000="T3 (ALB/MBD)"), "T3 (ALB/MBD)", " ") ->  | J25: 0 | N25: 0
A26: =IF(COUNTRY_INFO!A26=0," ",COUNTRY_INFO!A26) -> Mali | B26: =IF(COUNTRY_INFO!B26=0," ",COUNTRY_INFO!B26) -> Kayes | C26: =IF(COUNTRY_INFO!C26=0," ",COUNTRY_INFO!C26) -> Kenieba | D26: =IF(OR(COUNTRY_INFO!$T$9:$T$1000="T3 (ALB/MBD)",COUNTRY_INFO!$U$9:$U$1000="T3 (ALB/MBD)"), "T3 (ALB/MBD)", " ") ->  | J26: 0 | N26: 0
A27: =IF(COUNTRY_INFO!A27=0," ",COUNTRY_INFO!A27) -> Mali | B27: =IF(COUNTRY_INFO!B27=0," ",COUNTRY_INFO!B27) -> Kayes | C27: =IF(COUNTRY_INFO!C27=0," ",COUNTRY_INFO!C27) -> Kita | D27: =IF(OR(COUNTRY_INFO!$T$9:$T$1000="T3 (ALB/MBD)",COUNTRY_INFO!$U$9:$U$1000="T3 (ALB/MBD)"), "T3 (ALB/MBD)", " ") ->  | J27: 0 | N27: 0
A28: =IF(COUNTRY_INFO!A28=0," ",COUNTRY_INFO!A28) -> Mali | B28: =IF(COUNTRY_INFO!B28=0," ",COUNTRY_INFO!B28) -> Kayes | C28: =IF(COUNTRY_INFO!C28=0," ",COUNTRY_INFO!C28) -> Sagabari | D28: =IF(OR(COUNTRY_INFO!$T$9:$T$1000="T3 (ALB/MBD)",COUNTRY_INFO!$U$9:$U$1000="T3 (ALB/MBD)"), "T3 (ALB/MBD)", " ") ->  | J28: 0 | N28: 0
A29: =IF(COUNTRY_INFO!A29=0," ",COUNTRY_INFO!A29) -> Mali | B29: =IF(COUNTRY_INFO!B29=0," ",COUNTRY_INFO!B29) -> Kayes | C29: =IF(COUNTRY_INFO!C29=0," ",COUNTRY_INFO!C29) -> Sefeto | D29: =IF(OR(COUNTRY_INFO!$T$9:$T$1000="T3 (ALB/MBD)",COUNTRY_INFO!$U$9:$U$1000="T3 (ALB/MBD)"), "T3 (ALB/MBD)", " ") ->  | J29: 0 | N29: 0
A30: =IF(COUNTRY_INFO!A30=0," ",COUNTRY_INFO!A30) -> Mali | B30: =IF(COUNTRY_INFO!B30=0," ",COUNTRY_INFO!B30) -> Kayes | C30: =IF(COUNTRY_INFO!C30=0," ",COUNTRY_INFO!C30) -> Nioro | D30: =IF(OR(COUNTRY_INFO!$T$9:$T$1000="T3 (ALB/MBD)",COUNTRY_INFO!$U$9:$U$1000="T3 (ALB/MBD)"), "T3 (ALB/MBD)", " ") ->  | J30: 0 | N30: 0
A31: =IF(COUNTRY_INFO!A31=0," ",COUNTRY_INFO!A31) -> Mali | B31: =IF(COUNTRY_INFO!B31=0," ",COUNTRY_INFO!B31) -> Kayes | C31: =IF(COUNTRY_INFO!C31=0," ",COUNTRY_INFO!C31) -> Oussoubidiagna | D31: =IF(OR(COUNTRY_INFO!$T$9:$T$1000="T3 (ALB/MBD)",COUNTRY_INFO!$U$9:$U$1000="T3 (ALB/MBD)"), "T3 (ALB/MBD)", " ") ->  | J31: 0 | N31: 0
A32: =IF(COUNTRY_INFO!A32=0," ",COUNTRY_INFO!A32) -> Mali | B32: =IF(COUNTRY_INFO!B32=0," ",COUNTRY_INFO!B32) -> Kayes | C32: =IF(COUNTRY_INFO!C32=0," ",COUNTRY_INFO!C32) -> Yelimane | D32: =IF(OR(COUNTRY_INFO!$T$9:$T$1000="T3 (ALB/MBD)",COUNTRY_INFO!$U$9:$U$1000="T3 (ALB/MBD)"), "T3 (ALB/MBD)", " ") ->  | J32: 0 | N32: 0
A33: =IF(COUNTRY_INFO!A33=0," ",COUNTRY_INFO!A33) -> Mali | B33: =IF(COUNTRY_INFO!B33=0," ",COUNTRY_INFO!B33) -> Kidal | C33: =IF(COUNTRY_INFO!C33=0," ",COUNTRY_INFO!C33) -> Abeibara | D33: =IF(OR(COUNTRY_INFO!$T$9:$T$1000="T3 (ALB/MBD)",COUNTRY_INFO!$U$9:$U$1000="T3 (ALB/MBD)"), "T3 (ALB/MBD)", " ") ->  | J33: 0 | N33: 0
A34: =IF(COUNTRY_INFO!A34=0," ",COUNTRY_INFO!A34) -> Mali | B34: =IF(COUNTRY_INFO!B34=0," ",COUNTRY_INFO!B34) -> Kidal | C34: =IF(COUNTRY_INFO!C34=0," ",COUNTRY_INFO!C34) -> Kidal | D34: =IF(OR(COUNTRY_INFO!$T$9:$T$1000="T3 (ALB/MBD)",COUNTRY_INFO!$U$9:$U$1000="T3 (ALB/MBD)"), "T3 (ALB/MBD)", " ") ->  | J34: 0 | N34: 0
A35: =IF(COUNTRY_INFO!A35=0," ",COUNTRY_INFO!A35) -> Mali | B35: =IF(COUNTRY_INFO!B35=0," ",COUNTRY_INFO!B35) -> Kidal | C35: =IF(COUNTRY_INFO!C35=0," ",COUNTRY_INFO!C35) -> Tessalit | D35: =IF(OR(COUNTRY_INFO!$T$9:$T$1000="T3 (ALB/MBD)",COUNTRY_INFO!$U$9:$U$1000="T3 (ALB/MBD)"), "T3 (ALB/MBD)", " ") ->  | J35: 0 | N35: 0
A36: =IF(COUNTRY_INFO!A36=0," ",COUNTRY_INFO!A36) -> Mali | B36: =IF(COUNTRY_INFO!B36=0," ",COUNTRY_INFO!B36) -> Kidal | C36: =IF(COUNTRY_INFO!C36=0," ",COUNTRY_INFO!C36) -> Tin-Essako | D36: =IF(OR(COUNTRY_INFO!$T$9:$T$1000="T3 (ALB/MBD)",COUNTRY_INFO!$U$9:$U$1000="T3 (ALB/MBD)"), "T3 (ALB/MBD)", " ") ->  | J36: 0 | N36: 0
A37: =IF(COUNTRY_INFO!A37=0," ",COUNTRY_INFO!A37) -> Mali | B37: =IF(COUNTRY_INFO!B37=0," ",COUNTRY_INFO!B37) -> Koulikoro | C37: =IF(COUNTRY_INFO!C37=0," ",COUNTRY_INFO!C37) -> Banamba | D37: =IF(OR(COUNTRY_INFO!$T$9:$T$1000="T3 (ALB/MBD)",COUNTRY_INFO!$U$9:$U$1000="T3 (ALB/MBD)"), "T3 (ALB/MBD)", " ") ->  | J37: 0 | N37: 0
A38: =IF(COUNTRY_INFO!A38=0," ",COUNTRY_INFO!A38) -> Mali | B38: =IF(COUNTRY_INFO!B38=0," ",COUNTRY_INFO!B38) -> Koulikoro | C38: =IF(COUNTRY_INFO!C38=0," ",COUNTRY_INFO!C38) -> Dioila | D38: =IF(OR(COUNTRY_INFO!$T$9:$T$1000="T3 (ALB/MBD)",COUNTRY_INFO!$U$9:$U$1000="T3 (ALB/MBD)"), "T3 (ALB/MBD)", " ") ->  | J38: 0 | N38: 0
A39: =IF(COUNTRY_INFO!A39=0," ",COUNTRY_INFO!A39) -> Mali | B39: =IF(COUNTRY_INFO!B39=0," ",COUNTRY_INFO!B39) -> Koulikoro | C39: =IF(COUNTRY_INFO!C39=0," ",COUNTRY_INFO!C39) -> Fana | D39: =IF(OR(COUNTRY_INFO!$T$9:$T$1000="T3 (ALB/MBD)",COUNTRY_INFO!$U$9:$U$1000="T3 (ALB/MBD)"), "T3 (ALB/MBD)", " ") ->  | J39: 0 | N39: 0
A40: =IF(COUNTRY_INFO!A40=0," ",COUNTRY_INFO!A40) -> Mali | B40: =IF(COUNTRY_INFO!B40=0," ",COUNTRY_INFO!B40) -> Koulikoro | C40: =IF(COUNTRY_INFO!C40=0," ",COUNTRY_INFO!C40) -> Kalabancoro | D40: =IF(OR(COUNTRY_INFO!$T$9:$T$1000="T3 (ALB/MBD)",COUNTRY_INFO!$U$9:$U$1000="T3 (ALB/MBD)"), "T3 (ALB/MBD)", " ") ->  | J40: 0 | N40: 0
A41: =IF(COUNTRY_INFO!A41=0," ",COUNTRY_INFO!A41) -> Mali | B41: =IF(COUNTRY_INFO!B41=0," ",COUNTRY_INFO!B41) -> Koulikoro | C41: =IF(COUNTRY_INFO!C41=0," ",COUNTRY_INFO!C41) -> Kangaba | D41: =IF(OR(COUNTRY_INFO!$T$9:$T$1000="T3 (ALB/MBD)",COUNTRY_INFO!$U$9:$U$1000="T3 (ALB/MBD)"), "T3 (ALB/MBD)", " ") ->  | J41: 0 | N41: 0
A42: =IF(COUNTRY_INFO!A42=0," ",COUNTRY_INFO!A42) -> Mali | B42: =IF(COUNTRY_INFO!B42=0," ",COUNTRY_INFO!B42) -> Koulikoro | C42: =IF(COUNTRY_INFO!C42=0," ",COUNTRY_INFO!C42) -> Kati | D42: =IF(OR(COUNTRY_INFO!$T$9:$T$1000="T3 (ALB/MBD)",COUNTRY_INFO!$U$9:$U$1000="T3 (ALB/MBD)"), "T3 (ALB/MBD)", " ") ->  | J42: 0 | N42: 0
A43: =IF(COUNTRY_INFO!A43=0," ",COUNTRY_INFO!A43) -> Mali | B43: =IF(COUNTRY_INFO!B43=0," ",COUNTRY_INFO!B43) -> Koulikoro | C43: =IF(COUNTRY_INFO!C43=0," ",COUNTRY_INFO!C43) -> Kolokani | D43: =IF(OR(COUNTRY_INFO!$T$9:$T$1000="T3 (ALB/MBD)",COUNTRY_INFO!$U$9:$U$1000="T3 (ALB/MBD)"), "T3 (ALB/MBD)", " ") ->  | J43: 0 | N43: 0
A44: =IF(COUNTRY_INFO!A44=0," ",COUNTRY_INFO!A44) -> Mali | B44: =IF(COUNTRY_INFO!B44=0," ",COUNTRY_INFO!B44) -> Koulikoro | C44: =IF(COUNTRY_INFO!C44=0," ",COUNTRY_INFO!C44) -> Koulikoro | D44: =IF(OR(COUNTRY_INFO!$T$9:$T$1000="T3 (ALB/MBD)",COUNTRY_INFO!$U$9:$U$1000="T3 (ALB/MBD)"), "T3 (ALB/MBD)", " ") ->  | J44: 0 | N44: 0
A45: =IF(COUNTRY_INFO!A45=0," ",COUNTRY_INFO!A45) -> Mali | B45: =IF(COUNTRY_INFO!B45=0," ",COUNTRY_INFO!B45) -> Koulikoro | C45: =IF(COUNTRY_INFO!C45=0," ",COUNTRY_INFO!C45) -> Nara | D45: =IF(OR(COUNTRY_INFO!$T$9:$T$1000="T3 (ALB/MBD)",COUNTRY_INFO!$U$9:$U$1000="T3 (ALB/MBD)"), "T3 (ALB/MBD)", " ") ->  | J45: 0 | N45: 0
A46: =IF(COUNTRY_INFO!A46=0," ",COUNTRY_INFO!A46) -> Mali | B46: =IF(COUNTRY_INFO!B46=0," ",COUNTRY_INFO!B46) -> Koulikoro | C46: =IF(COUNTRY_INFO!C46=0," ",COUNTRY_INFO!C46) -> Ouelessebougou | D46: =IF(OR(COUNTRY_INFO!$T$9:$T$1000="T3 (ALB/MBD)",COUNTRY_INFO!$U$9:$U$1000="T3 (ALB/MBD)"), "T3 (ALB/MBD)", " ") ->  | J46: 0 | N46: 0
A47: =IF(COUNTRY_INFO!A47=0," ",COUNTRY_INFO!A47) -> Mali | B47: =IF(COUNTRY_INFO!B47=0," ",COUNTRY_INFO!B47) -> Mopti | C47: =IF(COUNTRY_INFO!C47=0," ",COUNTRY_INFO!C47) -> Bandiagara | D47: =IF(OR(COUNTRY_INFO!$T$9:$T$1000="T3 (ALB/MBD)",COUNTRY_INFO!$U$9:$U$1000="T3 (ALB/MBD)"), "T3 (ALB/MBD)", " ") ->  | J47: 0 | N47: 0
A48: =IF(COUNTRY_INFO!A48=0," ",COUNTRY_INFO!A48) -> Mali | B48: =IF(COUNTRY_INFO!B48=0," ",COUNTRY_INFO!B48) -> Mopti | C48: =IF(COUNTRY_INFO!C48=0," ",COUNTRY_INFO!C48) -> Bankass | D48: =IF(OR(COUNTRY_INFO!$T$9:$T$1000="T3 (ALB/MBD)",COUNTRY_INFO!$U$9:$U$1000="T3 (ALB/MBD)"), "T3 (ALB/MBD)", " ") ->  | J48: 0 | N48: 0
A49: =IF(COUNTRY_INFO!A49=0," ",COUNTRY_INFO!A49) -> Mali | B49: =IF(COUNTRY_INFO!B49=0," ",COUNTRY_INFO!B49) -> Mopti | C49: =IF(COUNTRY_INFO!C49=0," ",COUNTRY_INFO!C49) -> Djenne | D49: =IF(OR(COUNTRY_INFO!$T$9:$T$1000="T3 (ALB/MBD)",COUNTRY_INFO!$U$9:$U$1000="T3 (ALB/MBD)"), "T3 (ALB/MBD)", " ") ->  | J49: 0 | N49: 0
A50: =IF(COUNTRY_INFO!A50=0," ",COUNTRY_INFO!A50) -> Mali | B50: =IF(COUNTRY_INFO!B50=0," ",COUNTRY_INFO!B50) -> Mopti | C50: =IF(COUNTRY_INFO!C50=0," ",COUNTRY_INFO!C50) -> Douentza | D50: =IF(OR(COUNTRY_INFO!$T$9:$T$1000="T3 (ALB/MBD)",COUNTRY_INFO!$U$9:$U$1000="T3 (ALB/MBD)"), "T3 (ALB/MBD)", " ") ->  | J50: 0 | N50: 0
A51: =IF(COUNTRY_INFO!A51=0," ",COUNTRY_INFO!A51) -> Mali | B51: =IF(COUNTRY_INFO!B51=0," ",COUNTRY_INFO!B51) -> Mopti | C51: =IF(COUNTRY_INFO!C51=0," ",COUNTRY_INFO!C51) -> Koro | D51: =IF(OR(COUNTRY_INFO!$T$9:$T$1000="T3 (ALB/MBD)",COUNTRY_INFO!$U$9:$U$1000="T3 (ALB/MBD)"), "T3 (ALB/MBD)", " ") ->  | J51: 0 | N51: 0
A52: =IF(COUNTRY_INFO!A52=0," ",COUNTRY_INFO!A52) -> Mali | B52: =IF(COUNTRY_INFO!B52=0," ",COUNTRY_INFO!B52) -> Mopti | C52: =IF(COUNTRY_INFO!C52=0," ",COUNTRY_INFO!C52) -> Mopti | D52: =IF(OR(COUNTRY_INFO!$T$9:$T$1000="T3 (ALB/MBD)",COUNTRY_INFO!$U$9:$U$1000="T3 (ALB/MBD)"), "T3 (ALB/MBD)", " ") ->  | J52: 0 | N52: 0
A53: =IF(COUNTRY_INFO!A53=0," ",COUNTRY_INFO!A53) -> Mali | B53: =IF(COUNTRY_INFO!B53=0," ",COUNTRY_INFO!B53) -> Mopti | C53: =IF(COUNTRY_INFO!C53=0," ",COUNTRY_INFO!C53) -> Teninkou | D53: =IF(OR(COUNTRY_INFO!$T$9:$T$1000="T3 (ALB/MBD)",COUNTRY_INFO!$U$9:$U$1000="T3 (ALB/MBD)"), "T3 (ALB/MBD)", " ") ->  | J53: 0 | N53: 0
A54: =IF(COUNTRY_INFO!A54=0," ",COUNTRY_INFO!A54) -> Mali | B54: =IF(COUNTRY_INFO!B54=0," ",COUNTRY_INFO!B54) -> Mopti | C54: =IF(COUNTRY_INFO!C54=0," ",COUNTRY_INFO!C54) -> Youwarou | D54: =IF(OR(COUNTRY_INFO!$T$9:$T$1000="T3 (ALB/MBD)",COUNTRY_INFO!$U$9:$U$1000="T3 (ALB/MBD)"), "T3 (ALB/MBD)", " ") ->  | J54: 0 | N54: 0
A55: =IF(COUNTRY_INFO!A55=0," ",COUNTRY_INFO!A55) -> Mali | B55: =IF(COUNTRY_INFO!B55=0," ",COUNTRY_INFO!B55) -> Segou | C55: =IF(COUNTRY_INFO!C55=0," ",COUNTRY_INFO!C55) -> Barouéli | D55: =IF(OR(COUNTRY_INFO!$T$9:$T$1000="T3 (ALB/MBD)",COUNTRY_INFO!$U$9:$U$1000="T3 (ALB/MBD)"), "T3 (ALB/MBD)", " ") ->  | J55: 0 | N55: 0
A56: =IF(COUNTRY_INFO!A56=0," ",COUNTRY_INFO!A56) -> Mali | B56: =IF(COUNTRY_INFO!B56=0," ",COUNTRY_INFO!B56) -> Segou | C56: =IF(COUNTRY_INFO!C56=0," ",COUNTRY_INFO!C56) -> Bla | D56: =IF(OR(COUNTRY_INFO!$T$9:$T$1000="T3 (ALB/MBD)",COUNTRY_INFO!$U$9:$U$1000="T3 (ALB/MBD)"), "T3 (ALB/MBD)", " ") ->  | J56: 0 | N56: 0
A57: =IF(COUNTRY_INFO!A57=0," ",COUNTRY_INFO!A57) -> Mali | B57: =IF(COUNTRY_INFO!B57=0," ",COUNTRY_INFO!B57) -> Segou | C57: =IF(COUNTRY_INFO!C57=0," ",COUNTRY_INFO!C57) -> Macina | D57: =IF(OR(COUNTRY_INFO!$T$9:$T$1000="T3 (ALB/MBD)",COUNTRY_INFO!$U$9:$U$1000="T3 (ALB/MBD)"), "T3 (ALB/MBD)", " ") ->  | J57: 0 | N57: 0
A58: =IF(COUNTRY_INFO!A58=0," ",COUNTRY_INFO!A58) -> Mali | B58: =IF(COUNTRY_INFO!B58=0," ",COUNTRY_INFO!B58) -> Segou | C58: =IF(COUNTRY_INFO!C58=0," ",COUNTRY_INFO!C58) -> Markala | D58: =IF(OR(COUNTRY_INFO!$T$9:$T$1000="T3 (ALB/MBD)",COUNTRY_INFO!$U$9:$U$1000="T3 (ALB/MBD)"), "T3 (ALB/MBD)", " ") ->  | J58: 0 | N58: 0
A59: =IF(COUNTRY_INFO!A59=0," ",COUNTRY_INFO!A59) -> Mali | B59: =IF(COUNTRY_INFO!B59=0," ",COUNTRY_INFO!B59) -> Segou | C59: =IF(COUNTRY_INFO!C59=0," ",COUNTRY_INFO!C59) -> Niono | D59: =IF(OR(COUNTRY_INFO!$T$9:$T$1000="T3 (ALB/MBD)",COUNTRY_INFO!$U$9:$U$1000="T3 (ALB/MBD)"), "T3 (ALB/MBD)", " ") ->  | J59: 0 | N59: 0
A60: =IF(COUNTRY_INFO!A60=0," ",COUNTRY_INFO!A60) -> Mali | B60: =IF(COUNTRY_INFO!B60=0," ",COUNTRY_INFO!B60) -> Segou | C60: =IF(COUNTRY_INFO!C60=0," ",COUNTRY_INFO!C60) -> San | D60: =IF(OR(COUNTRY_INFO!$T$9:$T$1000="T3 (ALB/MBD)",COUNTRY_INFO!$U$9:$U$1000="T3 (ALB/MBD)"), "T3 (ALB/MBD)", " ") ->  | J60: 0 | N60: 0
A61: =IF(COUNTRY_INFO!A61=0," ",COUNTRY_INFO!A61) -> Mali | B61: =IF(COUNTRY_INFO!B61=0," ",COUNTRY_INFO!B61) -> Segou | C61: =IF(COUNTRY_INFO!C61=0," ",COUNTRY_INFO!C61) -> Segou | D61: =IF(OR(COUNTRY_INFO!$T$9:$T$1000="T3 (ALB/MBD)",COUNTRY_INFO!$U$9:$U$1000="T3 (ALB/MBD)"), "T3 (ALB/MBD)", " ") ->  | J61: 0 | N61: 0
A62: =IF(COUNTRY_INFO!A62=0," ",COUNTRY_INFO!A62) -> Mali | B62: =IF(COUNTRY_INFO!B62=0," ",COUNTRY_INFO!B62) -> Segou | C62: =IF(COUNTRY_INFO!C62=0," ",COUNTRY_INFO!C62) -> Tominian | D62: =IF(OR(COUNTRY_INFO!$T$9:$T$1000="T3 (ALB/MBD)",COUNTRY_INFO!$U$9:$U$1000="T3 (ALB/MBD)"), "T3 (ALB/MBD)", " ") ->  | J62: 0 | N62: 0
A63: =IF(COUNTRY_INFO!A63=0," ",COUNTRY_INFO!A63) -> Mali | B63: =IF(COUNTRY_INFO!B63=0," ",COUNTRY_INFO!B63) -> Sikasso | C63: =IF(COUNTRY_INFO!C63=0," ",COUNTRY_INFO!C63) -> Bougouni | D63: =IF(OR(COUNTRY_INFO!$T$9:$T$1000="T3 (ALB/MBD)",COUNTRY_INFO!$U$9:$U$1000="T3 (ALB/MBD)"), "T3 (ALB/MBD)", " ") ->  | J63: 0 | N63: 0
A64: =IF(COUNTRY_INFO!A64=0," ",COUNTRY_INFO!A64) -> Mali | B64: =IF(COUNTRY_INFO!B64=0," ",COUNTRY_INFO!B64) -> Sikasso | C64: =IF(COUNTRY_INFO!C64=0," ",COUNTRY_INFO!C64) -> Kadiolo | D64: =IF(OR(COUNTRY_INFO!$T$9:$T$1000="T3 (ALB/MBD)",COUNTRY_INFO!$U$9:$U$1000="T3 (ALB/MBD)"), "T3 (ALB/MBD)", " ") ->  | J64: 0 | N64: 0
A65: =IF(COUNTRY_INFO!A65=0," ",COUNTRY_INFO!A65) -> Mali | B65: =IF(COUNTRY_INFO!B65=0," ",COUNTRY_INFO!B65) -> Sikasso | C65: =IF(COUNTRY_INFO!C65=0," ",COUNTRY_INFO!C65) -> Kignan | D65: =IF(OR(COUNTRY_INFO!$T$9:$T$1000="T3 (ALB/MBD)",COUNTRY_INFO!$U$9:$U$1000="T3 (ALB/MBD)"), "T3 (ALB/MBD)", " ") ->  | J65: 0 | N65: 0
A66: =IF(COUNTRY_INFO!A66=0," ",COUNTRY_INFO!A66) -> Mali | B66: =IF(COUNTRY_INFO!B66=0," ",COUNTRY_INFO!B66) -> Sikasso | C66: =IF(COUNTRY_INFO!C66=0," ",COUNTRY_INFO!C66) -> Kolondieba | D66: =IF(OR(COUNTRY_INFO!$T$9:$T$1000="T3 (ALB/MBD)",COUNTRY_INFO!$U$9:$U$1000="T3 (ALB/MBD)"), "T3 (ALB/MBD)", " ") ->  | J66: 0 | N66: 0
A67: =IF(COUNTRY_INFO!A67=0," ",COUNTRY_INFO!A67) -> Mali | B67: =IF(COUNTRY_INFO!B67=0," ",COUNTRY_INFO!B67) -> Sikasso | C67: =IF(COUNTRY_INFO!C67=0," ",COUNTRY_INFO!C67) -> Koutiala | D67: =IF(OR(COUNTRY_INFO!$T$9:$T$1000="T3 (ALB/MBD)",COUNTRY_INFO!$U$9:$U$1000="T3 (ALB/MBD)"), "T3 (ALB/MBD)", " ") ->  | J67: 0 | N67: 0
A68: =IF(COUNTRY_INFO!A68=0," ",COUNTRY_INFO!A68) -> Mali | B68: =IF(COUNTRY_INFO!B68=0," ",COUNTRY_INFO!B68) -> Sikasso | C68: =IF(COUNTRY_INFO!C68=0," ",COUNTRY_INFO!C68) -> Niena | D68: =IF(OR(COUNTRY_INFO!$T$9:$T$1000="T3 (ALB/MBD)",COUNTRY_INFO!$U$9:$U$1000="T3 (ALB/MBD)"), "T3 (ALB/MBD)", " ") ->  | J68: 0 | N68: 0
A69: =IF(COUNTRY_INFO!A69=0," ",COUNTRY_INFO!A69) -> Mali | B69: =IF(COUNTRY_INFO!B69=0," ",COUNTRY_INFO!B69) -> Sikasso | C69: =IF(COUNTRY_INFO!C69=0," ",COUNTRY_INFO!C69) -> Sélingué | D69: =IF(OR(COUNTRY_INFO!$T$9:$T$1000="T3 (ALB/MBD)",COUNTRY_INFO!$U$9:$U$1000="T3 (ALB/MBD)"), "T3 (ALB/MBD)", " ") ->  | J69: 0 | N69: 0
A70: =IF(COUNTRY_INFO!A70=0," ",COUNTRY_INFO!A70) -> Mali | B70: =IF(COUNTRY_INFO!B70=0," ",COUNTRY_INFO!B70) -> Sikasso | C70: =IF(COUNTRY_INFO!C70=0," ",COUNTRY_INFO!C70) -> Sikasso | D70: =IF(OR(COUNTRY_INFO!$T$9:$T$1000="T3 (ALB/MBD)",COUNTRY_INFO!$U$9:$U$1000="T3 (ALB/MBD)"), "T3 (ALB/MBD)", " ") ->  | J70: 0 | N70: 0
A71: =IF(COUNTRY_INFO!A71=0," ",COUNTRY_INFO!A71) -> Mali | B71: =IF(COUNTRY_INFO!B71=0," ",COUNTRY_INFO!B71) -> Sikasso | C71: =IF(COUNTRY_INFO!C71=0," ",COUNTRY_INFO!C71) -> Yanfolila | D71: =IF(OR(COUNTRY_INFO!$T$9:$T$1000="T3 (ALB/MBD)",COUNTRY_INFO!$U$9:$U$1000="T3 (ALB/MBD)"), "T3 (ALB/MBD)", " ") ->  | J71: 0 | N71: 0
A72: =IF(COUNTRY_INFO!A72=0," ",COUNTRY_INFO!A72) -> Mali | B72: =IF(COUNTRY_INFO!B72=0," ",COUNTRY_INFO!B72) -> Sikasso | C72: =IF(COUNTRY_INFO!C72=0," ",COUNTRY_INFO!C72) -> Yorosso | D72: =IF(OR(COUNTRY_INFO!$T$9:$T$1000="T3 (ALB/MBD)",COUNTRY_INFO!$U$9:$U$1000="T3 (ALB/MBD)"), "T3 (ALB/MBD)", " ") ->  | J72: 0 | N72: 0
A73: =IF(COUNTRY_INFO!A73=0," ",COUNTRY_INFO!A73) -> Mali | B73: =IF(COUNTRY_INFO!B73=0," ",COUNTRY_INFO!B73) -> Tombouctou | C73: =IF(COUNTRY_INFO!C73=0," ",COUNTRY_INFO!C73) -> Diré | D73: =IF(OR(COUNTRY_INFO!$T$9:$T$1000="T3 (ALB/MBD)",COUNTRY_INFO!$U$9:$U$1000="T3 (ALB/MBD)"), "T3 (ALB/MBD)", " ") ->  | J73: 0 | N73: 0
A74: =IF(COUNTRY_INFO!A74=0," ",COUNTRY_INFO!A74) -> Mali | B74: =IF(COUNTRY_INFO!B74=0," ",COUNTRY_INFO!B74) -> Tombouctou | C74: =IF(COUNTRY_INFO!C74=0," ",COUNTRY_INFO!C74) -> Goundam | D74: =IF(OR(COUNTRY_INFO!$T$9:$T$1000="T3 (ALB/MBD)",COUNTRY_INFO!$U$9:$U$1000="T3 (ALB/MBD)"), "T3 (ALB/MBD)", " ") ->  | J74: =SUM(G74:I74) -> 0 | N74: =SUM(K74:M74) -> 0 | O74: =IF(G74<>0, IF(K74/G74*100=0, "-", K74/G74*100), " ") ->  | P74: =IF(H74<>0, IF(L74/H74*100=0, "-", L74/H74*100), " ") ->  | Q74: =IF(I74<>0, IF(M74/I74*100=0, "-", M74/I74*100), " ") ->  | R74: =IF(J74<>0, IF(N74/J74*100=0, "-", N74/J74*100), " ") -> 
A75: =IF(COUNTRY_INFO!A75=0," ",COUNTRY_INFO!A75) -> Mali | B75: =IF(COUNTRY_INFO!B75=0," ",COUNTRY_INFO!B75) -> Tombouctou | C75: =IF(COUNTRY_INFO!C75=0," ",COUNTRY_INFO!C75) -> Gourma-Rharous | D75: =IF(OR(COUNTRY_INFO!$T$9:$T$1000="T3 (ALB/MBD)",COUNTRY_INFO!$U$9:$U$1000="T3 (ALB/MBD)"), "T3 (ALB/MBD)", " ") ->  | J75: 0 | N75: 0
A76: =IF(COUNTRY_INFO!A76=0," ",COUNTRY_INFO!A76) -> Mali | B76: =IF(COUNTRY_INFO!B76=0," ",COUNTRY_INFO!B76) -> Tombouctou | C76: =IF(COUNTRY_INFO!C76=0," ",COUNTRY_INFO!C76) -> Niafunké | D76: =IF(OR(COUNTRY_INFO!$T$9:$T$1000="T3 (ALB/MBD)",COUNTRY_INFO!$U$9:$U$1000="T3 (ALB/MBD)"), "T3 (ALB/MBD)", " ") ->  | J76: 0 | N76: 0
A77: =IF(COUNTRY_INFO!A77=0," ",COUNTRY_INFO!A77) -> Mali | B77: =IF(COUNTRY_INFO!B77=0," ",COUNTRY_INFO!B77) -> Tombouctou | C77: =IF(COUNTRY_INFO!C77=0," ",COUNTRY_INFO!C77) -> Tombouctou | D77: =IF(OR(COUNTRY_INFO!$T$9:$T$1000="T3 (ALB/MBD)",COUNTRY_INFO!$U$9:$U$1000="T3 (ALB/MBD)"), "T3 (ALB/MBD)", " ") ->  | J77: 0 | N77: 0
A78: =IF(COUNTRY_INFO!A78=0," ",COUNTRY_INFO!A78) -> Mali | B78: =IF(COUNTRY_INFO!B78=0," ",COUNTRY_INFO!B78) -> Taoudenit | C78: =IF(COUNTRY_INFO!C78=0," ",COUNTRY_INFO!C78) -> Achourat | D78: =IF(OR(COUNTRY_INFO!$T$9:$T$1000="T3 (ALB/MBD)",COUNTRY_INFO!$U$9:$U$1000="T3 (ALB/MBD)"), "T3 (ALB/MBD)", " ") ->  | J78: 0 | N78: 0
A79: =IF(COUNTRY_INFO!A79=0," ",COUNTRY_INFO!A79) -> Mali | B79: =IF(COUNTRY_INFO!B79=0," ",COUNTRY_INFO!B79) -> Taoudenit | C79: =IF(COUNTRY_INFO!C79=0," ",COUNTRY_INFO!C79) -> Al-Ourch | D79: =IF(OR(COUNTRY_INFO!$T$9:$T$1000="T3 (ALB/MBD)",COUNTRY_INFO!$U$9:$U$1000="T3 (ALB/MBD)"), "T3 (ALB/MBD)", " ") ->  | J79: 0 | N79: 0
A80: =IF(COUNTRY_INFO!A80=0," ",COUNTRY_INFO!A80) -> Mali | B80: =IF(COUNTRY_INFO!B80=0," ",COUNTRY_INFO!B80) -> Taoudenit | C80: =IF(COUNTRY_INFO!C80=0," ",COUNTRY_INFO!C80) -> Araouane | D80: =IF(OR(COUNTRY_INFO!$T$9:$T$1000="T3 (ALB/MBD)",COUNTRY_INFO!$U$9:$U$1000="T3 (ALB/MBD)"), "T3 (ALB/MBD)", " ") ->  | J80: 0 | N80: 0
A81: =IF(COUNTRY_INFO!A81=0," ",COUNTRY_INFO!A81) -> Mali | B81: =IF(COUNTRY_INFO!B81=0," ",COUNTRY_INFO!B81) -> Taoudenit | C81: =IF(COUNTRY_INFO!C81=0," ",COUNTRY_INFO!C81) -> Boujbeha | D81: =IF(OR(COUNTRY_INFO!$T$9:$T$1000="T3 (ALB/MBD)",COUNTRY_INFO!$U$9:$U$1000="T3 (ALB/MBD)"), "T3 (ALB/MBD)", " ") ->  | J81: 0 | N81: 0
A82: =IF(COUNTRY_INFO!A82=0," ",COUNTRY_INFO!A82) -> Mali | B82: =IF(COUNTRY_INFO!B82=0," ",COUNTRY_INFO!B82) -> Taoudenit | C82: =IF(COUNTRY_INFO!C82=0," ",COUNTRY_INFO!C82) -> Foum-Elba | D82: =IF(OR(COUNTRY_INFO!$T$9:$T$1000="T3 (ALB/MBD)",COUNTRY_INFO!$U$9:$U$1000="T3 (ALB/MBD)"), "T3 (ALB/MBD)", " ") ->  | J82: 0 | N82: 0
A83: =IF(COUNTRY_INFO!A83=0," ",COUNTRY_INFO!A83) -> Mali | B83: =IF(COUNTRY_INFO!B83=0," ",COUNTRY_INFO!B83) -> Taoudenit | C83: =IF(COUNTRY_INFO!C83=0," ",COUNTRY_INFO!C83) -> Taoudenit | D83: =IF(OR(COUNTRY_INFO!$T$9:$T$1000="T3 (ALB/MBD)",COUNTRY_INFO!$U$9:$U$1000="T3 (ALB/MBD)"), "T3 (ALB/MBD)", " ") ->  | J83: 0 | N83: 0

Sheet T3_R2 (hidden)
A1: T 3 - Albendazole (ALB) ou Mebendazole (MBD) - Tournée 2
A2: Structure administrative, population nécessitant une chimioprévention par groupe d'âge, population traitée par groupe d'âge et couverture
A4: TOTAL | G4: =SUM(G$9:G$1000) -> 0 | H4: 0 | I4: 0 | J4: 0 | K4: 0 | L4: 0 | M4: 0 | N4: 0 | O4: =IF(G4<>0, IF(K4/G4*100=0, "-", K4/G4*100), " ") ->  | P4: =IF(H4<>0, IF(L4/H4*100=0, "-", L4/H4*100), " ") ->  | Q4: =IF(I4<>0, IF(M4/I4*100=0, "-", M4/I4*100), " ") ->  | R4: =IF(J4<>0, IF(N4/J4*100=0, "-", N4/J4*100), " ") -> 
A6: Structure administrative du pays | D6: Mise en oeuvre de la CP | E6: Médica-ment | F6: Date | G6: Population ciblée pour T3 | K6: Population traitée | O6: Couverture du Programme (%)
A7: Pays | B7: Région/Département | C7: District | G7: EAPréS | H7: EAS | I7: Adultes | J7: Total | K7: EAPréS | L7: EAS | M7: Adultes | N7: Total | O7: EAPréS | P7: EAS | Q7: Adultes | R7: Total
A9: =IF(COUNTRY_INFO!A9=0," ",COUNTRY_INFO!A9) -> Mali | B9: =IF(COUNTRY_INFO!B9=0," ",COUNTRY_INFO!B9) -> Bamako | C9: =IF(COUNTRY_INFO!C9=0," ",COUNTRY_INFO!C9) -> Commune 1 | D9: =IF(AND(COUNTRY_INFO!$T$9:$T$1000="T3 (ALB/MBD)",COUNTRY_INFO!$U$9:$U$1000="T3 (ALB/MBD)"), "T3 (ALB/MBD)", " ") ->  | J9: =SUM(G9:I9) -> 0 | N9: =SUM(K9:M9) -> 0 | O9: =IF(G9<>0, IF(K9/G9*100=0, "-", K9/G9*100), " ") -> 
A10: =IF(COUNTRY_INFO!A10=0," ",COUNTRY_INFO!A10) -> Mali | B10: =IF(COUNTRY_INFO!B10=0," ",COUNTRY_INFO!B10) -> Bamako | C10: =IF(COUNTRY_INFO!C10=0," ",COUNTRY_INFO!C10) -> Commune 2 | D10: =IF(AND(COUNTRY_INFO!$T$9:$T$1000="T3 (ALB/MBD)",COUNTRY_INFO!$U$9:$U$1000="T3 (ALB/MBD)"), "T3 (ALB/MBD)", " ") ->  | J10: =SUM(G10:I10) -> 0 | N10: =SUM(K10:M10) -> 0 | O10: =IF(G10<>0, IF(K10/G10*100=0, "-", K10/G10*100), " ") ->  | P10: =IF(H10<>0, IF(L10/H10*100=0, "-", L10/H10*100), " ") ->  | Q10: =IF(I10<>0, IF(M10/I10*100=0, "-", M10/I10*100), " ") ->  | R10: =IF(J10<>0, IF(N10/J10*100=0, "-", N10/J10*100), " ") -> 
A11: =IF(COUNTRY_INFO!A11=0," ",COUNTRY_INFO!A11) -> Mali | B11: =IF(COUNTRY_INFO!B11=0," ",COUNTRY_INFO!B11) -> Bamako | C11: =IF(COUNTRY_INFO!C11=0," ",COUNTRY_INFO!C11) -> Commune 3 | D11: =IF(AND(COUNTRY_INFO!$T$9:$T$1000="T3 (ALB/MBD)",COUNTRY_INFO!$U$9:$U$1000="T3 (ALB/MBD)"), "T3 (ALB/MBD)", " ") ->  | J11: 0 | N11: 0
A12: =IF(COUNTRY_INFO!A12=0," ",COUNTRY_INFO!A12) -> Mali | B12: =IF(COUNTRY_INFO!B12=0," ",COUNTRY_INFO!B12) -> Bamako | C12: =IF(COUNTRY_INFO!C12=0," ",COUNTRY_INFO!C12) -> Commune 4 | D12: =IF(AND(COUNTRY_INFO!$T$9:$T$1000="T3 (ALB/MBD)",COUNTRY_INFO!$U$9:$U$1000="T3 (ALB/MBD)"), "T3 (ALB/MBD)", " ") ->  | J12: 0 | N12: 0
A13: =IF(COUNTRY_INFO!A13=0," ",COUNTRY_INFO!A13) -> Mali | B13: =IF(COUNTRY_INFO!B13=0," ",COUNTRY_INFO!B13) -> Bamako | C13: =IF(COUNTRY_INFO!C13=0," ",COUNTRY_INFO!C13) -> Commune 5 | D13: =IF(AND(COUNTRY_INFO!$T$9:$T$1000="T3 (ALB/MBD)",COUNTRY_INFO!$U$9:$U$1000="T3 (ALB/MBD)"), "T3 (ALB/MBD)", " ") ->  | J13: 0 | N13: 0
A14: =IF(COUNTRY_INFO!A14=0," ",COUNTRY_INFO!A14) -> Mali | B14: =IF(COUNTRY_INFO!B14=0," ",COUNTRY_INFO!B14) -> Bamako | C14: =IF(COUNTRY_INFO!C14=0," ",COUNTRY_INFO!C14) -> Commune 6 | D14: =IF(AND(COUNTRY_INFO!$T$9:$T$1000="T3 (ALB/MBD)",COUNTRY_INFO!$U$9:$U$1000="T3 (ALB/MBD)"), "T3 (ALB/MBD)", " ") ->  | J14: 0 | N14: 0
A15: =IF(COUNTRY_INFO!A15=0," ",COUNTRY_INFO!A15) -> Mali | B15: =IF(COUNTRY_INFO!B15=0," ",COUNTRY_INFO!B15) -> Gao | C15: =IF(COUNTRY_INFO!C15=0," ",COUNTRY_INFO!C15) -> Ansongo | D15: =IF(AND(COUNTRY_INFO!$T$9:$T$1000="T3 (ALB/MBD)",COUNTRY_INFO!$U$9:$U$1000="T3 (ALB/MBD)"), "T3 (ALB/MBD)", " ") ->  | J15: 0 | N15: 0
A16: =IF(COUNTRY_INFO!A16=0," ",COUNTRY_INFO!A16) -> Mali | B16: =IF(COUNTRY_INFO!B16=0," ",COUNTRY_INFO!B16) -> Gao | C16: =IF(COUNTRY_INFO!C16=0," ",COUNTRY_INFO!C16) -> Bourem | D16: =IF(AND(COUNTRY_INFO!$T$9:$T$1000="T3 (ALB/MBD)",COUNTRY_INFO!$U$9:$U$1000="T3 (ALB/MBD)"), "T3 (ALB/MBD)", " ") ->  | J16: 0 | N16: 0
A17: =IF(COUNTRY_INFO!A17=0," ",COUNTRY_INFO!A17) -> Mali | B17: =IF(COUNTRY_INFO!B17=0," ",COUNTRY_INFO!B17) -> Gao | C17: =IF(COUNTRY_INFO!C17=0," ",COUNTRY_INFO!C17) -> Almoustrat | D17: =IF(AND(COUNTRY_INFO!$T$9:$T$1000="T3 (ALB/MBD)",COUNTRY_INFO!$U$9:$U$1000="T3 (ALB/MBD)"), "T3 (ALB/MBD)", " ") ->  | J17: 0 | N17: 0
A18: =IF(COUNTRY_INFO!A18=0," ",COUNTRY_INFO!A18) -> Mali | B18: =IF(COUNTRY_INFO!B18=0," ",COUNTRY_INFO!B18) -> Gao | C18: =IF(COUNTRY_INFO!C18=0," ",COUNTRY_INFO!C18) -> Gao | D18: =IF(AND(COUNTRY_INFO!$T$9:$T$1000="T3 (ALB/MBD)",COUNTRY_INFO!$U$9:$U$1000="T3 (ALB/MBD)"), "T3 (ALB/MBD)", " ") ->  | J18: 0 | N18: 0
A19: =IF(COUNTRY_INFO!A19=0," ",COUNTRY_INFO!A19) -> Mali | B19: =IF(COUNTRY_INFO!B19=0," ",COUNTRY_INFO!B19) -> Menaka | C19: =IF(COUNTRY_INFO!C19=0," ",COUNTRY_INFO!C19) -> Menaka | D19: =IF(AND(COUNTRY_INFO!$T$9:$T$1000="T3 (ALB/MBD)",COUNTRY_INFO!$U$9:$U$1000="T3 (ALB/MBD)"), "T3 (ALB/MBD)", " ") ->  | J19: 0 | N19: 0
A20: =IF(COUNTRY_INFO!A20=0," ",COUNTRY_INFO!A20) -> Mali | B20: =IF(COUNTRY_INFO!B20=0," ",COUNTRY_INFO!B20) -> Menaka | C20: =IF(COUNTRY_INFO!C20=0," ",COUNTRY_INFO!C20) -> Anderamboukane | D20: =IF(AND(COUNTRY_INFO!$T$9:$T$1000="T3 (ALB/MBD)",COUNTRY_INFO!$U$9:$U$1000="T3 (ALB/MBD)"), "T3 (ALB/MBD)", " ") ->  | J20: 0 | N20: 0
A21: =IF(COUNTRY_INFO!A21=0," ",COUNTRY_INFO!A21) -> Mali | B21: =IF(COUNTRY_INFO!B21=0," ",COUNTRY_INFO!B21) -> Menaka | C21: =IF(COUNTRY_INFO!C21=0," ",COUNTRY_INFO!C21) -> Inekar | D21: =IF(AND(COUNTRY_INFO!$T$9:$T$1000="T3 (ALB/MBD)",COUNTRY_INFO!$U$9:$U$1000="T3 (ALB/MBD)"), "T3 (ALB/MBD)", " ") ->  | J21: 0 | N21: 0
A22: =IF(COUNTRY_INFO!A22=0," ",COUNTRY_INFO!A22) -> Mali | B22: =IF(COUNTRY_INFO!B22=0," ",COUNTRY_INFO!B22) -> Menaka | C22: =IF(COUNTRY_INFO!C22=0," ",COUNTRY_INFO!C22) -> Tidermene | D22: =IF(AND(COUNTRY_INFO!$T$9:$T$1000="T3 (ALB/MBD)",COUNTRY_INFO!$U$9:$U$1000="T3 (ALB/MBD)"), "T3 (ALB/MBD)", " ") ->  | J22: 0 | N22: 0
A23: =IF(COUNTRY_INFO!A23=0," ",COUNTRY_INFO!A23) -> Mali | B23: =IF(COUNTRY_INFO!B23=0," ",COUNTRY_INFO!B23) -> Kayes | C23: =IF(COUNTRY_INFO!C23=0," ",COUNTRY_INFO!C23) -> Bafoulabe | D23: =IF(AND(COUNTRY_INFO!$T$9:$T$1000="T3 (ALB/MBD)",COUNTRY_INFO!$U$9:$U$1000="T3 (ALB/MBD)"), "T3 (ALB/MBD)", " ") ->  | J23: 0 | N23: 0
A24: =IF(COUNTRY_INFO!A24=0," ",COUNTRY_INFO!A24) -> Mali | B24: =IF(COUNTRY_INFO!B24=0," ",COUNTRY_INFO!B24) -> Kayes | C24: =IF(COUNTRY_INFO!C24=0," ",COUNTRY_INFO!C24) -> Diema | D24: =IF(AND(COUNTRY_INFO!$T$9:$T$1000="T3 (ALB/MBD)",COUNTRY_INFO!$U$9:$U$1000="T3 (ALB/MBD)"), "T3 (ALB/MBD)", " ") ->  | J24: 0 | N24: 0
A25: =IF(COUNTRY_INFO!A25=0," ",COUNTRY_INFO!A25) -> Mali | B25: =IF(COUNTRY_INFO!B25=0," ",COUNTRY_INFO!B25) -> Kayes | C25: =IF(COUNTRY_INFO!C25=0," ",COUNTRY_INFO!C25) -> Kayes | D25: =IF(AND(COUNTRY_INFO!$T$9:$T$1000="T3 (ALB/MBD)",COUNTRY_INFO!$U$9:$U$1000="T3 (ALB/MBD)"), "T3 (ALB/MBD)", " ") ->  | J25: 0 | N25: 0
A26: =IF(COUNTRY_INFO!A26=0," ",COUNTRY_INFO!A26) -> Mali | B26: =IF(COUNTRY_INFO!B26=0," ",COUNTRY_INFO!B26) -> Kayes | C26: =IF(COUNTRY_INFO!C26=0," ",COUNTRY_INFO!C26) -> Kenieba | D26: =IF(AND(COUNTRY_INFO!$T$9:$T$1000="T3 (ALB/MBD)",COUNTRY_INFO!$U$9:$U$1000="T3 (ALB/MBD)"), "T3 (ALB/MBD)", " ") ->  | J26: 0 | N26: 0
A27: =IF(COUNTRY_INFO!A27=0," ",COUNTRY_INFO!A27) -> Mali | B27: =IF(COUNTRY_INFO!B27=0," ",COUNTRY_INFO!B27) -> Kayes | C27: =IF(COUNTRY_INFO!C27=0," ",COUNTRY_INFO!C27) -> Kita | D27: =IF(AND(COUNTRY_INFO!$T$9:$T$1000="T3 (ALB/MBD)",COUNTRY_INFO!$U$9:$U$1000="T3 (ALB/MBD)"), "T3 (ALB/MBD)", " ") ->  | J27: 0 | N27: 0
A28: =IF(COUNTRY_INFO!A28=0," ",COUNTRY_INFO!A28) -> Mali | B28: =IF(COUNTRY_INFO!B28=0," ",COUNTRY_INFO!B28) -> Kayes | C28: =IF(COUNTRY_INFO!C28=0," ",COUNTRY_INFO!C28) -> Sagabari | D28: =IF(AND(COUNTRY_INFO!$T$9:$T$1000="T3 (ALB/MBD)",COUNTRY_INFO!$U$9:$U$1000="T3 (ALB/MBD)"), "T3 (ALB/MBD)", " ") ->  | J28: 0 | N28: 0
A29: =IF(COUNTRY_INFO!A29=0," ",COUNTRY_INFO!A29) -> Mali | B29: =IF(COUNTRY_INFO!B29=0," ",COUNTRY_INFO!B29) -> Kayes | C29: =IF(COUNTRY_INFO!C29=0," ",COUNTRY_INFO!C29) -> Sefeto | D29: =IF(AND(COUNTRY_INFO!$T$9:$T$1000="T3 (ALB/MBD)",COUNTRY_INFO!$U$9:$U$1000="T3 (ALB/MBD)"), "T3 (ALB/MBD)", " ") ->  | J29: 0 | N29: 0
A30: =IF(COUNTRY_INFO!A30=0," ",COUNTRY_INFO!A30) -> Mali | B30: =IF(COUNTRY_INFO!B30=0," ",COUNTRY_INFO!B30) -> Kayes | C30: =IF(COUNTRY_INFO!C30=0," ",COUNTRY_INFO!C30) -> Nioro | D30: =IF(AND(COUNTRY_INFO!$T$9:$T$1000="T3 (ALB/MBD)",COUNTRY_INFO!$U$9:$U$1000="T3 (ALB/MBD)"), "T3 (ALB/MBD)", " ") ->  | J30: 0 | N30: 0
A31: =IF(COUNTRY_INFO!A31=0," ",COUNTRY_INFO!A31) -> Mali | B31: =IF(COUNTRY_INFO!B31=0," ",COUNTRY_INFO!B31) -> Kayes | C31: =IF(COUNTRY_INFO!C31=0," ",COUNTRY_INFO!C31) -> Oussoubidiagna | D31: =IF(AND(COUNTRY_INFO!$T$9:$T$1000="T3 (ALB/MBD)",COUNTRY_INFO!$U$9:$U$1000="T3 (ALB/MBD)"), "T3 (ALB/MBD)", " ") ->  | J31: 0 | N31: 0
